Workbook

Sheet Data (hidden)
B3: TD Valuation Presentation | C3: https://www.sec.gov/Archives/edgar/data/1158041/000119312522254419/d306901dex99cxiv.htm
B5: Mining Valuation | C5: https://www.pgo.ca/uploaded/files/events/webinar-2019-mining-financial-model-valuation.pdf
D9: Min | E9: Max | F9: Weight
C10: Equity Research | D10: 32 | E10: 51 | F10: =Summary!F38 -> 0.1 | J10: =C10 -> Equity Research
C11: Comparables | D11: 25 | E11: 36 | F11: =Summary!F34 -> 0.1 | I11: Min | J11: =D10 -> 32
C12: 52 Week Trading Range | D12: ='Share Price'!J19 -> 25.09 | E12: ='Share Price'!J20 -> 51.93 | F12: =Summary!F31 -> 0.1 | I12: Max | J12: =E10 -> 51
C13: Precedent Transactions | D13: 35 | E13: 49 | F13: =Summary!F28 -> 0.1
C14: P / NAV - Trading | D14: ='Net Asset Value'!$P$46 -> 24.02601221 | E14: ='Net Asset Value'!$R$46 -> 36.03901831 | F14: =Summary!F25 -> 0.1
C15: EV / EBITDA | D15: ='Val Calcs'!$K$44 -> 22.51218036 | E15: ='Val Calcs'!$K$43 -> 38.73238754 | F15: =Summary!F22 -> 0.1
C16: P / NAV - Transaction | D16: ='Net Asset Value'!$L$46 -> 34.03685063 | E16: ='Net Asset Value'!$N$46 -> 48.05202441 | F16: =Summary!F19 -> 0.4
C17: Valuation Range | D17: =SUMPRODUCT(D10:D16,$F$10:$F$16)/SUM($F$10:$F$16) -> 29.97755951 | E17: =SUMPRODUCT(E10:E16,$F$10:$F$16)/SUM($F$10:$F$16) -> 45.49095035
C19: P / NAV - Trading | D19: ='Net Asset Value'!$P$46 -> 24.02601221 | E19: ='Net Asset Value'!$R$46 -> 36.03901831
C20: EV / EBITDA | D20: ='Val Calcs'!$K$44 -> 22.51218036 | E20: ='Val Calcs'!$K$43 -> 38.73238754
C24: P / NAV - Transaction | D24: ='Net Asset Value'!$L$46 -> 34.03685063 | E24: ='Net Asset Value'!$N$46 -> 48.05202441
C25: P / NAV - Trading | D25: ='Net Asset Value'!$P$46 -> 24.02601221 | E25: ='Net Asset Value'!$R$46 -> 36.03901831
C30: Precedent Transactions | D30: 35 | E30: 49
C31: Equity Research | D31: 32 | E31: 51
C32: Comparables | D32: 25 | E32: 36
E42: ='Financial Statements'!R5 -> 2023 | F42: ='Financial Statements'!S5 -> 2024 | G42: ='Financial Statements'!T5 -> 2025 | H42: ='Financial Statements'!U5 -> 2026 | I42: ='Financial Statements'!V5 -> 2027 | J42: ='Financial Statements'!W5 -> 2028 | K42: ='Financial Statements'!X5 -> 2029 | L42: ='Financial Statements'!Y5 -> 2030 | M42: ='Financial Statements'!Z5 -> 2031 | N42: ='Financial Statements'!AA5 -> 2032 | O42: ='Financial Statements'!AB5 -> 2033 | P42: ='Financial Statements'!AC5 -> 2034 | Q42: ='Financial Statements'!AD5 -> 2035 | R42: ='Financial Statements'!AE5 -> 2036 | S42: ='Financial Statements'!AF5 -> 2037 | T42: ='Financial Statements'!AG5 -> 2038 | U42: ='Financial Statements'!AH5 -> 2039 | V42: ='Financial Statements'!AI5 -> 2040 | W42: ='Financial Statements'!AJ5 -> 2041 | X42: ='Financial Statements'!AK5 -> 2042 | Y42: ='Financial Statements'!AL5 -> 2043 | Z42: ='Financial Statements'!AM5 -> 2044 | AA42: ='Financial Statements'!AN5 -> 2045 | AB42: ='Financial Statements'!AO5 -> 2046 | AC42: ='Financial Statements'!AP5 -> 2047 | AD42: ='Financial Statements'!AQ5 -> 2048 | AE42: ='Financial Statements'!AR5 -> 2049 | AF42: ='Financial Statements'!AS5 -> 2050 | AG42: ='Financial Statements'!AT5 -> 2051 | AH42: ='Financial Statements'!AU5 -> 2052 | AI42: ='Financial Statements'!AV5 -> 2053
D43: EBITDA | E43: ='Financial Statements'!R14 -> 0 | F43: ='Financial Statements'!S14 -> 0 | G43: ='Financial Statements'!T14 -> 0 | H43: ='Financial Statements'!U14 -> 0 | I43: ='Financial Statements'!V14 -> 0 | J43: ='Financial Statements'!W14 -> 0 | K43: ='Financial Statements'!X14 -> 93.79109624 | L43: ='Financial Statements'!Y14 -> 100.9271836 | M43: ='Financial Statements'!Z14 -> 109.1578481 | N43: ='Financial Statements'!AA14 -> 118.833227 | O43: ='Financial Statements'!AB14 -> 100.7873536 | P43: ='Financial Statements'!AC14 -> 89.40338561 | Q43: ='Financial Statements'!AD14 -> 99.97451538 | R43: ='Financial Statements'!AE14 -> 111.1029717 | S43: ='Financial Statements'!AF14 -> 127.3105704 | T43: ='Financial Statements'!AG14 -> 148.7645098 | U43: ='Financial Statements'!AH14 -> 118.2911659 | V43: ='Financial Statements'!AI14 -> 93.27715512 | W43: ='Financial Statements'!AJ14 -> 130.8083809 | X43: ='Financial Statements'!AK14 -> 111.8319267 | Y43: ='Financial Statements'!AL14 -> 171.506648 | Z43: ='Financial Statements'!AM14 -> 125.3671431 | AA43: ='Financial Statements'!AN14 -> 112.0951368 | AB43: ='Financial Statements'!AO14 -> 164.5644924 | AC43: ='Financial Statements'!AP14 -> 175.0669639 | AD43: ='Financial Statements'!AQ14 -> 130.6927106 | AE43: ='Financial Statements'!AR14 -> 200.6344716 | AF43: ='Financial Statements'!AS14 -> 419.1426869 | AG43: ='Financial Statements'!AT14 -> 407.2638113 | AH43: ='Financial Statements'!AU14 -> 428.7321507 | AI43: ='Financial Statements'!AV14 -> 418.2011365
E69: =E42 -> 2023 | F69: =F42 -> 2024 | G69: 2025 | H69: 2026 | I69: 2027 | J69: 2028 | K69: 2029 | L69: 2030 | M69: 2031 | N69: 2032 | O69: 2033 | P69: 2034 | Q69: 2035 | R69: 2036 | S69: 2037 | T69: 2038 | U69: 2039 | V69: 2040 | W69: 2041 | X69: 2042 | Y69: 2043 | Z69: 2044 | AA69: 2045 | AB69: 2046 | AC69: 2047 | AD69: 2048 | AE69: 2049 | AF69: 2050 | AG69: 2051 | AH69: 2052 | AI69: 2053
D70: ='Financial Statements'!B78 -> Shareholder Loan - Interest Payment | E70: ='Financial Statements'!R78 -> 0 | F70: ='Financial Statements'!S78 -> 0 | G70: ='Financial Statements'!T78 -> 0 | H70: ='Financial Statements'!U78 -> 0 | I70: ='Financial Statements'!V78 -> 0 | J70: ='Financial Statements'!W78 -> 0 | K70: ='Financial Statements'!X78 -> 10.35747997 | L70: ='Financial Statements'!Y78 -> 9.706108547 | M70: ='Financial Statements'!Z78 -> 4.583750659 | N70: ='Financial Statements'!AA78 -> 0 | O70: ='Financial Statements'!AB78 -> 0 | P70: ='Financial Statements'!AC78 -> 0 | Q70: ='Financial Statements'!AD78 -> 0 | R70: ='Financial Statements'!AE78 -> 0 | S70: ='Financial Statements'!AF78 -> 0 | T70: ='Financial Statements'!AG78 -> 0 | U70: ='Financial Statements'!AH78 -> 0 | V70: ='Financial Statements'!AI78 -> 0 | W70: ='Financial Statements'!AJ78 -> 0 | X70: ='Financial Statements'!AK78 -> 0 | Y70: ='Financial Statements'!AL78 -> 0 | Z70: ='Financial Statements'!AM78 -> 0 | AA70: ='Financial Statements'!AN78 -> 0 | AB70: ='Financial Statements'!AO78 -> 0 | AC70: ='Financial Statements'!AP78 -> 0 | AD70: ='Financial Statements'!AQ78 -> 0 | AE70: ='Financial Statements'!AR78 -> 0 | AF70: ='Financial Statements'!AS78 -> 0 | AG70: ='Financial Statements'!AT78 -> 0 | AH70: ='Financial Statements'!AU78 -> 0 | AI70: ='Financial Statements'!AV78 -> 0
D71: ='Financial Statements'!B79 -> Shareholder Loan - Principal Repayment | E71: ='Financial Statements'!R79 -> 0 | F71: ='Financial Statements'!S79 -> 0 | G71: ='Financial Statements'!T79 -> 0 | H71: ='Financial Statements'!U79 -> 0 | I71: ='Financial Statements'!V79 -> 0 | J71: ='Financial Statements'!W79 -> 0 | K71: ='Financial Statements'!X79 -> 3.25685712 | L71: ='Financial Statements'!Y79 -> 25.61178944 | M71: ='Financial Statements'!Z79 -> 22.91875329 | N71: ='Financial Statements'!AA79 -> 0 | O71: ='Financial Statements'!AB79 -> 0 | P71: ='Financial Statements'!AC79 -> 0 | Q71: ='Financial Statements'!AD79 -> 0 | R71: ='Financial Statements'!AE79 -> 0 | S71: ='Financial Statements'!AF79 -> 0 | T71: ='Financial Statements'!AG79 -> 0 | U71: ='Financial Statements'!AH79 -> 0 | V71: ='Financial Statements'!AI79 -> 0 | W71: ='Financial Statements'!AJ79 -> 0 | X71: ='Financial Statements'!AK79 -> 0 | Y71: ='Financial Statements'!AL79 -> 0 | Z71: ='Financial Statements'!AM79 -> 0 | AA71: ='Financial Statements'!AN79 -> 0 | AB71: ='Financial Statements'!AO79 -> 0 | AC71: ='Financial Statements'!AP79 -> 0 | AD71: ='Financial Statements'!AQ79 -> 0 | AE71: ='Financial Statements'!AR79 -> 0 | AF71: ='Financial Statements'!AS79 -> 0 | AG71: ='Financial Statements'!AT79 -> 0 | AH71: ='Financial Statements'!AU79 -> 0 | AI71: ='Financial Statements'!AV79 -> 0
D72: ='Financial Statements'!B80 -> Dividends Distributed | E72: ='Financial Statements'!R80 -> 0 | F72: ='Financial Statements'!S80 -> 0 | G72: ='Financial Statements'!T80 -> 0 | H72: ='Financial Statements'!U80 -> 0 | I72: ='Financial Statements'!V80 -> 0 | J72: ='Financial Statements'!W80 -> 0 | K72: ='Financial Statements'!X80 -> 0 | L72: ='Financial Statements'!Y80 -> 1.000409565 | M72: ='Financial Statements'!Z80 -> 13.63637774 | N72: ='Financial Statements'!AA80 -> 49.5162989 | O72: ='Financial Statements'!AB80 -> 37.94731621 | P72: ='Financial Statements'!AC80 -> 29.86756478 | Q72: ='Financial Statements'!AD80 -> 42.17367245 | R72: ='Financial Statements'!AE80 -> 48.92329088 | S72: ='Financial Statements'!AF80 -> 57.1900511 | T72: ='Financial Statements'!AG80 -> 74.34061163 | U72: ='Financial Statements'!AH80 -> 55.84398795 | V72: ='Financial Statements'!AI80 -> 38.4667353 | W72: ='Financial Statements'!AJ80 -> 62.18112871 | X72: ='Financial Statements'!AK80 -> 52.91596838 | Y72: ='Financial Statements'!AL80 -> 90.68769994 | Z72: ='Financial Statements'!AM80 -> 69.25545192 | AA72: ='Financial Statements'!AN80 -> 60.92142539 | AB72: ='Financial Statements'!AO80 -> 116.318249 | AC72: ='Financial Statements'!AP80 -> 121.428176 | AD72: ='Financial Statements'!AQ80 -> 98.31519741 | AE72: ='Financial Statements'!AR80 -> 138.1667526 | AF72: ='Financial Statements'!AS80 -> 290.6193389 | AG72: ='Financial Statements'!AT80 -> 294.4716037 | AH72: ='Financial Statements'!AU80 -> 306.7584331 | AI72: ='Financial Statements'!AV80 -> 302.016663
D73: ='Financial Statements'!B81 -> Equity Redemption | E73: ='Financial Statements'!R81 -> 0 | F73: ='Financial Statements'!S81 -> 0 | G73: ='Financial Statements'!T81 -> 0 | H73: ='Financial Statements'!U81 -> 0 | I73: ='Financial Statements'!V81 -> 0 | J73: ='Financial Statements'!W81 -> 0 | K73: ='Financial Statements'!X81 -> 0 | L73: ='Financial Statements'!Y81 -> 0 | M73: ='Financial Statements'!Z81 -> 0 | N73: ='Financial Statements'!AA81 -> 0 | O73: ='Financial Statements'!AB81 -> 0 | P73: ='Financial Statements'!AC81 -> 0 | Q73: ='Financial Statements'!AD81 -> 0 | R73: ='Financial Statements'!AE81 -> 0 | S73: ='Financial Statements'!AF81 -> 0 | T73: ='Financial Statements'!AG81 -> 0 | U73: ='Financial Statements'!AH81 -> 0 | V73: ='Financial Statements'!AI81 -> 0 | W73: ='Financial Statements'!AJ81 -> 0 | X73: ='Financial Statements'!AK81 -> 0 | Y73: ='Financial Statements'!AL81 -> 0 | Z73: ='Financial Statements'!AM81 -> 0 | AA73: ='Financial Statements'!AN81 -> 0 | AB73: ='Financial Statements'!AO81 -> 0 | AC73: ='Financial Statements'!AP81 -> 0 | AD73: ='Financial Statements'!AQ81 -> 0 | AE73: ='Financial Statements'!AR81 -> 0 | AF73: ='Financial Statements'!AS81 -> 0 | AG73: ='Financial Statements'!AT81 -> 0 | AH73: ='Financial Statements'!AU81 -> 0 | AI73: ='Financial Statements'!AV81 -> 0
D74: Total | E74: =SUM(E70:E73) -> 0 | F74: =SUM(F70:F73) -> 0 | G74: 0 | H74: 0 | I74: 0 | J74: 0 | K74: 13.61433709 | L74: 36.31830756 | M74: 41.13888169 | N74: 49.5162989 | O74: 37.94731621 | P74: 29.86756478 | Q74: 42.17367245 | R74: 48.92329088 | S74: 57.1900511 | T74: 74.34061163 | U74: 55.84398795 | V74: 38.4667353 | W74: 62.18112871 | X74: 52.91596838 | Y74: 90.68769994 | Z74: 69.25545192 | AA74: 60.92142539 | AB74: 116.318249 | AC74: 121.428176 | AD74: 98.31519741 | AE74: 138.1667526 | AF74: 290.6193389 | AG74: 294.4716037 | AH74: 306.7584331 | AI74: 302.016663
E104: =E69 -> 2023 | F104: 2024 | G104: 2025 | H104: 2026 | I104: 2027 | J104: 2028 | K104: 2029 | L104: 2030 | M104: 2031 | N104: 2032 | O104: 2033 | P104: 2034 | Q104: 2035 | R104: 2036 | S104: 2037 | T104: 2038 | U104: 2039 | V104: 2040 | W104: 2041 | X104: 2042 | Y104: 2043 | Z104: 2044 | AA104: 2045 | AB104: 2046 | AC104: 2047 | AD104: 2048 | AE104: 2049 | AF104: 2050 | AG104: 2051 | AH104: 2052 | AI104: 2053
D105: Sustaining CAPEX | E105: ='Financial Statements'!R44 -> 0 | F105: ='Financial Statements'!S44 -> 0 | G105: ='Financial Statements'!T44 -> 0 | H105: ='Financial Statements'!U44 -> 0 | I105: ='Financial Statements'!V44 -> 0 | J105: ='Financial Statements'!W44 -> 0 | K105: ='Financial Statements'!X44 -> 3.170564507 | L105: ='Financial Statements'!Y44 -> 3.693461175 | M105: ='Financial Statements'!Z44 -> 4.959624508 | N105: ='Financial Statements'!AA44 -> 4.562870172 | O105: ='Financial Statements'!AB44 -> 4.071992435 | P105: ='Financial Statements'!AC44 -> 6.017795991 | Q105: ='Financial Statements'!AD44 -> 4.262398024 | R105: ='Financial Statements'!AE44 -> 1.896355431 | S105: ='Financial Statements'!AF44 -> 4.101702775 | T105: ='Financial Statements'!AG44 -> 3.626790346 | U105: ='Financial Statements'!AH44 -> 3.796834258 | V105: ='Financial Statements'!AI44 -> 5.358438925 | W105: ='Financial Statements'!AJ44 -> 4.699196544 | X105: ='Financial Statements'!AK44 -> 5.201255648 | Y105: ='Financial Statements'!AL44 -> 5.558584393 | Z105: ='Financial Statements'!AM44 -> 4.151421291 | AA105: ='Financial Statements'!AN44 -> 4.634502676 | AB105: ='Financial Statements'!AO44 -> 6.72048808 | AC105: ='Financial Statements'!AP44 -> 8.077316442 | AD105: ='Financial Statements'!AQ44 -> 4.843556147 | AE105: ='Financial Statements'!AR44 -> 5.006372657 | AF105: ='Financial Statements'!AS44 -> 0 | AG105: ='Financial Statements'!AT44 -> 0 | AH105: ='Financial Statements'!AU44 -> 0 | AI105: ='Financial Statements'!AV44 -> 0
D106: Throughput | E106: ='Manganese Mine'!R101 -> 0 | F106: ='Manganese Mine'!S101 -> 0 | G106: ='Manganese Mine'!T101 -> 0 | H106: ='Manganese Mine'!U101 -> 0 | I106: ='Manganese Mine'!V101 -> 0 | J106: ='Manganese Mine'!W101 -> 0 | K106: ='Manganese Mine'!X101 -> 200 | L106: ='Manganese Mine'!Y101 -> 208 | M106: ='Manganese Mine'!Z101 -> 208 | N106: ='Manganese Mine'!AA101 -> 201 | O106: ='Manganese Mine'!AB101 -> 202 | P106: ='Manganese Mine'!AC101 -> 192 | Q106: ='Manganese Mine'!AD101 -> 192 | R106: ='Manganese Mine'!AE101 -> 201 | S106: ='Manganese Mine'!AF101 -> 192 | T106: ='Manganese Mine'!AG101 -> 207 | U106: ='Manganese Mine'!AH101 -> 329 | V106: ='Manganese Mine'!AI101 -> 300 | W106: ='Manganese Mine'!AJ101 -> 300 | X106: ='Manganese Mine'!AK101 -> 300 | Y106: ='Manganese Mine'!AL101 -> 300 | Z106: ='Manganese Mine'!AM101 -> 300 | AA106: ='Manganese Mine'!AN101 -> 300 | AB106: ='Manganese Mine'!AO101 -> 300 | AC106: ='Manganese Mine'!AP101 -> 300 | AD106: ='Manganese Mine'!AQ101 -> 300 | AE106: ='Manganese Mine'!AR101 -> 178 | AF106: ='Manganese Mine'!AS101 -> 0 | AG106: ='Manganese Mine'!AT101 -> 0 | AH106: ='Manganese Mine'!AU101 -> 0 | AI106: ='Manganese Mine'!AV101 -> 0
E130: =E104 -> 2023 | F130: =F104 -> 2024 | G130: 2025 | H130: 2026 | I130: 2027 | J130: 2028 | K130: 2029 | L130: 2030 | M130: 2031 | N130: 2032 | O130: 2033 | P130: 2034 | Q130: 2035 | R130: 2036 | S130: 2037 | T130: 2038 | U130: 2039 | V130: 2040 | W130: 2041 | X130: 2042 | Y130: 2043 | Z130: 2044 | AA130: 2045 | AB130: 2046 | AC130: 2047 | AD130: 2048 | AE130: 2049 | AF130: 2050 | AG130: 2051 | AH130: 2052 | AI130: 2053
D131: Principal Repayment | E131: ='Financial Statements'!R58 -> 0 | F131: ='Financial Statements'!S58 -> 0 | G131: ='Financial Statements'!T58 -> 0 | H131: ='Financial Statements'!U58 -> 0 | I131: ='Financial Statements'!V58 -> 0 | J131: ='Financial Statements'!W58 -> 0 | K131: ='Financial Statements'!X58 -> 24.37054111 | L131: ='Financial Statements'!Y58 -> 24.37054111 | M131: ='Financial Statements'!Z58 -> 24.37054111 | N131: ='Financial Statements'!AA58 -> 24.37054111 | O131: ='Financial Statements'!AB58 -> 24.37054111 | P131: ='Financial Statements'!AC58 -> 24.37054111 | Q131: ='Financial Statements'!AD58 -> 24.37054111 | R131: ='Financial Statements'!AE58 -> 24.37054111 | S131: ='Financial Statements'!AF58 -> 24.37054111 | T131: ='Financial Statements'!AG58 -> 24.37054111 | U131: ='Financial Statements'!AH58 -> 24.37054111 | V131: ='Financial Statements'!AI58 -> 24.37054111 | W131: ='Financial Statements'!AJ58 -> 24.37054111 | X131: ='Financial Statements'!AK58 -> 24.37054111 | Y131: ='Financial Statements'!AL58 -> 24.37054111 | Z131: ='Financial Statements'!AM58 -> 24.37054111 | AA131: ='Financial Statements'!AN58 -> 24.37054111 | AB131: ='Financial Statements'!AO58 -> 0 | AC131: ='Financial Statements'!AP58 -> 0 | AD131: ='Financial Statements'!AQ58 -> 0 | AE131: ='Financial Statements'!AR58 -> 0 | AF131: ='Financial Statements'!AS58 -> 0 | AG131: ='Financial Statements'!AT58 -> 0 | AH131: ='Financial Statements'!AU58 -> 0 | AI131: ='Financial Statements'!AV58 -> 0
D132: Interest Expense | E132: ='Financial Statements'!R59 -> 0 | F132: ='Financial Statements'!S59 -> 0 | G132: ='Financial Statements'!T59 -> 0 | H132: ='Financial Statements'!U59 -> 0 | I132: ='Financial Statements'!V59 -> 0 | J132: ='Financial Statements'!W59 -> 0 | K132: ='Financial Statements'!X59 -> 18.64346395 | L132: ='Financial Statements'!Y59 -> 17.5467896 | M132: ='Financial Statements'!Z59 -> 16.45011525 | N132: ='Financial Statements'!AA59 -> 15.3534409 | O132: ='Financial Statements'!AB59 -> 14.25676655 | P132: ='Financial Statements'!AC59 -> 13.1600922 | Q132: ='Financial Statements'!AD59 -> 12.06341785 | R132: ='Financial Statements'!AE59 -> 10.9667435 | S132: ='Financial Statements'!AF59 -> 9.870069149 | T132: ='Financial Statements'!AG59 -> 8.773394799 | U132: ='Financial Statements'!AH59 -> 7.676720449 | V132: ='Financial Statements'!AI59 -> 6.5800461 | W132: ='Financial Statements'!AJ59 -> 5.48337175 | X132: ='Financial Statements'!AK59 -> 4.3866974 | Y132: ='Financial Statements'!AL59 -> 3.29002305 | Z132: ='Financial Statements'!AM59 -> 2.1933487 | AA132: ='Financial Statements'!AN59 -> 1.09667435 | AB132: ='Financial Statements'!AO59 -> 0 | AC132: ='Financial Statements'!AP59 -> 0 | AD132: ='Financial Statements'!AQ59 -> 0 | AE132: ='Financial Statements'!AR59 -> 0 | AF132: ='Financial Statements'!AS59 -> 0 | AG132: ='Financial Statements'!AT59 -> 0 | AH132: ='Financial Statements'!AU59 -> 0 | AI132: ='Financial Statements'!AV59 -> 0
D133: Cash Sweep | E133: ='Financial Statements'!R60 -> 0 | F133: ='Financial Statements'!S60 -> 0 | G133: ='Financial Statements'!T60 -> 0 | H133: ='Financial Statements'!U60 -> 0 | I133: ='Financial Statements'!V60 -> 0 | J133: ='Financial Statements'!W60 -> 0 | K133: ='Financial Statements'!X60 -> 0 | L133: ='Financial Statements'!Y60 -> 0 | M133: ='Financial Statements'!Z60 -> 0 | N133: ='Financial Statements'!AA60 -> 0 | O133: ='Financial Statements'!AB60 -> 0 | P133: ='Financial Statements'!AC60 -> 0 | Q133: ='Financial Statements'!AD60 -> 0 | R133: ='Financial Statements'!AE60 -> 0 | S133: ='Financial Statements'!AF60 -> 0 | T133: ='Financial Statements'!AG60 -> 0 | U133: ='Financial Statements'!AH60 -> 0 | V133: ='Financial Statements'!AI60 -> 0 | W133: ='Financial Statements'!AJ60 -> 0 | X133: ='Financial Statements'!AK60 -> 0 | Y133: ='Financial Statements'!AL60 -> 0 | Z133: ='Financial Statements'!AM60 -> 0 | AA133: ='Financial Statements'!AN60 -> 0 | AB133: ='Financial Statements'!AO60 -> 0 | AC133: ='Financial Statements'!AP60 -> 0 | AD133: ='Financial Statements'!AQ60 -> 0 | AE133: ='Financial Statements'!AR60 -> 0 | AF133: ='Financial Statements'!AS60 -> 0 | AG133: ='Financial Statements'!AT60 -> 0 | AH133: ='Financial Statements'!AU60 -> 0 | AI133: ='Financial Statements'!AV60 -> 0
D134: DSCR | E134: ='Manganese Mine'!R1101 -> 0 | F134: ='Manganese Mine'!S1101 -> 0 | G134: ='Manganese Mine'!T1101 -> 0 | H134: ='Manganese Mine'!U1101 -> 0 | I134: ='Manganese Mine'!V1101 -> 0 | J134: ='Manganese Mine'!W1101 -> 0 | K134: ='Manganese Mine'!X1101 -> 1.499334327 | L134: ='Manganese Mine'!Y1101 -> 1.909109111 | M134: ='Manganese Mine'!Z1101 -> 2.029091785 | N134: ='Manganese Mine'!AA1101 -> 2.224162945 | O134: ='Manganese Mine'!AB1101 -> 2.020062228 | P134: ='Manganese Mine'!AC1101 -> 1.800893236 | Q134: ='Manganese Mine'!AD1101 -> 2.044414307 | R134: ='Manganese Mine'!AE1101 -> 2.37991811 | S134: ='Manganese Mine'!AF1101 -> 2.720778733 | T134: ='Manganese Mine'!AG1101 -> 3.233767873 | U134: ='Manganese Mine'!AH1101 -> 2.796581868 | V134: ='Manganese Mine'!AI1101 -> 2.271997467 | W134: ='Manganese Mine'!AJ1101 -> 3.077583106 | X134: ='Manganese Mine'!AK1101 -> 2.869980205 | Y134: ='Manganese Mine'!AL1101 -> 4.240632153 | Z134: ='Manganese Mine'!AM1101 -> 3.572339153 | AA134: ='Manganese Mine'!AN1101 -> 3.229142566 | AB134: ='Manganese Mine'!AO1101 -> 0 | AC134: ='Manganese Mine'!AP1101 -> 0 | AD134: ='Manganese Mine'!AQ1101 -> 0 | AE134: ='Manganese Mine'!AR1101 -> 0 | AF134: ='Manganese Mine'!AS1101 -> 0 | AG134: ='Manganese Mine'!AT1101 -> 0 | AH134: ='Manganese Mine'!AU1101 -> 0 | AI134: ='Manganese Mine'!AV1101 -> 0
D135: CFADS | E135: ='Financial Statements'!R55 -> 0 | F135: ='Financial Statements'!S55 -> 0 | G135: ='Financial Statements'!T55 -> 0 | H135: ='Financial Statements'!U55 -> 0 | I135: ='Financial Statements'!V55 -> 0 | J135: ='Financial Statements'!W55 -> 0 | K135: ='Financial Statements'!X55 -> 64.49236675 | L135: ='Financial Statements'!Y55 -> 80.02469935 | M135: ='Financial Statements'!Z55 -> 82.82894704 | N135: ='Financial Statements'!AA55 -> 88.35264883 | O135: ='Financial Statements'!AB55 -> 78.02954969 | P135: ='Financial Statements'!AC55 -> 67.58860367 | Q135: ='Financial Statements'!AD55 -> 74.48619085 | R135: ='Financial Statements'!AE55 -> 84.09988024 | S135: ='Financial Statements'!AF55 -> 93.16109627 | T135: ='Financial Statements'!AG55 -> 107.179679 | U135: ='Financial Statements'!AH55 -> 89.62289809 | V135: ='Financial Statements'!AI55 -> 70.3196848 | W135: ='Financial Statements'!AJ55 -> 91.87785829 | X135: ='Financial Statements'!AK55 -> 82.53259474 | Y135: ='Financial Statements'!AL55 -> 117.2984297 | Z135: ='Financial Statements'!AM55 -> 94.89526001 | AA135: ='Financial Statements'!AN55 -> 82.23721955 | AB135: ='Financial Statements'!AO55 -> 111.6837463 | AC135: ='Financial Statements'!AP55 -> 121.428176 | AD135: ='Financial Statements'!AQ55 -> 98.31519741 | AE135: ='Financial Statements'!AR55 -> 138.1667526 | AF135: ='Financial Statements'!AS55 -> 290.6193389 | AG135: ='Financial Statements'!AT55 -> 294.4716037 | AH135: ='Financial Statements'!AU55 -> 306.7584331 | AI135: ='Financial Statements'!AV55 -> 302.016663
E155: Sources | F155: Uses
D156: ='Manganese Mine'!B595 -> Share Capital | E156: ='Manganese Mine'!P595 -> 51.78739986
D157: ='Manganese Mine'!B596 -> Shareholder Loan | E157: ='Manganese Mine'!P596 -> 51.78739986
D158: ='Manganese Mine'!B597 -> Senior Debt | E158: ='Manganese Mine'!P597 -> 414.2991989
D159: ='Manganese Mine'!B588 -> Development CAPEX | F159: ='Manganese Mine'!P588 -> 487.935
D160: ='Manganese Mine'!B589 -> Interest During Construction | F160: ='Manganese Mine'!P589 -> 17.87932412
D161: ='Manganese Mine'!B590 -> Fees | F161: ='Manganese Mine'!P590 -> 12.05967446

Sheet Summary
A8: Valuation
E10: Methodology | F10: Weighting | G10: Multiples | I10: Metric Attributable | K10: Valuation Range ($ / per share)
D13: Transaction
E15: Weighted Valuation Range | F15: =F19+F22+F25+F28+F31+F34+F38 -> 1
E19: P / NAV - Transaction | F19: =1-SUM(F22:F38) -> 0.4 | G19: ='Net Asset Value'!$L$6 -> 0.85 | H19: ='Net Asset Value'!$N$6 -> 1.2 | I19: ='Net Asset Value'!$M$39 -> 249.1622249
E22: EV / EBITDA | F22: 0.1 | G22: ='Val Calcs'!K25 -> 5 | H22: ='Val Calcs'!K24 -> 6 | I22: =LOOKUP('Val Calcs'!K27,'Val Calcs'!P6:DY6,'Val Calcs'!P14:DY14) -> 100.9271836
D24: Trading
E25: P / NAV - Trading | F25: 0.1 | G25: ='Net Asset Value'!P6 -> 0.6 | H25: ='Net Asset Value'!R6 -> 0.9 | I25: ='Net Asset Value'!$M$39 -> 249.1622249
E28: Precedent Transactions | F28: 0.1 | G28: 0 | H28: n / a | I28: n / a
E31: 52 Week Trading Range | F31: 0.1 | G31: 0 | H31: n / a | I31: n / a
E34: Comparables | F34: 0.1 | G34: 0 | H34: n / a | I34: n / a
E38: Equity Research | F38: 0.1 | G38: 0 | H38: n / a | I38: n / a
A44: Charts
A137: Cash Flows
G139: ='Financial Statements'!U$5 -> 2026 | H139: ='Financial Statements'!V$5 -> 2027 | I139: ='Financial Statements'!W$5 -> 2028 | J139: ='Financial Statements'!X$5 -> 2029 | K139: ='Financial Statements'!Y$5 -> 2030 | L139: ='Financial Statements'!Z$5 -> 2031 | M139: ='Financial Statements'!AA$5 -> 2032 | N139: ='Financial Statements'!AB$5 -> 2033 | O139: ='Financial Statements'!AC$5 -> 2034 | P139: ='Financial Statements'!AD$5 -> 2035 | Q139: ='Financial Statements'!AE$5 -> 2036 | R139: ='Financial Statements'!AF$5 -> 2037 | S139: ='Financial Statements'!AG$5 -> 2038 | T139: ='Financial Statements'!AH$5 -> 2039 | U139: ='Financial Statements'!AI$5 -> 2040
B141: Revenues | G141: ='Financial Statements'!U11 -> 0 | H141: ='Financial Statements'!V11 -> 0 | I141: ='Financial Statements'!W11 -> 0 | J141: ='Financial Statements'!X11 -> 264.7187467 | K141: ='Financial Statements'!Y11 -> 281.6732801 | L141: ='Financial Statements'!Z11 -> 292.4702783 | M141: ='Financial Statements'!AA11 -> 300.5718346 | N141: ='Financial Statements'!AB11 -> 287.928927 | O141: ='Financial Statements'!AC11 -> 272.4680427 | P141: ='Financial Statements'!AD11 -> 285.9969638 | Q141: ='Financial Statements'!AE11 -> 307.4700379 | R141: ='Financial Statements'!AF11 -> 312.3376541 | S141: ='Financial Statements'!AG11 -> 351.0471666 | T141: ='Financial Statements'!AH11 -> 340.4386622 | U141: ='Financial Statements'!AI11 -> 319.5052571
B142: OPEX | G142: ='Financial Statements'!U12 -> 0 | H142: ='Financial Statements'!V12 -> 0 | I142: ='Financial Statements'!W12 -> 0 | J142: ='Financial Statements'!X12 -> 170.9276505 | K142: ='Financial Statements'!Y12 -> 180.7460965 | L142: ='Financial Statements'!Z12 -> 183.3124302 | M142: ='Financial Statements'!AA12 -> 181.7386076 | N142: ='Financial Statements'!AB12 -> 187.1415734 | O142: ='Financial Statements'!AC12 -> 183.0646571 | P142: ='Financial Statements'!AD12 -> 186.0224485 | Q142: ='Financial Statements'!AE12 -> 196.3670662 | R142: ='Financial Statements'!AF12 -> 185.0270837 | S142: ='Financial Statements'!AG12 -> 202.2826568 | T142: ='Financial Statements'!AH12 -> 222.1474963 | U142: ='Financial Statements'!AI12 -> 226.228102
B144: EBITDA | G144: ='Financial Statements'!U14 -> 0 | H144: ='Financial Statements'!V14 -> 0 | I144: ='Financial Statements'!W14 -> 0 | J144: ='Financial Statements'!X14 -> 93.79109624 | K144: ='Financial Statements'!Y14 -> 100.9271836 | L144: ='Financial Statements'!Z14 -> 109.1578481 | M144: ='Financial Statements'!AA14 -> 118.833227 | N144: ='Financial Statements'!AB14 -> 100.7873536 | O144: ='Financial Statements'!AC14 -> 89.40338561 | P144: ='Financial Statements'!AD14 -> 99.97451538 | Q144: ='Financial Statements'!AE14 -> 111.1029717 | R144: ='Financial Statements'!AF14 -> 127.3105704 | S144: ='Financial Statements'!AG14 -> 148.7645098 | T144: ='Financial Statements'!AH14 -> 118.2911659 | U144: ='Financial Statements'!AI14 -> 93.27715512
B146: Development Costs | G146: =SUM('Financial Statements'!U40:U42) -> 244.2006204 | H146: =SUM('Financial Statements'!V40:V42) -> 116.0672002 | I146: =SUM('Financial Statements'!W40:W42) -> 157.606178 | J146: =SUM('Financial Statements'!X40:X42) -> 0.315 | K146: =SUM('Financial Statements'!Y40:Y42) -> 0.315 | L146: =SUM('Financial Statements'!Z40:Z42) -> 0.315 | M146: =SUM('Financial Statements'!AA40:AA42) -> 0.315 | N146: =SUM('Financial Statements'!AB40:AB42) -> 0.315 | O146: =SUM('Financial Statements'!AC40:AC42) -> 0.315 | P146: =SUM('Financial Statements'!AD40:AD42) -> 0.315 | Q146: =SUM('Financial Statements'!AE40:AE42) -> 0.315 | R146: =SUM('Financial Statements'!AF40:AF42) -> 0.315 | S146: =SUM('Financial Statements'!AG40:AG42) -> 0.315 | T146: =SUM('Financial Statements'!AH40:AH42) -> 0.315 | U146: =SUM('Financial Statements'!AI40:AI42) -> 0.315
B147: Sustaining CAPEX | G147: ='Financial Statements'!U44 -> 0 | H147: ='Financial Statements'!V44 -> 0 | I147: ='Financial Statements'!W44 -> 0 | J147: ='Financial Statements'!X44 -> 3.170564507 | K147: ='Financial Statements'!Y44 -> 3.693461175 | L147: ='Financial Statements'!Z44 -> 4.959624508 | M147: ='Financial Statements'!AA44 -> 4.562870172 | N147: ='Financial Statements'!AB44 -> 4.071992435 | O147: ='Financial Statements'!AC44 -> 6.017795991 | P147: ='Financial Statements'!AD44 -> 4.262398024 | Q147: ='Financial Statements'!AE44 -> 1.896355431 | R147: ='Financial Statements'!AF44 -> 4.101702775 | S147: ='Financial Statements'!AG44 -> 3.626790346 | T147: ='Financial Statements'!AH44 -> 3.796834258 | U147: ='Financial Statements'!AI44 -> 5.358438925
B148: Corporate Tax Paid | G148: ='Financial Statements'!U45 -> 0 | H148: ='Financial Statements'!V45 -> 0 | I148: ='Financial Statements'!W45 -> 0 | J148: ='Financial Statements'!X45 -> 13.42135843 | K148: ='Financial Statements'!Y45 -> 16.03849684 | L148: ='Financial Statements'!Z45 -> 20.30747304 | M148: ='Financial Statements'!AA45 -> 24.85058984 | N148: ='Financial Statements'!AB45 -> 19.70600749 | O148: ='Financial Statements'!AC45 -> 16.52935088 | P148: ='Financial Statements'!AD45 -> 19.96103115 | Q148: ='Financial Statements'!AE45 -> 23.59365422 | R148: ='Financial Statements'!AF45 -> 28.71132442 | S148: ='Financial Statements'!AG45 -> 35.40694754 | T148: ='Financial Statements'!AH45 -> 26.51684978 | U148: ='Financial Statements'!AI45 -> 19.22818007
B149: Working Capital Variation | G149: ='Financial Statements'!U46 -> 0 | H149: ='Financial Statements'!V46 -> 0 | I149: ='Financial Statements'!W46 -> 0 | J149: ='Financial Statements'!X46 -> 12.39180655 | K149: ='Financial Statements'!Y46 -> 0.8555262508 | L149: ='Financial Statements'!Z46 -> 0.746803482 | M149: ='Financial Statements'!AA46 -> 0.7521181999 | N149: ='Financial Statements'!AB46 -> -1.335196013 | O149: ='Financial Statements'!AC46 -> -1.047364939 | P149: ='Financial Statements'!AD46 -> 0.94989536 | Q149: ='Financial Statements'!AE46 -> 1.198081828 | R149: ='Financial Statements'!AF46 -> 1.021446949 | S149: ='Financial Statements'!AG46 -> 2.236092912 | T149: ='Financial Statements'!AH46 -> -1.960416224 | U149: ='Financial Statements'!AI46 -> -1.944148675
B151: Pre-Financing Cash Flow | G151: ='Financial Statements'!U48 -> -244.2006204 | H151: ='Financial Statements'!V48 -> -116.0672002 | I151: ='Financial Statements'!W48 -> -157.606178 | J151: ='Financial Statements'!X48 -> 64.49236675 | K151: ='Financial Statements'!Y48 -> 80.02469935 | L151: ='Financial Statements'!Z48 -> 82.82894704 | M151: ='Financial Statements'!AA48 -> 88.35264883 | N151: ='Financial Statements'!AB48 -> 78.02954969 | O151: ='Financial Statements'!AC48 -> 67.58860367 | P151: ='Financial Statements'!AD48 -> 74.48619085 | Q151: ='Financial Statements'!AE48 -> 84.09988024 | R151: ='Financial Statements'!AF48 -> 93.16109627 | S151: ='Financial Statements'!AG48 -> 107.179679 | T151: ='Financial Statements'!AH48 -> 89.62289809 | U151: ='Financial Statements'!AI48 -> 70.3196848
B153: Equity Drawdown | G153: =SUM('Financial Statements'!U51:U52) -> 103.5747997 | H153: =SUM('Financial Statements'!V51:V52) -> 0 | I153: =SUM('Financial Statements'!W51:W52) -> 0 | J153: =SUM('Financial Statements'!X51:X52) -> 0 | K153: =SUM('Financial Statements'!Y51:Y52) -> 0 | L153: =SUM('Financial Statements'!Z51:Z52) -> 0 | M153: =SUM('Financial Statements'!AA51:AA52) -> 0 | N153: =SUM('Financial Statements'!AB51:AB52) -> 0 | O153: =SUM('Financial Statements'!AC51:AC52) -> 0 | P153: =SUM('Financial Statements'!AD51:AD52) -> 0 | Q153: =SUM('Financial Statements'!AE51:AE52) -> 0 | R153: =SUM('Financial Statements'!AF51:AF52) -> 0 | S153: =SUM('Financial Statements'!AG51:AG52) -> 0 | T153: =SUM('Financial Statements'!AH51:AH52) -> 0 | U153: =SUM('Financial Statements'!AI51:AI52) -> 0
B154: Debt Drawdown | G154: ='Financial Statements'!U53+'Financial Statements'!U64 -> 140.6258207 | H154: ='Financial Statements'!V53+'Financial Statements'!V64 -> 116.0672002 | I154: ='Financial Statements'!W53+'Financial Statements'!W64 -> 157.606178 | J154: ='Financial Statements'!X53+'Financial Statements'!X64 -> 0 | K154: ='Financial Statements'!Y53+'Financial Statements'!Y64 -> 0 | L154: ='Financial Statements'!Z53+'Financial Statements'!Z64 -> 0 | M154: ='Financial Statements'!AA53+'Financial Statements'!AA64 -> 0 | N154: ='Financial Statements'!AB53+'Financial Statements'!AB64 -> 0 | O154: ='Financial Statements'!AC53+'Financial Statements'!AC64 -> 0 | P154: ='Financial Statements'!AD53+'Financial Statements'!AD64 -> 0 | Q154: ='Financial Statements'!AE53+'Financial Statements'!AE64 -> 0 | R154: ='Financial Statements'!AF53+'Financial Statements'!AF64 -> 0 | S154: ='Financial Statements'!AG53+'Financial Statements'!AG64 -> 0 | T154: ='Financial Statements'!AH53+'Financial Statements'!AH64 -> 0 | U154: ='Financial Statements'!AI53+'Financial Statements'!AI64 -> 0
B156: CFADS | G156: ='Financial Statements'!U55 -> 0 | H156: ='Financial Statements'!V55 -> 0 | I156: ='Financial Statements'!W55 -> 0 | J156: ='Financial Statements'!X55 -> 64.49236675 | K156: ='Financial Statements'!Y55 -> 80.02469935 | L156: ='Financial Statements'!Z55 -> 82.82894704 | M156: ='Financial Statements'!AA55 -> 88.35264883 | N156: ='Financial Statements'!AB55 -> 78.02954969 | O156: ='Financial Statements'!AC55 -> 67.58860367 | P156: ='Financial Statements'!AD55 -> 74.48619085 | Q156: ='Financial Statements'!AE55 -> 84.09988024 | R156: ='Financial Statements'!AF55 -> 93.16109627 | S156: ='Financial Statements'!AG55 -> 107.179679 | T156: ='Financial Statements'!AH55 -> 89.62289809 | U156: ='Financial Statements'!AI55 -> 70.3196848
B158: Principal Repayment | G158: ='Financial Statements'!U58+'Financial Statements'!U65+'Financial Statements'!U60 -> 0 | H158: ='Financial Statements'!V58+'Financial Statements'!V65+'Financial Statements'!V60 -> 0 | I158: ='Financial Statements'!W58+'Financial Statements'!W65+'Financial Statements'!W60 -> 0 | J158: ='Financial Statements'!X58+'Financial Statements'!X65+'Financial Statements'!X60 -> 24.37054111 | K158: ='Financial Statements'!Y58+'Financial Statements'!Y65+'Financial Statements'!Y60 -> 24.37054111 | L158: ='Financial Statements'!Z58+'Financial Statements'!Z65+'Financial Statements'!Z60 -> 24.37054111 | M158: ='Financial Statements'!AA58+'Financial Statements'!AA65+'Financial Statements'!AA60 -> 24.37054111 | N158: ='Financial Statements'!AB58+'Financial Statements'!AB65+'Financial Statements'!AB60 -> 24.37054111 | O158: ='Financial Statements'!AC58+'Financial Statements'!AC65+'Financial Statements'!AC60 -> 24.37054111 | P158: ='Financial Statements'!AD58+'Financial Statements'!AD65+'Financial Statements'!AD60 -> 24.37054111 | Q158: ='Financial Statements'!AE58+'Financial Statements'!AE65+'Financial Statements'!AE60 -> 24.37054111 | R158: ='Financial Statements'!AF58+'Financial Statements'!AF65+'Financial Statements'!AF60 -> 24.37054111 | S158: ='Financial Statements'!AG58+'Financial Statements'!AG65+'Financial Statements'!AG60 -> 24.37054111 | T158: ='Financial Statements'!AH58+'Financial Statements'!AH65+'Financial Statements'!AH60 -> 24.37054111 | U158: ='Financial Statements'!AI58+'Financial Statements'!AI65+'Financial Statements'!AI60 -> 24.37054111
B159: Interest Payment | G159: ='Financial Statements'!U59+'Financial Statements'!U66 -> 0 | H159: ='Financial Statements'!V59+'Financial Statements'!V66 -> 0 | I159: ='Financial Statements'!W59+'Financial Statements'!W66 -> 0 | J159: ='Financial Statements'!X59+'Financial Statements'!X66 -> 18.64346395 | K159: ='Financial Statements'!Y59+'Financial Statements'!Y66 -> 17.5467896 | L159: ='Financial Statements'!Z59+'Financial Statements'!Z66 -> 16.45011525 | M159: ='Financial Statements'!AA59+'Financial Statements'!AA66 -> 15.3534409 | N159: ='Financial Statements'!AB59+'Financial Statements'!AB66 -> 14.25676655 | O159: ='Financial Statements'!AC59+'Financial Statements'!AC66 -> 13.1600922 | P159: ='Financial Statements'!AD59+'Financial Statements'!AD66 -> 12.06341785 | Q159: ='Financial Statements'!AE59+'Financial Statements'!AE66 -> 10.9667435 | R159: ='Financial Statements'!AF59+'Financial Statements'!AF66 -> 9.870069149 | S159: ='Financial Statements'!AG59+'Financial Statements'!AG66 -> 8.773394799 | T159: ='Financial Statements'!AH59+'Financial Statements'!AH66 -> 7.676720449 | U159: ='Financial Statements'!AI59+'Financial Statements'!AI66 -> 6.5800461
B161: Net MRA Transfers | G161: ='Financial Statements'!U72-'Financial Statements'!U71 -> 0 | H161: ='Financial Statements'!V72-'Financial Statements'!V71 -> 0 | I161: ='Financial Statements'!W72-'Financial Statements'!W71 -> 0 | J161: ='Financial Statements'!X72-'Financial Statements'!X71 -> -6.864025682 | K161: ='Financial Statements'!Y72-'Financial Statements'!Y71 -> -1.789060001 | L161: ='Financial Statements'!Z72-'Financial Statements'!Z71 -> -0.8694089964 | M161: ='Financial Statements'!AA72-'Financial Statements'!AA71 -> 0.8876320732 | N161: ='Financial Statements'!AB72-'Financial Statements'!AB71 -> -1.454925819 | O161: ='Financial Statements'!AC72-'Financial Statements'!AC71 -> -0.1904055889 | P161: ='Financial Statements'!AD72-'Financial Statements'!AD71 -> 4.121440559 | Q161: ='Financial Statements'!AE72-'Financial Statements'!AE71 -> 0.1606952481 | R161: ='Financial Statements'!AF72-'Financial Statements'!AF71 -> -1.730434914 | S161: ='Financial Statements'!AG72-'Financial Statements'!AG71 -> 0.3048685177 | T161: ='Financial Statements'!AH72-'Financial Statements'!AH71 -> -1.73164858 | U161: ='Financial Statements'!AI72-'Financial Statements'!AI71 -> -0.9023622864
B163: Cash Flow Available to Equity | G163: ='Financial Statements'!U74 -> 0 | H163: ='Financial Statements'!V74 -> 0 | I163: ='Financial Statements'!W74 -> 0 | J163: ='Financial Statements'!X74 -> 14.61433601 | K163: ='Financial Statements'!Y74 -> 36.31830864 | L163: ='Financial Statements'!Z74 -> 41.13888169 | M163: ='Financial Statements'!AA74 -> 49.5162989 | N163: ='Financial Statements'!AB74 -> 37.94731621 | O163: ='Financial Statements'!AC74 -> 29.86756478 | P163: ='Financial Statements'!AD74 -> 42.17367245 | Q163: ='Financial Statements'!AE74 -> 48.92329088 | R163: ='Financial Statements'!AF74 -> 57.1900511 | S163: ='Financial Statements'!AG74 -> 74.34061163 | T163: ='Financial Statements'!AH74 -> 55.84398795 | U163: ='Financial Statements'!AI74 -> 38.4667353
B165: Net Distributions | G165: =SUM('Financial Statements'!U78:U81)-'Financial Statements'!U76 -> 0 | H165: =SUM('Financial Statements'!V78:V81)-'Financial Statements'!V76 -> 0 | I165: =SUM('Financial Statements'!W78:W81)-'Financial Statements'!W76 -> 0 | J165: =SUM('Financial Statements'!X78:X81)-'Financial Statements'!X76 -> 13.61433709 | K165: =SUM('Financial Statements'!Y78:Y81)-'Financial Statements'!Y76 -> 36.31830756 | L165: =SUM('Financial Statements'!Z78:Z81)-'Financial Statements'!Z76 -> 41.13888169 | M165: =SUM('Financial Statements'!AA78:AA81)-'Financial Statements'!AA76 -> 49.5162989 | N165: =SUM('Financial Statements'!AB78:AB81)-'Financial Statements'!AB76 -> 37.94731621 | O165: =SUM('Financial Statements'!AC78:AC81)-'Financial Statements'!AC76 -> 29.86756478 | P165: =SUM('Financial Statements'!AD78:AD81)-'Financial Statements'!AD76 -> 42.17367245 | Q165: =SUM('Financial Statements'!AE78:AE81)-'Financial Statements'!AE76 -> 48.92329088 | R165: =SUM('Financial Statements'!AF78:AF81)-'Financial Statements'!AF76 -> 57.1900511 | S165: =SUM('Financial Statements'!AG78:AG81)-'Financial Statements'!AG76 -> 74.34061163 | T165: =SUM('Financial Statements'!AH78:AH81)-'Financial Statements'!AH76 -> 55.84398795 | U165: =SUM('Financial Statements'!AI78:AI81)-'Financial Statements'!AI76 -> 38.4667353
B167: Net Cash Flow | G167: =ROUND('Financial Statements'!U83,4) -> 0 | H167: =ROUND('Financial Statements'!V83,4) -> 0 | I167: =ROUND('Financial Statements'!W83,4) -> 0 | J167: =ROUND('Financial Statements'!X83,4) -> 1 | K167: =ROUND('Financial Statements'!Y83,4) -> 0 | L167: =ROUND('Financial Statements'!Z83,4) -> 0 | M167: =ROUND('Financial Statements'!AA83,4) -> 0 | N167: =ROUND('Financial Statements'!AB83,4) -> 0 | O167: =ROUND('Financial Statements'!AC83,4) -> 0 | P167: =ROUND('Financial Statements'!AD83,4) -> 0 | Q167: =ROUND('Financial Statements'!AE83,4) -> 0 | R167: =ROUND('Financial Statements'!AF83,4) -> 0 | S167: =ROUND('Financial Statements'!AG83,4) -> 0 | T167: =ROUND('Financial Statements'!AH83,4) -> 0 | U167: =ROUND('Financial Statements'!AI83,4) -> 0
B169: Opening Balance | G169: =ROUND('Financial Statements'!U85,4) -> 0 | H169: =ROUND('Financial Statements'!V85,4) -> 0 | I169: =ROUND('Financial Statements'!W85,4) -> 0 | J169: =ROUND('Financial Statements'!X85,4) -> 0 | K169: =ROUND('Financial Statements'!Y85,4) -> 1 | L169: =ROUND('Financial Statements'!Z85,4) -> 1 | M169: =ROUND('Financial Statements'!AA85,4) -> 1 | N169: =ROUND('Financial Statements'!AB85,4) -> 1 | O169: =ROUND('Financial Statements'!AC85,4) -> 1 | P169: =ROUND('Financial Statements'!AD85,4) -> 1 | Q169: =ROUND('Financial Statements'!AE85,4) -> 1 | R169: =ROUND('Financial Statements'!AF85,4) -> 1 | S169: =ROUND('Financial Statements'!AG85,4) -> 1 | T169: =ROUND('Financial Statements'!AH85,4) -> 1 | U169: =ROUND('Financial Statements'!AI85,4) -> 1
B170: Net Cash Flow | G170: =ROUND('Financial Statements'!U86,4) -> 0 | H170: =ROUND('Financial Statements'!V86,4) -> 0 | I170: =ROUND('Financial Statements'!W86,4) -> 0 | J170: =ROUND('Financial Statements'!X86,4) -> 1 | K170: =ROUND('Financial Statements'!Y86,4) -> 0 | L170: =ROUND('Financial Statements'!Z86,4) -> 0 | M170: =ROUND('Financial Statements'!AA86,4) -> 0 | N170: =ROUND('Financial Statements'!AB86,4) -> 0 | O170: =ROUND('Financial Statements'!AC86,4) -> 0 | P170: =ROUND('Financial Statements'!AD86,4) -> 0 | Q170: =ROUND('Financial Statements'!AE86,4) -> 0 | R170: =ROUND('Financial Statements'!AF86,4) -> 0 | S170: =ROUND('Financial Statements'!AG86,4) -> 0 | T170: =ROUND('Financial Statements'!AH86,4) -> 0 | U170: =ROUND('Financial Statements'!AI86,4) -> 0
B171: Closing Cash Balance | G171: =ROUND('Financial Statements'!U87,4) -> 0 | H171: =ROUND('Financial Statements'!V87,4) -> 0 | I171: =ROUND('Financial Statements'!W87,4) -> 0 | J171: =ROUND('Financial Statements'!X87,4) -> 1 | K171: =ROUND('Financial Statements'!Y87,4) -> 1 | L171: =ROUND('Financial Statements'!Z87,4) -> 1 | M171: =ROUND('Financial Statements'!AA87,4) -> 1 | N171: =ROUND('Financial Statements'!AB87,4) -> 1 | O171: =ROUND('Financial Statements'!AC87,4) -> 1 | P171: =ROUND('Financial Statements'!AD87,4) -> 1 | Q171: =ROUND('Financial Statements'!AE87,4) -> 1 | R171: =ROUND('Financial Statements'!AF87,4) -> 1 | S171: =ROUND('Financial Statements'!AG87,4) -> 1 | T171: =ROUND('Financial Statements'!AH87,4) -> 1 | U171: =ROUND('Financial Statements'!AI87,4) -> 1
A173: Mining
G175: ='Financial Statements'!U$5 -> 2026 | H175: ='Financial Statements'!V$5 -> 2027 | I175: ='Financial Statements'!W$5 -> 2028 | J175: ='Financial Statements'!X$5 -> 2029 | K175: ='Financial Statements'!Y$5 -> 2030 | L175: ='Financial Statements'!Z$5 -> 2031 | M175: ='Financial Statements'!AA$5 -> 2032 | N175: ='Financial Statements'!AB$5 -> 2033 | O175: ='Financial Statements'!AC$5 -> 2034 | P175: ='Financial Statements'!AD$5 -> 2035 | Q175: ='Financial Statements'!AE$5 -> 2036 | R175: ='Financial Statements'!AF$5 -> 2037 | S175: ='Financial Statements'!AG$5 -> 2038 | T175: ='Financial Statements'!AH$5 -> 2039 | U175: ='Financial Statements'!AI$5 -> 2040
B176: Production
B178: Opening Resource Balance | G178: ='Manganese Mine'!U100 -> 5210 | H178: ='Manganese Mine'!V100 -> 5210 | I178: ='Manganese Mine'!W100 -> 5210 | J178: ='Manganese Mine'!X100 -> 5210 | K178: ='Manganese Mine'!Y100 -> 5010 | L178: ='Manganese Mine'!Z100 -> 4802 | M178: ='Manganese Mine'!AA100 -> 4594 | N178: ='Manganese Mine'!AB100 -> 4393 | O178: ='Manganese Mine'!AC100 -> 4191 | P178: ='Manganese Mine'!AD100 -> 3999 | Q178: ='Manganese Mine'!AE100 -> 3807 | R178: ='Manganese Mine'!AF100 -> 3606 | S178: ='Manganese Mine'!AG100 -> 3414 | T178: ='Manganese Mine'!AH100 -> 3207 | U178: ='Manganese Mine'!AI100 -> 2878
B179: Ore Mined | G179: ='Manganese Mine'!U101 -> 0 | H179: ='Manganese Mine'!V101 -> 0 | I179: ='Manganese Mine'!W101 -> 0 | J179: ='Manganese Mine'!X101 -> 200 | K179: ='Manganese Mine'!Y101 -> 208 | L179: ='Manganese Mine'!Z101 -> 208 | M179: ='Manganese Mine'!AA101 -> 201 | N179: ='Manganese Mine'!AB101 -> 202 | O179: ='Manganese Mine'!AC101 -> 192 | P179: ='Manganese Mine'!AD101 -> 192 | Q179: ='Manganese Mine'!AE101 -> 201 | R179: ='Manganese Mine'!AF101 -> 192 | S179: ='Manganese Mine'!AG101 -> 207 | T179: ='Manganese Mine'!AH101 -> 329 | U179: ='Manganese Mine'!AI101 -> 300
B180: Closing Resource Balance | G180: ='Manganese Mine'!U102 -> 5210 | H180: ='Manganese Mine'!V102 -> 5210 | I180: ='Manganese Mine'!W102 -> 5210 | J180: ='Manganese Mine'!X102 -> 5010 | K180: ='Manganese Mine'!Y102 -> 4802 | L180: ='Manganese Mine'!Z102 -> 4594 | M180: ='Manganese Mine'!AA102 -> 4393 | N180: ='Manganese Mine'!AB102 -> 4191 | O180: ='Manganese Mine'!AC102 -> 3999 | P180: ='Manganese Mine'!AD102 -> 3807 | Q180: ='Manganese Mine'!AE102 -> 3606 | R180: ='Manganese Mine'!AF102 -> 3414 | S180: ='Manganese Mine'!AG102 -> 3207 | T180: ='Manganese Mine'!AH102 -> 2878 | U180: ='Manganese Mine'!AI102 -> 2578
B182: Metal Processed | G182: ='Manganese Mine'!U115 -> 0 | H182: ='Manganese Mine'!V115 -> 0 | I182: ='Manganese Mine'!W115 -> 0 | J182: ='Manganese Mine'!X115 -> 200 | K182: ='Manganese Mine'!Y115 -> 208 | L182: ='Manganese Mine'!Z115 -> 208 | M182: ='Manganese Mine'!AA115 -> 201 | N182: ='Manganese Mine'!AB115 -> 202 | O182: ='Manganese Mine'!AC115 -> 192 | P182: ='Manganese Mine'!AD115 -> 192 | Q182: ='Manganese Mine'!AE115 -> 201 | R182: ='Manganese Mine'!AF115 -> 192 | S182: ='Manganese Mine'!AG115 -> 207 | T182: ='Manganese Mine'!AH115 -> 210 | U182: ='Manganese Mine'!AI115 -> 210
B184: ='Manganese Mine'!B118 -> MnO Grade | G184: ='Manganese Mine'!U118 -> 0.181571113 | H184: ='Manganese Mine'!V118 -> 0.181571113 | I184: ='Manganese Mine'!W118 -> 0.181571113 | J184: ='Manganese Mine'!X118 -> 0.181571113 | K184: ='Manganese Mine'!Y118 -> 0.181571113 | L184: ='Manganese Mine'!Z118 -> 0.181571113 | M184: ='Manganese Mine'!AA118 -> 0.181571113 | N184: ='Manganese Mine'!AB118 -> 0.181571113 | O184: ='Manganese Mine'!AC118 -> 0.181571113 | P184: ='Manganese Mine'!AD118 -> 0.181571113 | Q184: ='Manganese Mine'!AE118 -> 0.181571113 | R184: ='Manganese Mine'!AF118 -> 0.181571113 | S184: ='Manganese Mine'!AG118 -> 0.181571113 | T184: ='Manganese Mine'!AH118 -> 0.181571113 | U184: ='Manganese Mine'!AI118 -> 0.181571113
B186: ='Manganese Mine'!B121 -> Contained Metal | G186: ='Manganese Mine'!U121 -> 0 | H186: ='Manganese Mine'!V121 -> 0 | I186: ='Manganese Mine'!W121 -> 0 | J186: ='Manganese Mine'!X121 -> 88.57127461 | K186: ='Manganese Mine'!Y121 -> 92.1141256 | L186: ='Manganese Mine'!Z121 -> 92.1141256 | M186: ='Manganese Mine'!AA121 -> 89.01413098 | N186: ='Manganese Mine'!AB121 -> 89.45698736 | O186: ='Manganese Mine'!AC121 -> 85.02842363 | P186: ='Manganese Mine'!AD121 -> 85.02842363 | Q186: ='Manganese Mine'!AE121 -> 89.01413098 | R186: ='Manganese Mine'!AF121 -> 85.02842363 | S186: ='Manganese Mine'!AG121 -> 91.67126922 | T186: ='Manganese Mine'!AH121 -> 92.99983834 | U186: ='Manganese Mine'!AI121 -> 92.99983834
B187: ='Manganese Mine'!B124 -> Recovered Metal | G187: ='Manganese Mine'!U124 -> 0 | H187: ='Manganese Mine'!V124 -> 0 | I187: ='Manganese Mine'!W124 -> 0 | J187: ='Manganese Mine'!X124 -> 78.38557803 | K187: ='Manganese Mine'!Y124 -> 81.52100115 | L187: ='Manganese Mine'!Z124 -> 81.52100115 | M187: ='Manganese Mine'!AA124 -> 78.77750592 | N187: ='Manganese Mine'!AB124 -> 79.16943381 | O187: ='Manganese Mine'!AC124 -> 75.25015491 | P187: ='Manganese Mine'!AD124 -> 75.25015491 | Q187: ='Manganese Mine'!AE124 -> 78.77750592 | R187: ='Manganese Mine'!AF124 -> 75.25015491 | S187: ='Manganese Mine'!AG124 -> 81.12907326 | T187: ='Manganese Mine'!AH124 -> 82.30485693 | U187: ='Manganese Mine'!AI124 -> 82.30485693
B189: Recovery Rate | G189: ='Manganese Mine'!U123 -> 0.885 | H189: ='Manganese Mine'!V123 -> 0.885 | I189: ='Manganese Mine'!W123 -> 0.885 | J189: ='Manganese Mine'!X123 -> 0.885 | K189: ='Manganese Mine'!Y123 -> 0.885 | L189: ='Manganese Mine'!Z123 -> 0.885 | M189: ='Manganese Mine'!AA123 -> 0.885 | N189: ='Manganese Mine'!AB123 -> 0.885 | O189: ='Manganese Mine'!AC123 -> 0.885 | P189: ='Manganese Mine'!AD123 -> 0.885 | Q189: ='Manganese Mine'!AE123 -> 0.885 | R189: ='Manganese Mine'!AF123 -> 0.885 | S189: ='Manganese Mine'!AG123 -> 0.885 | T189: ='Manganese Mine'!AH123 -> 0.885 | U189: ='Manganese Mine'!AI123 -> 0.885
B191: ='Manganese Mine'!B136 -> Paybale HPMSM Price (real) | G191: ='Manganese Mine'!U136 -> 3291 | H191: ='Manganese Mine'!V136 -> 3176 | I191: ='Manganese Mine'!W136 -> 3177 | J191: ='Manganese Mine'!X136 -> 2940 | K191: ='Manganese Mine'!Y136 -> 2949 | L191: ='Manganese Mine'!Z136 -> 3002 | M191: ='Manganese Mine'!AA136 -> 3130 | N191: ='Manganese Mine'!AB136 -> 2925 | O191: ='Manganese Mine'!AC136 -> 2855 | P191: ='Manganese Mine'!AD136 -> 2938 | Q191: ='Manganese Mine'!AE136 -> 2958 | R191: ='Manganese Mine'!AF136 -> 3084 | S191: ='Manganese Mine'!AG136 -> 3152 | T191: ='Manganese Mine'!AH136 -> 2954 | U191: ='Manganese Mine'!AI136 -> 2718
B192: ='Manganese Mine'!B137 -> Paybale HPMSM Price (nominal) | G192: ='Manganese Mine'!U137 -> 3562.284239 | H192: ='Manganese Mine'!V137 -> 3506.560631 | I192: ='Manganese Mine'!W137 -> 3577.818006 | J192: ='Manganese Mine'!X137 -> 3377.135863 | K192: ='Manganese Mine'!Y137 -> 3455.223515 | L192: ='Manganese Mine'!Z137 -> 3587.667891 | M192: ='Manganese Mine'!AA137 -> 3815.452535 | N192: ='Manganese Mine'!AB137 -> 3636.869852 | O192: ='Manganese Mine'!AC137 -> 3620.830323 | P192: ='Manganese Mine'!AD137 -> 3800.61628 | Q192: ='Manganese Mine'!AE137 -> 3903.018181 | R192: ='Manganese Mine'!AF137 -> 4150.657955 | S192: ='Manganese Mine'!AG137 -> 4327.020542 | T192: ='Manganese Mine'!AH137 -> 4136.313152 | U192: ='Manganese Mine'!AI137 -> 3881.973301
B194: ='Manganese Mine'!B139 -> Total HPMSM Shipments | G194: ='Manganese Mine'!U139 -> 0 | H194: ='Manganese Mine'!V139 -> 0 | I194: ='Manganese Mine'!W139 -> 0 | J194: ='Manganese Mine'!X139 -> 78.38557803 | K194: ='Manganese Mine'!Y139 -> 81.52100115 | L194: ='Manganese Mine'!Z139 -> 81.52100115 | M194: ='Manganese Mine'!AA139 -> 78.77750592 | N194: ='Manganese Mine'!AB139 -> 79.16943381 | O194: ='Manganese Mine'!AC139 -> 75.25015491 | P194: ='Manganese Mine'!AD139 -> 75.25015491 | Q194: ='Manganese Mine'!AE139 -> 78.77750592 | R194: ='Manganese Mine'!AF139 -> 75.25015491 | S194: ='Manganese Mine'!AG139 -> 81.12907326 | T194: ='Manganese Mine'!AH139 -> 82.30485693 | U194: ='Manganese Mine'!AI139 -> 82.30485693
B197: Costs
B199: ='Manganese Mine'!B242 -> C1 Costs | G199: ='Manganese Mine'!U242 -> 0 | H199: ='Manganese Mine'!V242 -> 0 | I199: ='Manganese Mine'!W242 -> 0 | J199: ='Manganese Mine'!X242 -> 168.3276505 | K199: ='Manganese Mine'!Y242 -> 178.0420965 | L199: ='Manganese Mine'!Z242 -> 180.6084302 | M199: ='Manganese Mine'!AA242 -> 179.1256076 | N199: ='Manganese Mine'!AB242 -> 184.5155734 | O199: ='Manganese Mine'!AC242 -> 180.5686571 | P199: ='Manganese Mine'!AD242 -> 183.5264485 | Q199: ='Manganese Mine'!AE242 -> 193.7540662 | R199: ='Manganese Mine'!AF242 -> 182.5310837 | S199: ='Manganese Mine'!AG242 -> 199.5916568 | T199: ='Manganese Mine'!AH242 -> 219.4174963 | U199: ='Manganese Mine'!AI242 -> 223.498102
B200: ='Manganese Mine'!B243 -> C2 Costs | G200: ='Manganese Mine'!U243 -> 0 | H200: ='Manganese Mine'!V243 -> 0 | I200: ='Manganese Mine'!W243 -> 0 | J200: ='Manganese Mine'!X243 -> 171.498215 | K200: ='Manganese Mine'!Y243 -> 181.7355577 | L200: ='Manganese Mine'!Z243 -> 185.5680547 | M200: ='Manganese Mine'!AA243 -> 183.6884778 | N200: ='Manganese Mine'!AB243 -> 188.5875659 | O200: ='Manganese Mine'!AC243 -> 186.5864531 | P200: ='Manganese Mine'!AD243 -> 187.7888465 | Q200: ='Manganese Mine'!AE243 -> 195.6504216 | R200: ='Manganese Mine'!AF243 -> 186.6327865 | S200: ='Manganese Mine'!AG243 -> 203.2184471 | T200: ='Manganese Mine'!AH243 -> 223.2143306 | U200: ='Manganese Mine'!AI243 -> 228.856541
B201: ='Manganese Mine'!B244 -> C3 Costs | G201: ='Manganese Mine'!U244 -> 0 | H201: ='Manganese Mine'!V244 -> 0 | I201: ='Manganese Mine'!W244 -> 0 | J201: ='Manganese Mine'!X244 -> 192.7416789 | K201: ='Manganese Mine'!Y244 -> 201.9863473 | L201: ='Manganese Mine'!Z244 -> 204.72217 | M201: ='Manganese Mine'!AA244 -> 201.6549187 | N201: ='Manganese Mine'!AB244 -> 205.4703324 | O201: ='Manganese Mine'!AC244 -> 202.2425453 | P201: ='Manganese Mine'!AD244 -> 202.3482643 | Q201: ='Manganese Mine'!AE244 -> 209.2301651 | R201: ='Manganese Mine'!AF244 -> 198.9988556 | S201: ='Manganese Mine'!AG244 -> 214.6828419 | T201: ='Manganese Mine'!AH244 -> 233.621051 | U201: ='Manganese Mine'!AI244 -> 238.1665871
G202: ='Manganese Mine'!U245 -> 0 | H202: ='Manganese Mine'!V245 -> 0 | I202: ='Manganese Mine'!W245 -> 0 | J202: ='Manganese Mine'!X245 -> 532.5675443 | K202: ='Manganese Mine'!Y245 -> 561.7640014 | L202: ='Manganese Mine'!Z245 -> 570.8986549 | M202: ='Manganese Mine'!AA245 -> 564.469004 | N202: ='Manganese Mine'!AB245 -> 578.5734717 | O202: ='Manganese Mine'!AC245 -> 569.3976556 | P202: ='Manganese Mine'!AD245 -> 573.6635593 | Q202: ='Manganese Mine'!AE245 -> 598.6346528 | R202: ='Manganese Mine'!AF245 -> 568.1627258 | S202: ='Manganese Mine'!AG245 -> 617.4929458 | T202: ='Manganese Mine'!AH245 -> 676.2528779 | U202: ='Manganese Mine'!AI245 -> 690.52123
B204: All In Sustaining Costs($/kt) | G204: ='Manganese Mine'!U238 -> 0 | H204: ='Manganese Mine'!V238 -> 0 | I204: ='Manganese Mine'!W238 -> 0 | J204: ='Manganese Mine'!X238 -> 2458.892104 | K204: ='Manganese Mine'!Y238 -> 2477.721623 | L204: ='Manganese Mine'!Z238 -> 2511.281352 | M204: ='Manganese Mine'!AA238 -> 2559.803288 | N204: ='Manganese Mine'!AB238 -> 2595.32401 | O204: ='Manganese Mine'!AC238 -> 2687.603043 | P204: ='Manganese Mine'!AD238 -> 2689.007944 | Q204: ='Manganese Mine'!AE238 -> 2655.963306 | R204: ='Manganese Mine'!AF238 -> 2644.497621 | S204: ='Manganese Mine'!AG238 -> 2646.188762 | T204: ='Manganese Mine'!AH238 -> 2838.484383 | U204: ='Manganese Mine'!AI238 -> 2893.712424
B206: EV / Resources | G206: =G243/'Manganese Mine'!U102 -> 0.06043196661 | H206: =H243/'Manganese Mine'!V102 -> 0.08270974016 | I206: =I243/'Manganese Mine'!W102 -> 0.1129604461 | J206: =J243/'Manganese Mine'!X102 -> 0.1124058651 | K206: =K243/'Manganese Mine'!Y102 -> 0.1121996756 | L206: =L243/'Manganese Mine'!Z102 -> 0.1119748152 | M206: =M243/'Manganese Mine'!AA102 -> 0.1115505941 | N206: =N243/'Manganese Mine'!AB102 -> 0.1111121972 | O206: =O243/'Manganese Mine'!AC102 -> 0.1103527576 | P206: =P243/'Manganese Mine'!AD102 -> 0.1095167156 | Q206: =Q243/'Manganese Mine'!AE102 -> 0.1088628939 | R206: =R243/'Manganese Mine'!AF102 -> 0.1078468231 | S206: =S243/'Manganese Mine'!AG102 -> 0.1072087662 | T206: =T243/'Manganese Mine'!AH102 -> 0.1109965156 | U206: =U243/'Manganese Mine'!AI102 -> 0.1144598258
A209: Financial Metrics & Ratios
G211: ='Financial Statements'!U$5 -> 2026 | H211: ='Financial Statements'!V$5 -> 2027 | I211: ='Financial Statements'!W$5 -> 2028 | J211: ='Financial Statements'!X$5 -> 2029 | K211: ='Financial Statements'!Y$5 -> 2030 | L211: ='Financial Statements'!Z$5 -> 2031 | M211: ='Financial Statements'!AA$5 -> 2032 | N211: ='Financial Statements'!AB$5 -> 2033 | O211: ='Financial Statements'!AC$5 -> 2034 | P211: ='Financial Statements'!AD$5 -> 2035 | Q211: ='Financial Statements'!AE$5 -> 2036 | R211: ='Financial Statements'!AF$5 -> 2037 | S211: ='Financial Statements'!AG$5 -> 2038 | T211: ='Financial Statements'!AH$5 -> 2039 | U211: ='Financial Statements'!AI$5 -> 2040
B212: Financials
B214: Cash | G214: ='Financial Statements'!U97 -> 0 | H214: ='Financial Statements'!V97 -> 0 | I214: ='Financial Statements'!W97 -> 0 | J214: ='Financial Statements'!X97 -> 0.999998919 | K214: ='Financial Statements'!Y97 -> 1 | L214: ='Financial Statements'!Z97 -> 1 | M214: ='Financial Statements'!AA97 -> 1 | N214: ='Financial Statements'!AB97 -> 1 | O214: ='Financial Statements'!AC97 -> 1 | P214: ='Financial Statements'!AD97 -> 1 | Q214: ='Financial Statements'!AE97 -> 1 | R214: ='Financial Statements'!AF97 -> 1 | S214: ='Financial Statements'!AG97 -> 1 | T214: ='Financial Statements'!AH97 -> 1 | U214: ='Financial Statements'!AI97 -> 1
B215: Debt | G215: ='Financial Statements'!U108+'Financial Statements'!U109 -> 140.6258207 | H215: ='Financial Statements'!V108+'Financial Statements'!V109 -> 256.6930209 | I215: ='Financial Statements'!W108+'Financial Statements'!W109 -> 414.2991989 | J215: ='Financial Statements'!X108+'Financial Statements'!X109 -> 389.9286578 | K215: ='Financial Statements'!Y108+'Financial Statements'!Y109 -> 365.5581166 | L215: ='Financial Statements'!Z108+'Financial Statements'!Z109 -> 341.1875755 | M215: ='Financial Statements'!AA108+'Financial Statements'!AA109 -> 316.8170344 | N215: ='Financial Statements'!AB108+'Financial Statements'!AB109 -> 292.4464933 | O215: ='Financial Statements'!AC108+'Financial Statements'!AC109 -> 268.0759522 | P215: ='Financial Statements'!AD108+'Financial Statements'!AD109 -> 243.7054111 | Q215: ='Financial Statements'!AE108+'Financial Statements'!AE109 -> 219.33487 | R215: ='Financial Statements'!AF108+'Financial Statements'!AF109 -> 194.9643289 | S215: ='Financial Statements'!AG108+'Financial Statements'!AG109 -> 170.5937878 | T215: ='Financial Statements'!AH108+'Financial Statements'!AH109 -> 146.2232467 | U215: ='Financial Statements'!AI108+'Financial Statements'!AI109 -> 121.8527055
B216: Net Debt | G216: =G215-G214 -> 140.6258207 | H216: =H215-H214 -> 256.6930209 | I216: 414.2991989 | J216: 388.9286588 | K216: 364.5581166 | L216: 340.1875755 | M216: 315.8170344 | N216: 291.4464933 | O216: 267.0759522 | P216: 242.7054111 | Q216: 218.33487 | R216: 193.9643289 | S216: 169.5937878 | T216: 145.2232467 | U216: 120.8527055
B218: Net Debt / Equity | G218: =G216/'Financial Statements'!U115+'Financial Statements'!U116 -> 54.50284456 | H218: =H216/'Financial Statements'!V115+'Financial Statements'!V116 -> 56.74406927 | I218: =I216/'Financial Statements'!W115+'Financial Statements'!W116 -> 59.78739986 | J218: =J216/'Financial Statements'!X115+'Financial Statements'!X116 -> 56.04064481 | K218: =K216/'Financial Statements'!Y115+'Financial Statements'!Y116 -> 29.95826711 | L218: =L216/'Financial Statements'!Z115+'Financial Statements'!Z116 -> 6.568925578 | M218: =M216/'Financial Statements'!AA115+'Financial Statements'!AA116 -> 6.098337343 | N218: =N216/'Financial Statements'!AB115+'Financial Statements'!AB116 -> 5.627749107 | O218: =O216/'Financial Statements'!AC115+'Financial Statements'!AC116 -> 5.157160872 | P218: =P216/'Financial Statements'!AD115+'Financial Statements'!AD116 -> 4.686572637 | Q218: =Q216/'Financial Statements'!AE115+'Financial Statements'!AE116 -> 4.215984401 | R218: =R216/'Financial Statements'!AF115+'Financial Statements'!AF116 -> 3.745396166 | S218: =S216/'Financial Statements'!AG115+'Financial Statements'!AG116 -> 3.274807931 | T218: =T216/'Financial Statements'!AH115+'Financial Statements'!AH116 -> 2.804219695 | U218: =U216/'Financial Statements'!AI115+'Financial Statements'!AI116 -> 2.33363146
B220: Revenue Growth | G220: =IFERROR((G141-F141)/F141,0) -> 0 | H220: 0 | I220: 0 | J220: 0 | K220: 0.06404734694 | L220: 0.03833163784 | M220: 0.02770044329 | N220: -0.0420628487 | O220: -0.05369687738 | P220: 0.04965323993 | Q220: 0.07508147549 | R220: 0.01583118888 | S220: 0.1239348249 | T220: -0.03021959832 | U220: -0.06148950575
B221: EBITDA Margin | G221: =IFERROR(G144/G141,0) -> 0 | H221: 0 | I221: 0 | J221: 0.3543047004 | K221: 0.3583129489 | L221: 0.3732271488 | M221: 0.3953571604 | N221: 0.3500424728 | O221: 0.3281242993 | P221: 0.3495649535 | Q221: 0.3613456859 | R221: 0.4076055792 | S221: 0.4237735666 | T221: 0.3474668979 | U221: 0.2919424737
B222: Free Cash Flow | G222: ='Financial Statements'!U74 -> 0 | H222: ='Financial Statements'!V74 -> 0 | I222: ='Financial Statements'!W74 -> 0 | J222: ='Financial Statements'!X74 -> 14.61433601 | K222: ='Financial Statements'!Y74 -> 36.31830864 | L222: ='Financial Statements'!Z74 -> 41.13888169 | M222: ='Financial Statements'!AA74 -> 49.5162989 | N222: ='Financial Statements'!AB74 -> 37.94731621 | O222: ='Financial Statements'!AC74 -> 29.86756478 | P222: ='Financial Statements'!AD74 -> 42.17367245 | Q222: ='Financial Statements'!AE74 -> 48.92329088 | R222: ='Financial Statements'!AF74 -> 57.1900511 | S222: ='Financial Statements'!AG74 -> 74.34061163 | T222: ='Financial Statements'!AH74 -> 55.84398795 | U222: ='Financial Statements'!AI74 -> 38.4667353
B225: Credit Ratios
B227: ='Manganese Mine'!A1088 -> Debt Service Coverage Ratio | G227: ='Manganese Mine'!U1101 -> 0 | H227: ='Manganese Mine'!V1101 -> 0 | I227: ='Manganese Mine'!W1101 -> 0 | J227: ='Manganese Mine'!X1101 -> 1.499334327 | K227: ='Manganese Mine'!Y1101 -> 1.909109111 | L227: ='Manganese Mine'!Z1101 -> 2.029091785 | M227: ='Manganese Mine'!AA1101 -> 2.224162945 | N227: ='Manganese Mine'!AB1101 -> 2.020062228 | O227: ='Manganese Mine'!AC1101 -> 1.800893236 | P227: ='Manganese Mine'!AD1101 -> 2.044414307 | Q227: ='Manganese Mine'!AE1101 -> 2.37991811 | R227: ='Manganese Mine'!AF1101 -> 2.720778733 | S227: ='Manganese Mine'!AG1101 -> 3.233767873 | T227: ='Manganese Mine'!AH1101 -> 2.796581868 | U227: ='Manganese Mine'!AI1101 -> 2.271997467
B228: ='Manganese Mine'!A1105 -> Loan Life Coverage Ratio | G228: ='Manganese Mine'!U1133 -> 0 | H228: ='Manganese Mine'!V1133 -> 0 | I228: ='Manganese Mine'!W1133 -> 0 | J228: ='Manganese Mine'!X1133 -> 2.368595372 | K228: ='Manganese Mine'!Y1133 -> 2.464482325 | L228: ='Manganese Mine'!Z1133 -> 2.528168498 | M228: ='Manganese Mine'!AA1133 -> 2.58787508 | N228: ='Manganese Mine'!AB1133 -> 2.633482769 | O228: ='Manganese Mine'!AC1133 -> 2.714509707 | P228: ='Manganese Mine'!AD1133 -> 2.84241051 | Q228: ='Manganese Mine'!AE1133 -> 2.961716177 | R228: ='Manganese Mine'!AF1133 -> 3.05544253 | S228: ='Manganese Mine'!AG1133 -> 3.114225386 | T228: ='Manganese Mine'!AH1133 -> 3.090990549 | U228: ='Manganese Mine'!AI1133 -> 3.155524395
B229: ='Manganese Mine'!A1137 -> Interest Cover Ratio | G229: ='Manganese Mine'!U1144 ->  | H229: ='Manganese Mine'!V1144 ->  | I229: ='Manganese Mine'!W1144 ->  | J229: ='Manganese Mine'!X1144 -> 3.95520948 | K229: ='Manganese Mine'!Y1144 -> 4.599961367 | L229: ='Manganese Mine'!Z1144 -> 5.393606147 | M229: ='Manganese Mine'!AA1144 -> 6.395227039 | N229: ='Manganese Mine'!AB1144 -> 5.60740459 | O229: ='Manganese Mine'!AC1144 -> 5.186736343 | P229: ='Manganese Mine'!AD1144 -> 6.515582013 | Q229: ='Manganese Mine'!AE1144 -> 8.171273229 | R229: ='Manganese Mine'!AF1144 -> 10.69642799 | S229: ='Manganese Mine'!AG1144 -> 14.45239342 | T229: ='Manganese Mine'!AH1144 -> 12.51396613 | U229: ='Manganese Mine'!AI1144 -> 10.74065114
B230: ='Manganese Mine'!A1150 -> Leverage Ratio | G230: ='Manganese Mine'!U1160 ->  | H230: ='Manganese Mine'!V1160 ->  | I230: ='Manganese Mine'!W1160 ->  | J230: ='Manganese Mine'!X1160 -> 4.14675459 | K230: ='Manganese Mine'!Y1160 -> 3.612090456 | L230: ='Manganese Mine'!Z1160 -> 3.116473818 | M230: ='Manganese Mine'!AA1160 -> 2.657649231 | N230: ='Manganese Mine'!AB1160 -> 2.891697052 | O230: ='Manganese Mine'!AC1160 -> 2.987313628 | P230: ='Manganese Mine'!AD1160 -> 2.427672794 | Q230: ='Manganese Mine'!AE1160 -> 1.965157787 | R230: ='Manganese Mine'!AF1160 -> 1.52355243 | S230: ='Manganese Mine'!AG1160 -> 1.140015102 | T230: ='Manganese Mine'!AH1160 -> 1.22767618 | U230: ='Manganese Mine'!AI1160 -> 1.295630269
B231: ='Manganese Mine'!A1166 -> Reserve Tail Ratio | G231: ='Manganese Mine'!U1175 -> 0 | H231: ='Manganese Mine'!V1175 -> 0 | I231: ='Manganese Mine'!W1175 -> 0 | J231: ='Manganese Mine'!X1175 -> 0.9616122841 | K231: ='Manganese Mine'!Y1175 -> 0.9216890595 | L231: ='Manganese Mine'!Z1175 -> 0.8817658349 | M231: ='Manganese Mine'!AA1175 -> 0.8431861804 | N231: ='Manganese Mine'!AB1175 -> 0.8044145873 | O231: ='Manganese Mine'!AC1175 -> 0.76756238 | P231: ='Manganese Mine'!AD1175 -> 0.7307101727 | Q231: ='Manganese Mine'!AE1175 -> 0.6921305182 | R231: ='Manganese Mine'!AF1175 -> 0.6552783109 | S231: ='Manganese Mine'!AG1175 -> 0.615547025 | T231: ='Manganese Mine'!AH1175 -> 0.5523992322 | U231: ='Manganese Mine'!AI1175 -> 0.4948176583
B233: Covenants Satisfied | G233: ='Manganese Mine'!U927 -> TRUE | H233: ='Manganese Mine'!V927 -> TRUE | I233: ='Manganese Mine'!W927 -> TRUE | J233: ='Manganese Mine'!X927 -> TRUE | K233: ='Manganese Mine'!Y927 -> TRUE | L233: ='Manganese Mine'!Z927 -> TRUE | M233: ='Manganese Mine'!AA927 -> TRUE | N233: ='Manganese Mine'!AB927 -> TRUE | O233: ='Manganese Mine'!AC927 -> TRUE | P233: ='Manganese Mine'!AD927 -> TRUE | Q233: ='Manganese Mine'!AE927 -> TRUE | R233: ='Manganese Mine'!AF927 -> TRUE | S233: ='Manganese Mine'!AG927 -> TRUE | T233: ='Manganese Mine'!AH927 -> TRUE | U233: ='Manganese Mine'!AI927 -> TRUE
B236: Shareholding
B238: Shares Issued | G238: ='Share Price'!J14 -> 6.22231162 | H238: =G238 -> 6.22231162 | I238: =H238 -> 6.22231162 | J238: 6.22231162 | K238: 6.22231162 | L238: 6.22231162 | M238: 6.22231162 | N238: 6.22231162 | O238: 6.22231162 | P238: 6.22231162 | Q238: 6.22231162 | R238: 6.22231162 | S238: 6.22231162 | T238: 6.22231162 | U238: 6.22231162
B239: Market Cap | G239: =G238*'Share Price'!$J$12 -> 174.2247254 | H239: =H238*'Share Price'!$J$12 -> 174.2247254 | I239: =I238*'Share Price'!$J$12 -> 174.2247254 | J239: =J238*'Share Price'!$J$12 -> 174.2247254 | K239: =K238*'Share Price'!$J$12 -> 174.2247254 | L239: =L238*'Share Price'!$J$12 -> 174.2247254 | M239: =M238*'Share Price'!$J$12 -> 174.2247254 | N239: =N238*'Share Price'!$J$12 -> 174.2247254 | O239: =O238*'Share Price'!$J$12 -> 174.2247254 | P239: =P238*'Share Price'!$J$12 -> 174.2247254 | Q239: =Q238*'Share Price'!$J$12 -> 174.2247254 | R239: =R238*'Share Price'!$J$12 -> 174.2247254 | S239: =S238*'Share Price'!$J$12 -> 174.2247254 | T239: =T238*'Share Price'!$J$12 -> 174.2247254 | U239: =U238*'Share Price'!$J$12 -> 174.2247254
B240: Earnings per Share | G240: ='Financial Statements'!U32/Summary!G238 -> 0 | H240: ='Financial Statements'!V32/Summary!H238 -> 0 | I240: ='Financial Statements'!W32/Summary!I238 -> 0 | J240: ='Financial Statements'!X32/Summary!J238 -> 5.032937101 | K240: ='Financial Statements'!Y32/Summary!K238 -> 5.853572105 | L240: ='Financial Statements'!Z32/Summary!L238 -> 5.42366376 | M240: ='Financial Statements'!AA32/Summary!M238 -> 1.360975029 | N240: ='Financial Statements'!AB32/Summary!N238 -> 1.29105844 | O240: ='Financial Statements'!AC32/Summary!O238 -> 1.398342152 | P240: ='Financial Statements'!AD32/Summary!P238 -> 0.7074648737 | Q240: ='Financial Statements'!AE32/Summary!Q238 -> 0.9849344323 | R240: ='Financial Statements'!AF32/Summary!R238 -> 1.57546581 | S240: ='Financial Statements'!AG32/Summary!S238 -> 1.329987921 | T240: ='Financial Statements'!AH32/Summary!T238 -> 0.9688781108 | U240: ='Financial Statements'!AI32/Summary!U238 -> 1.028398862
B241: Price to Earnings | G241: =IFERROR('Share Price'!$J$12/'Financial Statements'!U32,0) -> 0 | H241: =IFERROR('Share Price'!$J$12/'Financial Statements'!V32,0) -> 0 | I241: =IFERROR('Share Price'!$J$12/'Financial Statements'!W32,0) -> 0 | J241: =IFERROR('Share Price'!$J$12/'Financial Statements'!X32,0) -> 0.8940972751 | K241: =IFERROR('Share Price'!$J$12/'Financial Statements'!Y32,0) -> 0.7687503061 | L241: =IFERROR('Share Price'!$J$12/'Financial Statements'!Z32,0) -> 0.8296855312 | M241: =IFERROR('Share Price'!$J$12/'Financial Statements'!AA32,0) -> 3.306405518 | N241: =IFERROR('Share Price'!$J$12/'Financial Statements'!AB32,0) -> 3.485462166 | O241: =IFERROR('Share Price'!$J$12/'Financial Statements'!AC32,0) -> 3.218050275 | P241: =IFERROR('Share Price'!$J$12/'Financial Statements'!AD32,0) -> 6.360648443 | Q241: =IFERROR('Share Price'!$J$12/'Financial Statements'!AE32,0) -> 4.568766407 | R241: =IFERROR('Share Price'!$J$12/'Financial Statements'!AF32,0) -> 2.856257064 | S241: =IFERROR('Share Price'!$J$12/'Financial Statements'!AG32,0) -> 3.383440764 | T241: =IFERROR('Share Price'!$J$12/'Financial Statements'!AH32,0) -> 4.64448035 | U241: =IFERROR('Share Price'!$J$12/'Financial Statements'!AI32,0) -> 4.375671263
B243: Enterprise Value | G243: =G239+G216 -> 314.850546 | H243: =H239+H216 -> 430.9177463 | I243: 588.5239242 | J243: 563.1533842 | K243: 538.782842 | L243: 514.4123009 | M243: 490.0417598 | N243: 465.6712187 | O243: 441.3006776 | P243: 416.9301364 | Q243: 392.5595953 | R243: 368.1890542 | S243: 343.8185131 | T243: 319.447972 | U243: 295.0774309
B244: EV / EBITDA | G244: =IFERROR(G243/G144,0) -> 0 | H244: 0 | I244: 0 | J244: 6.004337371 | K244: 5.338332278 | L244: 4.712554433 | M244: 4.123777263 | N244: 4.620333822 | O244: 4.936062259 | P244: 4.170364166 | Q244: 3.533295188 | R244: 2.892054077 | S244: 2.31115952 | T244: 2.700522643 | U244: 3.163448012
B245: EV / Sales | G245: =IFERROR(G243/G141,0) -> 0 | H245: 0 | I245: 0 | J245: 2.127364953 | K245: 1.91279358 | L245: 1.758853255 | M245: 1.630364869 | N245: 1.617313076 | O245: 1.61964197 | P245: 1.457813156 | Q245: 1.276740973 | R245: 1.178817377 | S245: 0.9794083127 | T245: 0.9383422256 | U245: 0.9235448378
A248: End Sheet

Sheet Net Asset Value
D2: Asset | H2: Discount Rate | J2: Interest | L2: Transaction Value | P2: Trading Value
L5: Low | M5: Base | N5: High | P5: Low | Q5: Base | R5: High
L6: 0.85 | N6: 1.2 | P6: 0.6 | R6: 0.9
D8: Mining Assets
D10: + | E10: Manganese Mine | H10: =Input_Scen!$J$166 -> 0.08 | J10: =Input_Scen!J149 -> 0.9 | L10: =$M10*L$6 -> 289.1719818 | M10: ='Manganese Mine'!L1299 -> 340.2023315 | N10: =$M10*N$6 -> 408.2427978 | P10: =$Q10*P$6 -> 204.1213989 | Q10: =M10 -> 340.2023315 | R10: =$Q10*R$6 -> 306.1820983
E11: Total | L11: =SUM(L10:L10) -> 289.1719818 | M11: =SUM(M10:M10) -> 340.2023315 | N11: =SUM(N10:N10) -> 408.2427978 | P11: =SUM(P10:P10) -> 204.1213989 | Q11: =SUM(Q10:Q10) -> 340.2023315 | R11: =SUM(R10:R10) -> 306.1820983
D14: Other Assets
D16: + | E16: Rail Concession | H16: =Input_Scen!$J$166 -> 0.08 | J16: 0 | L16: =$M16*L$6 -> 0 | M16: 0 | N16: 0 | P16: =$Q16*P$6 -> 0 | Q16: =M16 -> 0 | R16: =$Q16*R$6 -> 0
D17: + | E17: Port Concession | H17: =Input_Scen!$J$166 -> 0.08 | J17: 0 | L17: 0 | M17: 0 | N17: 0 | P17: 0 | Q17: 0 | R17: 0
D18: + | E18: Other Equity Investments | H18: =Input_Scen!$J$166 -> 0.08 | J18: 0 | L18: 0 | M18: 0 | N18: 0 | P18: 0 | Q18: 0 | R18: 0
E19: Total | L19: =SUM(L16:L18) -> 0 | M19: =SUM(M16:M18) -> 0 | N19: =SUM(N16:N18) -> 0 | P19: =SUM(P16:P18) -> 0 | Q19: =SUM(Q16:Q18) -> 0 | R19: =SUM(R16:R18) -> 0
D22: Corporate Adjustments
D24: + | E24: Cash | L24: =$M24*L$6 -> 5.1 | M24: 6 | N24: =$M24*N$6 -> 7.2 | P24: =$Q24*P$6 -> 3.6 | Q24: =M24 -> 6 | R24: =$Q24*R$6 -> 5.4
D25: + | E25: G&A Synergies | H25: =Input_Scen!$J$166 -> 0.08 | J25: 1 | L25: =$M25*L$6 -> 1.02 | M25: 1.2 | N25: =$M25*N$6 -> 1.44 | P25: =$Q25*P$6 -> 0.72 | Q25: =M25 -> 1.2 | R25: =$Q25*R$6 -> 1.08
D26: + | E26: Price Hedging Impact | H26: =Input_Scen!$J$166 -> 0.08 | J26: 1 | L26: =$M26*L$6 -> 5.015 | M26: 5.9 | N26: =$M26*N$6 -> 7.08 | P26: =$Q26*P$6 -> 3.54 | Q26: =M26 -> 5.9 | R26: =$Q26*R$6 -> 5.31
D28: - | E28: Corporate Debt | H28: =Input_Scen!$J$166 -> 0.08 | J28: 1 | L28: =$M28*L$6 -> 3.57 | M28: 4.2 | N28: =$M28*N$6 -> 5.04 | P28: =$Q28*P$6 -> 2.52 | Q28: =M28 -> 4.2 | R28: =$Q28*R$6 -> 3.78
D29: - | E29: Miscellaneous Costs | H29: =Input_Scen!$J$166 -> 0.08 | J29: 1 | L29: =$M29*L$6 -> 2.21 | M29: 2.6 | N29: =$M29*N$6 -> 3.12 | P29: =$Q29*P$6 -> 1.56 | Q29: =M29 -> 2.6 | R29: =$Q29*R$6 -> 2.34
E31: Corporate Costs
D32: - | E32: Miscellaneous | H32: =Input_Scen!$J$166 -> 0.08 | J32: 1 | L32: =$M32*L$6 -> 35.09723689 | M32: =NPV($H32,Corporate!R38:CP38) -> 41.29086693 | N32: 49.54904032 | P32: 24.77452016 | Q32: =M32 -> 41.29086693 | R32: 37.16178024
D33: - | E33: G&A | H33: =Input_Scen!$J$166 -> 0.08 | J33: 1 | L33: 29.64143292 | M33: =NPV($H33,Corporate!R48:CP48) -> 34.87227402 | N33: 41.84672883 | P33: 20.92336441 | Q33: 34.87227402 | R33: 31.38504662
D34: - | E34: Exploration | H34: =Input_Scen!$J$166 -> 0.08 | J34: 1 | L34: 18.0004208 | M34: =NPV($H34,Corporate!R56:CP56) -> 21.17696565 | N34: 25.41235878 | P34: 12.70617939 | Q34: 21.17696565 | R34: 19.05926908
D37: Net Asset Value
E39: Implied Equity Value | H39: $m | L39: =L11+L19+SUM(L24:L26)-SUM(L28:L29)-SUM(L32:L34) -> 211.7878911 | M39: =M11+M19+SUM(M24:M26)-SUM(M28:M29)-SUM(M32:M34) -> 249.1622249 | N39: =N11+N19+SUM(N24:N26)-SUM(N28:N29)-SUM(N32:N34) -> 298.9946699 | P39: =P11+P19+SUM(P24:P26)-SUM(P28:P29)-SUM(P32:P34) -> 149.4973349 | Q39: =Q11+Q19+SUM(Q24:Q26)-SUM(Q28:Q29)-SUM(Q32:Q34) -> 249.1622249 | R39: =R11+R19+SUM(R24:R26)-SUM(R28:R29)-SUM(R32:R34) -> 224.2460024
E41: Shares Outstanding | H41: #m | L41: ='Share Price'!$J$14 -> 6.22231162 | M41: ='Share Price'!$J$14 -> 6.22231162 | N41: ='Share Price'!$J$14 -> 6.22231162 | P41: ='Share Price'!$J$14 -> 6.22231162 | Q41: ='Share Price'!$J$14 -> 6.22231162 | R41: ='Share Price'!$J$14 -> 6.22231162
E42: Market Capitalisation | H42: $m | L42: ='Share Price'!$J$16 -> 174.2247254 | M42: ='Share Price'!$J$16 -> 174.2247254 | N42: ='Share Price'!$J$16 -> 174.2247254 | O42: ='Share Price'!$J$16 -> 174.2247254 | P42: ='Share Price'!$J$16 -> 174.2247254 | Q42: ='Share Price'!$J$16 -> 174.2247254 | R42: ='Share Price'!$J$16 -> 174.2247254
E44: P / NAV | H44: x | L44: =L42/L39 -> 0.8226378024 | M44: =M42/M39 -> 0.6992421321 | N44: 0.5827017767 | P44: 1.165403553 | Q44: 0.6992421321 | R44: 0.7769357023
E46: Implied Share Price | H46: $ | L46: =MAX(L39/L41,0) -> 34.03685063 | M46: =MAX(M39/M41,0) -> 40.04335368 | N46: =MAX(N39/N41,0) -> 48.05202441 | P46: =MAX(P39/P41,0) -> 24.02601221 | Q46: =MAX(Q39/Q41,0) -> 40.04335368 | R46: =MAX(R39/R41,0) -> 36.03901831
E47: Market Price | H47: $ | L47: =$M47*L$6 -> 23.8 | M47: ='Share Price'!J12 -> 28 | N47: =$M47*N$6 -> 33.6 | P47: 16.8 | Q47: =M47 -> 28 | R47: 25.2
A65: END SHEET

Sheet Share Price
C10: Capitalisation Summary | J10: Unaffected
C12: Share Price | F12: $ | J12: 28
C14: Shares Outstanding | F14: m | J14: 6.22231162
C16: Market Capitalisation | F16: $m | J16: =J12*J14 -> 174.2247254
C18: 52 Weeks
C19: Min | F19: $ | J19: =MIN($H$882:$I$1283) -> 25.09
C20: Max | F20: $ | J20: =MAX($H$882:$I$1283) -> 51.93
B26: Date | E26: Open | F26: High | G26: Low | H26: Close | J26: Adj Close | K26: Volume
B27: =B28-1 -> 2022-03-06 | E27: 16.700001 | F27: 16.91 | G27: 16.57 | H27: 16.799999 | J27: 15.832954 | K27: 13392700
B28: 2022-03-07 | E28: 16.379999 | F28: 16.43 | G28: 15.89 | H28: 16.26 | J28: 15.324035 | K28: 17789100
B29: 2022-03-08 | E29: 16.35 | F29: 16.43 | G29: 16.110001 | H29: 16.299999 | J29: 15.361732 | K29: 11160300
B30: 2022-03-09 | E30: 16.27 | F30: 16.559999 | G30: 16.26 | H30: 16.360001 | J30: 15.418279 | K30: 12194700
B31: 2022-03-10 | E31: 16.690001 | F31: 16.790001 | G31: 16.389999 | H31: 16.440001 | J31: 15.49367 | K31: 19348900
B32: 2022-03-11 | E32: 16.190001 | F32: 16.309999 | G32: 15.46 | H32: 15.74 | J32: 14.833969 | K32: 14838900
B33: 2022-03-12 | E33: 15.8 | F33: 16.27 | G33: 15.66 | H33: 16.25 | J33: 15.31461 | K33: 16300000
B34: 2022-03-13 | E34: 16.309999 | F34: 17.02 | G34: 16.24 | H34: 16.9 | J34: 15.927192 | K34: 24679200
B35: 2022-03-14 | E35: 16.68 | F35: 16.92 | G35: 16.219999 | H35: 16.790001 | J35: 15.823528 | K35: 17572300
B36: 2022-03-15 | E36: 17 | F36: 17.459999 | G36: 16.959999 | H36: 17.26 | J36: 16.266472 | K36: 19795500
B37: 2022-03-16 | E37: 17.02 | F37: 17.17 | G37: 16.790001 | H37: 17.16 | J37: 16.17223 | K37: 14426400
B38: 2022-03-17 | E38: 17.200001 | F38: 17.549999 | G38: 16.93 | H38: 17.07 | J38: 16.087412 | K38: 8460000
B39: 2022-03-18 | E39: 17.07 | F39: 17.370001 | G39: 16.66 | H39: 16.969999 | J39: 15.993166 | K39: 17618100
B40: 2022-03-19 | E40: 16.92 | F40: 17.610001 | G40: 16.690001 | H40: 17.51 | J40: 16.502081 | K40: 15283900
B41: 2022-03-20 | E41: 17.860001 | F41: 18.129999 | G41: 17.559999 | H41: 18.110001 | J41: 17.067541 | K41: 16786000
B42: 2022-03-21 | E42: 17.950001 | F42: 18.139999 | G42: 17.83 | H42: 18.110001 | J42: 17.067541 | K42: 15083800
B43: 2022-03-22 | E43: 17.52 | F43: 17.73 | G43: 17.209999 | H43: 17.41 | J43: 16.407839 | K43: 26590600
B44: 2022-03-23 | E44: 17.67 | F44: 17.799999 | G44: 17.200001 | H44: 17.290001 | J44: 16.341679 | K44: 20100400
B45: 2022-03-24 | E45: 17.030001 | F45: 17.129999 | G45: 16.459999 | H45: 16.799999 | J45: 15.878555 | K45: 26062200
B46: 2022-03-25 | E46: 16.82 | F46: 16.950001 | G46: 16.540001 | H46: 16.77 | J46: 15.850196 | K46: 15983200
B47: 2022-03-26 | E47: 16.700001 | F47: 17.040001 | G47: 16.67 | H47: 16.77 | J47: 15.850196 | K47: 15905000
B48: 2022-03-27 | E48: 16.75 | F48: 17.200001 | G48: 16.379999 | H48: 17.08 | J48: 16.143196 | K48: 19202600
B49: 2022-03-28 | E49: 16.450001 | F49: 16.469999 | G49: 15.65 | H49: 15.8 | J49: 14.933399 | K49: 38238700
B50: 2022-03-29 | E50: 15.78 | F50: 16.15 | G50: 15.67 | H50: 15.75 | J50: 14.886143 | K50: 20405000
B51: 2022-03-30 | E51: 15.78 | F51: 16.030001 | G51: 15.49 | H51: 15.83 | J51: 14.961756 | K51: 21358500
B52: 2022-03-31 | E52: 16.530001 | F52: 16.59 | G52: 15.99 | H52: 16.07 | J52: 15.188593 | K52: 28247000
B53: 2022-04-01 | E53: 16.08 | F53: 16.43 | G53: 15.06 | H53: 15.86 | J53: 14.99011 | K53: 35148000
B54: 2022-04-02 | E54: 15.8 | F54: 16 | G54: 15.73 | H54: 15.97 | J54: 15.094076 | K54: 13221200
B55: 2022-04-03 | E55: 16.049999 | F55: 16.27 | G55: 15.81 | H55: 15.99 | J55: 15.112981 | K55: 11573900
B56: 2022-04-04 | E56: 16 | F56: 16.299999 | G56: 16 | H56: 16.08 | J56: 15.198043 | K56: 9135500
B57: 2022-04-05 | E57: 16.24 | F57: 16.620001 | G57: 16.200001 | H57: 16.5 | J57: 15.595009 | K57: 12271000
B58: 2022-04-06 | E58: 16.120001 | F58: 16.16 | G58: 15.57 | H58: 15.58 | J58: 14.725467 | K58: 19388900
B59: 2022-04-07 | E59: 15.41 | F59: 15.52 | G59: 15.23 | H59: 15.43 | J59: 14.583694 | K59: 20206500
B60: 2022-04-08 | E60: 15.58 | F60: 15.85 | G60: 15.52 | H60: 15.71 | J60: 14.848338 | K60: 11971000
B61: 2022-04-09 | E61: 15.52 | F61: 15.53 | G61: 15.22 | H61: 15.4 | J61: 14.55534 | K61: 16632600
B62: 2022-04-10 | E62: 15.7 | F62: 15.81 | G62: 15.34 | H62: 15.36 | J62: 14.517534 | K62: 11081800
B63: 2022-04-11 | E63: 15.41 | F63: 15.59 | G63: 15.28 | H63: 15.39 | J63: 14.54589 | K63: 13128800
B64: 2022-04-12 | E64: 15.74 | F64: 15.76 | G64: 15.29 | H64: 15.31 | J64: 14.470276 | K64: 15046400
B65: 2022-04-13 | E65: 15.11 | F65: 15.21 | G65: 15.02 | H65: 15.11 | J65: 14.281243 | K65: 13921800
B66: 2022-04-14 | E66: 15.2 | F66: 15.26 | G66: 14.91 | H66: 14.92 | J66: 14.101666 | K66: 16222300
B67: 2022-04-15 | E67: 14.97 | F67: 15.13 | G67: 14.6 | H67: 14.8 | J67: 13.988249 | K67: 16722600
B68: 2022-04-16 | E68: 14.21 | F68: 14.32 | G68: 13.28 | H68: 13.66 | J68: 12.910778 | K68: 35976400
B69: 2022-04-17 | E69: 13.88 | F69: 14.24 | G69: 13.74 | H69: 13.77 | J69: 13.014745 | K69: 17867200
B70: 2022-04-18 | E70: 13.79 | F70: 14.02 | G70: 13.53 | H70: 13.97 | J70: 13.203773 | K70: 21904700
B71: 2022-04-19 | E71: 14.14 | F71: 14.21 | G71: 13.83 | H71: 14.12 | J71: 13.345548 | K71: 12683000
B72: 2022-04-20 | E72: 14.15 | F72: 14.44 | G72: 14.06 | H72: 14.32 | J72: 13.534576 | K72: 15806000
B73: 2022-04-21 | E73: 14.4 | F73: 14.57 | G73: 14.23 | H73: 14.53 | J73: 13.733058 | K73: 12230400
B74: 2022-04-22 | E74: 14.34 | F74: 14.35 | G74: 13.97 | H74: 14.18 | J74: 13.402255 | K74: 17069100
B75: 2022-04-23 | E75: 14.54 | F75: 14.79 | G75: 14.36 | H75: 14.47 | J75: 13.676349 | K75: 13288900
B76: 2022-04-24 | E76: 14.47 | F76: 14.84 | G76: 14.45 | H76: 14.73 | J76: 13.922088 | K76: 10476700
B77: 2022-04-25 | E77: 14.92 | F77: 14.96 | G77: 14.59 | H77: 14.66 | J77: 13.855927 | K77: 12144200
B78: 2022-04-26 | E78: 14.58 | F78: 14.79 | G78: 14.42 | H78: 14.67 | J78: 13.865378 | K78: 10064100
B79: 2022-04-27 | E79: 14.47 | F79: 14.51 | G79: 14.03 | H79: 14.15 | J79: 13.373899 | K79: 15530800
B80: 2022-04-28 | E80: 14.1 | F80: 14.31 | G80: 13.95 | H80: 14.05 | J80: 13.279386 | K80: 14284800
B81: 2022-04-29 | E81: 13.63 | F81: 13.73 | G81: 13.39 | H81: 13.48 | J81: 12.740647 | K81: 19908400
B82: 2022-04-30 | E82: 13.54 | F82: 13.74 | G82: 13.4 | H82: 13.67 | J82: 12.920228 | K82: 17341700
B83: 2022-05-01 | E83: 13.81 | F83: 13.99 | G83: 13.5 | H83: 13.57 | J83: 12.825712 | K83: 13986300
B84: 2022-05-02 | E84: 13.37 | F84: 13.56 | G84: 13.05 | H84: 13.18 | J84: 12.457104 | K84: 26776300
B85: 2022-05-03 | E85: 13.29 | F85: 13.41 | G85: 13.18 | H85: 13.2 | J85: 12.476007 | K85: 11848900
B86: 2022-05-04 | E86: 12.85 | F86: 13.09 | G86: 12.18 | H86: 13.04 | J86: 12.324782 | K86: 15438400
B87: 2022-05-05 | E87: 13.11 | F87: 13.78 | G87: 13.03 | H87: 13.63 | J87: 12.882421 | K87: 25530600
B88: 2022-05-06 | E88: 13.96 | F88: 14.05 | G88: 13.5 | H88: 13.58 | J88: 12.835164 | K88: 15259600
B89: 2022-05-07 | E89: 13.64 | F89: 13.89 | G89: 13.52 | H89: 13.69 | J89: 12.93913 | K89: 13819800
B90: 2022-05-08 | E90: 13.7 | F90: 13.98 | G90: 13.66 | H90: 13.72 | J90: 12.967486 | K90: 13739900
B91: =B92-1 -> 2022-05-09 | E91: 14 | F91: 14.25 | G91: 13.92 | H91: 14.01 | J91: 13.24158 | K91: 21543100
B92: 2022-05-10 | E92: 14.12 | F92: 14.66 | G92: 14.12 | H92: 14.3 | J92: 13.515672 | K92: 24725400
B93: 2022-05-11 | E93: 14.57 | F93: 14.73 | G93: 14.28 | H93: 14.39 | J93: 13.600738 | K93: 23289900
B94: 2022-05-12 | E94: 14.83 | F94: 14.9 | G94: 14.55 | H94: 14.61 | J94: 13.808669 | K94: 52922200
B95: 2022-05-13 | E95: 14.6 | F95: 14.75 | G95: 14.24 | H95: 14.24 | J95: 13.458965 | K95: 20775200
B96: 2022-05-14 | E96: 14.4 | F96: 14.57 | G96: 14.19 | H96: 14.49 | J96: 13.695252 | K96: 15317800
B97: 2022-05-15 | E97: 14.27 | F97: 14.42 | G97: 13.99 | H97: 14 | J97: 13.232128 | K97: 16234500
B98: 2022-05-16 | E98: 13.79 | F98: 13.88 | G98: 13.51 | H98: 13.87 | J98: 13.109257 | K98: 20502600
B99: 2022-05-17 | E99: 13.85 | F99: 14.06 | G99: 13.8 | H99: 13.92 | J99: 13.156516 | K99: 16080600
B100: 2022-05-18 | E100: 13.81 | F100: 13.9 | G100: 13.6 | H100: 13.7 | J100: 12.948583 | K100: 15925600
B101: 2022-05-19 | E101: 13.72 | F101: 14.1 | G101: 13.68 | H101: 13.89 | J101: 13.128161 | K101: 14328200
B102: 2022-05-20 | E102: 13.93 | F102: 14.28 | G102: 13.85 | H102: 13.95 | J102: 13.184869 | K102: 20127400
B103: 2022-05-21 | E103: 14.03 | F103: 14.08 | G103: 13.45 | H103: 13.63 | J103: 12.882421 | K103: 23346400
B104: 2022-05-22 | E104: 13.46 | F104: 13.48 | G104: 13.22 | H104: 13.27 | J104: 12.542168 | K104: 19861600
B105: 2022-05-23 | E105: 13.1 | F105: 13.38 | G105: 12.97 | H105: 13.29 | J105: 12.56107 | K105: 16162200
B106: 2022-05-24 | E106: 13.25 | F106: 13.38 | G106: 12.98 | H106: 13.18 | J106: 12.457104 | K106: 11831100
B107: 2022-05-25 | E107: 12.94 | F107: 12.99 | G107: 12.51 | H107: 12.77 | J107: 12.069592 | K107: 26419400
B108: 2022-05-26 | E108: 12.79 | F108: 13.36 | G108: 12.67 | H108: 13.23 | J108: 12.50436 | K108: 31623400
B109: 2022-05-27 | E109: 13.46 | F109: 13.47 | G109: 12.63 | H109: 12.74 | J109: 12.086916 | K109: 31107300
B110: 2022-05-28 | E110: 12.82 | F110: 13.06 | G110: 12.82 | H110: 12.83 | J110: 12.172302 | K110: 19083600
B111: 2022-05-29 | E111: 12.89 | F111: 12.91 | G111: 12.48 | H111: 12.68 | J111: 12.029993 | K111: 20373000
B112: 2022-05-30 | E112: 12.7 | F112: 12.84 | G112: 12.33 | H112: 12.4 | J112: 11.764345 | K112: 23013100
B113: 2022-05-31 | E113: 12.15 | F113: 12.48 | G113: 12.06 | H113: 12.14 | J113: 11.517673 | K113: 21377700
B114: 2022-06-01 | E114: 12.14 | F114: 12.33 | G114: 11.94 | H114: 12.02 | J114: 11.403827 | K114: 15817300
B115: 2022-06-02 | E115: 12.07 | F115: 12.1 | G115: 11.84 | H115: 12 | J115: 11.384851 | K115: 12401600
B116: 2022-06-03 | E116: 11.6 | F116: 11.71 | G116: 11.25 | H116: 11.61 | J116: 11.014841 | K116: 24002400
B117: 2022-06-04 | E117: 11.71 | F117: 11.99 | G117: 10.59 | H117: 10.7 | J117: 10.151491 | K117: 45767700
B118: 2022-06-05 | E118: 10.91 | F118: 11.66 | G118: 10.7 | H118: 11.25 | J118: 10.673297 | K118: 34417700
B119: 2022-06-06 | E119: 10.9 | F119: 11.58 | G119: 10.87 | H119: 11.5 | J119: 10.910482 | K119: 28577600
B120: 2022-06-07 | E120: 11.68 | F120: 11.77 | G120: 10.96 | H120: 11.09 | J120: 10.5215 | K120: 25835200
B121: 2022-06-08 | E121: 10.99 | F121: 11.49 | G121: 10.95 | H121: 11.41 | J121: 10.825094 | K121: 22696200
B122: 2022-06-09 | E122: 11.57 | F122: 11.78 | G122: 11.38 | H122: 11.65 | J122: 11.052792 | K122: 23361800
B123: 2022-06-10 | E123: 11.86 | F123: 12.47 | G123: 11.76 | H123: 12.28 | J123: 11.650496 | K123: 21668100
B124: 2022-06-11 | E124: 12.48 | F124: 12.69 | G124: 12.01 | H124: 12.24 | J124: 11.612547 | K124: 19501300
B125: 2022-06-12 | E125: 12.2 | F125: 12.33 | G125: 12.06 | H125: 12.22 | J125: 11.593573 | K125: 9791300
B126: 2022-06-13 | E126: 12.23 | F126: 12.39 | G126: 12.13 | H126: 12.2 | J126: 11.574597 | K126: 11479300
B127: 2022-06-14 | E127: 12.17 | F127: 12.35 | G127: 12.04 | H127: 12.33 | J127: 11.697933 | K127: 14378300
B128: 2022-06-15 | E128: 12.21 | F128: 12.27 | G128: 11.87 | H128: 11.93 | J128: 11.318439 | K128: 14289300
B129: 2022-06-16 | E129: 11.56 | F129: 11.61 | G129: 11.18 | H129: 11.35 | J129: 10.768171 | K129: 21444400
B130: 2022-06-17 | E130: 11.43 | F130: 11.46 | G130: 11.07 | H130: 11.16 | J130: 10.587911 | K130: 14531600
B131: 2022-06-18 | E131: 11.16 | F131: 11.5 | G131: 11.06 | H131: 11.25 | J131: 10.673297 | K131: 17216400
B132: 2022-06-19 | E132: 11.3 | F132: 11.63 | G132: 11.24 | H132: 11.54 | J132: 10.94843 | K132: 16141900
B133: 2022-06-20 | E133: 11.56 | F133: 12.18 | G133: 11.51 | H133: 11.96 | J133: 11.346902 | K133: 23687300
B134: 2022-06-21 | E134: 11.97 | F134: 12.11 | G134: 11.76 | H134: 11.96 | J134: 11.346902 | K134: 15981800
B135: 2022-06-22 | E135: 11.91 | F135: 12.01 | G135: 11.48 | H135: 11.51 | J135: 10.91997 | K135: 16917600
B136: 2022-06-23 | E136: 11.27 | F136: 11.27 | G136: 10.77 | H136: 10.88 | J136: 10.322263 | K136: 21391200
B137: 2022-06-24 | E137: 11.1 | F137: 11.49 | G137: 11.03 | H137: 11.41 | J137: 10.825094 | K137: 17056200
B138: 2022-06-25 | E138: 11.08 | F138: 11.1 | G138: 10.76 | H138: 10.77 | J138: 10.217903 | K138: 7880800
B139: 2022-06-26 | E139: 10.75 | F139: 11.22 | G139: 10.71 | H139: 11.09 | J139: 10.5215 | K139: 10586300
B140: 2022-06-27 | E140: 10.89 | F140: 11.27 | G140: 10.86 | H140: 11.24 | J140: 10.66381 | K140: 20866200
B141: 2022-06-28 | E141: 11.33 | F141: 11.99 | G141: 10.98 | H141: 11.97 | J141: 11.356387 | K141: 29088100
B142: 2022-06-29 | E142: 11.9 | F142: 12 | G142: 11.62 | H142: 11.82 | J142: 11.214077 | K142: 19450700
B143: 2022-06-30 | E143: 11.71 | F143: 11.99 | G143: 11.58 | H143: 11.94 | J143: 11.327926 | K143: 17146000
B144: 2022-07-01 | E144: 12.45 | F144: 12.67 | G144: 12.05 | H144: 12.09 | J144: 11.470236 | K144: 27171000
B145: 2022-07-02 | E145: 12.2 | F145: 12.31 | G145: 11.41 | H145: 11.5 | J145: 10.910482 | K145: 22402700
B146: 2022-07-03 | E146: 11.04 | F146: 11.16 | G146: 10.73 | H146: 11.15 | J146: 10.578423 | K146: 25177100
B147: 2022-07-04 | E147: 11.25 | F147: 11.49 | G147: 10.9 | H147: 10.92 | J147: 10.360214 | K147: 21263900
B148: 2022-07-05 | E148: 10.86 | F148: 10.93 | G148: 10.45 | H148: 10.69 | J148: 10.142003 | K148: 17917900
B149: 2022-07-06 | E149: 11.01 | F149: 11.14 | G149: 10.61 | H149: 10.76 | J149: 10.208416 | K149: 19184200
B150: 2022-07-07 | E150: 10.96 | F150: 11.37 | G150: 10.95 | H150: 11.07 | J150: 10.502523 | K150: 15313400
B151: 2022-07-08 | E151: 11.23 | F151: 11.3 | G151: 10.79 | H151: 10.92 | J151: 10.360214 | K151: 17063900
B152: 2022-07-09 | E152: 10.64 | F152: 10.9 | G152: 10.39 | H152: 10.57 | J152: 10.028156 | K152: 26978300
B153: 2022-07-10 | E153: 10.58 | F153: 10.96 | G153: 10.41 | H153: 10.59 | J153: 10.047131 | K153: 16416800
B154: 2022-07-11 | E154: 10.64 | F154: 11.14 | G154: 10.44 | H154: 10.6 | J154: 10.056618 | K154: 29402100
B155: =B156-1 -> 2022-07-12 | E155: 10.63 | F155: 11.04 | G155: 10.03 | H155: 10.18 | J155: 9.658147 | K155: 26465400
B156: 2022-07-13 | E156: 10.31 | F156: 10.51 | G156: 10 | H156: 10.24 | J156: 9.715072 | K156: 23589600
B157: 2022-07-14 | E157: 10.36 | F157: 10.48 | G157: 9.99 | H157: 10.05 | J157: 9.534812 | K157: 30525400
B158: 2022-07-15 | E158: 9.93 | F158: 10.08 | G158: 9.72 | H158: 9.78 | J158: 9.278652 | K158: 9724400
B159: 2022-07-16 | E159: 9.9 | F159: 10.4 | G159: 9.6 | H159: 10.4 | J159: 9.866872 | K159: 19614900
B160: 2022-07-17 | E160: 10.14 | F160: 10.69 | G160: 10.02 | H160: 10.67 | J160: 10.123029 | K160: 20161100
B161: 2022-07-18 | E161: 10.74 | F161: 10.88 | G161: 10.37 | H161: 10.47 | J161: 9.933283 | K161: 20165600
B162: 2022-07-19 | E162: 10.47 | F162: 10.51 | G162: 10.04 | H162: 10.31 | J162: 9.781484 | K162: 16811000
B163: 2022-07-20 | E163: 10.01 | F163: 10.5 | G163: 9.93 | H163: 10.36 | J163: 9.828921 | K163: 17940900
B164: 2022-07-21 | E164: 10.27 | F164: 10.39 | G164: 9.84 | H164: 10.07 | J164: 9.553788 | K164: 22417600
B165: 2022-07-22 | E165: 10.48 | F165: 10.93 | G165: 10.33 | H165: 10.82 | J165: 10.265341 | K165: 25597600
B166: 2022-07-23 | E166: 10.96 | F166: 11.22 | G166: 10.81 | H166: 11 | J166: 10.436111 | K166: 16813100
B167: 2022-07-24 | E167: 11.15 | F167: 11.27 | G167: 10.98 | H167: 11.2 | J167: 10.625859 | K167: 22809600
B168: 2022-07-25 | E168: 11.34 | F168: 11.6 | G168: 11.18 | H168: 11.51 | J168: 10.91997 | K168: 20616000
B169: 2022-07-26 | E169: 11.33 | F169: 11.53 | G169: 11.24 | H169: 11.51 | J169: 10.91997 | K169: 19481400
B170: 2022-07-27 | E170: 11.51 | F170: 11.74 | G170: 11.37 | H170: 11.6 | J170: 11.005356 | K170: 21532900
B171: 2022-07-28 | E171: 11.41 | F171: 11.64 | G171: 11.4 | H171: 11.55 | J171: 11.005357 | K171: 16085200
B172: 2022-07-29 | E172: 11.85 | F172: 11.97 | G172: 11.44 | H172: 11.57 | J172: 11.024413 | K172: 26038900
B173: 2022-07-30 | E173: 11.71 | F173: 11.97 | G173: 11.63 | H173: 11.89 | J173: 11.329322 | K173: 22312700
B174: 2022-07-31 | E174: 11.9 | F174: 12.22 | G174: 11.86 | H174: 12.13 | J174: 11.558006 | K174: 23115300
B175: 2022-08-01 | E175: 12.32 | F175: 12.65 | G175: 12.28 | H175: 12.56 | J175: 11.96773 | K175: 31366400
B176: 2022-08-02 | E176: 12.27 | F176: 12.41 | G176: 12.11 | H176: 12.38 | J176: 11.796218 | K176: 26656300
B177: 2022-08-03 | E177: 12.4 | F177: 12.55 | G177: 12.18 | H177: 12.31 | J177: 11.729518 | K177: 25720300
B178: 2022-08-04 | E178: 11.47 | F178: 11.88 | G178: 10.6 | H178: 10.7 | J178: 10.195437 | K178: 66363100
B179: 2022-08-05 | E179: 10.97 | F179: 11.48 | G179: 10.7 | H179: 11.24 | J179: 10.709974 | K179: 36134500
B180: 2022-08-06 | E180: 11.02 | F180: 11.05 | G180: 10.2 | H180: 10.28 | J180: 9.795242 | K180: 54798400
B181: 2022-08-07 | E181: 10.43 | F181: 10.59 | G181: 10.26 | H181: 10.45 | J181: 9.957227 | K181: 38234100
B182: 2022-08-08 | E182: 10.62 | F182: 11.35 | G182: 10.6 | H182: 11.27 | J182: 10.738561 | K182: 37813200
B183: 2022-08-09 | E183: 11.23 | F183: 11.76 | G183: 11.21 | H183: 11.64 | J183: 11.091113 | K183: 31833200
B184: 2022-08-10 | E184: 11.56 | F184: 11.63 | G184: 11.4 | H184: 11.51 | J184: 10.967241 | K184: 24240200
B185: 2022-08-11 | E185: 11.44 | F185: 11.97 | G185: 11.42 | H185: 11.86 | J185: 11.300739 | K185: 21269300
B186: 2022-08-12 | E186: 11.9 | F186: 12.01 | G186: 11.77 | H186: 11.87 | J186: 11.310266 | K186: 18497100
B187: 2022-08-13 | E187: 11.86 | F187: 12.05 | G187: 11.78 | H187: 11.91 | J187: 11.348382 | K187: 18136700
B188: 2022-08-14 | E188: 11.85 | F188: 12.14 | G188: 11.8 | H188: 11.86 | J188: 11.300739 | K188: 25184000
B189: 2022-08-15 | E189: 11.85 | F189: 11.95 | G189: 11.4 | H189: 11.61 | J189: 11.062525 | K189: 23718200
B190: 2022-08-16 | E190: 11.5 | F190: 11.62 | G190: 11.45 | H190: 11.53 | J190: 10.9863 | K190: 15561600
B191: 2022-08-17 | E191: 11.55 | F191: 11.7 | G191: 11.47 | H191: 11.49 | J191: 10.948184 | K191: 15617900
B192: 2022-08-18 | E192: 12.02 | F192: 12.36 | G192: 11.9 | H192: 12.29 | J192: 11.710459 | K192: 36169400
B193: 2022-08-19 | E193: 12.14 | F193: 12.3 | G193: 12.05 | H193: 12.16 | J193: 11.586591 | K193: 15313400
B194: 2022-08-20 | E194: 12.38 | F194: 12.62 | G194: 12.23 | H194: 12.28 | J194: 11.700932 | K194: 16573400
B195: 2022-08-21 | E195: 12.63 | F195: 13.26 | G195: 12.53 | H195: 13.09 | J195: 12.472736 | K195: 35617600
B196: 2022-08-22 | E196: 13.64 | F196: 13.86 | G196: 13.29 | H196: 13.35 | J196: 12.720476 | K196: 38188400
B197: 2022-08-23 | E197: 13.19 | F197: 13.27 | G197: 12.88 | H197: 13.02 | J197: 12.406037 | K197: 20123200
B198: 2022-08-24 | E198: 13.4 | F198: 13.4 | G198: 13.08 | H198: 13.22 | J198: 12.596606 | K198: 23876800
B199: 2022-08-25 | E199: 13.25 | F199: 13.31 | G199: 13.11 | H199: 13.26 | J199: 12.63472 | K199: 20071800
B200: 2022-08-26 | E200: 13.18 | F200: 13.29 | G200: 13.02 | H200: 13.18 | J200: 12.558495 | K200: 13448100
B201: 2022-08-27 | E201: 13.25 | F201: 13.28 | G201: 13.09 | H201: 13.16 | J201: 12.539435 | K201: 17655100
B202: 2022-08-28 | E202: 13.06 | F202: 13.12 | G202: 12.82 | H202: 12.9 | J202: 12.291696 | K202: 21053700
B203: 2022-08-29 | E203: 12.98 | F203: 13.15 | G203: 12.79 | H203: 12.87 | J203: 12.263111 | K203: 15988500
B204: 2022-08-30 | E204: 12.87 | F204: 12.9 | G204: 12.49 | H204: 12.78 | J204: 12.177355 | K204: 18449000
B205: 2022-08-31 | E205: 12.87 | F205: 12.9 | G205: 12.59 | H205: 12.84 | J205: 12.234526 | K205: 17481200
B206: 2022-09-01 | E206: 12.88 | F206: 12.91 | G206: 12.51 | H206: 12.54 | J206: 11.948672 | K206: 13683700
B207: 2022-09-02 | E207: 12.5 | F207: 12.53 | G207: 12.13 | H207: 12.31 | J207: 11.729518 | K207: 12689900
B208: 2022-09-03 | E208: 12.09 | F208: 12.11 | G208: 11.78 | H208: 12.09 | J208: 11.519893 | K208: 16287900
B209: 2022-09-04 | E209: 12.13 | F209: 12.37 | G209: 12.06 | H209: 12.36 | J209: 11.777161 | K209: 13129200
B210: 2022-09-05 | E210: 12.54 | F210: 12.8 | G210: 12.47 | H210: 12.65 | J210: 12.053485 | K210: 13272700
B211: 2022-09-06 | E211: 12.8 | F211: 12.83 | G211: 12.55 | H211: 12.66 | J211: 12.063014 | K211: 12709900
B212: 2022-09-07 | E212: 12.5 | F212: 12.67 | G212: 12.3 | H212: 12.32 | J212: 11.739047 | K212: 15132500
B213: 2022-09-08 | E213: 12.32 | F213: 12.54 | G213: 12.29 | H213: 12.35 | J213: 11.767632 | K213: 15387400
B214: 2022-09-09 | E214: 12.53 | F214: 12.63 | G214: 12.43 | H214: 12.62 | J214: 12.0249 | K214: 12641600
B215: 2022-09-10 | E215: 12.8 | F215: 13.04 | G215: 12.63 | H215: 12.68 | J215: 12.08207 | K215: 14700800
B216: 2022-09-11 | E216: 12.63 | F216: 12.97 | G216: 12.32 | H216: 12.82 | J216: 12.215466 | K216: 22588400
B217: 2022-09-12 | E217: 12.71 | F217: 13 | G217: 12.62 | H217: 12.92 | J217: 12.310753 | K217: 18399400
B218: 2022-09-13 | E218: 12.73 | F218: 12.76 | G218: 12.11 | H218: 12.18 | J218: 11.605648 | K218: 20823900
... 1066 more rows

Sheet Val Calcs
P6: ='[13]Mining Inputs'!J12 -> 2023 | Q6: =P6+1 -> 2024 | R6: =Q6+1 -> 2025 | S6: 2026 | T6: 2027 | U6: 2028 | V6: 2029 | W6: 2030 | X6: 2031 | Y6: 2032 | Z6: 2033 | AA6: 2034 | AB6: 2035 | AC6: 2036 | AD6: 2037 | AE6: 2038 | AF6: 2039 | AG6: 2040 | AH6: =AG6+1 -> 2041 | AI6: 2042 | AJ6: 2043 | AK6: 2044 | AL6: 2045 | AM6: 2046 | AN6: 2047 | AO6: 2048 | AP6: 2049 | AQ6: 2050 | AR6: 2051 | AS6: 2052 | AT6: 2053 | AU6: 2054 | AV6: 2055 | AW6: 2056 | AX6: =AW6+1 -> 2057 | AY6: 2058 | AZ6: 2059 | BA6: 2060 | BB6: 2061 | BC6: 2062 | BD6: 2063 | BE6: 2064 | BF6: 2065 | BG6: 2066 | BH6: 2067 | BI6: 2068 | BJ6: 2069 | BK6: 2070 | BL6: 2071 | BM6: 2072 | BN6: =BM6+1 -> 2073 | BO6: 2074 | BP6: 2075 | BQ6: 2076 | BR6: 2077 | BS6: 2078 | BT6: 2079 | BU6: 2080 | BV6: 2081 | BW6: 2082 | BX6: 2083 | BY6: 2084 | BZ6: 2085 | CA6: 2086 | CB6: 2087 | CC6: 2088 | CD6: =CC6+1 -> 2089 | CE6: 2090 | CF6: 2091 | CG6: 2092 | CH6: 2093 | CI6: 2094 | CJ6: 2095 | CK6: 2096 | CL6: 2097 | CM6: 2098 | CN6: 2099 | CO6: 2100 | CP6: 2101 | CQ6: 2102 | CR6: 2103 | CS6: 2104 | CT6: =CS6+1 -> 2105 | CU6: 2106 | CV6: 2107 | CW6: 2108 | CX6: 2109 | CY6: 2110 | CZ6: 2111 | DA6: 2112 | DB6: 2113 | DC6: 2114 | DD6: 2115 | DE6: 2116 | DF6: 2117 | DG6: 2118 | DH6: 2119 | DI6: 2120 | DJ6: =DI6+1 -> 2121 | DK6: 2122 | DL6: 2123 | DM6: 2124 | DN6: 2125 | DO6: 2126 | DP6: 2127 | DQ6: 2128 | DR6: 2129 | DS6: 2130 | DT6: 2131 | DU6: 2132 | DV6: 2133 | DW6: 2134 | DX6: 2135 | DY6: 2136
P7: 1 | Q7: =P7+1 -> 2 | R7: 3 | S7: 4 | T7: 5 | U7: 6 | V7: 7 | W7: 8 | X7: 9 | Y7: 10 | Z7: 11 | AA7: 12 | AB7: 13 | AC7: 14 | AD7: 15 | AE7: 16 | AF7: 17 | AG7: 18 | AH7: 19 | AI7: 20 | AJ7: 21 | AK7: 22 | AL7: 23 | AM7: 24 | AN7: 25 | AO7: 26 | AP7: 27 | AQ7: 28 | AR7: 29 | AS7: 30 | AT7: 31 | AU7: 32 | AV7: 33 | AW7: 34 | AX7: 35 | AY7: 36 | AZ7: 37 | BA7: 38 | BB7: 39 | BC7: 40 | BD7: 41 | BE7: 42 | BF7: 43 | BG7: 44 | BH7: 45 | BI7: 46 | BJ7: 47 | BK7: 48 | BL7: 49 | BM7: 50 | BN7: 51 | BO7: 52 | BP7: 53 | BQ7: 54 | BR7: 55 | BS7: 56 | BT7: 57 | BU7: 58 | BV7: 59 | BW7: 60 | BX7: 61 | BY7: 62 | BZ7: 63 | CA7: 64 | CB7: 65 | CC7: 66 | CD7: 67 | CE7: 68 | CF7: 69 | CG7: 70 | CH7: 71 | CI7: 72 | CJ7: 73 | CK7: 74 | CL7: 75 | CM7: 76 | CN7: 77 | CO7: 78 | CP7: 79 | CQ7: 80 | CR7: 81 | CS7: 82 | CT7: 83 | CU7: 84 | CV7: 85 | CW7: 86 | CX7: 87 | CY7: 88 | CZ7: 89 | DA7: 90 | DB7: 91 | DC7: 92 | DD7: 93 | DE7: 94 | DF7: 95 | DG7: 96 | DH7: 97 | DI7: 98 | DJ7: 99 | DK7: 100 | DL7: 101 | DM7: 102 | DN7: 103 | DO7: 104 | DP7: 105 | DQ7: 106 | DR7: 107 | DS7: 108 | DT7: 109 | DU7: 110 | DV7: 111 | DW7: 112 | DX7: 113 | DY7: 114
B10: EV / Future EBITDA
B12: Operating Period | I12: flag | N12: =SUM(P12:DY12) -> 0
B14: EBITDA | I14: $m | N14: =SUM(P14:DY14) -> 4411.144247 | P14: ='Financial Statements'!R14 -> 0 | Q14: ='Financial Statements'!S14 -> 0 | R14: ='Financial Statements'!T14 -> 0 | S14: ='Financial Statements'!U14 -> 0 | T14: ='Financial Statements'!V14 -> 0 | U14: ='Financial Statements'!W14 -> 0 | V14: ='Financial Statements'!X14 -> 93.79109624 | W14: ='Financial Statements'!Y14 -> 100.9271836 | X14: ='Financial Statements'!Z14 -> 109.1578481 | Y14: ='Financial Statements'!AA14 -> 118.833227 | Z14: ='Financial Statements'!AB14 -> 100.7873536 | AA14: ='Financial Statements'!AC14 -> 89.40338561 | AB14: ='Financial Statements'!AD14 -> 99.97451538 | AC14: ='Financial Statements'!AE14 -> 111.1029717 | AD14: ='Financial Statements'!AF14 -> 127.3105704 | AE14: ='Financial Statements'!AG14 -> 148.7645098 | AF14: ='Financial Statements'!AH14 -> 118.2911659 | AG14: ='Financial Statements'!AI14 -> 93.27715512 | AH14: ='Financial Statements'!AJ14 -> 130.8083809 | AI14: ='Financial Statements'!AK14 -> 111.8319267 | AJ14: ='Financial Statements'!AL14 -> 171.506648 | AK14: ='Financial Statements'!AM14 -> 125.3671431 | AL14: ='Financial Statements'!AN14 -> 112.0951368 | AM14: ='Financial Statements'!AO14 -> 164.5644924 | AN14: ='Financial Statements'!AP14 -> 175.0669639 | AO14: ='Financial Statements'!AQ14 -> 130.6927106 | AP14: ='Financial Statements'!AR14 -> 200.6344716 | AQ14: ='Financial Statements'!AS14 -> 419.1426869 | AR14: ='Financial Statements'!AT14 -> 407.2638113 | AS14: ='Financial Statements'!AU14 -> 428.7321507 | AT14: ='Financial Statements'!AV14 -> 418.2011365 | AU14: ='Financial Statements'!AW14 -> 103.6156052 | AV14: ='Financial Statements'!AX14 -> 0 | AW14: ='Financial Statements'!AY14 -> 0 | AX14: ='Financial Statements'!AZ14 -> 0 | AY14: ='Financial Statements'!BA14 -> 0 | AZ14: ='Financial Statements'!BB14 -> 0 | BA14: ='Financial Statements'!BC14 -> 0 | BB14: ='Financial Statements'!BD14 -> 0 | BC14: ='Financial Statements'!BE14 -> 0 | BD14: ='Financial Statements'!BF14 -> 0 | BE14: ='Financial Statements'!BG14 -> 0 | BF14: ='Financial Statements'!BH14 -> 0 | BG14: ='Financial Statements'!BI14 -> 0 | BH14: ='Financial Statements'!BJ14 -> 0 | BI14: ='Financial Statements'!BK14 -> 0 | BJ14: ='Financial Statements'!BL14 -> 0 | BK14: ='Financial Statements'!BM14 -> 0 | BL14: ='Financial Statements'!BN14 -> 0 | BM14: ='Financial Statements'!BO14 -> 0 | BN14: ='Financial Statements'!BP14 -> 0 | BO14: ='Financial Statements'!BQ14 -> 0 | BP14: ='Financial Statements'!BR14 -> 0 | BQ14: ='Financial Statements'!BS14 -> 0 | BR14: ='Financial Statements'!BT14 -> 0 | BS14: ='Financial Statements'!BU14 -> 0 | BT14: ='Financial Statements'!BV14 -> 0 | BU14: ='Financial Statements'!BW14 -> 0 | BV14: ='Financial Statements'!BX14 -> 0 | BW14: ='Financial Statements'!BY14 -> 0 | BX14: ='Financial Statements'!BZ14 -> 0 | BY14: ='Financial Statements'!CA14 -> 0 | BZ14: ='Financial Statements'!CB14 -> 0 | CA14: ='Financial Statements'!CC14 -> 0 | CB14: ='Financial Statements'!CD14 -> 0 | CC14: ='Financial Statements'!CE14 -> 0 | CD14: ='Financial Statements'!CF14 -> 0 | CE14: ='Financial Statements'!CG14 -> 0 | CF14: ='Financial Statements'!CH14 -> 0 | CG14: ='Financial Statements'!CI14 -> 0 | CH14: ='Financial Statements'!CJ14 -> 0 | CI14: ='Financial Statements'!CK14 -> 0 | CJ14: ='Financial Statements'!CL14 -> 0 | CK14: ='Financial Statements'!CM14 -> 0 | CL14: ='Financial Statements'!CN14 -> 0 | CM14: ='Financial Statements'!CO14 -> 0 | CN14: ='Financial Statements'!CP14 -> 0 | CO14: ='Financial Statements'!CQ14 -> 0 | CP14: ='Financial Statements'!CR14 -> 0 | CQ14: ='Financial Statements'!CS14 -> 0 | CR14: ='Financial Statements'!CT14 -> 0 | CS14: ='Financial Statements'!CU14 -> 0 | CT14: ='Financial Statements'!CV14 -> 0 | CU14: ='Financial Statements'!CW14 -> 0 | CV14: ='Financial Statements'!CX14 -> 0 | CW14: ='Financial Statements'!CY14 -> 0 | CX14: ='Financial Statements'!CZ14 -> 0 | CY14: ='Financial Statements'!DA14 -> 0 | CZ14: ='Financial Statements'!DB14 -> 0 | DA14: ='Financial Statements'!DC14 -> 0 | DB14: ='Financial Statements'!DD14 -> 0 | DC14: ='Financial Statements'!DE14 -> 0 | DD14: ='Financial Statements'!DF14 -> 0 | DE14: ='Financial Statements'!DG14 -> 0 | DF14: ='Financial Statements'!DH14 -> 0 | DG14: ='Financial Statements'!DI14 -> 0 | DH14: ='Financial Statements'!DJ14 -> 0 | DI14: ='Financial Statements'!DK14 -> 0 | DJ14: ='Financial Statements'!DL14 -> 0 | DK14: ='Financial Statements'!DM14 -> 0 | DL14: ='Financial Statements'!DN14 -> 0 | DM14: ='Financial Statements'!DO14 -> 0 | DN14: ='Financial Statements'!DP14 -> 0 | DO14: ='Financial Statements'!DQ14 -> 0 | DP14: ='Financial Statements'!DR14 -> 0 | DQ14: ='Financial Statements'!DS14 -> 0 | DR14: ='Financial Statements'!DT14 -> 0 | DS14: ='Financial Statements'!DU14 -> 0 | DT14: ='Financial Statements'!DV14 -> 0 | DU14: ='Financial Statements'!DW14 -> 0 | DV14: ='Financial Statements'!DX14 -> 0 | DW14: ='Financial Statements'!DY14 -> 0 | DX14: ='Financial Statements'!DZ14 -> 0 | DY14: ='Financial Statements'!EA14 -> 0
K15: 0
B23: Multiples
B24: High | I24: x | K24: 6 | P24: =$K24 -> 6 | Q24: =$K24 -> 6 | R24: 6 | S24: 6 | T24: 6 | U24: 6 | V24: 6 | W24: 6 | X24: 6 | Y24: 6 | Z24: 6 | AA24: 6 | AB24: 6 | AC24: 6 | AD24: 6 | AE24: 6 | AF24: 6 | AG24: 6 | AH24: 6 | AI24: 6 | AJ24: 6 | AK24: 6 | AL24: 6 | AM24: 6 | AN24: 6 | AO24: 6 | AP24: 6 | AQ24: 6 | AR24: 6 | AS24: 6 | AT24: 6 | AU24: 6 | AV24: 6 | AW24: 6 | AX24: 6 | AY24: 6 | AZ24: 6 | BA24: 6 | BB24: 6 | BC24: 6 | BD24: 6 | BE24: 6 | BF24: 6 | BG24: 6 | BH24: 6 | BI24: 6 | BJ24: 6 | BK24: 6 | BL24: 6 | BM24: 6 | BN24: 6 | BO24: 6 | BP24: 6 | BQ24: 6 | BR24: 6 | BS24: 6 | BT24: 6 | BU24: 6 | BV24: 6 | BW24: 6 | BX24: 6 | BY24: 6 | BZ24: 6 | CA24: 6 | CB24: 6 | CC24: =$K24 -> 6 | CD24: 6 | CE24: 6 | CF24: 6 | CG24: 6 | CH24: 6 | CI24: 6 | CJ24: 6 | CK24: 6 | CL24: 6 | CM24: 6 | CN24: 6 | CO24: 6 | CP24: 6 | CQ24: 6 | CR24: 6 | CS24: 6 | CT24: 6 | CU24: 6 | CV24: 6 | CW24: 6 | CX24: 6 | CY24: 6 | CZ24: 6 | DA24: 6 | DB24: 6 | DC24: 6 | DD24: 6 | DE24: 6 | DF24: 6 | DG24: 6 | DH24: 6 | DI24: 6 | DJ24: 6 | DK24: 6 | DL24: 6 | DM24: 6 | DN24: 6 | DO24: 6 | DP24: 6 | DQ24: 6 | DR24: 6 | DS24: 6 | DT24: 6 | DU24: 6 | DV24: 6 | DW24: 6 | DX24: 6 | DY24: 6
B25: Low | I25: x | K25: 5 | P25: =$K25 -> 5 | Q25: 5 | R25: 5 | S25: 5 | T25: 5 | U25: 5 | V25: 5 | W25: 5 | X25: 5 | Y25: 5 | Z25: 5 | AA25: 5 | AB25: 5 | AC25: 5 | AD25: 5 | AE25: 5 | AF25: 5 | AG25: 5 | AH25: 5 | AI25: 5 | AJ25: 5 | AK25: 5 | AL25: 5 | AM25: 5 | AN25: 5 | AO25: 5 | AP25: 5 | AQ25: 5 | AR25: 5 | AS25: 5 | AT25: 5 | AU25: 5 | AV25: 5 | AW25: 5 | AX25: 5 | AY25: 5 | AZ25: 5 | BA25: 5 | BB25: 5 | BC25: 5 | BD25: 5 | BE25: 5 | BF25: 5 | BG25: 5 | BH25: 5 | BI25: 5 | BJ25: 5 | BK25: 5 | BL25: 5 | BM25: 5 | BN25: 5 | BO25: 5 | BP25: 5 | BQ25: 5 | BR25: 5 | BS25: 5 | BT25: 5 | BU25: 5 | BV25: 5 | BW25: 5 | BX25: 5 | BY25: 5 | BZ25: 5 | CA25: 5 | CB25: 5 | CC25: 5 | CD25: 5 | CE25: 5 | CF25: 5 | CG25: 5 | CH25: 5 | CI25: 5 | CJ25: 5 | CK25: 5 | CL25: 5 | CM25: 5 | CN25: 5 | CO25: 5 | CP25: 5 | CQ25: 5 | CR25: 5 | CS25: 5 | CT25: 5 | CU25: 5 | CV25: 5 | CW25: 5 | CX25: 5 | CY25: 5 | CZ25: 5 | DA25: 5 | DB25: 5 | DC25: 5 | DD25: 5 | DE25: 5 | DF25: 5 | DG25: 5 | DH25: 5 | DI25: 5 | DJ25: 5 | DK25: 5 | DL25: 5 | DM25: 5 | DN25: 5 | DO25: 5 | DP25: 5 | DQ25: 5 | DR25: 5 | DS25: 5 | DT25: 5 | DU25: 5 | DV25: 5 | DW25: 5 | DX25: 5 | DY25: 5
B27: Valuation Year | I27: year | K27: 2030
B29: Enterprise Value
B30: =B24 -> High | I30: $m | K30: =LOOKUP($K$27,$P$6:$DY$6,P30:DY30) -> 605.5631017 | P30: =P$14*P24 -> 0 | Q30: 0 | R30: 0 | S30: 0 | T30: 0 | U30: 0 | V30: 562.7465774 | W30: 605.5631017 | X30: 654.9470885 | Y30: 712.9993623 | Z30: 604.7241216 | AA30: 536.4203137 | AB30: 599.8470923 | AC30: 666.6178303 | AD30: 763.8634225 | AE30: 892.5870589 | AF30: 709.7469954 | AG30: 559.6629307 | AH30: 784.8502851 | AI30: 670.9915603 | AJ30: 1029.039888 | AK30: 752.2028583 | AL30: 672.5708207 | AM30: 987.3869547 | AN30: 1050.401783 | AO30: 784.1562635 | AP30: 1203.80683 | AQ30: 2514.856122 | AR30: 2443.582868 | AS30: 2572.392904 | AT30: 2509.206819 | AU30: 621.6936313 | AV30: =AV$14*AV24 -> 0 | AW30: 0 | AX30: 0 | AY30: 0 | AZ30: 0 | BA30: 0 | BB30: 0 | BC30: 0 | BD30: 0 | BE30: 0 | BF30: 0 | BG30: 0 | BH30: 0 | BI30: 0 | BJ30: 0 | BK30: 0 | BL30: 0 | BM30: 0 | BN30: 0 | BO30: 0 | BP30: 0 | BQ30: 0 | BR30: 0 | BS30: 0 | BT30: 0 | BU30: 0 | BV30: 0 | BW30: 0 | BX30: 0 | BY30: 0 | BZ30: 0 | CA30: 0 | CB30: =CB$14*CB24 -> 0 | CC30: 0 | CD30: 0 | CE30: 0 | CF30: 0 | CG30: 0 | CH30: 0 | CI30: 0 | CJ30: 0 | CK30: 0 | CL30: 0 | CM30: 0 | CN30: 0 | CO30: 0 | CP30: 0 | CQ30: 0 | CR30: 0 | CS30: 0 | CT30: 0 | CU30: 0 | CV30: 0 | CW30: 0 | CX30: 0 | CY30: 0 | CZ30: 0 | DA30: 0 | DB30: 0 | DC30: 0 | DD30: 0 | DE30: 0 | DF30: 0 | DG30: 0 | DH30: =DH$14*DH24 -> 0 | DI30: 0 | DJ30: 0 | DK30: 0 | DL30: 0 | DM30: 0 | DN30: 0 | DO30: 0 | DP30: 0 | DQ30: 0 | DR30: 0 | DS30: 0 | DT30: 0 | DU30: 0 | DV30: 0 | DW30: 0 | DX30: 0 | DY30: 0
B31: =B25 -> Low | I31: $m | K31: =LOOKUP($K$27,$P$6:$DY$6,P31:DY31) -> 504.6359181 | P31: =P$14*P25 -> 0 | Q31: 0 | R31: 0 | S31: 0 | T31: 0 | U31: 0 | V31: 468.9554812 | W31: 504.6359181 | X31: 545.7892404 | Y31: 594.1661352 | Z31: 503.936768 | AA31: 447.016928 | AB31: 499.8725769 | AC31: 555.5148586 | AD31: 636.5528521 | AE31: 743.8225491 | AF31: 591.4558295 | AG31: 466.3857756 | AH31: 654.0419043 | AI31: 559.1596336 | AJ31: 857.5332399 | AK31: 626.8357153 | AL31: 560.4756839 | AM31: 822.8224622 | AN31: 875.3348195 | AO31: 653.4635529 | AP31: 1003.172358 | AQ31: 2095.713435 | AR31: 2036.319056 | AS31: 2143.660753 | AT31: 2091.005683 | AU31: 518.078026 | AV31: =AV$14*AV25 -> 0 | AW31: 0 | AX31: 0 | AY31: 0 | AZ31: 0 | BA31: 0 | BB31: 0 | BC31: 0 | BD31: 0 | BE31: 0 | BF31: 0 | BG31: 0 | BH31: 0 | BI31: 0 | BJ31: 0 | BK31: 0 | BL31: 0 | BM31: 0 | BN31: 0 | BO31: 0 | BP31: 0 | BQ31: 0 | BR31: 0 | BS31: 0 | BT31: 0 | BU31: 0 | BV31: 0 | BW31: 0 | BX31: 0 | BY31: 0 | BZ31: 0 | CA31: 0 | CB31: =CB$14*CB25 -> 0 | CC31: 0 | CD31: 0 | CE31: 0 | CF31: 0 | CG31: 0 | CH31: 0 | CI31: 0 | CJ31: 0 | CK31: 0 | CL31: 0 | CM31: 0 | CN31: 0 | CO31: 0 | CP31: 0 | CQ31: 0 | CR31: 0 | CS31: 0 | CT31: 0 | CU31: 0 | CV31: 0 | CW31: 0 | CX31: 0 | CY31: 0 | CZ31: 0 | DA31: 0 | DB31: 0 | DC31: 0 | DD31: 0 | DE31: 0 | DF31: 0 | DG31: 0 | DH31: =DH$14*DH25 -> 0 | DI31: 0 | DJ31: 0 | DK31: 0 | DL31: 0 | DM31: 0 | DN31: 0 | DO31: 0 | DP31: 0 | DQ31: 0 | DR31: 0 | DS31: 0 | DT31: 0 | DU31: 0 | DV31: 0 | DW31: 0 | DX31: 0 | DY31: 0
B33: Net Debt | I33: $m | P33: ='Financial Statements'!R108+'Financial Statements'!R109-'Financial Statements'!R97 -> 0 | Q33: ='Financial Statements'!S108+'Financial Statements'!S109-'Financial Statements'!S97 -> 0 | R33: ='Financial Statements'!T108+'Financial Statements'!T109-'Financial Statements'!T97 -> 0 | S33: ='Financial Statements'!U108+'Financial Statements'!U109-'Financial Statements'!U97 -> 140.6258207 | T33: ='Financial Statements'!V108+'Financial Statements'!V109-'Financial Statements'!V97 -> 256.6930209 | U33: ='Financial Statements'!W108+'Financial Statements'!W109-'Financial Statements'!W97 -> 414.2991989 | V33: ='Financial Statements'!X108+'Financial Statements'!X109-'Financial Statements'!X97 -> 388.9286588 | W33: ='Financial Statements'!Y108+'Financial Statements'!Y109-'Financial Statements'!Y97 -> 364.5581166 | X33: ='Financial Statements'!Z108+'Financial Statements'!Z109-'Financial Statements'!Z97 -> 340.1875755 | Y33: ='Financial Statements'!AA108+'Financial Statements'!AA109-'Financial Statements'!AA97 -> 315.8170344 | Z33: ='Financial Statements'!AB108+'Financial Statements'!AB109-'Financial Statements'!AB97 -> 291.4464933 | AA33: ='Financial Statements'!AC108+'Financial Statements'!AC109-'Financial Statements'!AC97 -> 267.0759522 | AB33: ='Financial Statements'!AD108+'Financial Statements'!AD109-'Financial Statements'!AD97 -> 242.7054111 | AC33: ='Financial Statements'!AE108+'Financial Statements'!AE109-'Financial Statements'!AE97 -> 218.33487 | AD33: ='Financial Statements'!AF108+'Financial Statements'!AF109-'Financial Statements'!AF97 -> 193.9643289 | AE33: ='Financial Statements'!AG108+'Financial Statements'!AG109-'Financial Statements'!AG97 -> 169.5937878 | AF33: ='Financial Statements'!AH108+'Financial Statements'!AH109-'Financial Statements'!AH97 -> 145.2232467 | AG33: ='Financial Statements'!AI108+'Financial Statements'!AI109-'Financial Statements'!AI97 -> 120.8527055 | AH33: ='Financial Statements'!AJ108+'Financial Statements'!AJ109-'Financial Statements'!AJ97 -> 96.48216444 | AI33: ='Financial Statements'!AK108+'Financial Statements'!AK109-'Financial Statements'!AK97 -> 72.11162333 | AJ33: ='Financial Statements'!AL108+'Financial Statements'!AL109-'Financial Statements'!AL97 -> 47.74108222 | AK33: ='Financial Statements'!AM108+'Financial Statements'!AM109-'Financial Statements'!AM97 -> 23.37054111 | AL33: ='Financial Statements'!AN108+'Financial Statements'!AN109-'Financial Statements'!AN97 -> -1 | AM33: ='Financial Statements'!AO108+'Financial Statements'!AO109-'Financial Statements'!AO97 -> -1 | AN33: ='Financial Statements'!AP108+'Financial Statements'!AP109-'Financial Statements'!AP97 -> -1 | AO33: ='Financial Statements'!AQ108+'Financial Statements'!AQ109-'Financial Statements'!AQ97 -> -1 | AP33: ='Financial Statements'!AR108+'Financial Statements'!AR109-'Financial Statements'!AR97 -> -1 | AQ33: ='Financial Statements'!AS108+'Financial Statements'!AS109-'Financial Statements'!AS97 -> -1 | AR33: ='Financial Statements'!AT108+'Financial Statements'!AT109-'Financial Statements'!AT97 -> -1 | AS33: ='Financial Statements'!AU108+'Financial Statements'!AU109-'Financial Statements'!AU97 -> -1 | AT33: ='Financial Statements'!AV108+'Financial Statements'!AV109-'Financial Statements'!AV97 -> -1 | AU33: ='Financial Statements'!AW108+'Financial Statements'!AW109-'Financial Statements'!AW97 -> -2 | AV33: ='Financial Statements'!AX108+'Financial Statements'!AX109-'Financial Statements'!AX97 -> -3 | AW33: ='Financial Statements'!AY108+'Financial Statements'!AY109-'Financial Statements'!AY97 -> -3 | AX33: ='Financial Statements'!AZ108+'Financial Statements'!AZ109-'Financial Statements'!AZ97 -> -3 | AY33: ='Financial Statements'!BA108+'Financial Statements'!BA109-'Financial Statements'!BA97 -> -3 | AZ33: ='Financial Statements'!BB108+'Financial Statements'!BB109-'Financial Statements'!BB97 -> -3 | BA33: ='Financial Statements'!BC108+'Financial Statements'!BC109-'Financial Statements'!BC97 -> -3 | BB33: ='Financial Statements'!BD108+'Financial Statements'!BD109-'Financial Statements'!BD97 -> -3 | BC33: ='Financial Statements'!BE108+'Financial Statements'!BE109-'Financial Statements'!BE97 -> -3 | BD33: ='Financial Statements'!BF108+'Financial Statements'!BF109-'Financial Statements'!BF97 -> -3 | BE33: ='Financial Statements'!BG108+'Financial Statements'!BG109-'Financial Statements'!BG97 -> -3 | BF33: ='Financial Statements'!BH108+'Financial Statements'!BH109-'Financial Statements'!BH97 -> -3 | BG33: ='Financial Statements'!BI108+'Financial Statements'!BI109-'Financial Statements'!BI97 -> -3 | BH33: ='Financial Statements'!BJ108+'Financial Statements'!BJ109-'Financial Statements'!BJ97 -> -3 | BI33: ='Financial Statements'!BK108+'Financial Statements'!BK109-'Financial Statements'!BK97 -> -3 | BJ33: ='Financial Statements'!BL108+'Financial Statements'!BL109-'Financial Statements'!BL97 -> -3 | BK33: ='Financial Statements'!BM108+'Financial Statements'!BM109-'Financial Statements'!BM97 -> -3 | BL33: ='Financial Statements'!BN108+'Financial Statements'!BN109-'Financial Statements'!BN97 -> -3 | BM33: ='Financial Statements'!BO108+'Financial Statements'!BO109-'Financial Statements'!BO97 -> -3 | BN33: ='Financial Statements'!BP108+'Financial Statements'!BP109-'Financial Statements'!BP97 -> -3 | BO33: ='Financial Statements'!BQ108+'Financial Statements'!BQ109-'Financial Statements'!BQ97 -> -3 | BP33: ='Financial Statements'!BR108+'Financial Statements'!BR109-'Financial Statements'!BR97 -> -3 | BQ33: ='Financial Statements'!BS108+'Financial Statements'!BS109-'Financial Statements'!BS97 -> -3 | BR33: ='Financial Statements'!BT108+'Financial Statements'!BT109-'Financial Statements'!BT97 -> -3 | BS33: ='Financial Statements'!BU108+'Financial Statements'!BU109-'Financial Statements'!BU97 -> -3 | BT33: ='Financial Statements'!BV108+'Financial Statements'!BV109-'Financial Statements'!BV97 -> -3 | BU33: ='Financial Statements'!BW108+'Financial Statements'!BW109-'Financial Statements'!BW97 -> -3 | BV33: ='Financial Statements'!BX108+'Financial Statements'!BX109-'Financial Statements'!BX97 -> -3 | BW33: ='Financial Statements'!BY108+'Financial Statements'!BY109-'Financial Statements'!BY97 -> -3 | BX33: ='Financial Statements'!BZ108+'Financial Statements'!BZ109-'Financial Statements'!BZ97 -> -3 | BY33: ='Financial Statements'!CA108+'Financial Statements'!CA109-'Financial Statements'!CA97 -> -3 | BZ33: ='Financial Statements'!CB108+'Financial Statements'!CB109-'Financial Statements'!CB97 -> -3 | CA33: ='Financial Statements'!CC108+'Financial Statements'!CC109-'Financial Statements'!CC97 -> -3 | CB33: ='Financial Statements'!CD108+'Financial Statements'!CD109-'Financial Statements'!CD97 -> -3 | CC33: ='Financial Statements'!CE108+'Financial Statements'!CE109-'Financial Statements'!CE97 -> -3 | CD33: ='Financial Statements'!CF108+'Financial Statements'!CF109-'Financial Statements'!CF97 -> -3 | CE33: ='Financial Statements'!CG108+'Financial Statements'!CG109-'Financial Statements'!CG97 -> -3 | CF33: ='Financial Statements'!CH108+'Financial Statements'!CH109-'Financial Statements'!CH97 -> -3 | CG33: ='Financial Statements'!CI108+'Financial Statements'!CI109-'Financial Statements'!CI97 -> -3 | CH33: ='Financial Statements'!CJ108+'Financial Statements'!CJ109-'Financial Statements'!CJ97 -> -3 | CI33: ='Financial Statements'!CK108+'Financial Statements'!CK109-'Financial Statements'!CK97 -> -3 | CJ33: ='Financial Statements'!CL108+'Financial Statements'!CL109-'Financial Statements'!CL97 -> -3 | CK33: ='Financial Statements'!CM108+'Financial Statements'!CM109-'Financial Statements'!CM97 -> -3 | CL33: ='Financial Statements'!CN108+'Financial Statements'!CN109-'Financial Statements'!CN97 -> -3 | CM33: ='Financial Statements'!CO108+'Financial Statements'!CO109-'Financial Statements'!CO97 -> -3 | CN33: ='Financial Statements'!CP108+'Financial Statements'!CP109-'Financial Statements'!CP97 -> -3 | CO33: ='Financial Statements'!CQ108+'Financial Statements'!CQ109-'Financial Statements'!CQ97 -> 0 | CP33: ='Financial Statements'!CR108+'Financial Statements'!CR109-'Financial Statements'!CR97 -> 0 | CQ33: ='Financial Statements'!CS108+'Financial Statements'!CS109-'Financial Statements'!CS97 -> 0 | CR33: ='Financial Statements'!CT108+'Financial Statements'!CT109-'Financial Statements'!CT97 -> 0 | CS33: ='Financial Statements'!CU108+'Financial Statements'!CU109-'Financial Statements'!CU97 -> 0 | CT33: ='Financial Statements'!CV108+'Financial Statements'!CV109-'Financial Statements'!CV97 -> 0 | CU33: ='Financial Statements'!CW108+'Financial Statements'!CW109-'Financial Statements'!CW97 -> 0 | CV33: ='Financial Statements'!CX108+'Financial Statements'!CX109-'Financial Statements'!CX97 -> 0 | CW33: ='Financial Statements'!CY108+'Financial Statements'!CY109-'Financial Statements'!CY97 -> 0 | CX33: ='Financial Statements'!CZ108+'Financial Statements'!CZ109-'Financial Statements'!CZ97 -> 0 | CY33: ='Financial Statements'!DA108+'Financial Statements'!DA109-'Financial Statements'!DA97 -> 0 | CZ33: ='Financial Statements'!DB108+'Financial Statements'!DB109-'Financial Statements'!DB97 -> 0 | DA33: ='Financial Statements'!DC108+'Financial Statements'!DC109-'Financial Statements'!DC97 -> 0 | DB33: ='Financial Statements'!DD108+'Financial Statements'!DD109-'Financial Statements'!DD97 -> 0 | DC33: ='Financial Statements'!DE108+'Financial Statements'!DE109-'Financial Statements'!DE97 -> 0 | DD33: ='Financial Statements'!DF108+'Financial Statements'!DF109-'Financial Statements'!DF97 -> 0 | DE33: ='Financial Statements'!DG108+'Financial Statements'!DG109-'Financial Statements'!DG97 -> 0 | DF33: ='Financial Statements'!DH108+'Financial Statements'!DH109-'Financial Statements'!DH97 -> 0 | DG33: ='Financial Statements'!DI108+'Financial Statements'!DI109-'Financial Statements'!DI97 -> 0 | DH33: ='Financial Statements'!DJ108+'Financial Statements'!DJ109-'Financial Statements'!DJ97 -> 0 | DI33: ='Financial Statements'!DK108+'Financial Statements'!DK109-'Financial Statements'!DK97 -> 0 | DJ33: ='Financial Statements'!DL108+'Financial Statements'!DL109-'Financial Statements'!DL97 -> 0 | DK33: ='Financial Statements'!DM108+'Financial Statements'!DM109-'Financial Statements'!DM97 -> 0 | DL33: ='Financial Statements'!DN108+'Financial Statements'!DN109-'Financial Statements'!DN97 -> 0 | DM33: ='Financial Statements'!DO108+'Financial Statements'!DO109-'Financial Statements'!DO97 -> 0 | DN33: ='Financial Statements'!DP108+'Financial Statements'!DP109-'Financial Statements'!DP97 -> 0 | DO33: ='Financial Statements'!DQ108+'Financial Statements'!DQ109-'Financial Statements'!DQ97 -> 0 | DP33: ='Financial Statements'!DR108+'Financial Statements'!DR109-'Financial Statements'!DR97 -> 0 | DQ33: ='Financial Statements'!DS108+'Financial Statements'!DS109-'Financial Statements'!DS97 -> 0 | DR33: ='Financial Statements'!DT108+'Financial Statements'!DT109-'Financial Statements'!DT97 -> 0 | DS33: ='Financial Statements'!DU108+'Financial Statements'!DU109-'Financial Statements'!DU97 -> 0 | DT33: ='Financial Statements'!DV108+'Financial Statements'!DV109-'Financial Statements'!DV97 -> 0 | DU33: ='Financial Statements'!DW108+'Financial Statements'!DW109-'Financial Statements'!DW97 -> 0 | DV33: ='Financial Statements'!DX108+'Financial Statements'!DX109-'Financial Statements'!DX97 -> 0 | DW33: ='Financial Statements'!DY108+'Financial Statements'!DY109-'Financial Statements'!DY97 -> 0 | DX33: ='Financial Statements'!DZ108+'Financial Statements'!DZ109-'Financial Statements'!DZ97 -> 0 | DY33: ='Financial Statements'!EA108+'Financial Statements'!EA109-'Financial Statements'!EA97 -> 0
B36: Equity Value
B37: =B30 -> High | I37: $m | K37: =LOOKUP($K$27,$P$6:$DY$6,P37:DY37) -> 241.004985 | P37: =P30-P$33 -> 0 | Q37: 0 | R37: 0 | S37: -140.6258207 | T37: -256.6930209 | U37: -414.2991989 | V37: 173.8179186 | W37: 241.004985 | X37: 314.7595129 | Y37: 397.1823279 | Z37: 313.2776283 | AA37: 269.3443615 | AB37: 357.1416812 | AC37: 448.2829604 | AD37: 569.8990936 | AE37: 722.9932711 | AF37: 564.5237488 | AG37: 438.8102251 | AH37: 688.3681207 | AI37: 598.879937 | AJ37: 981.2988057 | AK37: 728.8323172 | AL37: 673.5708207 | AM37: 988.3869547 | AN37: 1051.401783 | AO37: 785.1562635 | AP37: 1204.80683 | AQ37: 2515.856122 | AR37: 2444.582868 | AS37: 2573.392904 | AT37: 2510.206819 | AU37: 623.6936313 | AV37: =AV30-AV$33 -> 3 | AW37: 3 | AX37: 3 | AY37: 3 | AZ37: 3 | BA37: 3 | BB37: 3 | BC37: 3 | BD37: 3 | BE37: 3 | BF37: 3 | BG37: 3 | BH37: 3 | BI37: 3 | BJ37: 3 | BK37: 3 | BL37: 3 | BM37: 3 | BN37: 3 | BO37: 3 | BP37: 3 | BQ37: 3 | BR37: 3 | BS37: 3 | BT37: 3 | BU37: 3 | BV37: 3 | BW37: 3 | BX37: 3 | BY37: 3 | BZ37: 3 | CA37: 3 | CB37: =CB30-CB$33 -> 3 | CC37: 3 | CD37: 3 | CE37: 3 | CF37: 3 | CG37: 3 | CH37: 3 | CI37: 3 | CJ37: 3 | CK37: 3 | CL37: 3 | CM37: 3 | CN37: 3 | CO37: 0 | CP37: 0 | CQ37: 0 | CR37: 0 | CS37: 0 | CT37: 0 | CU37: 0 | CV37: 0 | CW37: 0 | CX37: 0 | CY37: 0 | CZ37: 0 | DA37: 0 | DB37: 0 | DC37: 0 | DD37: 0 | DE37: 0 | DF37: 0 | DG37: 0 | DH37: =DH30-DH$33 -> 0 | DI37: 0 | DJ37: 0 | DK37: 0 | DL37: 0 | DM37: 0 | DN37: 0 | DO37: 0 | DP37: 0 | DQ37: 0 | DR37: 0 | DS37: 0 | DT37: 0 | DU37: 0 | DV37: 0 | DW37: 0 | DX37: 0 | DY37: 0
B38: =B31 -> Low | I38: $m | K38: =LOOKUP($K$27,$P$6:$DY$6,P38:DY38) -> 140.0778014 | P38: =P31-P$33 -> 0 | Q38: 0 | R38: 0 | S38: -140.6258207 | T38: -256.6930209 | U38: -414.2991989 | V38: 80.02682237 | W38: 140.0778014 | X38: 205.6016649 | Y38: 278.3491008 | Z38: 212.4902747 | AA38: 179.9409758 | AB38: 257.1671658 | AC38: 337.1799886 | AD38: 442.5885232 | AE38: 574.2287613 | AF38: 446.2325829 | AG38: 345.53307 | AH38: 557.5597398 | AI38: 487.0480103 | AJ38: 809.7921577 | AK38: 603.4651742 | AL38: 561.4756839 | AM38: 823.8224622 | AN38: 876.3348195 | AO38: 654.4635529 | AP38: 1004.172358 | AQ38: 2096.713435 | AR38: 2037.319056 | AS38: 2144.660753 | AT38: 2092.005683 | AU38: 520.078026 | AV38: =AV31-AV$33 -> 3 | AW38: 3 | AX38: 3 | AY38: 3 | AZ38: 3 | BA38: 3 | BB38: 3 | BC38: 3 | BD38: 3 | BE38: 3 | BF38: 3 | BG38: 3 | BH38: 3 | BI38: 3 | BJ38: 3 | BK38: 3 | BL38: 3 | BM38: 3 | BN38: 3 | BO38: 3 | BP38: 3 | BQ38: 3 | BR38: 3 | BS38: 3 | BT38: 3 | BU38: 3 | BV38: 3 | BW38: 3 | BX38: 3 | BY38: 3 | BZ38: 3 | CA38: 3 | CB38: =CB31-CB$33 -> 3 | CC38: 3 | CD38: 3 | CE38: 3 | CF38: 3 | CG38: 3 | CH38: 3 | CI38: 3 | CJ38: 3 | CK38: 3 | CL38: 3 | CM38: 3 | CN38: 3 | CO38: 0 | CP38: 0 | CQ38: 0 | CR38: 0 | CS38: 0 | CT38: 0 | CU38: 0 | CV38: 0 | CW38: 0 | CX38: 0 | CY38: 0 | CZ38: 0 | DA38: 0 | DB38: 0 | DC38: 0 | DD38: 0 | DE38: 0 | DF38: 0 | DG38: 0 | DH38: =DH31-DH$33 -> 0 | DI38: 0 | DJ38: 0 | DK38: 0 | DL38: 0 | DM38: 0 | DN38: 0 | DO38: 0 | DP38: 0 | DQ38: 0 | DR38: 0 | DS38: 0 | DT38: 0 | DU38: 0 | DV38: 0 | DW38: 0 | DX38: 0 | DY38: 0
B40: Shares Outstanding | I40: # | P40: ='Share Price'!$J$14 -> 6.22231162 | Q40: ='Share Price'!$J$14 -> 6.22231162 | R40: ='Share Price'!$J$14 -> 6.22231162 | S40: ='Share Price'!$J$14 -> 6.22231162 | T40: ='Share Price'!$J$14 -> 6.22231162 | U40: ='Share Price'!$J$14 -> 6.22231162 | V40: ='Share Price'!$J$14 -> 6.22231162 | W40: ='Share Price'!$J$14 -> 6.22231162 | X40: ='Share Price'!$J$14 -> 6.22231162 | Y40: ='Share Price'!$J$14 -> 6.22231162 | Z40: ='Share Price'!$J$14 -> 6.22231162 | AA40: ='Share Price'!$J$14 -> 6.22231162 | AB40: ='Share Price'!$J$14 -> 6.22231162 | AC40: ='Share Price'!$J$14 -> 6.22231162 | AD40: ='Share Price'!$J$14 -> 6.22231162 | AE40: ='Share Price'!$J$14 -> 6.22231162 | AF40: ='Share Price'!$J$14 -> 6.22231162 | AG40: ='Share Price'!$J$14 -> 6.22231162 | AH40: ='Share Price'!$J$14 -> 6.22231162 | AI40: ='Share Price'!$J$14 -> 6.22231162 | AJ40: ='Share Price'!$J$14 -> 6.22231162 | AK40: ='Share Price'!$J$14 -> 6.22231162 | AL40: ='Share Price'!$J$14 -> 6.22231162 | AM40: ='Share Price'!$J$14 -> 6.22231162 | AN40: ='Share Price'!$J$14 -> 6.22231162 | AO40: ='Share Price'!$J$14 -> 6.22231162 | AP40: ='Share Price'!$J$14 -> 6.22231162 | AQ40: ='Share Price'!$J$14 -> 6.22231162 | AR40: ='Share Price'!$J$14 -> 6.22231162 | AS40: ='Share Price'!$J$14 -> 6.22231162 | AT40: ='Share Price'!$J$14 -> 6.22231162 | AU40: ='Share Price'!$J$14 -> 6.22231162 | AV40: ='Share Price'!$J$14 -> 6.22231162 | AW40: ='Share Price'!$J$14 -> 6.22231162 | AX40: ='Share Price'!$J$14 -> 6.22231162 | AY40: ='Share Price'!$J$14 -> 6.22231162 | AZ40: ='Share Price'!$J$14 -> 6.22231162 | BA40: ='Share Price'!$J$14 -> 6.22231162 | BB40: ='Share Price'!$J$14 -> 6.22231162 | BC40: ='Share Price'!$J$14 -> 6.22231162 | BD40: ='Share Price'!$J$14 -> 6.22231162 | BE40: ='Share Price'!$J$14 -> 6.22231162 | BF40: ='Share Price'!$J$14 -> 6.22231162 | BG40: ='Share Price'!$J$14 -> 6.22231162 | BH40: ='Share Price'!$J$14 -> 6.22231162 | BI40: ='Share Price'!$J$14 -> 6.22231162 | BJ40: ='Share Price'!$J$14 -> 6.22231162 | BK40: ='Share Price'!$J$14 -> 6.22231162 | BL40: ='Share Price'!$J$14 -> 6.22231162 | BM40: ='Share Price'!$J$14 -> 6.22231162 | BN40: ='Share Price'!$J$14 -> 6.22231162 | BO40: ='Share Price'!$J$14 -> 6.22231162 | BP40: ='Share Price'!$J$14 -> 6.22231162 | BQ40: ='Share Price'!$J$14 -> 6.22231162 | BR40: ='Share Price'!$J$14 -> 6.22231162 | BS40: ='Share Price'!$J$14 -> 6.22231162 | BT40: ='Share Price'!$J$14 -> 6.22231162 | BU40: ='Share Price'!$J$14 -> 6.22231162 | BV40: ='Share Price'!$J$14 -> 6.22231162 | BW40: ='Share Price'!$J$14 -> 6.22231162 | BX40: ='Share Price'!$J$14 -> 6.22231162 | BY40: ='Share Price'!$J$14 -> 6.22231162 | BZ40: ='Share Price'!$J$14 -> 6.22231162 | CA40: ='Share Price'!$J$14 -> 6.22231162 | CB40: ='Share Price'!$J$14 -> 6.22231162 | CC40: ='Share Price'!$J$14 -> 6.22231162 | CD40: ='Share Price'!$J$14 -> 6.22231162 | CE40: ='Share Price'!$J$14 -> 6.22231162 | CF40: ='Share Price'!$J$14 -> 6.22231162 | CG40: ='Share Price'!$J$14 -> 6.22231162 | CH40: ='Share Price'!$J$14 -> 6.22231162 | CI40: ='Share Price'!$J$14 -> 6.22231162 | CJ40: ='Share Price'!$J$14 -> 6.22231162 | CK40: ='Share Price'!$J$14 -> 6.22231162 | CL40: ='Share Price'!$J$14 -> 6.22231162 | CM40: ='Share Price'!$J$14 -> 6.22231162 | CN40: ='Share Price'!$J$14 -> 6.22231162 | CO40: ='Share Price'!$J$14 -> 6.22231162 | CP40: ='Share Price'!$J$14 -> 6.22231162 | CQ40: ='Share Price'!$J$14 -> 6.22231162 | CR40: ='Share Price'!$J$14 -> 6.22231162 | CS40: ='Share Price'!$J$14 -> 6.22231162 | CT40: ='Share Price'!$J$14 -> 6.22231162 | CU40: ='Share Price'!$J$14 -> 6.22231162 | CV40: ='Share Price'!$J$14 -> 6.22231162 | CW40: ='Share Price'!$J$14 -> 6.22231162 | CX40: ='Share Price'!$J$14 -> 6.22231162 | CY40: ='Share Price'!$J$14 -> 6.22231162 | CZ40: ='Share Price'!$J$14 -> 6.22231162 | DA40: ='Share Price'!$J$14 -> 6.22231162 | DB40: ='Share Price'!$J$14 -> 6.22231162 | DC40: ='Share Price'!$J$14 -> 6.22231162 | DD40: ='Share Price'!$J$14 -> 6.22231162 | DE40: ='Share Price'!$J$14 -> 6.22231162 | DF40: ='Share Price'!$J$14 -> 6.22231162 | DG40: ='Share Price'!$J$14 -> 6.22231162 | DH40: ='Share Price'!$J$14 -> 6.22231162 | DI40: ='Share Price'!$J$14 -> 6.22231162 | DJ40: ='Share Price'!$J$14 -> 6.22231162 | DK40: ='Share Price'!$J$14 -> 6.22231162 | DL40: ='Share Price'!$J$14 -> 6.22231162 | DM40: ='Share Price'!$J$14 -> 6.22231162 | DN40: ='Share Price'!$J$14 -> 6.22231162 | DO40: ='Share Price'!$J$14 -> 6.22231162 | DP40: ='Share Price'!$J$14 -> 6.22231162 | DQ40: ='Share Price'!$J$14 -> 6.22231162 | DR40: ='Share Price'!$J$14 -> 6.22231162 | DS40: ='Share Price'!$J$14 -> 6.22231162 | DT40: ='Share Price'!$J$14 -> 6.22231162 | DU40: ='Share Price'!$J$14 -> 6.22231162 | DV40: ='Share Price'!$J$14 -> 6.22231162 | DW40: ='Share Price'!$J$14 -> 6.22231162 | DX40: ='Share Price'!$J$14 -> 6.22231162 | DY40: ='Share Price'!$J$14 -> 6.22231162
B42: Share Price
B43: =B37 -> High | I43: $ | K43: =LOOKUP($K$27,$P$6:$DY$6,P43:DY43) -> 38.73238754 | P43: =P37/P$40 -> 0 | Q43: =Q37/Q$40 -> 0 | R43: 0 | S43: -22.60025362 | T43: -41.25364279 | U43: -66.58284319 | V43: 27.93462128 | W43: 38.73238754 | X43: 50.58562351 | Y43: 63.83195702 | Z43: 50.3474669 | AA43: 43.28686474 | AB43: 57.39694554 | AC43: 72.04444068 | AD43: 91.58960985 | AE43: 116.1936777 | AF43: 90.72572755 | AG43: 70.52205868 | AH43: 110.6290014 | AI43: 96.24717848 | AJ43: 157.7064708 | AK43: 117.1320824 | AL43: 108.250898 | AM43: 158.8456212 | AN43: 168.9728589 | AO43: 126.1840151 | AP43: 193.6268872 | AQ43: 404.3282104 | AR43: 392.8737448 | AS43: 413.5750604 | AT43: 403.4202998 | AU43: 100.2350363 | AV43: 0.4821359301 | AW43: 0.4821359301 | AX43: 0.4821359301 | AY43: 0.4821359301 | AZ43: 0.4821359301 | BA43: 0.4821359301 | BB43: 0.4821359301 | BC43: 0.4821359301 | BD43: 0.4821359301 | BE43: 0.4821359301 | BF43: 0.4821359301 | BG43: 0.4821359301 | BH43: 0.4821359301 | BI43: 0.4821359301 | BJ43: 0.4821359301 | BK43: 0.4821359301 | BL43: 0.4821359301 | BM43: 0.4821359301 | BN43: 0.4821359301 | BO43: 0.4821359301 | BP43: 0.4821359301 | BQ43: 0.4821359301 | BR43: 0.4821359301 | BS43: 0.4821359301 | BT43: 0.4821359301 | BU43: 0.4821359301 | BV43: 0.4821359301 | BW43: 0.4821359301 | BX43: 0.4821359301 | BY43: 0.4821359301 | BZ43: 0.4821359301 | CA43: 0.4821359301 | CB43: 0.4821359301 | CC43: =CC37/CC$40 -> 0.4821359301 | CD43: 0.4821359301 | CE43: 0.4821359301 | CF43: 0.4821359301 | CG43: 0.4821359301 | CH43: 0.4821359301 | CI43: 0.4821359301 | CJ43: 0.4821359301 | CK43: 0.4821359301 | CL43: 0.4821359301 | CM43: 0.4821359301 | CN43: 0.4821359301 | CO43: 0 | CP43: 0 | CQ43: 0 | CR43: 0 | CS43: 0 | CT43: 0 | CU43: 0 | CV43: 0 | CW43: 0 | CX43: 0 | CY43: 0 | CZ43: 0 | DA43: 0 | DB43: 0 | DC43: 0 | DD43: 0 | DE43: 0 | DF43: 0 | DG43: 0 | DH43: 0 | DI43: 0 | DJ43: 0 | DK43: 0 | DL43: 0 | DM43: 0 | DN43: 0 | DO43: 0 | DP43: 0 | DQ43: 0 | DR43: 0 | DS43: 0 | DT43: 0 | DU43: 0 | DV43: 0 | DW43: 0 | DX43: 0 | DY43: 0
B44: =B38 -> Low | I44: $ | K44: =LOOKUP($K$27,$P$6:$DY$6,P44:DY44) -> 22.51218036 | P44: =P38/P$40 -> 0 | Q44: 0 | R44: 0 | S44: -22.60025362 | T44: -41.25364279 | U44: -66.58284319 | V44: 12.86126881 | W44: 22.51218036 | X44: 33.04264997 | Y44: 44.7340342 | Z44: 34.14973208 | AA44: 28.91866992 | AB44: 41.32984356 | AC44: 54.18886247 | AD44: 71.12927642 | AE44: 92.2854393 | AF44: 71.71492046 | AG44: 55.5313027 | AH44: 89.60652791 | AI44: 78.27444848 | AJ44: 130.1432984 | AK44: 96.98408101 | AL44: 90.23586702 | AM44: 132.3981363 | AN44: 140.8375011 | AO44: 105.1801313 | AP44: 161.3825246 | AQ44: 336.9669606 | AR44: 327.4215727 | AS44: 344.672669 | AT44: 336.2103685 | AU44: 83.5827676 | AV44: 0.4821359301 | AW44: 0.4821359301 | AX44: 0.4821359301 | AY44: 0.4821359301 | AZ44: 0.4821359301 | BA44: 0.4821359301 | BB44: 0.4821359301 | BC44: 0.4821359301 | BD44: 0.4821359301 | BE44: 0.4821359301 | BF44: 0.4821359301 | BG44: 0.4821359301 | BH44: 0.4821359301 | BI44: 0.4821359301 | BJ44: 0.4821359301 | BK44: 0.4821359301 | BL44: 0.4821359301 | BM44: 0.4821359301 | BN44: 0.4821359301 | BO44: 0.4821359301 | BP44: 0.4821359301 | BQ44: 0.4821359301 | BR44: 0.4821359301 | BS44: 0.4821359301 | BT44: 0.4821359301 | BU44: 0.4821359301 | BV44: 0.4821359301 | BW44: 0.4821359301 | BX44: 0.4821359301 | BY44: 0.4821359301 | BZ44: 0.4821359301 | CA44: 0.4821359301 | CB44: 0.4821359301 | CC44: 0.4821359301 | CD44: 0.4821359301 | CE44: 0.4821359301 | CF44: 0.4821359301 | CG44: 0.4821359301 | CH44: 0.4821359301 | CI44: 0.4821359301 | CJ44: 0.4821359301 | CK44: 0.4821359301 | CL44: 0.4821359301 | CM44: 0.4821359301 | CN44: 0.4821359301 | CO44: 0 | CP44: 0 | CQ44: 0 | CR44: 0 | CS44: 0 | CT44: 0 | CU44: 0 | CV44: 0 | CW44: 0 | CX44: 0 | CY44: 0 | CZ44: 0 | DA44: 0 | DB44: 0 | DC44: 0 | DD44: 0 | DE44: 0 | DF44: 0 | DG44: 0 | DH44: 0 | DI44: 0 | DJ44: 0 | DK44: 0 | DL44: 0 | DM44: 0 | DN44: 0 | DO44: 0 | DP44: 0 | DQ44: 0 | DR44: 0 | DS44: 0 | DT44: 0 | DU44: 0 | DV44: 0 | DW44: 0 | DX44: 0 | DY44: 0
A47: END SHEET

Sheet Comps
D11: Date | E11: Target | F11: Market Cap | I11: P / NAV
D14: 1 | E14: First Quantum | F14: 15 | I14: 0.75
D17: 2 | E17: Ivanhoe | F17: 11.2 | I17: 0.71
D20: 3 | E20: Lundin | F20: 9.7 | I20: 0.62
D23: 4 | E23: Capstone | F23: 8.4 | I23: 0.58
D26: 5 | E26: Hudbay | F26: 6.1 | I26: 0.57
D29: 6 | E29: Ero | F29: 3.3 | I29: 0.36
J35: 0.50x - 0.75x
D39: Maximum | F39: =MAX(F14:F31) -> 15 | I39: =MAX(I14:I36) -> 0.75
D40: Minimum | F40: =MIN(F14:F31) -> 3.3 | I40: =MIN(I14:I36) -> 0.36
D41: Median | F41: =MEDIAN(F14:F31) -> 9.05 | I41: =MEDIAN(I14:I36) -> 0.6
D42: Average | F42: =AVERAGE(F14:F31) -> 8.95 | I42: =AVERAGE(I14:I36) -> 0.5983333333
A50: END SHEET

Sheet M&A Precedents
D11: Date | E11: Target | F11: Acquirer | G11: Transaction Value | H11: P / NAV | I11: EV / EBITDA
D14: 2022-03-04 | E14: Target 1 | F14: Acquirer 1 | G14: 6280 | H14: 1.12 | I14: 9.6
D15: 2022-01-04 | E15: Target 2 | F15: Acquirer 2 | G15: 2100 | H15: 1.13 | I15: 4.5
D16: 2021-10-04 | E16: Target 3 | F16: Acquirer 3 | G16: 1354 | H16: 0.69 | I16: 4.5
D17: 2021-08-04 | E17: Target 4 | F17: Acquirer 4 | G17: 3778 | H17: 0.72 | I17: 4.1
D18: 2021-04-04 | E18: Target 5 | F18: Acquirer 5 | G18: 1865 | H18: 1.02 | I18: 3
D19: 2021-02-04 | E19: Target 6 | F19: Acquirer 6 | G19: 1893 | H19: 1.31 | I19: 8.216117544 | O19: v
D20: 2020-12-04 | E20: Target 7 | F20: Acquirer 7 | G20: 3322 | H20: 0.95 | I20: 7.517548882
D21: 2020-08-04 | E21: Target 8 | F21: Acquirer 8 | G21: 1406 | H21: 0.94 | I21: 9.067376433
D22: 2020-06-04 | E22: Target 9 | F22: Acquirer 9 | G22: 2552 | H22: 1 | I22: 12.2
D23: 2020-02-04 | E23: Target 10 | F23: Acquirer 10 | G23: 5106 | H23: 0.77 | I23: 6.627759453
D24: 2019-11-04 | E24: Target 11 | F24: Acquirer 11 | G24: 3394 | H24: 0.86 | I24: 7.48112456
D25: 2019-07-04 | E25: Target 12 | F25: Acquirer 12 | G25: 4733 | H25: 1.1 | I25: 4.2
D26: 2019-05-04 | E26: Target 13 | F26: Acquirer 13 | G26: 4732 | H26: 1.06 | I26: 10
D27: 2019-02-04 | E27: Target 14 | F27: Acquirer 14 | G27: 7692 | H27: 1.3 | I27: 10.1
D28: 2018-10-04 | E28: Target 15 | F28: Acquirer 15 | G28: 2010 | H28: 1.12 | I28: 10.7
D29: 2018-06-04 | E29: Target 16 | F29: Acquirer 16 | G29: 1423 | H29: 0.82 | I29: 7.3
D30: 2018-04-04 | E30: Target 17 | F30: Acquirer 17 | G30: 2250 | H30: 1.04 | I30: 5.6
D31: 2018-01-04 | E31: Target 18 | F31: Acquirer 18 | G31: 5850 | H31: 0.97 | I31: 4.6
D32: 2017-10-04 | E32: Target 19 | F32: Acquirer 19 | G32: 1596 | H32: 0.96 | I32: 3.1
D33: 2017-06-04 | E33: Target 20 | F33: Acquirer 20 | G33: 4364 | H33: 0.85 | I33: 5.1
H36: .85x - 1.20x | I36: 4.0x - 6.0x
D39: Maximum | G39: =MAX(G14:G33) -> 7692 | H39: =MAX(H14:H33) -> 1.31 | I39: =MAX(I14:I33) -> 12.2
D40: Minimum | G40: =MIN(G14:G33) -> 1354 | H40: =MIN(H14:H33) -> 0.69 | I40: =MIN(I14:I33) -> 3
D41: Median | G41: =MEDIAN(G14:G33) -> 2937 | H41: =MEDIAN(H14:H33) -> 0.985 | I41: =MEDIAN(I14:I33) -> 6.963879727
D42: Average | G42: =AVERAGE(G14:G33) -> 3385 | H42: =AVERAGE(H14:H33) -> 0.9865 | I42: =AVERAGE(I14:I33) -> 6.875496344
A48: END SHEET

Sheet Sens
F2: 1 | H2: 1 | I2: =H2+1 -> 2 | J2: 3 | K2: 4 | L2: 5 | M2: 6 | N2: 7 | O2: 8 | P2: 9 | Q2: 10 | R2: 11 | S2: 12 | T2: 13 | U2: 14 | V2: 15 | W2: 16 | X2: 17
F3: =INDEX(H3:X7,,F2) -> Base Case | H3: Base Case | I3: ="Development CAPEX "&IF(I13>0,"+ ","- ")&(ABS(I13)*100)&"%" -> Development CAPEX + 10% | J3: ="OPEX "&IF(J14>0,"+ ","- ")&(ABS(J14)*100)&"%" -> OPEX + 10% | K3: ="Price "&IF(K15>0,"+ ","- ")&(ABS(K15)*100)&"%" -> Price - 10% | L3: ="Production "&"" -> Production | M3: ="Resources "&IF(M17>0,"+ ","- ")&(ABS(M17)*100)&"%" -> Resources - 10% | N3: ="Inflation "&IF(N18>0,"+ ","- ")&(ABS(N18)*100)&"%" -> Inflation + 2% | O3: ="Cost of Debt "&IF(O19>0,"+ ","- ")&(ABS(O19)*100)&"%" -> Cost of Debt + 2% | P3: ="Sustaining CAPEX "&IF(P20>0,"+ ","- ")&(ABS(P20)*100)&"%" -> Sustaining CAPEX + 10% | Q3: ="Mineral Grade "&IF(Q21>0,"+ ","- ")&(ABS(Q21)*100)&"%" -> Mineral Grade + 2% | R3: [spare] | S3: [spare] | T3: Combined Downside | U3: Spare | V3: Spare | W3: Spare | X3: Spare
A9: Scenario Manager
B12: =TRANSPOSE(H3:T7) -> Base Case | E12: % | F12: =INDEX(H12:X12,,$F$2) -> 0 | H12: 0 | I12: 0 | J12: 0 | K12: 0 | L12: 0 | M12: 0 | N12: 0 | O12: 0 | P12: 0 | Q12: 0 | R12: 0 | S12: 0 | T12: 0 | U12: 0 | V12: 0 | W12: 0 | X12: 0
B13: Development CAPEX + 10% | E13: % | F13: 0 | H13: 0 | I13: 0.1 | J13: 0 | K13: 0 | L13: 0 | M13: 0 | N13: 0 | O13: 0 | P13: 0 | Q13: 0 | R13: 0 | S13: 0 | T13: =I13 -> 0.1 | U13: 0 | V13: 0 | W13: 0 | X13: 0
B14: OPEX + 10% | E14: % | F14: 0 | H14: 0 | I14: 0 | J14: 0.1 | K14: 0 | L14: 0 | M14: 0 | N14: 0 | O14: 0 | P14: 0 | Q14: 0 | R14: 0 | S14: 0 | T14: =J14 -> 0.1 | U14: 0 | V14: 0 | W14: 0 | X14: 0
B15: Price - 10% | E15: % | F15: 0 | H15: 0 | I15: 0 | J15: 0 | K15: -0.1 | L15: 0 | M15: 0 | N15: 0 | O15: 0 | P15: 0 | Q15: 0 | R15: 0 | S15: 0 | T15: =K15 -> -0.1 | U15: 0 | V15: 0 | W15: 0 | X15: 0
B16: Production | E16: switch | F16: 0 | H16: 0 | I16: 0 | J16: 0 | K16: 0 | L16: Low Case | M16: 0 | N16: 0 | O16: 0 | P16: 0 | Q16: 0 | R16: 0 | S16: 0 | T16: =L16 -> Low Case | U16: 0 | V16: 0 | W16: 0 | X16: 0
B17: Resources - 10% | E17: % | F17: 0 | H17: 0 | I17: 0 | J17: 0 | K17: 0 | L17: 0 | M17: -0.1 | N17: 0 | O17: 0 | P17: 0 | Q17: 0 | R17: 0 | S17: 0 | T17: =M17 -> -0.1 | U17: 0 | V17: 0 | W17: 0 | X17: 0
B18: Inflation + 2% | E18: + / - | F18: 0 | H18: 0 | I18: 0 | J18: 0 | K18: 0 | L18: 0 | M18: 0 | N18: 0.02 | O18: 0 | P18: 0 | Q18: 0 | R18: 0 | S18: 0 | T18: =N18 -> 0.02 | U18: 0 | V18: 0 | W18: 0 | X18: 0
B19: Cost of Debt + 2% | E19: + / - | F19: 0 | H19: 0 | I19: 0 | J19: 0 | K19: 0 | L19: 0 | M19: 0 | N19: 0 | O19: 0.02 | P19: 0 | Q19: 0 | R19: 0 | S19: 0 | T19: =O19 -> 0.02 | U19: 0 | V19: 0 | W19: 0 | X19: 0
B20: Sustaining CAPEX + 10% | E20: % | F20: 0 | H20: 0 | I20: 0 | J20: 0 | K20: 0 | L20: 0 | M20: 0 | N20: 0 | O20: 0 | P20: 0.1 | Q20: 0 | R20: 0 | S20: 0 | T20: =P20 -> 0.1 | U20: 0 | V20: 0 | W20: 0 | X20: 0
B21: Mineral Grade + 2% | E21: + / - | F21: 0 | H21: 0 | I21: 0 | J21: 0 | K21: 0 | L21: 0 | M21: 0 | N21: 0 | O21: 0 | P21: 0 | Q21: 0.02 | R21: 0 | S21: 0 | T21: =Q21 -> 0.02 | U21: 0 | V21: 0 | W21: 0 | X21: 0
B22: [spare] | E22: % | F22: 0 | H22: 0 | I22: 0 | J22: 0 | K22: 0 | L22: 0 | M22: 0 | N22: 0 | O22: 0 | P22: 0 | Q22: 0 | R22: 0 | S22: 0 | T22: =R22 -> 0 | U22: 0 | V22: 0 | W22: 0 | X22: 0
B23: [spare] | E23: % | F23: 0 | H23: 0 | I23: 0 | J23: 0 | K23: 0 | L23: 0 | M23: 0 | N23: 0 | O23: 0 | P23: 0 | Q23: 0 | R23: 0 | S23: 0 | T23: =S23 -> 0 | U23: 0 | V23: 0 | W23: 0 | X23: 0
B24: Combined Downside | E24: % | F24: 0 | H24: 0 | I24: 0 | J24: 0 | K24: 0 | L24: 0 | M24: 0 | N24: 0 | O24: 0 | P24: 0 | Q24: 0 | R24: 0 | S24: 0 | T24: 0 | U24: 0 | V24: 0 | W24: 0 | X24: 0
A27: Results
B29: Scenarios | E29: # | F29: =MAX(H2:T2) -> 13
B31: Checks
B32: Balance Sheet | F32: =[15]BS!L52 -> TRUE
B33: Macro | F33: =Macro_Check -> TRUE
H35: Project IRR | I35: Equity IRR | J35: Enterprise Value | K35: Equity Value | L35: Cash Yield | M35: Payback | N35: Share Price | O35: NAV | P35: PNAV | Q35: Min DSCR | R35: Min ICR | S35: Max Leverage | T35: Reserve Tail
H36: % | I36: % | J36: $m | K36: $m | L36: % | M36: Yrs | N36: $ | O36: $m | P36: x | Q36: x | R36: x | S36: x | T36: %
B37: ="Live Case: "&F3 -> Live Case: Base Case | H37: ='Manganese Mine'!L1192 -> 0.1414170325 | I37: ='Manganese Mine'!L1217 -> 0.2352787819 | J37: ='Manganese Mine'!L1274 -> 763.8540241 | K37: ='Manganese Mine'!L1299 -> 340.2023315 | L37: ='Manganese Mine'!L1231 -> 1.855435159 | M37: ='Manganese Mine'!L1242 -> 1.077914251 | N37: ='Net Asset Value'!M46 -> 40.04335368 | O37: ='Net Asset Value'!M39 -> 249.1622249 | P37: ='Net Asset Value'!M44 -> 0.6992421321 | Q37: ='Manganese Mine'!L1097 -> 1.499334327 | R37: ='Manganese Mine'!L1142 -> 3.95520948 | S37: ='Manganese Mine'!L1158 -> 4.14675459 | T37: ='Manganese Mine'!L1175 -> 0.2069097889
B38: =B12 -> Base Case | H38: 0.1428758866 | I38: 0.2021135326 | J38: 687.8000879 | K38: 326.4025468 | L38: 1.253300952 | M38: 1.59578591 | N38: 37.825563 | O38: 235.3624402 | P38: 0.7402401386 | Q38: 1.826286928 | R38: 4.104361534 | S38: 3.635621313 | T38: 0.0875984252
B39: =B13 -> Development CAPEX + 10% | H39: 0.1337772291 | I39: 0.1869534524 | J39: 658.7418949 | K39: 305.6180704 | L39: 1.122656559 | M39: 1.781488724 | N39: 34.48524871 | O39: 214.5779638 | P39: 0.8119413676 | Q39: 1.700569777 | R39: 3.631336966 | S39: 4.000250234 | T39: 0.0875984252
B40: OPEX + 10% | H40: 0.1265422611 | I40: 0.1721688593 | J40: 559.1727131 | K40: 248.8588234 | L40: 1.102361693 | M40: 1.814286557 | N40: 25.36335793 | O40: 157.8187168 | P40: 1.103954771 | Q40: 1.472133936 | R40: 3.169176963 | S40: 4.430837558 | T40: 0.0875984252
B41: Price - 10% | H41: 0.1155253912 | I41: 0.1533671614 | J41: 458.2427796 | K41: 192.9071144 | L41: 0.9546715457 | M41: 2.09496136 | N41: 16.37124818 | O41: 101.8670078 | P41: 1.71031553 | Q41: 1.254106312 | R41: 2.633653584 | S41: 5.065259392 | T41: 0.0875984252
B42: Production | H42: 0.1318005498 | I42: 0.1783904635 | J42: 660.8701892 | K42: 293.9422245 | L42: 1.334602465 | M42: 1.498573585 | N42: 32.60880045 | O42: 202.9021179 | P42: 0.8586639072 | Q42: 1.516272423 | R42: 3.231455462 | S42: 4.408862087 | T42: 0.2352362205
B43: Resources - 10% | H43: 0.1426390042 | I43: 0.2034889139 | J43: 630.2579986 | K43: 307.4500738 | L43: 1.071580482 | M43: 1.866402042 | N43: 34.77967361 | O43: 216.4099672 | P43: 0.8050679346 | Q43: 1.847934441 | R43: 3.960044606 | S43: 3.63562185 | T43: 0.0875984252
B44: Inflation + 2% | H44: 0.145074136 | I44: 0.1931618761 | J44: 700.9879422 | K44: 308.4359288 | L44: 1.227903512 | M44: 1.628792475 | N44: 34.93811232 | O44: 217.3958222 | P44: 0.8014170813 | Q44: 1.568700974 | R44: 2.931472581 | S44: 3.63562185 | T44: 0.0875984252
B45: Cost of Debt + 2% | H45: 0.1731443896 | I45: 0.244816021 | J45: 1173.68465 | K45: 569.6185522 | L45: 2.093962754 | M45: 0.9551268264 | N45: 73.57826268 | O45: 457.8268788 | P45: 0.380547175 | Q45: 2.035815342 | R45: 4.883084638 | S45: 3.162416921 | T45: 0.0875984252
B46: Sustaining CAPEX + 10% | H46: 0.1424446162 | I46: 0.2009548781 | J46: 684.7289169 | K46: 324.0931864 | L46: 1.250141987 | M46: 1.599818277 | N46: 37.45442112 | O46: 233.0530798 | P46: 0.7475752972 | Q46: 1.8175812 | R46: 4.103683276 | S46: 3.63562185 | T46: 0.0875984252
B47: Mineral Grade + 2% | H47: 0.1712743781 | I47: 0.2527471515 | J47: 942.998214 | K47: 475.1020971 | L47: 1.583818472 | M47: 1.262770977 | N47: 61.72336166 | O47: 384.0619905 | P47: 0.45363699 | Q47: 2.322261804 | R47: 5.710564693 | S47: 2.779004593 | T47: 0.0875984252
B48: [spare] | H48: 0.1428758706 | I48: 0.2021135022 | J48: 687.8000344 | K48: 326.4025065 | L48: 1.25330073 | M48: 1.595786192 | N48: 37.82555653 | O48: 235.3623999 | P48: 0.7402402652 | Q48: 1.826286994 | R48: 4.104360769 | S48: 3.63562185 | T48: 0.0875984252
B49: [spare] | H49: 0.1428758706 | I49: 0.2021135022 | J49: 687.8000344 | K49: 326.4025065 | L49: 1.25330073 | M49: 1.595786192 | N49: 37.82555653 | O49: 235.3623999 | P49: 0.7402402652 | Q49: 1.826286994 | R49: 4.104360769 | S49: 3.63562185 | T49: 0.0875984252
B50: Combined Downside | H50: 0.1383073495 | I50: 0.1718221746 | J50: 874.6743813 | K50: 363.3078614 | L50: 1.499632914 | M50: 1.333659712 | N50: 40.42166375 | O50: 251.516188 | P50: 0.6926978606 | Q50: 1.050621548 | R50: 1.76645692 | S50: 5.241439229 | T50: 0.0875984252
A54: END SHEET
L278: -4.253478881e+27

Sheet MRE
E12: Mineral Resources | I12: Contained Metal
G14: Ore | H14: MnO | I14: =H14 -> MnO
G15: Mt | H15: % | I15: Mt
E17: Measured | G17: 0 | H17: 0 | I17: =H17*$G17 -> 0
E18: Indicated | G18: 2.1 | H18: 0.193 | I18: =H18*$G18 -> 0.4053
E19: Inferred | G19: 3.11 | H19: 0.169 | I19: 0.52559
G20: =SUM(G17:G19) -> 5.21 | H20: =SUMPRODUCT($G$17:$G$19,H17:H19)/SUM($G$17:$G$19) -> 0.1786737044 | I20: =SUM(I17:I19) -> 0.93089
E24: Mineral Reserves | I24: Contained Metal
G26: Ore | H26: MnO | I26: =H26 -> MnO
G27: Mt | H27: % | I27: Mt
E29: Proven | G29: 0 | H29: 0 | I29: =H29*$G29 -> 0
E30: Probable | G30: 2.032 | H30: 0.189 | I30: =H30*$G30 -> 0.384048
G31: =SUM(G29:G30) -> 2.032 | H31: =SUMPRODUCT($G$29:$G$30,H29:H30)/SUM($G$29:$G$30) -> 0.189 | I31: =SUM(I29:I30) -> 0.384048
A36: End Sheet

Sheet Input_Scen
G2: Eq Val | H2: ='Manganese Mine'!L2 -> 340.2023315 | J2: 3 | N2: 1 | O2: =N2+1 -> 2 | P2: =O2+1 -> 3 | Q2: 4 | R2: =Q2+1 -> 5 | S2: =R2+1 -> 6 | T2: =S2+1 -> 7 | U2: =T2+1 -> 8 | V2: =U2+1 -> 9 | W2: =V2+1 -> 10 | X2: =W2+1 -> 11 | Y2: =X2+1 -> 12
G3: Eq IRR: | H3: ='Manganese Mine'!L3 -> 0.2352787819 | J3: =INDEX(N3:Y3,,J2) -> High Leverage | N3: Base Case | O3: No Reserve Conversion | P3: High Leverage | Q3: [Spare] | R3: [Spare] | S3: [Spare] | T3: [Spare] | U3: [Spare] | V3: [Spare] | W3: [Spare] | X3: [Spare] | Y3: [Spare]
B4: Add Scen to bottom of Input Sheet
B5: Redo Reserve Tail Ratio so it's an X | G5: EV: | H5: ='Manganese Mine'!L5 -> 763.8540241
G6: Proj IRR: | H6: ='Manganese Mine'!L6 -> 0.1414170325
A9: Timing
C11: First Model Period | G11: year | J11: =IF(ISBLANK(INDEX(N11:Y11,,$J$2)),N11,INDEX(N11:Y11,$J$2)) -> 2023 | N11: 2023
C13: Actuals Start | G13: year | J13: =IF(ISBLANK(INDEX(N13:Y13,,$J$2)),N13,INDEX(N13:Y13,$J$2)) -> 2023 | N13: 2023
C14: Actuals Period | G14: years | J14: =IF(ISBLANK(INDEX(N14:Y14,,$J$2)),N14,INDEX(N14:Y14,$J$2)) -> 3 | N14: 3
C15: Actuals End | G15: year | J15: =J13+J14-1 -> 2025
C17: CAPEX Start | G17: year | J17: =J15+1 -> 2026
C18: CAPEX Duration | G18: years | J18: =IF(ISBLANK(INDEX(N18:Y18,,$J$2)),N18,INDEX(N18:Y18,$J$2)) -> 3 | N18: 3
C19: CAPEX End | G19: year | J19: =J17+J18-1 -> 2028
C21: First Copper | G21: year | J21: =J19+1 -> 2029
C22: Life of Mine | G22: years | J22: =IF(ISBLANK(INDEX(N22:Y22,,$J$2)),N22,INDEX(N22:Y22,$J$2)) -> 26 | N22: 26
C23: End of Life | G23: year | J23: =J21+J22 -> 2055
C25: Restoration | G25: years before EoL | J25: =IF(ISBLANK(INDEX(N25:Y25,,$J$2)),N25,INDEX(N25:Y25,$J$2)) -> 4 | N25: 4
C26: Restoration Start | G26: year | J26: =J23-J25 -> 2051
C27: Restoration End | G27: year | J27: =J23 -> 2055
A30: CAPEX
C32: Development CAPEX
C33: Plant & Equipment | G33: $m | J33: =IF(ISBLANK(INDEX(N33:Y33,,$J$2)),N33,INDEX(N33:Y33,$J$2)) -> 100 | N33: 100
C34: Site Infrastructure | G34: $m | J34: =IF(ISBLANK(INDEX(N34:Y34,,$J$2)),N34,INDEX(N34:Y34,$J$2)) -> 80 | N34: 80
C35: Project Management | G35: $m | J35: =IF(ISBLANK(INDEX(N35:Y35,,$J$2)),N35,INDEX(N35:Y35,$J$2)) -> 50 | N35: 50
C36: Onsite Construction Equipment | G36: $m | J36: =IF(ISBLANK(INDEX(N36:Y36,,$J$2)),N36,INDEX(N36:Y36,$J$2)) -> 80 | N36: 80
C37: Other Capex | G37: $m | J37: =IF(ISBLANK(INDEX(N37:Y37,,$J$2)),N37,INDEX(N37:Y37,$J$2)) -> 97 | N37: 97
C38: [Spare] | G38: $m | J38: =IF(ISBLANK(INDEX(N38:Y38,,$J$2)),N38,INDEX(N38:Y38,$J$2)) -> 0 | N38: 0
C39: [Spare] | G39: $m | J39: =IF(ISBLANK(INDEX(N39:Y39,,$J$2)),N39,INDEX(N39:Y39,$J$2)) -> 0 | N39: 0
C40: [Spare] | G40: $m | J40: =IF(ISBLANK(INDEX(N40:Y40,,$J$2)),N40,INDEX(N40:Y40,$J$2)) -> 0 | N40: 0
C41: [Spare] | G41: $m | J41: =IF(ISBLANK(INDEX(N41:Y41,,$J$2)),N41,INDEX(N41:Y41,$J$2)) -> 0 | N41: 0
C42: [Spare] | G42: $m | J42: =IF(ISBLANK(INDEX(N42:Y42,,$J$2)),N42,INDEX(N42:Y42,$J$2)) -> 0 | N42: 0
C43: [Spare] | G43: $m | J43: =IF(ISBLANK(INDEX(N43:Y43,,$J$2)),N43,INDEX(N43:Y43,$J$2)) -> 0 | N43: 0
G44: $m | J44: =SUM(J33:J43) -> 407
C46: Contingency | G46: % | J46: =IF(ISBLANK(INDEX(N46:Y46,,$J$2)),N46,INDEX(N46:Y46,$J$2)) -> 0.05 | N46: 0.05
A48: OPEX
C50: Power | G50: % | J50: =IF(ISBLANK(INDEX(N50:Y50,,$J$2)),N50,INDEX(N50:Y50,$J$2)) -> 0.02898149539 | N50: 0.02898149539
C51: Power Station Fixed Charges | G51: % | J51: =IF(ISBLANK(INDEX(N51:Y51,,$J$2)),N51,INDEX(N51:Y51,$J$2)) -> 0.02983640725 | N51: 0.02983640725
C52: Reagents | G52: % | J52: =IF(ISBLANK(INDEX(N52:Y52,,$J$2)),N52,INDEX(N52:Y52,$J$2)) -> 0.01867466962 | N52: 0.01867466962
C53: Labour | G53: % | J53: =IF(ISBLANK(INDEX(N53:Y53,,$J$2)),N53,INDEX(N53:Y53,$J$2)) -> 0.01965738429 | N53: 0.01965738429
C54: Plant Maintenance | G54: % | J54: =IF(ISBLANK(INDEX(N54:Y54,,$J$2)),N54,INDEX(N54:Y54,$J$2)) -> 0.01002622174 | N54: 0.01002622174
C55: Laboratory | G55: % | J55: =IF(ISBLANK(INDEX(N55:Y55,,$J$2)),N55,INDEX(N55:Y55,$J$2)) -> 0.02663592136 | N55: 0.02663592136
C56: Mobile Equipment | G56: % | J56: =IF(ISBLANK(INDEX(N56:Y56,,$J$2)),N56,INDEX(N56:Y56,$J$2)) -> 0.01473421654 | N56: 0.01473421654
C57: Mining & Geology | G57: % | J57: =IF(ISBLANK(INDEX(N57:Y57,,$J$2)),N57,INDEX(N57:Y57,$J$2)) -> 0.03817830983 | N57: 0.03817830983
C58: General & Admin | G58: % | J58: =IF(ISBLANK(INDEX(N58:Y58,,$J$2)),N58,INDEX(N58:Y58,$J$2)) -> 0.01966401806 | N58: 0.01966401806
C59: Marketing & Product Transport | G59: % | J59: =IF(ISBLANK(INDEX(N59:Y59,,$J$2)),N59,INDEX(N59:Y59,$J$2)) -> 0.0154687643 | N59: 0.0154687643
C60: Export Costs | G60: % | J60: =IF(ISBLANK(INDEX(N60:Y60,,$J$2)),N60,INDEX(N60:Y60,$J$2)) -> 0.02429680279 | N60: 0.02429680279
J61: =SUM(J50:J60) -> 0.2461542112
C64: Royalty
D66: Royalty - Central Gov | G66: % | J66: =IF(ISBLANK(INDEX(N66:Y66,,$J$2)),N66,INDEX(N66:Y66,$J$2)) -> 0.02 | N66: 0.02
D67: Royalty - SOE | G67: % | J67: =IF(ISBLANK(INDEX(N67:Y67,,$J$2)),N67,INDEX(N67:Y67,$J$2)) -> 0.02 | N67: 0.02
A70: Mining
C72: Measurements
D74: Lbs / Tonne | G74: # | J74: =IF(ISBLANK(INDEX(N74:Y74,,$J$2)),N74,INDEX(N74:Y74,$J$2)) -> 2204 | N74: 2204
C76: Resources
D78: Resources
D79: Measured | G79: % | J79: =IF(ISBLANK(INDEX(N79:Y79,,$J$2)),N79,INDEX(N79:Y79,$J$2)) -> 0 | N79: 0
D80: Indicated | G80: % | J80: =IF(ISBLANK(INDEX(N80:Y80,,$J$2)),N80,INDEX(N80:Y80,$J$2)) -> 1 | N80: 1
D81: Inferred | G81: % | J81: =IF(ISBLANK(INDEX(N81:Y81,,$J$2)),N81,INDEX(N81:Y81,$J$2)) -> 1 | N81: 1
D83: Reserves
D84: Proven | G84: % | J84: =IF(ISBLANK(INDEX(N84:Y84,,$J$2)),N84,INDEX(N84:Y84,$J$2)) -> 1 | N84: 1
D85: Probable | G85: % | J85: =IF(ISBLANK(INDEX(N85:Y85,,$J$2)),N85,INDEX(N85:Y85,$J$2)) -> 1 | N85: 1
C91: Mining Parameters
D93: Throughput | G93: switch | J93: =IF(ISBLANK(INDEX(N93:Y93,,$J$2)),N93,INDEX(N93:Y93,$J$2)) -> Base Case | N93: Base Case
D95: Dilution Rate | G95: % | J95: =IF(ISBLANK(INDEX(N95:Y95,,$J$2)),N95,INDEX(N95:Y95,$J$2)) -> 0.05 | N95: 0.05
D96: Mining Recovery | G96: % | J96: =IF(ISBLANK(INDEX(N96:Y96,,$J$2)),N96,INDEX(N96:Y96,$J$2)) -> 0.885 | N96: 0.885
D97: Payability | G97: % | J97: =IF(ISBLANK(INDEX(N97:Y97,,$J$2)),N97,INDEX(N97:Y97,$J$2)) -> 1 | N97: 1
D99: Convert Resources to Reserves | G99: switch | J99: =IF(ISBLANK(INDEX(N99:Y99,,$J$2)),N99,INDEX(N99:Y99,$J$2)) -> TRUE | N99: TRUE | O99: FALSE
D100: Resource Conversion - Annual | G100: Kt | J100: =IF(ISBLANK(INDEX(N100:Y100,,$J$2)),N100,INDEX(N100:Y100,$J$2)) -> 300 | N100: 300
D101: Resource Converstion - Strip Ratio | G101: x | J101: =IF(ISBLANK(INDEX(N101:AF101,,$J$2)),N101,INDEX(N101:AF101,$J$2)) -> 3.8 | N101: 3.8
D103: Maximum Mill Feed | G103: Kt | J103: =IF(ISBLANK(INDEX(N103:Y103,,$J$2)),N103,INDEX(N103:Y103,$J$2)) -> 250 | N103: 250
D105: Conversion - Battery Grade Manganese | G105: Kt | J105: =IF(ISBLANK(INDEX(N105:Y105,,$J$2)),N105,INDEX(N105:Y105,$J$2)) -> 0.41 | N105: 0.41
C107: Operating Expenditure
D109: Variable Costs
D110: Mining | G110: $ / t | J110: =IF(ISBLANK(INDEX(N110:Y110,,$J$2)),N110,INDEX(N110:Y110,$J$2)) -> 3.33 | N110: 3.33
D111: Rehandling | G111: $ / t | J111: =IF(ISBLANK(INDEX(N111:Y111,,$J$2)),N111,INDEX(N111:Y111,$J$2)) -> 4.1 | N111: 4.1
D112: Processing | G112: $ / t | J112: =IF(ISBLANK(INDEX(N112:Y112,,$J$2)),N112,INDEX(N112:Y112,$J$2)) -> 634 | N112: 634
D113: Transportation | G113: $ / t | J113: =IF(ISBLANK(INDEX(N113:Y113,,$J$2)),N113,INDEX(N113:Y113,$J$2)) -> 25 | N113: 25
D116: Mining royalties | G116: $ / t | J116: =IF(ISBLANK(INDEX(N116:Y116,,$J$2)),N116,INDEX(N116:Y116,$J$2)) -> 13 | N116: 13
D118: Fixed Costs
D119: G&A | G119: $m | J119: =IF(ISBLANK(INDEX(N119:Y119,,$J$2)),N119,INDEX(N119:Y119,$J$2)) -> 3.2 | N119: 3.2
D120: Labour | G120: $m | J120: =IF(ISBLANK(INDEX(N120:Y120,,$J$2)),N120,INDEX(N120:Y120,$J$2)) -> 4.2 | N120: 4.2
D121: [spare] | G121: $m | J121: =IF(ISBLANK(INDEX(N121:Y121,,$J$2)),N121,INDEX(N121:Y121,$J$2)) -> 0 | N121: 0
D122: [spare] | G122: $m | J122: =IF(ISBLANK(INDEX(N122:Y122,,$J$2)),N122,INDEX(N122:Y122,$J$2)) -> 0 | N122: 0
D123: [spare] | G123: $m | J123: =IF(ISBLANK(INDEX(N123:Y123,,$J$2)),N123,INDEX(N123:Y123,$J$2)) -> 0 | N123: 0
D124: [spare] | G124: $m | J124: =IF(ISBLANK(INDEX(N124:Y124,,$J$2)),N124,INDEX(N124:Y124,$J$2)) -> 0 | N124: 0
D125: [spare] | G125: $m | J125: =IF(ISBLANK(INDEX(N125:Y125,,$J$2)),N125,INDEX(N125:Y125,$J$2)) -> 0 | N125: 0
C128: Pricing
D130: Futures Curve
D131: Manganese | G131: switch | J131: =IF(ISBLANK(INDEX(N131:Y131,,$J$2)),N131,INDEX(N131:Y131,$J$2)) -> Base Case | N131: Base Case
D132: [spare] | G132: switch | J132: =IF(ISBLANK(INDEX(N132:Y132,,$J$2)),N132,INDEX(N132:Y132,$J$2)) -> Base Case | N132: Base Case
D133: [spare] | G133: switch | J133: =IF(ISBLANK(INDEX(N133:Y133,,$J$2)),N133,INDEX(N133:Y133,$J$2)) -> Base Case | N133: Base Case
D134: [spare] | G134: switch | J134: =IF(ISBLANK(INDEX(N134:Y134,,$J$2)),N134,INDEX(N134:Y134,$J$2)) -> Base Case | N134: Base Case
C137: Working Capital
D139: Accounts Receivable - Days | G139: # | J139: =IF(ISBLANK(INDEX(N139:Y139,,$J$2)),N139,INDEX(N139:Y139,$J$2)) -> 30 | N139: 30
D140: Accounts Payable - Days | G140: # | J140: =IF(ISBLANK(INDEX(N140:Y140,,$J$2)),N140,INDEX(N140:Y140,$J$2)) -> 20 | N140: 20
D141: Inventory - Days | G141: # | J141: =IF(ISBLANK(INDEX(N141:Y141,,$J$2)),N141,INDEX(N141:Y141,$J$2)) -> 20 | N141: 20
A144: Corporate
C146: Shareholdings
C148: Govt of Senegal | G148: % | J148: =IF(ISBLANK(INDEX(N148:Y148,,$J$2)),N148,INDEX(N148:Y148,$J$2)) -> 0.1 | N148: 0.1
C149: Equatorial Holdings | G149: % | J149: =IF(ISBLANK(INDEX(N149:Y149,,$J$2)),N149,INDEX(N149:Y149,$J$2)) -> 0.9 | N149: 0.9
C150: [spare] | G150: % | J150: =1-SUM(J148:J149) -> 0
G151: % | J151: =SUM(J148:J150) -> 1
A153: Financing
A154: Capital Structure
C156: Gearing
C157: Debt | G157: % | J157: =IF(ISBLANK(INDEX(N157:Y157,,$J$2)),N157,INDEX(N157:Y157,$J$2)) -> 0.8 | N157: 0.7 | O157: 0.3 | P157: 0.8
C158: Equity | G158: % | J158: =1-J157 -> 0.2
C160: Equity Split
C161: Share Capital | G161: % | J161: =IF(ISBLANK(INDEX(N161:Y161,,$J$2)),N161,INDEX(N161:Y161,$J$2)) -> 0.5 | N161: 0.5
C162: Shareholder Loan | G162: % | J162: =1-J161 -> 0.5
A164: Equity
C166: Equity Hurdle Rate | G166: % | J166: =IF(ISBLANK(INDEX(N166:Y166,,$J$2)),N166,INDEX(N166:Y166,$J$2)) -> 0.08 | N166: 0.08 | O166: 0.07
C168: Minimum Cash Balance | G168: $m | J168: =IF(ISBLANK(INDEX(N168:Y168,,$J$2)),N168,INDEX(N168:Y168,$J$2)) -> 1 | N168: 1
C170: Shareholder Loan
C172: Amortised | G172: switch | J172: =IF(ISBLANK(INDEX(N172:Y172,,$J$2)),N172,INDEX(N172:Y172,$J$2)) -> TRUE | N172: TRUE
C173: 1st Repayment | G173: date | J173: =Input_Scen!J21 -> 2029
C174: Interest Rate | G174: % | J174: =IF(ISBLANK(INDEX(N174:Y174,,$J$2)),N174,INDEX(N174:Y174,$J$2)) -> 0.2 | N174: 0.2
A176: Term Loan
C178: Timing
C180: 1st Repayment | G180: date | J180: =J21 -> 2029
C181: Tenor | G181: years | J181: =IF(ISBLANK(INDEX(N181:Y181,,$J$2)),N181,INDEX(N181:Y181,$J$2)) -> 17 | N181: 17 | O181: 8
C182: Maturity | G182: date | J182: =J180+J181-1 -> 2045
C184: Fees
C186: Commitment Fee | G186: % of margin | J186: =IF(ISBLANK(INDEX(N186:Y186,,$J$2)),N186,INDEX(N186:Y186,$J$2)) -> 0.35 | N186: 0.35
C187: Upfront Fee | G187: % of commitment | J187: =IF(ISBLANK(INDEX(N187:Y187,,$J$2)),N187,INDEX(N187:Y187,$J$2)) -> 0.02 | N187: 0.02
C189: Cash Sweep
C191: Year Start | G191: year | J191: =IF(ISBLANK(INDEX(N191:Y191,,$J$2)),N191,INDEX(N191:Y191,$J$2)) -> 3 | N191: 3
C192: Start | G192: date | J192: =J180+J191 -> 2032
C193: Duration | G193: years | J193: =IF(ISBLANK(INDEX(N193:Y193,,$J$2)),N193,INDEX(N193:Y193,$J$2)) -> 12 | N193: 12
C194: End | G194: date | J194: =J192+J193 -> 2044
C195: Swept Amount | G195: % | J195: =IF(ISBLANK(INDEX(N195:Y195,,$J$2)),N195,INDEX(N195:Y195,$J$2)) -> 0 | N195: 0
C197: Margins
C199: Yr
C200: 1 | G200: % | J200: =IF(ISBLANK(INDEX(N200:Y200,,$J$2)),N200,INDEX(N200:Y200,$J$2)) -> 0.025 | N200: 0.025
C201: 5 | G201: % | J201: =IF(ISBLANK(INDEX(N201:Y201,,$J$2)),N201,INDEX(N201:Y201,$J$2)) -> 0.025 | N201: 0.025
C202: =C201+5 -> 10 | G202: % | J202: =IF(ISBLANK(INDEX(N202:Y202,,$J$2)),N202,INDEX(N202:Y202,$J$2)) -> 0.025 | N202: 0.025
C203: =C202+5 -> 15 | G203: % | J203: =IF(ISBLANK(INDEX(N203:Y203,,$J$2)),N203,INDEX(N203:Y203,$J$2)) -> 0.025 | N203: 0.025
C204: =C203+5 -> 20 | G204: % | J204: =IF(ISBLANK(INDEX(N204:Y204,,$J$2)),N204,INDEX(N204:Y204,$J$2)) -> 0.025 | N204: 0.025
C205: =C204+5 -> 25 | G205: % | J205: =IF(ISBLANK(INDEX(N205:Y205,,$J$2)),N205,INDEX(N205:Y205,$J$2)) -> 0.025 | N205: 0.025
C206: =C205+5 -> 30 | G206: % | J206: =IF(ISBLANK(INDEX(N206:Y206,,$J$2)),N206,INDEX(N206:Y206,$J$2)) -> 0.025 | N206: 0.025
A209: Revolver
C211: Max Facility Amount | G211: $m | J211: =IF(ISBLANK(INDEX(N211:Y211,,$J$2)),N211,INDEX(N211:Y211,$J$2)) -> 20 | N211: 20
C213: Timing
C214: Availability Start | G214: year | J214: =J180 -> 2029
C215: Maturity | G215: date | J215: =J182 -> 2045
C217: Commitment Fee | G217: % of margin | J217: =IF(ISBLANK(INDEX(N217:Y217,,$J$2)),N217,INDEX(N217:Y217,$J$2)) -> 0.35 | N217: 0.35
A220: Credit
C222: Financial Covenants
C224: DSCR | G224: x | J224: =IF(ISBLANK(INDEX(N224:AF224,,$J$2)),N224,INDEX(N224:AF224,$J$2)) -> 1.5 | N224: 1.5
C225: LLCR | G225: x | J225: =IF(ISBLANK(INDEX(N225:AF225,,$J$2)),N225,INDEX(N225:AF225,$J$2)) -> 1.6 | N225: 1.6
C226: Interest Coverage Ratio | G226: x | J226: =IF(ISBLANK(INDEX(N226:AF226,,$J$2)),N226,INDEX(N226:AF226,$J$2)) -> 1.5 | N226: 1.5
C227: Leverage Ratio | G227: x | J227: =IF(ISBLANK(INDEX(N227:AF227,,$J$2)),N227,INDEX(N227:AF227,$J$2)) -> 6 | N227: 6
C228: Reserve Tail Ratio | G228: % | J228: =IF(ISBLANK(INDEX(N228:Y228,,$J$2)),N228,INDEX(N228:Y228,$J$2)) -> 0.2 | N228: 0.2
C230: Maintenance Reserve Account
C232: Active | G232: switch | J232: =IF(ISBLANK(INDEX(N232:Y232,,$J$2)),N232,INDEX(N232:Y232,$J$2)) -> TRUE | N232: TRUE
C233: Look Ahead | G233: years | J233: =IF(ISBLANK(INDEX(N233:Y233,,$J$2)),N233,INDEX(N233:Y233,$J$2)) -> 1 | N233: 1
C234: Required % of Sustaining CAPEX | G234: % | J234: =IF(ISBLANK(INDEX(N234:Y234,,$J$2)),N234,INDEX(N234:Y234,$J$2)) -> 1 | N234: 1
C235: Interest Rate | G235: % | J235: =IF(ISBLANK(INDEX(N235:Y235,,$J$2)),N235,INDEX(N235:Y235,$J$2)) -> 0.03 | N235: 0.03
A238: Misc
E240: TRUE
E241: FALSE
A243: End Sheet

Sheet Macroeconomic Inputs
P6: =Input_Scen!J11 -> 2023 | Q6: =P6+1 -> 2024 | R6: =Q6+1 -> 2025 | S6: 2026 | T6: 2027 | U6: 2028 | V6: 2029 | W6: 2030 | X6: 2031 | Y6: 2032 | Z6: 2033 | AA6: 2034 | AB6: 2035 | AC6: 2036 | AD6: 2037 | AE6: 2038 | AF6: 2039 | AG6: 2040 | AH6: =AG6+1 -> 2041 | AI6: 2042 | AJ6: 2043 | AK6: 2044 | AL6: 2045 | AM6: 2046 | AN6: 2047 | AO6: 2048 | AP6: 2049 | AQ6: 2050 | AR6: 2051 | AS6: 2052 | AT6: 2053 | AU6: 2054 | AV6: 2055 | AW6: 2056 | AX6: =AW6+1 -> 2057 | AY6: 2058 | AZ6: 2059 | BA6: 2060 | BB6: 2061 | BC6: 2062 | BD6: 2063 | BE6: 2064 | BF6: 2065 | BG6: 2066 | BH6: 2067 | BI6: 2068 | BJ6: 2069 | BK6: 2070 | BL6: 2071 | BM6: 2072 | BN6: =BM6+1 -> 2073 | BO6: 2074 | BP6: 2075 | BQ6: 2076 | BR6: 2077 | BS6: 2078 | BT6: 2079 | BU6: 2080 | BV6: 2081 | BW6: 2082 | BX6: 2083 | BY6: 2084 | BZ6: 2085 | CA6: 2086 | CB6: 2087 | CC6: 2088 | CD6: =CC6+1 -> 2089 | CE6: 2090 | CF6: 2091 | CG6: 2092 | CH6: 2093 | CI6: 2094 | CJ6: 2095 | CK6: 2096 | CL6: 2097 | CM6: 2098 | CN6: 2099 | CO6: 2100 | CP6: 2101 | CQ6: 2102 | CR6: 2103 | CS6: 2104 | CT6: =CS6+1 -> 2105 | CU6: 2106 | CV6: 2107 | CW6: 2108 | CX6: 2109 | CY6: 2110 | CZ6: 2111 | DA6: 2112 | DB6: 2113 | DC6: 2114 | DD6: 2115 | DE6: 2116 | DF6: 2117 | DG6: 2118 | DH6: 2119 | DI6: 2120 | DJ6: =DI6+1 -> 2121 | DK6: 2122 | DL6: 2123 | DM6: 2124 | DN6: 2125 | DO6: 2126 | DP6: 2127 | DQ6: 2128 | DR6: 2129 | DS6: 2130 | DT6: 2131 | DU6: 2132 | DV6: 2133 | DW6: 2134 | DX6: 2135 | DY6: 2136
P7: 1 | Q7: =P7+1 -> 2 | R7: 3 | S7: 4 | T7: 5 | U7: 6 | V7: 7 | W7: 8 | X7: 9 | Y7: 10 | Z7: 11 | AA7: 12 | AB7: 13 | AC7: 14 | AD7: 15 | AE7: 16 | AF7: 17 | AG7: 18 | AH7: 19 | AI7: 20 | AJ7: 21 | AK7: 22 | AL7: 23 | AM7: 24 | AN7: 25 | AO7: 26 | AP7: 27 | AQ7: 28 | AR7: 29 | AS7: 30 | AT7: 31 | AU7: 32 | AV7: 33 | AW7: 34 | AX7: 35 | AY7: 36 | AZ7: 37 | BA7: 38 | BB7: 39 | BC7: 40 | BD7: 41 | BE7: 42 | BF7: 43 | BG7: 44 | BH7: 45 | BI7: 46 | BJ7: 47 | BK7: 48 | BL7: 49 | BM7: 50 | BN7: 51 | BO7: 52 | BP7: 53 | BQ7: 54 | BR7: 55 | BS7: 56 | BT7: 57 | BU7: 58 | BV7: 59 | BW7: 60 | BX7: 61 | BY7: 62 | BZ7: 63 | CA7: 64 | CB7: 65 | CC7: 66 | CD7: 67 | CE7: 68 | CF7: 69 | CG7: 70 | CH7: 71 | CI7: 72 | CJ7: 73 | CK7: 74 | CL7: 75 | CM7: 76 | CN7: 77 | CO7: 78 | CP7: 79 | CQ7: 80 | CR7: 81 | CS7: 82 | CT7: 83 | CU7: 84 | CV7: 85 | CW7: 86 | CX7: 87 | CY7: 88 | CZ7: 89 | DA7: 90 | DB7: 91 | DC7: 92 | DD7: 93 | DE7: 94 | DF7: 95 | DG7: 96 | DH7: 97 | DI7: 98 | DJ7: 99 | DK7: 100 | DL7: 101 | DM7: 102 | DN7: 103 | DO7: 104 | DP7: 105 | DQ7: 106 | DR7: 107 | DS7: 108 | DT7: 109 | DU7: 110 | DV7: 111 | DW7: 112 | DX7: 113 | DY7: 114
C10: Base Rate
B11: 1 | C11: SOFR | H11: $/t | P11: 0.02 | Q11: 0.02 | R11: 0.02 | S11: 0.02 | T11: 0.02 | U11: 0.02 | V11: 0.02 | W11: 0.02 | X11: 0.02 | Y11: 0.02 | Z11: 0.02 | AA11: 0.02 | AB11: 0.02 | AC11: 0.02 | AD11: 0.02 | AE11: 0.02 | AF11: 0.02 | AG11: 0.02 | AH11: 0.02 | AI11: 0.02 | AJ11: 0.02 | AK11: 0.02 | AL11: 0.02 | AM11: 0.02 | AN11: 0.02 | AO11: 0.02 | AP11: 0.02 | AQ11: 0.02 | AR11: 0.02 | AS11: 0.02 | AT11: 0.02 | AU11: 0.02 | AV11: 0.02 | AW11: 0.02 | AX11: 0.02 | AY11: 0.02 | AZ11: 0.02 | BA11: 0.02 | BB11: 0.02 | BC11: 0.02 | BD11: 0.02 | BE11: 0.02 | BF11: 0.02 | BG11: 0.02 | BH11: 0.02 | BI11: 0.02 | BJ11: 0.02 | BK11: 0.02 | BL11: 0.02 | BM11: 0.02 | BN11: 0.02 | BO11: 0.02 | BP11: 0.02 | BQ11: 0.02 | BR11: 0.02 | BS11: 0.02 | BT11: 0.02 | BU11: 0.02 | BV11: 0.02 | BW11: 0.02 | BX11: 0.02 | BY11: 0.02 | BZ11: 0.02 | CA11: 0.02 | CB11: 0.02 | CC11: 0.02 | CD11: 0.02 | CE11: 0.02 | CF11: 0.02 | CG11: 0.02 | CH11: 0.02 | CI11: 0.02 | CJ11: 0.02 | CK11: 0.02 | CL11: 0.02 | CM11: 0.02 | CN11: 0.02 | CO11: 0.02 | CP11: 0.02 | CQ11: 0.02 | CR11: 0.02 | CS11: 0.02 | CT11: 0.02 | CU11: 0.02 | CV11: 0.02 | CW11: 0.02 | CX11: 0.02 | CY11: 0.02 | CZ11: 0.02 | DA11: 0.02 | DB11: 0.02 | DC11: 0.02 | DD11: 0.02 | DE11: 0.02 | DF11: 0.02 | DG11: 0.02 | DH11: 0.02 | DI11: 0.02 | DJ11: 0.02 | DK11: 0.02 | DL11: 0.02 | DM11: 0.02 | DN11: 0.02 | DO11: 0.02 | DP11: 0.02 | DQ11: 0.02 | DR11: 0.02 | DS11: 0.02 | DT11: 0.02 | DU11: 0.02 | DV11: 0.02 | DW11: 0.02 | DX11: 0.02 | DY11: 0.02
B12: =B11+1 -> 2 | C12: SONIA | H12: $/t | P12: 0.02 | Q12: 0.02 | R12: 0.02 | S12: 0.02 | T12: 0.02 | U12: 0.02 | V12: 0.02 | W12: 0.02 | X12: 0.02 | Y12: 0.02 | Z12: 0.02 | AA12: 0.02 | AB12: 0.02 | AC12: 0.02 | AD12: 0.02 | AE12: 0.02 | AF12: 0.02 | AG12: 0.02 | AH12: 0.02 | AI12: 0.02 | AJ12: 0.02 | AK12: 0.02 | AL12: 0.02 | AM12: 0.02 | AN12: 0.02 | AO12: 0.02 | AP12: 0.02 | AQ12: 0.02 | AR12: 0.02 | AS12: 0.02 | AT12: 0.02 | AU12: 0.02 | AV12: 0.02 | AW12: 0.02 | AX12: 0.02 | AY12: 0.02 | AZ12: 0.02 | BA12: 0.02 | BB12: 0.02 | BC12: 0.02 | BD12: 0.02 | BE12: 0.02 | BF12: 0.02 | BG12: 0.02 | BH12: 0.02 | BI12: 0.02 | BJ12: 0.02 | BK12: 0.02 | BL12: 0.02 | BM12: 0.02 | BN12: 0.02 | BO12: 0.02 | BP12: 0.02 | BQ12: 0.02 | BR12: 0.02 | BS12: 0.02 | BT12: 0.02 | BU12: 0.02 | BV12: 0.02 | BW12: 0.02 | BX12: 0.02 | BY12: 0.02 | BZ12: 0.02 | CA12: 0.02 | CB12: 0.02 | CC12: 0.02 | CD12: 0.02 | CE12: 0.02 | CF12: 0.02 | CG12: 0.02 | CH12: 0.02 | CI12: 0.02 | CJ12: 0.02 | CK12: 0.02 | CL12: 0.02 | CM12: 0.02 | CN12: 0.02 | CO12: 0.02 | CP12: 0.02 | CQ12: 0.02 | CR12: 0.02 | CS12: 0.02 | CT12: 0.02 | CU12: 0.02 | CV12: 0.02 | CW12: 0.02 | CX12: 0.02 | CY12: 0.02 | CZ12: 0.02 | DA12: 0.02 | DB12: 0.02 | DC12: 0.02 | DD12: 0.02 | DE12: 0.02 | DF12: 0.02 | DG12: 0.02 | DH12: 0.02 | DI12: 0.02 | DJ12: 0.02 | DK12: 0.02 | DL12: 0.02 | DM12: 0.02 | DN12: 0.02 | DO12: 0.02 | DP12: 0.02 | DQ12: 0.02 | DR12: 0.02 | DS12: 0.02 | DT12: 0.02 | DU12: 0.02 | DV12: 0.02 | DW12: 0.02 | DX12: 0.02 | DY12: 0.02
B13: =B12+1 -> 3 | C13: EURIBOR | H13: $/t | P13: 0.02 | Q13: 0.02 | R13: 0.02 | S13: 0.02 | T13: 0.02 | U13: 0.02 | V13: 0.02 | W13: 0.02 | X13: 0.02 | Y13: 0.02 | Z13: 0.02 | AA13: 0.02 | AB13: 0.02 | AC13: 0.02 | AD13: 0.02 | AE13: 0.02 | AF13: 0.02 | AG13: 0.02 | AH13: 0.02 | AI13: 0.02 | AJ13: 0.02 | AK13: 0.02 | AL13: 0.02 | AM13: 0.02 | AN13: 0.02 | AO13: 0.02 | AP13: 0.02 | AQ13: 0.02 | AR13: 0.02 | AS13: 0.02 | AT13: 0.02 | AU13: 0.02 | AV13: 0.02 | AW13: 0.02 | AX13: 0.02 | AY13: 0.02 | AZ13: 0.02 | BA13: 0.02 | BB13: 0.02 | BC13: 0.02 | BD13: 0.02 | BE13: 0.02 | BF13: 0.02 | BG13: 0.02 | BH13: 0.02 | BI13: 0.02 | BJ13: 0.02 | BK13: 0.02 | BL13: 0.02 | BM13: 0.02 | BN13: 0.02 | BO13: 0.02 | BP13: 0.02 | BQ13: 0.02 | BR13: 0.02 | BS13: 0.02 | BT13: 0.02 | BU13: 0.02 | BV13: 0.02 | BW13: 0.02 | BX13: 0.02 | BY13: 0.02 | BZ13: 0.02 | CA13: 0.02 | CB13: 0.02 | CC13: 0.02 | CD13: 0.02 | CE13: 0.02 | CF13: 0.02 | CG13: 0.02 | CH13: 0.02 | CI13: 0.02 | CJ13: 0.02 | CK13: 0.02 | CL13: 0.02 | CM13: 0.02 | CN13: 0.02 | CO13: 0.02 | CP13: 0.02 | CQ13: 0.02 | CR13: 0.02 | CS13: 0.02 | CT13: 0.02 | CU13: 0.02 | CV13: 0.02 | CW13: 0.02 | CX13: 0.02 | CY13: 0.02 | CZ13: 0.02 | DA13: 0.02 | DB13: 0.02 | DC13: 0.02 | DD13: 0.02 | DE13: 0.02 | DF13: 0.02 | DG13: 0.02 | DH13: 0.02 | DI13: 0.02 | DJ13: 0.02 | DK13: 0.02 | DL13: 0.02 | DM13: 0.02 | DN13: 0.02 | DO13: 0.02 | DP13: 0.02 | DQ13: 0.02 | DR13: 0.02 | DS13: 0.02 | DT13: 0.02 | DU13: 0.02 | DV13: 0.02 | DW13: 0.02 | DX13: 0.02 | DY13: 0.02
B14: 4 | C14: [spare] | H14: $/t | P14: 0.02 | Q14: 0.02 | R14: 0.02 | S14: 0.02 | T14: 0.02 | U14: 0.02 | V14: 0.02 | W14: 0.02 | X14: 0.02 | Y14: 0.02 | Z14: 0.02 | AA14: 0.02 | AB14: 0.02 | AC14: 0.02 | AD14: 0.02 | AE14: 0.02 | AF14: 0.02 | AG14: 0.02 | AH14: 0.02 | AI14: 0.02 | AJ14: 0.02 | AK14: 0.02 | AL14: 0.02 | AM14: 0.02 | AN14: 0.02 | AO14: 0.02 | AP14: 0.02 | AQ14: 0.02 | AR14: 0.02 | AS14: 0.02 | AT14: 0.02 | AU14: 0.02 | AV14: 0.02 | AW14: 0.02 | AX14: 0.02 | AY14: 0.02 | AZ14: 0.02 | BA14: 0.02 | BB14: 0.02 | BC14: 0.02 | BD14: 0.02 | BE14: 0.02 | BF14: 0.02 | BG14: 0.02 | BH14: 0.02 | BI14: 0.02 | BJ14: 0.02 | BK14: 0.02 | BL14: 0.02 | BM14: 0.02 | BN14: 0.02 | BO14: 0.02 | BP14: 0.02 | BQ14: 0.02 | BR14: 0.02 | BS14: 0.02 | BT14: 0.02 | BU14: 0.02 | BV14: 0.02 | BW14: 0.02 | BX14: 0.02 | BY14: 0.02 | BZ14: 0.02 | CA14: 0.02 | CB14: 0.02 | CC14: 0.02 | CD14: 0.02 | CE14: 0.02 | CF14: 0.02 | CG14: 0.02 | CH14: 0.02 | CI14: 0.02 | CJ14: 0.02 | CK14: 0.02 | CL14: 0.02 | CM14: 0.02 | CN14: 0.02 | CO14: 0.02 | CP14: 0.02 | CQ14: 0.02 | CR14: 0.02 | CS14: 0.02 | CT14: 0.02 | CU14: 0.02 | CV14: 0.02 | CW14: 0.02 | CX14: 0.02 | CY14: 0.02 | CZ14: 0.02 | DA14: 0.02 | DB14: 0.02 | DC14: 0.02 | DD14: 0.02 | DE14: 0.02 | DF14: 0.02 | DG14: 0.02 | DH14: 0.02 | DI14: 0.02 | DJ14: 0.02 | DK14: 0.02 | DL14: 0.02 | DM14: 0.02 | DN14: 0.02 | DO14: 0.02 | DP14: 0.02 | DQ14: 0.02 | DR14: 0.02 | DS14: 0.02 | DT14: 0.02 | DU14: 0.02 | DV14: 0.02 | DW14: 0.02 | DX14: 0.02 | DY14: 0.02
B15: 5 | C15: [spare] | H15: $/t | P15: 0.02 | Q15: 0.02 | R15: 0.02 | S15: 0.02 | T15: 0.02 | U15: 0.02 | V15: 0.02 | W15: 0.02 | X15: 0.02 | Y15: 0.02 | Z15: 0.02 | AA15: 0.02 | AB15: 0.02 | AC15: 0.02 | AD15: 0.02 | AE15: 0.02 | AF15: 0.02 | AG15: 0.02 | AH15: 0.02 | AI15: 0.02 | AJ15: 0.02 | AK15: 0.02 | AL15: 0.02 | AM15: 0.02 | AN15: 0.02 | AO15: 0.02 | AP15: 0.02 | AQ15: 0.02 | AR15: 0.02 | AS15: 0.02 | AT15: 0.02 | AU15: 0.02 | AV15: 0.02 | AW15: 0.02 | AX15: 0.02 | AY15: 0.02 | AZ15: 0.02 | BA15: 0.02 | BB15: 0.02 | BC15: 0.02 | BD15: 0.02 | BE15: 0.02 | BF15: 0.02 | BG15: 0.02 | BH15: 0.02 | BI15: 0.02 | BJ15: 0.02 | BK15: 0.02 | BL15: 0.02 | BM15: 0.02 | BN15: 0.02 | BO15: 0.02 | BP15: 0.02 | BQ15: 0.02 | BR15: 0.02 | BS15: 0.02 | BT15: 0.02 | BU15: 0.02 | BV15: 0.02 | BW15: 0.02 | BX15: 0.02 | BY15: 0.02 | BZ15: 0.02 | CA15: 0.02 | CB15: 0.02 | CC15: 0.02 | CD15: 0.02 | CE15: 0.02 | CF15: 0.02 | CG15: 0.02 | CH15: 0.02 | CI15: 0.02 | CJ15: 0.02 | CK15: 0.02 | CL15: 0.02 | CM15: 0.02 | CN15: 0.02 | CO15: 0.02 | CP15: 0.02 | CQ15: 0.02 | CR15: 0.02 | CS15: 0.02 | CT15: 0.02 | CU15: 0.02 | CV15: 0.02 | CW15: 0.02 | CX15: 0.02 | CY15: 0.02 | CZ15: 0.02 | DA15: 0.02 | DB15: 0.02 | DC15: 0.02 | DD15: 0.02 | DE15: 0.02 | DF15: 0.02 | DG15: 0.02 | DH15: 0.02 | DI15: 0.02 | DJ15: 0.02 | DK15: 0.02 | DL15: 0.02 | DM15: 0.02 | DN15: 0.02 | DO15: 0.02 | DP15: 0.02 | DQ15: 0.02 | DR15: 0.02 | DS15: 0.02 | DT15: 0.02 | DU15: 0.02 | DV15: 0.02 | DW15: 0.02 | DX15: 0.02 | DY15: 0.02
C16: Applied | H16: $/t | K16: EURIBOR | P16: =INDEX(P11:P15,INDEX($B$11:$B$15,MATCH($K$16,$C$11:$C$15,0))) -> 0.02 | Q16: 0.02 | R16: 0.02 | S16: 0.02 | T16: 0.02 | U16: 0.02 | V16: 0.02 | W16: 0.02 | X16: 0.02 | Y16: 0.02 | Z16: 0.02 | AA16: 0.02 | AB16: 0.02 | AC16: 0.02 | AD16: 0.02 | AE16: 0.02 | AF16: 0.02 | AG16: 0.02 | AH16: 0.02 | AI16: 0.02 | AJ16: 0.02 | AK16: 0.02 | AL16: 0.02 | AM16: 0.02 | AN16: 0.02 | AO16: 0.02 | AP16: 0.02 | AQ16: 0.02 | AR16: 0.02 | AS16: 0.02 | AT16: 0.02 | AU16: 0.02 | AV16: =INDEX(AV11:AV15,INDEX($B$11:$B$15,MATCH($K$16,$C$11:$C$15,0))) -> 0.02 | AW16: 0.02 | AX16: 0.02 | AY16: 0.02 | AZ16: 0.02 | BA16: 0.02 | BB16: 0.02 | BC16: 0.02 | BD16: 0.02 | BE16: 0.02 | BF16: 0.02 | BG16: 0.02 | BH16: 0.02 | BI16: 0.02 | BJ16: 0.02 | BK16: 0.02 | BL16: 0.02 | BM16: 0.02 | BN16: 0.02 | BO16: 0.02 | BP16: 0.02 | BQ16: 0.02 | BR16: 0.02 | BS16: 0.02 | BT16: 0.02 | BU16: 0.02 | BV16: 0.02 | BW16: 0.02 | BX16: 0.02 | BY16: 0.02 | BZ16: 0.02 | CA16: 0.02 | CB16: =INDEX(CB11:CB15,INDEX($B$11:$B$15,MATCH($K$16,$C$11:$C$15,0))) -> 0.02 | CC16: 0.02 | CD16: 0.02 | CE16: 0.02 | CF16: 0.02 | CG16: 0.02 | CH16: 0.02 | CI16: 0.02 | CJ16: 0.02 | CK16: 0.02 | CL16: 0.02 | CM16: 0.02 | CN16: 0.02 | CO16: 0.02 | CP16: 0.02 | CQ16: 0.02 | CR16: 0.02 | CS16: 0.02 | CT16: 0.02 | CU16: 0.02 | CV16: 0.02 | CW16: 0.02 | CX16: 0.02 | CY16: 0.02 | CZ16: 0.02 | DA16: 0.02 | DB16: 0.02 | DC16: 0.02 | DD16: 0.02 | DE16: 0.02 | DF16: 0.02 | DG16: 0.02 | DH16: =INDEX(DH11:DH15,INDEX($B$11:$B$15,MATCH($K$16,$C$11:$C$15,0))) -> 0.02 | DI16: 0.02 | DJ16: 0.02 | DK16: 0.02 | DL16: 0.02 | DM16: 0.02 | DN16: 0.02 | DO16: 0.02 | DP16: 0.02 | DQ16: 0.02 | DR16: 0.02 | DS16: 0.02 | DT16: 0.02 | DU16: 0.02 | DV16: 0.02 | DW16: 0.02 | DX16: 0.02 | DY16: 0.02
C18: Inflation
B19: 1 | C19: Base | H19: $/t | P19: 0.02 | Q19: 0.02 | R19: 0.02 | S19: 0.02 | T19: 0.02 | U19: 0.02 | V19: 0.02 | W19: 0.02 | X19: 0.02 | Y19: 0.02 | Z19: 0.02 | AA19: 0.02 | AB19: 0.02 | AC19: 0.02 | AD19: 0.02 | AE19: 0.02 | AF19: 0.02 | AG19: 0.02 | AH19: 0.02 | AI19: 0.02 | AJ19: 0.02 | AK19: 0.02 | AL19: 0.02 | AM19: 0.02 | AN19: 0.02 | AO19: 0.02 | AP19: 0.02 | AQ19: 0.02 | AR19: 0.02 | AS19: 0.02 | AT19: 0.02 | AU19: 0.02 | AV19: 0.02 | AW19: 0.02 | AX19: 0.02 | AY19: 0.02 | AZ19: 0.02 | BA19: 0.02 | BB19: 0.02 | BC19: 0.02 | BD19: 0.02 | BE19: 0.02 | BF19: 0.02 | BG19: 0.02 | BH19: 0.02 | BI19: 0.02 | BJ19: 0.02 | BK19: 0.02 | BL19: 0.02 | BM19: 0.02 | BN19: 0.02 | BO19: 0.02 | BP19: 0.02 | BQ19: 0.02 | BR19: 0.02 | BS19: 0.02 | BT19: 0.02 | BU19: 0.02 | BV19: 0.02 | BW19: 0.02 | BX19: 0.02 | BY19: 0.02 | BZ19: 0.02 | CA19: 0.02 | CB19: 0.02 | CC19: 0.02 | CD19: 0.02 | CE19: 0.02 | CF19: 0.02 | CG19: 0.02 | CH19: 0.02 | CI19: 0.02 | CJ19: 0.02 | CK19: 0.02 | CL19: 0.02 | CM19: 0.02 | CN19: 0.02 | CO19: 0.02 | CP19: 0.02 | CQ19: 0.02 | CR19: 0.02 | CS19: 0.02 | CT19: 0.02 | CU19: 0.02 | CV19: 0.02 | CW19: 0.02 | CX19: 0.02 | CY19: 0.02 | CZ19: 0.02 | DA19: 0.02 | DB19: 0.02 | DC19: 0.02 | DD19: 0.02 | DE19: 0.02 | DF19: 0.02 | DG19: 0.02 | DH19: 0.02 | DI19: 0.02 | DJ19: 0.02 | DK19: 0.02 | DL19: 0.02 | DM19: 0.02 | DN19: 0.02 | DO19: 0.02 | DP19: 0.02 | DQ19: 0.02 | DR19: 0.02 | DS19: 0.02 | DT19: 0.02 | DU19: 0.02 | DV19: 0.02 | DW19: 0.02 | DX19: 0.02 | DY19: 0.02
B20: 2 | C20: High | H20: $/t | P20: 0.04 | Q20: 0.04 | R20: 0.04 | S20: 0.04 | T20: 0.04 | U20: 0.04 | V20: 0.04 | W20: 0.04 | X20: 0.04 | Y20: 0.04 | Z20: 0.04 | AA20: 0.04 | AB20: 0.04 | AC20: 0.04 | AD20: 0.04 | AE20: 0.04 | AF20: 0.04 | AG20: 0.04 | AH20: 0.04 | AI20: 0.04 | AJ20: 0.04 | AK20: 0.04 | AL20: 0.04 | AM20: 0.04 | AN20: 0.04 | AO20: 0.04 | AP20: 0.04 | AQ20: 0.04 | AR20: 0.04 | AS20: 0.04 | AT20: 0.04 | AU20: 0.04 | AV20: 0.04 | AW20: 0.04 | AX20: 0.04 | AY20: 0.04 | AZ20: 0.04 | BA20: 0.04 | BB20: 0.04 | BC20: 0.04 | BD20: 0.04 | BE20: 0.04 | BF20: 0.04 | BG20: 0.04 | BH20: 0.04 | BI20: 0.04 | BJ20: 0.04 | BK20: 0.04 | BL20: 0.04 | BM20: 0.04 | BN20: 0.04 | BO20: 0.04 | BP20: 0.04 | BQ20: 0.04 | BR20: 0.04 | BS20: 0.04 | BT20: 0.04 | BU20: 0.04 | BV20: 0.04 | BW20: 0.04 | BX20: 0.04 | BY20: 0.04 | BZ20: 0.04 | CA20: 0.04 | CB20: 0.04 | CC20: 0.04 | CD20: 0.04 | CE20: 0.04 | CF20: 0.04 | CG20: 0.04 | CH20: 0.04 | CI20: 0.04 | CJ20: 0.04 | CK20: 0.04 | CL20: 0.04 | CM20: 0.04 | CN20: 0.04 | CO20: 0.04 | CP20: 0.04 | CQ20: 0.04 | CR20: 0.04 | CS20: 0.04 | CT20: 0.04 | CU20: 0.04 | CV20: 0.04 | CW20: 0.04 | CX20: 0.04 | CY20: 0.04 | CZ20: 0.04 | DA20: 0.04 | DB20: 0.04 | DC20: 0.04 | DD20: 0.04 | DE20: 0.04 | DF20: 0.04 | DG20: 0.04 | DH20: 0.04 | DI20: 0.04 | DJ20: 0.04 | DK20: 0.04 | DL20: 0.04 | DM20: 0.04 | DN20: 0.04 | DO20: 0.04 | DP20: 0.04 | DQ20: 0.04 | DR20: 0.04 | DS20: 0.04 | DT20: 0.04 | DU20: 0.04 | DV20: 0.04 | DW20: 0.04 | DX20: 0.04 | DY20: 0.04
B21: 3 | C21: Low | H21: $/t | P21: 0.01 | Q21: 0.01 | R21: 0.01 | S21: 0.01 | T21: 0.01 | U21: 0.01 | V21: 0.01 | W21: 0.01 | X21: 0.01 | Y21: 0.01 | Z21: 0.01 | AA21: 0.01 | AB21: 0.01 | AC21: 0.01 | AD21: 0.01 | AE21: 0.01 | AF21: 0.01 | AG21: 0.01 | AH21: 0.01 | AI21: 0.01 | AJ21: 0.01 | AK21: 0.01 | AL21: 0.01 | AM21: 0.01 | AN21: 0.01 | AO21: 0.01 | AP21: 0.01 | AQ21: 0.01 | AR21: 0.01 | AS21: 0.01 | AT21: 0.01 | AU21: 0.01 | AV21: 0.01 | AW21: 0.01 | AX21: 0.01 | AY21: 0.01 | AZ21: 0.01 | BA21: 0.01 | BB21: 0.01 | BC21: 0.01 | BD21: 0.01 | BE21: 0.01 | BF21: 0.01 | BG21: 0.01 | BH21: 0.01 | BI21: 0.01 | BJ21: 0.01 | BK21: 0.01 | BL21: 0.01 | BM21: 0.01 | BN21: 0.01 | BO21: 0.01 | BP21: 0.01 | BQ21: 0.01 | BR21: 0.01 | BS21: 0.01 | BT21: 0.01 | BU21: 0.01 | BV21: 0.01 | BW21: 0.01 | BX21: 0.01 | BY21: 0.01 | BZ21: 0.01 | CA21: 0.01 | CB21: 0.01 | CC21: 0.01 | CD21: 0.01 | CE21: 0.01 | CF21: 0.01 | CG21: 0.01 | CH21: 0.01 | CI21: 0.01 | CJ21: 0.01 | CK21: 0.01 | CL21: 0.01 | CM21: 0.01 | CN21: 0.01 | CO21: 0.01 | CP21: 0.01 | CQ21: 0.01 | CR21: 0.01 | CS21: 0.01 | CT21: 0.01 | CU21: 0.01 | CV21: 0.01 | CW21: 0.01 | CX21: 0.01 | CY21: 0.01 | CZ21: 0.01 | DA21: 0.01 | DB21: 0.01 | DC21: 0.01 | DD21: 0.01 | DE21: 0.01 | DF21: 0.01 | DG21: 0.01 | DH21: 0.01 | DI21: 0.01 | DJ21: 0.01 | DK21: 0.01 | DL21: 0.01 | DM21: 0.01 | DN21: 0.01 | DO21: 0.01 | DP21: 0.01 | DQ21: 0.01 | DR21: 0.01 | DS21: 0.01 | DT21: 0.01 | DU21: 0.01 | DV21: 0.01 | DW21: 0.01 | DX21: 0.01 | DY21: 0.01
C22: Applied | H22: $/t | K22: Base | P22: =INDEX(P19:P21,INDEX($B$19:$B$21,MATCH($K$22,$C$19:$C$21,0))) -> 0.02 | Q22: 0.02 | R22: 0.02 | S22: 0.02 | T22: 0.02 | U22: 0.02 | V22: 0.02 | W22: 0.02 | X22: 0.02 | Y22: 0.02 | Z22: 0.02 | AA22: 0.02 | AB22: 0.02 | AC22: 0.02 | AD22: 0.02 | AE22: 0.02 | AF22: 0.02 | AG22: 0.02 | AH22: 0.02 | AI22: 0.02 | AJ22: 0.02 | AK22: 0.02 | AL22: 0.02 | AM22: 0.02 | AN22: 0.02 | AO22: 0.02 | AP22: 0.02 | AQ22: 0.02 | AR22: 0.02 | AS22: 0.02 | AT22: 0.02 | AU22: 0.02 | AV22: 0.02 | AW22: 0.02 | AX22: 0.02 | AY22: 0.02 | AZ22: 0.02 | BA22: 0.02 | BB22: 0.02 | BC22: 0.02 | BD22: 0.02 | BE22: 0.02 | BF22: 0.02 | BG22: 0.02 | BH22: 0.02 | BI22: 0.02 | BJ22: 0.02 | BK22: 0.02 | BL22: 0.02 | BM22: 0.02 | BN22: 0.02 | BO22: 0.02 | BP22: 0.02 | BQ22: 0.02 | BR22: 0.02 | BS22: 0.02 | BT22: 0.02 | BU22: 0.02 | BV22: 0.02 | BW22: 0.02 | BX22: 0.02 | BY22: 0.02 | BZ22: 0.02 | CA22: 0.02 | CB22: =INDEX(CB19:CB21,INDEX($B$19:$B$21,MATCH($K$22,$C$19:$C$21,0))) -> 0.02 | CC22: 0.02 | CD22: 0.02 | CE22: 0.02 | CF22: 0.02 | CG22: 0.02 | CH22: 0.02 | CI22: 0.02 | CJ22: 0.02 | CK22: 0.02 | CL22: 0.02 | CM22: 0.02 | CN22: 0.02 | CO22: 0.02 | CP22: 0.02 | CQ22: 0.02 | CR22: 0.02 | CS22: 0.02 | CT22: 0.02 | CU22: 0.02 | CV22: 0.02 | CW22: 0.02 | CX22: 0.02 | CY22: 0.02 | CZ22: 0.02 | DA22: 0.02 | DB22: 0.02 | DC22: 0.02 | DD22: 0.02 | DE22: 0.02 | DF22: 0.02 | DG22: 0.02 | DH22: 0.02 | DI22: 0.02 | DJ22: 0.02 | DK22: 0.02 | DL22: 0.02 | DM22: 0.02 | DN22: 0.02 | DO22: 0.02 | DP22: 0.02 | DQ22: 0.02 | DR22: 0.02 | DS22: 0.02 | DT22: 0.02 | DU22: 0.02 | DV22: 0.02 | DW22: 0.02 | DX22: 0.02 | DY22: 0.02
C25: Corporate Tax Rate | H25: % | K25: 0.3
A28: End Sheet

Sheet Feasibility Study
P6: =Input_Scen!J11 -> 2023 | Q6: =P6+1 -> 2024 | R6: =Q6+1 -> 2025 | S6: 2026 | T6: 2027 | U6: 2028 | V6: 2029 | W6: 2030 | X6: 2031 | Y6: 2032 | Z6: 2033 | AA6: 2034 | AB6: 2035 | AC6: 2036 | AD6: 2037 | AE6: 2038 | AF6: 2039 | AG6: 2040 | AH6: 2041 | AI6: 2042 | AJ6: 2043 | AK6: 2044 | AL6: 2045 | AM6: 2046 | AN6: 2047 | AO6: 2048 | AP6: 2049 | AQ6: 2050 | AR6: 2051 | AS6: 2052 | AT6: 2053 | AU6: 2054 | AV6: 2055 | AW6: 2056 | AX6: 2057 | AY6: 2058 | AZ6: 2059 | BA6: 2060 | BB6: 2061 | BC6: 2062 | BD6: 2063 | BE6: 2064 | BF6: 2065 | BG6: 2066 | BH6: 2067 | BI6: 2068 | BJ6: 2069 | BK6: 2070 | BL6: 2071 | BM6: 2072 | BN6: 2073 | BO6: 2074 | BP6: 2075 | BQ6: 2076 | BR6: 2077 | BS6: 2078 | BT6: 2079 | BU6: 2080 | BV6: 2081 | BW6: 2082 | BX6: 2083 | BY6: 2084 | BZ6: 2085 | CA6: 2086 | CB6: 2087 | CC6: 2088 | CD6: =CC6+1 -> 2089 | CE6: 2090 | CF6: 2091 | CG6: 2092 | CH6: 2093 | CI6: 2094 | CJ6: 2095 | CK6: 2096 | CL6: 2097 | CM6: 2098 | CN6: 2099 | CO6: 2100 | CP6: 2101 | CQ6: 2102 | CR6: 2103 | CS6: 2104 | CT6: 2105 | CU6: 2106 | CV6: 2107 | CW6: 2108 | CX6: 2109 | CY6: 2110 | CZ6: 2111 | DA6: 2112 | DB6: 2113 | DC6: 2114 | DD6: 2115 | DE6: 2116 | DF6: 2117 | DG6: 2118 | DH6: 2119 | DI6: 2120 | DJ6: 2121 | DK6: 2122 | DL6: 2123 | DM6: 2124 | DN6: 2125 | DO6: 2126 | DP6: 2127 | DQ6: 2128 | DR6: 2129 | DS6: 2130 | DT6: 2131 | DU6: 2132 | DV6: 2133 | DW6: 2134 | DX6: 2135 | DY6: 2136
P7: 1 | Q7: =P7+1 -> 2 | R7: 3 | S7: 4 | T7: 5 | U7: 6 | V7: 7 | W7: 8 | X7: 9 | Y7: 10 | Z7: 11 | AA7: 12 | AB7: 13 | AC7: 14 | AD7: 15 | AE7: 16 | AF7: 17 | AG7: 18 | AH7: 19 | AI7: 20 | AJ7: 21 | AK7: 22 | AL7: 23 | AM7: 24 | AN7: 25 | AO7: 26 | AP7: 27 | AQ7: 28 | AR7: 29 | AS7: 30 | AT7: 31 | AU7: 32 | AV7: 33 | AW7: 34 | AX7: 35 | AY7: 36 | AZ7: 37 | BA7: 38 | BB7: 39 | BC7: 40 | BD7: 41 | BE7: 42 | BF7: 43 | BG7: 44 | BH7: 45 | BI7: 46 | BJ7: 47 | BK7: 48 | BL7: 49 | BM7: 50 | BN7: 51 | BO7: 52 | BP7: 53 | BQ7: 54 | BR7: 55 | BS7: 56 | BT7: 57 | BU7: 58 | BV7: 59 | BW7: 60 | BX7: 61 | BY7: 62 | BZ7: 63 | CA7: 64 | CB7: 65 | CC7: 66 | CD7: 67 | CE7: 68 | CF7: 69 | CG7: 70 | CH7: 71 | CI7: 72 | CJ7: 73 | CK7: 74 | CL7: 75 | CM7: 76 | CN7: 77 | CO7: 78 | CP7: 79 | CQ7: 80 | CR7: 81 | CS7: 82 | CT7: 83 | CU7: 84 | CV7: 85 | CW7: 86 | CX7: 87 | CY7: 88 | CZ7: 89 | DA7: 90 | DB7: 91 | DC7: 92 | DD7: 93 | DE7: 94 | DF7: 95 | DG7: 96 | DH7: 97 | DI7: 98 | DJ7: 99 | DK7: 100 | DL7: 101 | DM7: 102 | DN7: 103 | DO7: 104 | DP7: 105 | DQ7: 106 | DR7: 107 | DS7: 108 | DT7: 109 | DU7: 110 | DV7: 111 | DW7: 112 | DX7: 113 | DY7: 114
A9: CAPEX
A10: Development CAPEX
B12: CAPEX Period | I12: flag | P12: =Time!P18 -> 0 | Q12: =Time!Q18 -> 0 | R12: =Time!R18 -> 0 | S12: =Time!S18 -> 1 | T12: =Time!T18 -> 1 | U12: =Time!U18 -> 1 | V12: =Time!V18 -> 0 | W12: =Time!W18 -> 0 | X12: =Time!X18 -> 0 | Y12: =Time!Y18 -> 0 | Z12: =Time!Z18 -> 0 | AA12: =Time!AA18 -> 0 | AB12: =Time!AB18 -> 0 | AC12: =Time!AC18 -> 0 | AD12: =Time!AD18 -> 0 | AE12: =Time!AE18 -> 0 | AF12: =Time!AF18 -> 0 | AG12: =Time!AG18 -> 0 | AH12: =Time!AH18 -> 0 | AI12: =Time!AI18 -> 0 | AJ12: =Time!AJ18 -> 0 | AK12: =Time!AK18 -> 0 | AL12: =Time!AL18 -> 0 | AM12: =Time!AM18 -> 0 | AN12: =Time!AN18 -> 0 | AO12: =Time!AO18 -> 0 | AP12: =Time!AP18 -> 0 | AQ12: =Time!AQ18 -> 0 | AR12: =Time!AR18 -> 0 | AS12: =Time!AS18 -> 0 | AT12: =Time!AT18 -> 0 | AU12: =Time!AU18 -> 0 | AV12: =Time!AV18 -> 0 | AW12: =Time!AW18 -> 0 | AX12: =Time!AX18 -> 0 | AY12: =Time!AY18 -> 0 | AZ12: =Time!AZ18 -> 0 | BA12: =Time!BA18 -> 0 | BB12: =Time!BB18 -> 0 | BC12: =Time!BC18 -> 0 | BD12: =Time!BD18 -> 0 | BE12: =Time!BE18 -> 0 | BF12: =Time!BF18 -> 0 | BG12: =Time!BG18 -> 0 | BH12: =Time!BH18 -> 0 | BI12: =Time!BI18 -> 0 | BJ12: =Time!BJ18 -> 0 | BK12: =Time!BK18 -> 0 | BL12: =Time!BL18 -> 0 | BM12: =Time!BM18 -> 0 | BN12: =Time!BN18 -> 0 | BO12: =Time!BO18 -> 0 | BP12: =Time!BP18 -> 0 | BQ12: =Time!BQ18 -> 0 | BR12: =Time!BR18 -> 0 | BS12: =Time!BS18 -> 0 | BT12: =Time!BT18 -> 0 | BU12: =Time!BU18 -> 0 | BV12: =Time!BV18 -> 0 | BW12: =Time!BW18 -> 0 | BX12: =Time!BX18 -> 0 | BY12: =Time!BY18 -> 0 | BZ12: =Time!BZ18 -> 0 | CA12: =Time!CA18 -> 0 | CB12: =Time!CB18 -> 0 | CC12: =Time!CC18 -> 0 | CD12: =Time!CD18 -> 0 | CE12: =Time!CE18 -> 0 | CF12: =Time!CF18 -> 0 | CG12: =Time!CG18 -> 0 | CH12: =Time!CH18 -> 0 | CI12: =Time!CI18 -> 0 | CJ12: =Time!CJ18 -> 0 | CK12: =Time!CK18 -> 0 | CL12: =Time!CL18 -> 0 | CM12: =Time!CM18 -> 0 | CN12: =Time!CN18 -> 0 | CO12: =Time!CO18 -> 0 | CP12: =Time!CP18 -> 0 | CQ12: =Time!CQ18 -> 0 | CR12: =Time!CR18 -> 0 | CS12: =Time!CS18 -> 0 | CT12: =Time!CT18 -> 0 | CU12: =Time!CU18 -> 0 | CV12: =Time!CV18 -> 0 | CW12: =Time!CW18 -> 0 | CX12: =Time!CX18 -> 0 | CY12: =Time!CY18 -> 0 | CZ12: =Time!CZ18 -> 0 | DA12: =Time!DA18 -> 0 | DB12: =Time!DB18 -> 0 | DC12: =Time!DC18 -> 0 | DD12: =Time!DD18 -> 0 | DE12: =Time!DE18 -> 0 | DF12: =Time!DF18 -> 0 | DG12: =Time!DG18 -> 0 | DH12: =Time!DH18 -> 0 | DI12: =Time!DI18 -> 0 | DJ12: =Time!DJ18 -> 0 | DK12: =Time!DK18 -> 0 | DL12: =Time!DL18 -> 0 | DM12: =Time!DM18 -> 0 | DN12: =Time!DN18 -> 0 | DO12: =Time!DO18 -> 0 | DP12: =Time!DP18 -> 0 | DQ12: =Time!DQ18 -> 0 | DR12: =Time!DR18 -> 0 | DS12: =Time!DS18 -> 0 | DT12: =Time!DT18 -> 0 | DU12: =Time!DU18 -> 0 | DV12: =Time!DV18 -> 0 | DW12: =Time!DW18 -> 0 | DX12: =Time!DX18 -> 0 | DY12: =Time!DY18 -> 0
B14: Mining | I14: $m | N14: =SUMIF(P$12:DE$12,1,P14:DE14) -> 20 | S14: 10.5 | T14: 0 | U14: 9.5
B15: Processing | I15: $m | N15: =SUMIF(P$12:DE$12,1,P15:DE15) -> 196.1 | S15: 98.1 | T15: 44.8 | U15: 53.2
B16: Infrastructure & Services | I16: $m | N16: 62.3 | S16: 31.2 | T16: 12.6 | U16: 18.5
B17: Offsite infrastructure | I17: $m | N17: 1 | S17: 0.4 | T17: 0.3 | U17: 0.3
B18: Indirect costs | I18: $m | N18: 1 | S18: 0.4 | T18: 0.3 | U18: 0.3
B19: Construction overheads | I19: $m | N19: 19.4 | S19: 9.7 | T19: 7.3 | U19: 2.4
B20: Owner’s costs | I20: $m | N20: 110.6 | S20: 45 | T20: 24.3 | U20: 41.3
B21: Tailings | I21: $m | N21: 43.2 | S21: 21.6 | T21: 10.8 | U21: 10.8
B22: Project Management | I22: $m | N22: 11.1 | S22: 5.5 | T22: 2.8 | U22: 2.8
B23: =Input_Scen!C42 -> [Spare] | I23: $m | N23: 0 | S23: 0 | T23: 0 | U23: 0
B24: =Input_Scen!C43 -> [Spare] | I24: $m | N24: 0 | S24: 0 | T24: 0 | U24: 0
B25: Total | N25: 464.7 | P25: =SUM(P14:P24) -> 0 | Q25: =SUM(Q14:Q24) -> 0 | R25: 0 | S25: 222.4 | T25: 103.2 | U25: 139.1 | V25: 0 | W25: 0 | X25: 0 | Y25: 0 | Z25: 0 | AA25: 0 | AB25: 0 | AC25: 0 | AD25: 0 | AE25: 0 | AF25: 0 | AG25: 0 | AH25: 0 | AI25: 0 | AJ25: 0 | AK25: 0 | AL25: 0 | AM25: 0 | AN25: 0 | AO25: 0 | AP25: 0 | AQ25: 0 | AR25: 0 | AS25: 0 | AT25: 0 | AU25: 0 | AV25: 0 | AW25: 0 | AX25: 0 | AY25: 0 | AZ25: 0 | BA25: 0 | BB25: 0 | BC25: 0 | BD25: 0 | BE25: 0 | BF25: 0 | BG25: 0 | BH25: 0 | BI25: 0 | BJ25: 0 | BK25: 0 | BL25: 0 | BM25: 0 | BN25: 0 | BO25: 0 | BP25: 0 | BQ25: 0 | BR25: 0 | BS25: 0 | BT25: 0 | BU25: 0 | BV25: 0 | BW25: 0 | BX25: 0 | BY25: 0 | BZ25: 0 | CA25: 0 | CB25: 0 | CC25: =SUM(CC14:CC24) -> 0 | CD25: 0 | CE25: 0 | CF25: 0 | CG25: 0 | CH25: 0 | CI25: 0 | CJ25: 0 | CK25: 0 | CL25: 0 | CM25: 0 | CN25: 0 | CO25: 0 | CP25: 0 | CQ25: 0 | CR25: 0 | CS25: 0 | CT25: 0 | CU25: 0 | CV25: 0 | CW25: 0 | CX25: 0 | CY25: 0 | CZ25: 0 | DA25: 0 | DB25: 0 | DC25: 0 | DD25: 0 | DE25: 0 | DF25: 0 | DG25: 0 | DH25: 0 | DI25: 0 | DJ25: 0 | DK25: 0 | DL25: 0 | DM25: 0 | DN25: 0 | DO25: 0 | DP25: 0 | DQ25: 0 | DR25: 0 | DS25: 0 | DT25: 0 | DU25: 0 | DV25: 0 | DW25: 0 | DX25: 0 | DY25: 0
B27: Contingency | I27: % | K27: 0.05 | N27: =SUMIF(P$12:DE$12,1,P27:DE27) -> 23.235 | P27: =$K$27*P25 -> 0 | Q27: =$K$27*Q25 -> 0 | R27: 0 | S27: 11.12 | T27: 5.16 | U27: 6.955 | V27: 0 | W27: 0 | X27: 0 | Y27: 0 | Z27: 0 | AA27: 0 | AB27: 0 | AC27: 0 | AD27: 0 | AE27: 0 | AF27: 0 | AG27: 0 | AH27: 0 | AI27: 0 | AJ27: 0 | AK27: 0 | AL27: 0 | AM27: 0 | AN27: 0 | AO27: 0 | AP27: 0 | AQ27: 0 | AR27: 0 | AS27: 0 | AT27: 0 | AU27: 0 | AV27: 0 | AW27: 0 | AX27: 0 | AY27: 0 | AZ27: 0 | BA27: 0 | BB27: 0 | BC27: 0 | BD27: 0 | BE27: 0 | BF27: 0 | BG27: 0 | BH27: 0 | BI27: 0 | BJ27: 0 | BK27: 0 | BL27: 0 | BM27: 0 | BN27: 0 | BO27: 0 | BP27: 0 | BQ27: 0 | BR27: 0 | BS27: 0 | BT27: 0 | BU27: 0 | BV27: 0 | BW27: 0 | BX27: 0 | BY27: 0 | BZ27: 0 | CA27: 0 | CB27: 0 | CC27: =$K$27*CC25 -> 0 | CD27: 0 | CE27: 0 | CF27: 0 | CG27: 0 | CH27: 0 | CI27: 0 | CJ27: 0 | CK27: 0 | CL27: 0 | CM27: 0 | CN27: 0 | CO27: 0 | CP27: 0 | CQ27: 0 | CR27: 0 | CS27: 0 | CT27: 0 | CU27: 0 | CV27: 0 | CW27: 0 | CX27: 0 | CY27: 0 | CZ27: 0 | DA27: 0 | DB27: 0 | DC27: 0 | DD27: 0 | DE27: 0 | DF27: 0 | DG27: 0 | DH27: 0 | DI27: 0 | DJ27: 0 | DK27: 0 | DL27: 0 | DM27: 0 | DN27: 0 | DO27: 0 | DP27: 0 | DQ27: 0 | DR27: 0 | DS27: 0 | DT27: 0 | DU27: 0 | DV27: 0 | DW27: 0 | DX27: 0 | DY27: 0
A30: Sustaining CAPEX
B32: Operations Period | I32: flag | P32: =Time!P22 -> 0 | Q32: =Time!Q22 -> 0 | R32: =Time!R22 -> 0 | S32: =Time!S22 -> 0 | T32: =Time!T22 -> 0 | U32: =Time!U22 -> 0 | V32: =Time!V22 -> 1 | W32: =Time!W22 -> 1 | X32: =Time!X22 -> 1 | Y32: =Time!Y22 -> 1 | Z32: =Time!Z22 -> 1 | AA32: =Time!AA22 -> 1 | AB32: =Time!AB22 -> 1 | AC32: =Time!AC22 -> 1 | AD32: =Time!AD22 -> 1 | AE32: =Time!AE22 -> 1 | AF32: =Time!AF22 -> 1 | AG32: =Time!AG22 -> 1 | AH32: =Time!AH22 -> 1 | AI32: =Time!AI22 -> 1 | AJ32: =Time!AJ22 -> 1 | AK32: =Time!AK22 -> 1 | AL32: =Time!AL22 -> 1 | AM32: =Time!AM22 -> 1 | AN32: =Time!AN22 -> 1 | AO32: =Time!AO22 -> 1 | AP32: =Time!AP22 -> 1 | AQ32: =Time!AQ22 -> 1 | AR32: =Time!AR22 -> 1 | AS32: =Time!AS22 -> 1 | AT32: =Time!AT22 -> 1 | AU32: =Time!AU22 -> 1 | AV32: =Time!AV22 -> 1 | AW32: =Time!AW22 -> 0 | AX32: =Time!AX22 -> 0 | AY32: =Time!AY22 -> 0 | AZ32: =Time!AZ22 -> 0 | BA32: =Time!BA22 -> 0 | BB32: =Time!BB22 -> 0 | BC32: =Time!BC22 -> 0 | BD32: =Time!BD22 -> 0 | BE32: =Time!BE22 -> 0 | BF32: =Time!BF22 -> 0 | BG32: =Time!BG22 -> 0 | BH32: =Time!BH22 -> 0 | BI32: =Time!BI22 -> 0 | BJ32: =Time!BJ22 -> 0 | BK32: =Time!BK22 -> 0 | BL32: =Time!BL22 -> 0 | BM32: =Time!BM22 -> 0 | BN32: =Time!BN22 -> 0 | BO32: =Time!BO22 -> 0 | BP32: =Time!BP22 -> 0 | BQ32: =Time!BQ22 -> 0 | BR32: =Time!BR22 -> 0 | BS32: =Time!BS22 -> 0 | BT32: =Time!BT22 -> 0 | BU32: =Time!BU22 -> 0 | BV32: =Time!BV22 -> 0 | BW32: =Time!BW22 -> 0 | BX32: =Time!BX22 -> 0 | BY32: =Time!BY22 -> 0 | BZ32: =Time!BZ22 -> 0 | CA32: =Time!CA22 -> 0 | CB32: =Time!CB22 -> 0 | CC32: =Time!CC22 -> 0 | CD32: =Time!CD22 -> 0 | CE32: =Time!CE22 -> 0 | CF32: =Time!CF22 -> 0 | CG32: =Time!CG22 -> 0 | CH32: =Time!CH22 -> 0 | CI32: =Time!CI22 -> 0 | CJ32: =Time!CJ22 -> 0 | CK32: =Time!CK22 -> 0 | CL32: =Time!CL22 -> 0 | CM32: =Time!CM22 -> 0 | CN32: =Time!CN22 -> 0 | CO32: =Time!CO22 -> 0 | CP32: =Time!CP22 -> 0 | CQ32: =Time!CQ22 -> 0 | CR32: =Time!CR22 -> 0 | CS32: =Time!CS22 -> 0 | CT32: =Time!CT22 -> 0 | CU32: =Time!CU22 -> 0 | CV32: =Time!CV22 -> 0 | CW32: =Time!CW22 -> 0 | CX32: =Time!CX22 -> 0 | CY32: =Time!CY22 -> 0 | CZ32: =Time!CZ22 -> 0 | DA32: =Time!DA22 -> 0 | DB32: =Time!DB22 -> 0 | DC32: =Time!DC22 -> 0 | DD32: =Time!DD22 -> 0 | DE32: =Time!DE22 -> 0 | DF32: =Time!DF22 -> 0 | DG32: =Time!DG22 -> 0 | DH32: =Time!DH22 -> 0 | DI32: =Time!DI22 -> 0 | DJ32: =Time!DJ22 -> 0 | DK32: =Time!DK22 -> 0 | DL32: =Time!DL22 -> 0 | DM32: =Time!DM22 -> 0 | DN32: =Time!DN22 -> 0 | DO32: =Time!DO22 -> 0 | DP32: =Time!DP22 -> 0 | DQ32: =Time!DQ22 -> 0 | DR32: =Time!DR22 -> 0 | DS32: =Time!DS22 -> 0 | DT32: =Time!DT22 -> 0 | DU32: =Time!DU22 -> 0 | DV32: =Time!DV22 -> 0 | DW32: =Time!DW22 -> 0 | DX32: =Time!DX22 -> 0 | DY32: =Time!DY22 -> 0
B34: Clearing & Topsoil Removal | I34: $m | N34: =SUMIF(P$32:DE$32,1,P34:DE34) -> 11.40415097 | V34: 0.08501895265 | W34: 0.732200766 | X34: 0.123431957 | Y34: 0.320967645 | Z34: 0.04117054203 | AA34: 0.5985196063 | AB34: 0.4535283998 | AC34: 0.5493209422 | AD34: 0.8039933561 | AE34: 0.3238007765 | AF34: 0.2778978903 | AG34: 0.909855998 | AH34: 0.1014374533 | AI34: 0.2776242477 | AJ34: 0.1319432268 | AK34: 0.252060537 | AL34: 0.8136600072 | AM34: 0.02743085197 | AN34: 0.4102550586 | AO34: 0.6768907012 | AP34: 0.3199091561 | AQ34: 0.9366449232 | AR34: 0.7886402262 | AS34: 0.1072182378 | AT34: 0.1031877342 | AU34: 0.4497289583 | AV34: 0.7878128167 | AW34: 0.1098076423 | AX34: 0.9071277946 | AY34: 0.2788722744 | AZ34: 0.4294895313 | BA34: 0.0915783474 | BB34: 0.326953651 | BC34: 0.9755584429 | BD34: 0.7715681639 | BE34: 0.8122792008 | BF34: 0.2533729376 | BG34: 0.297245412 | BH34: 0.06207106003 | BI34: 0.5838280154 | BJ34: 0.04326443375 | BK34: 0.4121913054 | BL34: 0.4046681681 | BM34: 0.2198461306 | BN34: 0.9134634964 | BO34: 0.4893528413 | BP34: 0.9317167213 | BQ34: 0.8637098353 | BR34: 0.744736674 | BS34: 0.9437131299 | BT34: 0.6606537642 | BU34: 0.6130456864 | BV34: 0.2313743249 | BW34: 0.3096487835 | BX34: 0.5891310876 | BY34: 0.4629322094 | BZ34: 0.6323409828 | CA34: 0.5271192174 | CB34: 0.8364846253 | CC34: 0.6362582542 | CD34: 0.02873602876 | CE34: 0.3469577154 | CF34: 0.1133986184 | CG34: 0.9155136072 | CH34: 0.527740547 | CI34: 0.9891374032 | CJ34: 0.3188534431 | CK34: 0.6021651742 | CL34: 0.09130165504 | CM34: 0.6218875378 | CN34: 0.1903597073 | CO34: 0.1853010125 | CP34: 0.1231698085 | CQ34: 0.1321530461 | CR34: 0.266108737 | CS34: 0.7212702168 | CT34: 0.1342494406 | CU34: 0.0226679617 | CV34: 0.2368537316 | CW34: 0.02828951116 | CX34: 0.4771100073
B35: Haul Road Construction | I35: $m | N35: =SUMIF(P$32:DE$32,1,P35:DE35) -> 12.68043916 | V35: 0.4764554214 | W35: 0.8091733118 | X35: 0.3503300075 | Y35: 0.5045228567 | Z35: 0.02430880778 | AA35: 0.3032804669 | AB35: 0.08430009396 | AC35: 0.02612889273 | AD35: 0.8581023357 | AE35: 0.05470058139 | AF35: 0.4894110925 | AG35: 0.3108577201 | AH35: 0.6101740083 | AI35: 0.8536157042 | AJ35: 0.6828698684 | AK35: 0.2368912518 | AL35: 0.581336075 | AM35: 0.739006476 | AN35: 0.9762132608 | AO35: 0.2249882064 | AP35: 0.3584622452 | AQ35: 0.6205574311 | AR35: 0.8157234715 | AS35: 0.351404746 | AT35: 0.07362358617 | AU35: 0.7462779982 | AV35: 0.5177232393 | AW35: 0.1858013605 | AX35: 0.1180252945 | AY35: 0.6003341026 | AZ35: 0.1761279152 | BA35: 0.7690163626 | BB35: 0.005002332291 | BC35: 0.7177502609 | BD35: 0.8513638648 | BE35: 0.8924481114 | BF35: 0.848640258 | BG35: 0.3027754639 | BH35: 0.780876442 | BI35: 0.1117294148 | BJ35: 0.572991444 | BK35: 0.7808150967 | BL35: 0.5267943283 | BM35: 0.8931718856 | BN35: 0.5555263325 | BO35: 0.3287446747 | BP35: 0.2212666413 | BQ35: 0.4086999137 | BR35: 0.05704201514 | BS35: 0.1152147087 | BT35: 0.8960986273 | BU35: 0.8129609383 | BV35: 0.6268392561 | BW35: 0.2312979422 | BX35: 0.7068078136 | BY35: 0.3023111743 | BZ35: 0.5805718875 | CA35: 0.01496426023 | CB35: 0.4488773864 | CC35: 0.3810406866 | CD35: 0.8091874949 | CE35: 0.9506832251 | CF35: 0.778729915 | CG35: 0.9000809512 | CH35: 0.691459117 | CI35: 0.1842397537 | CJ35: 0.6239181239 | CK35: 0.6435090586 | CL35: 0.2784474014 | CM35: 0.1270726303 | CN35: 0.6619794699 | CO35: 0.9233888445 | CP35: 0.7400781093 | CQ35: 0.1683473247 | CR35: 0.269462799 | CS35: 0.5996330644 | CT35: 0.7933319946 | CU35: 0.003298749187 | CV35: 0.9222968861 | CW35: 0.7285919122 | CX35: 0.4666670941
B36: Tailings Dam Lift | I36: $m | N36: 16.47232199 | V36: 0.7120850776 | W36: 0.3137271867 | X36: 0.9387274067 | Y36: 0.8319217632 | Z36: 0.6748667877 | AA36: 0.8630772593 | AB36: 0.6190259624 | AC36: 0.4494527849 | AD36: 0.003967277 | AE36: 0.6475339392 | AF36: 0.7833897728 | AG36: 0.8835359724 | AH36: 0.5105621811 | AI36: 0.3720555712 | AJ36: 0.7626018914 | AK36: 0.7715643972 | AL36: 0.4275482474 | AM36: 0.9634032905 | AN36: 0.5237765244 | AO36: 0.2020332979 | AP36: 0.04545745124 | AQ36: 0.9420799737 | AR36: 0.6203005504 | AS36: 0.7964396962 | AT36: 0.9706366794 | AU36: 0.06539619735 | AV36: 0.7771548536 | AW36: 0.7897256036 | AX36: 0.4237886582 | AY36: 0.6536101917 | AZ36: 0.1405907478 | BA36: 0.9492759156 | BB36: 0.9125793883 | BC36: 0.2351688254 | BD36: 0.6556986457 | BE36: 0.9971801084 | BF36: 0.2009066817 | BG36: 0.4488104614 | BH36: 0.08310783027 | BI36: 0.3950946571 | BJ36: 0.8502883643 | BK36: 0.5614656161 | BL36: 0.7783079287 | BM36: 0.7289216821 | BN36: 0.047748345 | BO36: 0.7058484858 | BP36: 0.3126526777 | BQ36: 0.1272317437 | BR36: 0.5388140936 | BS36: 0.7542233235 | BT36: 0.7987803875 | BU36: 0.2052767251 | BV36: 0.4676911669 | BW36: 0.8202646947 | BX36: 0.6531658685 | BY36: 0.547082931 | BZ36: 0.4531049561 | CA36: 0.7649491979 | CB36: 0.02895348313 | CC36: 0.064156243 | CD36: 0.2896509665 | CE36: 0.155170526 | CF36: 0.7457135705 | CG36: 0.3108628153 | CH36: 0.1943899865 | CI36: 0.6887247001 | CJ36: 0.4167409687 | CK36: 0.9359708379 | CL36: 0.2808911323 | CM36: 0.8956130296 | CN36: 0.6841243943 | CO36: 0.4991165043 | CP36: 0.1225890441 | CQ36: 0.5457980212 | CR36: 0.1620088004 | CS36: 0.5556806963 | CT36: 0.9907849421 | CU36: 0.7842029506 | CV36: 0.7648882633 | CW36: 0.8668146764 | CX36: 0.1969671964
B37: Mine Sediment Control | I37: $m | N37: 10.32522701 | V37: 0.2709077279 | W37: 0.02415817635 | X37: 0.9661836 | Y37: 0.2941740343 | Z37: 0.1671230469 | AA37: 0.7586824099 | AB37: 0.3193272966 | AC37: 0.169664749 | AD37: 0.5020835877 | AE37: 0.02185061139 | AF37: 0.1777248731 | AG37: 0.05612501119 | AH37: 0.1812739459 | AI37: 0.2844085473 | AJ37: 0.7729861117 | AK37: 0.7921152929 | AL37: 0.04398660796 | AM37: 0.7866683092 | AN37: 0.9116298836 | AO37: 0.3351211298 | AP37: 0.2752457014 | AQ37: 0.793780071 | AR37: 0.3379505889 | AS37: 0.1392302448 | AT37: 0.430262614 | AU37: 0.1928668899 | AV37: 0.3196959428 | AW37: 0.7688837522 | AX37: 0.1564976424 | AY37: 0.3954481507 | AZ37: 0.9488111831 | BA37: 0.2273045803 | BB37: 0.3587320869 | BC37: 0.5086740381 | BD37: 0.02953781159 | BE37: 0.5504764727 | BF37: 0.3653842723 | BG37: 0.5620459233 | BH37: 0.1488568893 | BI37: 0.4182997839 | BJ37: 0.9394708003 | BK37: 0.09184487388 | BL37: 0.6898439797 | BM37: 0.269343365 | BN37: 0.5877564264 | BO37: 0.8074257362 | BP37: 0.377368335 | BQ37: 0.1865673573 | BR37: 0.8224494158 | BS37: 0.1090329977 | BT37: 0.04954067212 | BU37: 0.6308465931 | BV37: 0.6996995953 | BW37: 0.9703394398 | BX37: 0.07266384193 | BY37: 0.3341142134 | BZ37: 0.6494074295 | CA37: 0.4097147235 | CB37: 0.7968527411 | CC37: 0.5933005978 | CD37: 0.3677544295 | CE37: 0.7011286421 | CF37: 0.8516567606 | CG37: 0.5728468334 | CH37: 0.0229785596 | CI37: 0.7255970738 | CJ37: 0.01563335961 | CK37: 0.07227586279 | CL37: 0.3930741968 | CM37: 0.3769991838 | CN37: 0.9323993755 | CO37: 0.5890805723 | CP37: 0.4611196801 | CQ37: 0.9514539188 | CR37: 0.61793015 | CS37: 0.04387025242 | CT37: 0.4775910347 | CU37: 0.04939042831 | CV37: 0.5515956788 | CW37: 0.2687628212 | CX37: 0.4052925429
B38: Potable Water | I38: $m | N38: 14.53421951 | V38: 0.4918105271 | W38: 0.2053563704 | X38: 0.6251147842 | Y38: 0.4830525662 | Z38: 0.7706460578 | AA38: 0.8513084113 | AB38: 0.739094052 | AC38: 0.1948526783 | AD38: 0.3083975134 | AE38: 0.9782253295 | AF38: 0.00731587968 | AG38: 0.03074184763 | AH38: 0.8985694849 | AI38: 0.9753206479 | AJ38: 0.7520525097 | AK38: 0.1918833963 | AL38: 0.7081668734 | AM38: 0.4253468751 | AN38: 0.8130306126 | AO38: 0.4639541903 | AP38: 0.07912276465 | AQ38: 0.7488406349 | AR38: 0.6158202405 | AS38: 0.8690449127 | AT38: 0.7699623142 | AU38: 0.2848139532 | AV38: 0.2523740796 | AW38: 0.9357437288 | AX38: 0.6715620084 | AY38: 0.94123022 | AZ38: 0.3866885499 | BA38: 0.4651376221 | BB38: 0.5158052944 | BC38: 0.5355584755 | BD38: 0.980875501 | BE38: 0.09095920596 | BF38: 0.02710978951 | BG38: 0.664582974 | BH38: 0.3891113353 | BI38: 0.4171772751 | BJ38: 0.5891017417 | BK38: 0.7682572412 | BL38: 0.5035233195 | BM38: 0.8998612377 | BN38: 0.1470940199 | BO38: 0.9687075653 | BP38: 0.1313692334 | BQ38: 0.498814409 | BR38: 0.890721117 | BS38: 0.1729575677 | BT38: 0.2306926527 | BU38: 0.6663823879 | BV38: 0.9373606132 | BW38: 0.4542905288 | BX38: 0.2840168927 | BY38: 0.261974112 | BZ38: 0.7710153323 | CA38: 0.5428330135 | CB38: 0.01004236336 | CC38: 0.9322043732 | CD38: 0.6722972739 | CE38: 0.1970407724 | CF38: 0.8253554857 | CG38: 0.9320761574 | CH38: 0.7457863158 | CI38: 0.4482483801 | CJ38: 0.1953521205 | CK38: 0.6990668814 | CL38: 0.3032186424 | CM38: 0.6585923863 | CN38: 0.6794723597 | CO38: 0.6591019616 | CP38: 0.7610657187 | CQ38: 0.7516185672 | CR38: 0.1519980064 | CS38: 0.2397587145 | CT38: 0.2119327745 | CU38: 0.818764945 | CV38: 0.9563951696 | CW38: 0.8570705616 | CX38: 0.0008245883658
B39: Resettlement | I39: $m | N39: 11.03441284 | V39: 0.2490946245 | W39: 0.5235878279 | X39: 0.6057959769 | Y39: 0.5583744574 | Z39: 0.7321876582 | AA39: 0.6896712944 | AB39: 0.4845463253 | AC39: 0.01665315912 | AD39: 0.2098237285 | AE39: 0.1089429405 | AF39: 0.6220415617 | AG39: 0.6126760022 | AH39: 0.7393795835 | AI39: 0.06018213375 | AJ39: 0.3513838997 | AK39: 0.4294811774 | AL39: 0.09423804608 | AM39: 0.4945655509 | AN39: 0.3405036061 | AO39: 0.3935661854 | AP39: 0.923012256 | AQ39: 0.1898631743 | AR39: 0.3849682716 | AS39: 0.5854335327 | AT39: 0.3315395316 | AU39: 0.02425589568 | AV39: 0.2786444366 | AW39: 0.9270812074 | AX39: 0.8817131201 | AY39: 0.8814926037 | AZ39: 0.2013850391 | BA39: 0.6085583951 | BB39: 0.08232155307 | BC39: 0.5380205376 | BD39: 0.3917692353 | BE39: 0.4303386975 | BF39: 0.2242373711 | BG39: 0.3558627736 | BH39: 0.5615050576 | BI39: 0.6604169323 | BJ39: 0.7763806853 | BK39: 0.889270076 | BL39: 0.3363883046 | BM39: 0.7790618839 | BN39: 0.5462594518 | BO39: 0.09263973546 | BP39: 0.5283615075 | BQ39: 0.6199054682 | BR39: 0.7043031391 | BS39: 0.5325070593 | BT39: 0.8830938165 | BU39: 0.6793082536 | BV39: 0.5615563025 | BW39: 0.5783336739 | BX39: 0.2079234178 | BY39: 0.2237085109 | BZ39: 0.6971517016 | CA39: 0.1990416763 | CB39: 0.7236904673 | CC39: 0.1160292899 | CD39: 0.9344539897 | CE39: 0.7931886601 | CF39: 0.7093495756 | CG39: 0.4978995772 | CH39: 0.5040716809 | CI39: 0.06185858023 | CJ39: 0.5967262271 | CK39: 0.7134779578 | CL39: 0.6601235178 | CM39: 0.09267119466 | CN39: 0.1916663772 | CO39: 0.1556434042 | CP39: 0.8711230099 | CQ39: 0.4442244411 | CR39: 0.6256097656 | CS39: 0.6251862015 | CT39: 0.5209144212 | CU39: 0.2829686433 | CV39: 0.244572021 | CW39: 0.07719166192 | CX39: 0.5458863525
B40: Mining Establishment | I40: $m | N40: 13.03698143 | V40: 0.474794872 | W40: 0.5441299105 | X40: 0.5404081914 | Y40: 0.7501294651 | Z40: 0.8646501103 | AA40: 0.6804516226 | AB40: 0.5951501769 | AC40: 0.03112721294 | AD40: 0.3612577818 | AE40: 0.506866066 | AF40: 0.3537758126 | AG40: 0.9479686972 | AH40: 0.1842763971 | AI40: 0.6770890955 | AJ40: 0.2135820503 | AK40: 0.01130529355 | AL40: 0.2700614404 | AM40: 0.7418504948 | AN40: 0.9479647761 | AO40: 0.5978551074 | AP40: 0.9318341428 | AQ40: 0.06410278066 | AR40: 0.4234292251 | AS40: 0.5780483053 | AT40: 0.4245316417 | AU40: 0.2793227507 | AV40: 0.04101800688 | AW40: 0.3450892053 | AX40: 0.1692248189 | AY40: 0.8981298605 | AZ40: 0.7542453235 | BA40: 0.758021378 | BB40: 0.02184816536 | BC40: 0.02396532638 | BD40: 0.4719851727 | BE40: 0.4964928405 | BF40: 0.6881956951 | BG40: 0.8681416384 | BH40: 0.9799257805 | BI40: 0.54731753 | BJ40: 0.4935751488 | BK40: 0.4232009102 | BL40: 0.8794036727 | BM40: 0.6578922028 | BN40: 0.1316706811 | BO40: 0.6910364119 | BP40: 0.1590301654 | BQ40: 0.5354996451 | BR40: 0.412469425 | BS40: 0.9028111419 | BT40: 0.8666998253 | BU40: 0.007828546441 | BV40: 0.9799268447 | BW40: 0.5396785743 | BX40: 0.9204983858 | BY40: 0.696178774 | BZ40: 0.1823697559 | CA40: 0.5658358557 | CB40: 0.3830743562 | CC40: 0.4540064676 | CD40: 0.2445952549 | CE40: 0.1093968794 | CF40: 0.0836590451 | CG40: 0.7079716805 | CH40: 0.6278741143 | CI40: 0.9855134001 | CJ40: 0.7769932751 | CK40: 0.2894545579 | CL40: 0.1353065439 | CM40: 0.7659701509 | CN40: 0.5527289417 | CO40: 0.4876212428 | CP40: 0.3237934911 | CQ40: 0.5791236696 | CR40: 0.6159492578 | CS40: 0.2297600257 | CT40: 0.9310037168 | CU40: 0.5825430338 | CV40: 0.7765112065 | CW40: 0.9300779526 | CX40: 0.9267867562
B41: [Spare] | I41: $m | N41: 0
B42: [Spare] | I42: $m | N42: 0
B43: [Spare] | I43: $m | N43: 0
B44: [Spare] | I44: $m | N44: 0
B45: [Spare] | I45: $m | N45: 0
B46: Total | I46: $m | N46: 89.4877529 | P46: =SUM(P34:P45) -> 0 | Q46: 0 | R46: 0 | S46: 0 | T46: 0 | U46: 0 | V46: =SUM(V34:V45) -> 2.760167203 | W46: 3.15233355 | X46: 4.149991924 | Y46: 3.743142788 | Z46: 3.274953011 | AA46: 4.744991071 | AB46: 3.294972307 | AC46: 1.437200419 | AD46: 3.04762558 | AE46: 2.641920244 | AF46: 2.711556883 | AG46: 3.751761249 | AH46: 3.225673054 | AI46: 3.500295948 | AJ46: 3.667419558 | AK46: 2.685301346 | AL46: 2.938997297 | AM46: 4.178271849 | AN46: 4.923373722 | AO46: 2.894408818 | AP46: 2.933043717 | AQ46: 4.295868989 | AR46: 3.986832574 | AS46: 3.426819675 | AT46: 3.103744101 | AU46: 2.042662643 | AV46: 2.974423375 | AW46: 4.0621325 | AX46: 3.327939337 | AY46: 4.649117404 | AZ46: 3.03733829 | BA46: 3.868892601 | BB46: 2.223242471 | BC46: 3.534695907 | BD46: 4.152798395 | BE46: 4.270174637 | BF46: 2.607847005 | BG46: 3.499464647 | BH46: 3.005454395 | BI46: 3.133863609 | BJ46: 4.265072618 | BK46: 3.92704512 | BL46: 4.118929702 | BM46: 4.448098388 | BN46: 2.929518753 | BO46: 4.083755451 | BP46: 2.661765282 | BQ46: 3.240428372 | BR46: 4.17053588 | BS46: 3.530459929 | BT46: 4.385559746 | BU46: 3.615649131 | BV46: 4.504448104 | BW46: 3.903853637 | BX46: 3.434207308 | BY46: 2.828301925 | BZ46: 3.965962046 | CA46: 3.024457945 | CB46: =SUM(CB34:CB45) -> 3.227975423 | CC46: 3.176995912 | CD46: 3.346675438 | CE46: 3.25356642 | CF46: 4.107862971 | CG46: 4.837251622 | CH46: 3.314300321 | CI46: 4.083319291 | CJ46: 2.944217518 | CK46: 3.955920331 | CL46: 2.14236309 | CM46: 3.538806113 | CN46: 3.892730626 | CO46: 3.499253542 | CP46: 3.402938862 | CQ46: 3.572718989 | CR46: 2.709067516 | CS46: 3.015159172 | CT46: 4.059808325 | CU46: 2.543836712 | CV46: 4.453112957 | CW46: 3.756799097 | CX46: 3.019534538 | CY46: 0 | CZ46: 0 | DA46: 0 | DB46: 0 | DC46: 0 | DD46: 0 | DE46: 0 | DF46: 0 | DG46: 0 | DH46: 0 | DI46: 0 | DJ46: 0 | DK46: 0 | DL46: 0 | DM46: 0 | DN46: 0 | DO46: 0 | DP46: 0 | DQ46: 0 | DR46: 0 | DS46: 0 | DT46: 0 | DU46: 0 | DV46: 0 | DW46: 0 | DX46: 0 | DY46: 0
A48: Mine Plan
B50: Operating Period | I50: flag | N50: =SUMIF(P$32:DE$32,1,P50:DE50) -> 27 | P50: =Time!P22 -> 0 | Q50: =Time!Q22 -> 0 | R50: =Time!R22 -> 0 | S50: =Time!S22 -> 0 | T50: =Time!T22 -> 0 | U50: =Time!U22 -> 0 | V50: =Time!V22 -> 1 | W50: =Time!W22 -> 1 | X50: =Time!X22 -> 1 | Y50: =Time!Y22 -> 1 | Z50: =Time!Z22 -> 1 | AA50: =Time!AA22 -> 1 | AB50: =Time!AB22 -> 1 | AC50: =Time!AC22 -> 1 | AD50: =Time!AD22 -> 1 | AE50: =Time!AE22 -> 1 | AF50: =Time!AF22 -> 1 | AG50: =Time!AG22 -> 1 | AH50: =Time!AH22 -> 1 | AI50: =Time!AI22 -> 1 | AJ50: =Time!AJ22 -> 1 | AK50: =Time!AK22 -> 1 | AL50: =Time!AL22 -> 1 | AM50: =Time!AM22 -> 1 | AN50: =Time!AN22 -> 1 | AO50: =Time!AO22 -> 1 | AP50: =Time!AP22 -> 1 | AQ50: =Time!AQ22 -> 1 | AR50: =Time!AR22 -> 1 | AS50: =Time!AS22 -> 1 | AT50: =Time!AT22 -> 1 | AU50: =Time!AU22 -> 1 | AV50: =Time!AV22 -> 1 | AW50: =Time!AW22 -> 0 | AX50: =Time!AX22 -> 0 | AY50: =Time!AY22 -> 0 | AZ50: =Time!AZ22 -> 0 | BA50: =Time!BA22 -> 0 | BB50: =Time!BB22 -> 0 | BC50: =Time!BC22 -> 0 | BD50: =Time!BD22 -> 0 | BE50: =Time!BE22 -> 0 | BF50: =Time!BF22 -> 0 | BG50: =Time!BG22 -> 0 | BH50: =Time!BH22 -> 0 | BI50: =Time!BI22 -> 0 | BJ50: =Time!BJ22 -> 0 | BK50: =Time!BK22 -> 0 | BL50: =Time!BL22 -> 0 | BM50: =Time!BM22 -> 0 | BN50: =Time!BN22 -> 0 | BO50: =Time!BO22 -> 0 | BP50: =Time!BP22 -> 0 | BQ50: =Time!BQ22 -> 0 | BR50: =Time!BR22 -> 0 | BS50: =Time!BS22 -> 0 | BT50: =Time!BT22 -> 0 | BU50: =Time!BU22 -> 0 | BV50: =Time!BV22 -> 0 | BW50: =Time!BW22 -> 0 | BX50: =Time!BX22 -> 0 | BY50: =Time!BY22 -> 0 | BZ50: =Time!BZ22 -> 0 | CA50: =Time!CA22 -> 0 | CB50: =Time!CB22 -> 0 | CC50: =Time!CC22 -> 0 | CD50: =Time!CD22 -> 0 | CE50: =Time!CE22 -> 0 | CF50: =Time!CF22 -> 0 | CG50: =Time!CG22 -> 0 | CH50: =Time!CH22 -> 0 | CI50: =Time!CI22 -> 0 | CJ50: =Time!CJ22 -> 0 | CK50: =Time!CK22 -> 0 | CL50: =Time!CL22 -> 0 | CM50: =Time!CM22 -> 0 | CN50: =Time!CN22 -> 0 | CO50: =Time!CO22 -> 0 | CP50: =Time!CP22 -> 0 | CQ50: =Time!CQ22 -> 0 | CR50: =Time!CR22 -> 0 | CS50: =Time!CS22 -> 0 | CT50: =Time!CT22 -> 0 | CU50: =Time!CU22 -> 0 | CV50: =Time!CV22 -> 0 | CW50: =Time!CW22 -> 0 | CX50: =Time!CX22 -> 0 | CY50: =Time!CY22 -> 0 | CZ50: =Time!CZ22 -> 0 | DA50: =Time!DA22 -> 0 | DB50: =Time!DB22 -> 0 | DC50: =Time!DC22 -> 0 | DD50: =Time!DD22 -> 0 | DE50: =Time!DE22 -> 0 | DF50: =Time!DF22 -> 0 | DG50: =Time!DG22 -> 0 | DH50: =Time!DH22 -> 0 | DI50: =Time!DI22 -> 0 | DJ50: =Time!DJ22 -> 0 | DK50: =Time!DK22 -> 0 | DL50: =Time!DL22 -> 0 | DM50: =Time!DM22 -> 0 | DN50: =Time!DN22 -> 0 | DO50: =Time!DO22 -> 0 | DP50: =Time!DP22 -> 0 | DQ50: =Time!DQ22 -> 0 | DR50: =Time!DR22 -> 0 | DS50: =Time!DS22 -> 0 | DT50: =Time!DT22 -> 0 | DU50: =Time!DU22 -> 0 | DV50: =Time!DV22 -> 0 | DW50: =Time!DW22 -> 0 | DX50: =Time!DX22 -> 0 | DY50: =Time!DY22 -> 0
B52: Ore Mined
B53: 1 | C53: Base Case | I53: Mt | N53: =SUMIF(P$32:DE$32,1,P53:DE53) -> 5386 | V53: 200 | W53: 208 | X53: 208 | Y53: 201 | Z53: 202 | AA53: 192 | AB53: 192 | AC53: 201 | AD53: 192 | AE53: 207 | AF53: 204 | AG53: 192 | AH53: 195 | AI53: 198 | AJ53: 209 | AK53: 210 | AL53: 196 | AM53: 197 | AN53: 204 | AO53: 193 | AP53: 195 | AQ53: 198 | AR53: 192 | AS53: 196 | AT53: 206 | AU53: 200 | AV53: 198 | AW53: 0 | AX53: 0 | AY53: 0 | AZ53: 0 | BA53: 0 | BB53: 0 | BC53: 0 | BD53: 0 | BE53: 0 | BF53: 0 | BG53: 0 | BH53: 0 | BI53: 0 | BJ53: 0 | BK53: 0 | BL53: 0 | BM53: 0 | BN53: 0 | BO53: 0 | BP53: 0 | BQ53: 0 | BR53: 0 | BS53: 0 | BT53: 0 | BU53: 0 | BV53: 0 | BW53: 0 | BX53: 0 | BY53: 0 | BZ53: 0 | CA53: 0 | CB53: 0 | CC53: 0 | CD53: 0 | CE53: 0 | CF53: 0 | CG53: 0 | CH53: 0 | CI53: 0 | CJ53: 0 | CK53: 0 | CL53: 0 | CM53: 0 | CN53: 0 | CO53: 0 | CP53: 0 | CQ53: 0 | CR53: 0 | CS53: 0 | CT53: 0 | CU53: 0
B54: =B53+1 -> 2 | C54: High Case | I54: Mt | N54: =SUMIF(P$32:DE$32,1,P54:DE54) -> 6196 | V54: =V53+30 -> 230 | W54: =W53+30 -> 238 | X54: 238 | Y54: 231 | Z54: 232 | AA54: 222 | AB54: 222 | AC54: 231 | AD54: 222 | AE54: =AE53+30 -> 237 | AF54: 234 | AG54: 222 | AH54: 225 | AI54: 228 | AJ54: 239 | AK54: 240 | AL54: 226 | AM54: 227 | AN54: 234 | AO54: 223 | AP54: 225 | AQ54: 228 | AR54: 222 | AS54: 226 | AT54: 236 | AU54: 230 | AV54: 228 | AW54: 0 | AX54: 0 | AY54: 0 | AZ54: 0 | BA54: 0 | BB54: 0 | BC54: 0 | BD54: 0 | BE54: 0 | BF54: 0 | BG54: 0 | BH54: 0 | BI54: 0 | BJ54: 0 | BK54: 0 | BL54: 0 | BM54: 0 | BN54: 0 | BO54: 0 | BP54: 0 | BQ54: 0 | BR54: 0 | BS54: 0 | BT54: 0 | BU54: 0 | BV54: 0 | BW54: 0 | BX54: 0 | BY54: 0 | BZ54: 0 | CA54: 0 | CB54: 0 | CC54: 0 | CD54: 0 | CE54: 0 | CF54: 0 | CG54: 0 | CH54: 0 | CI54: 0 | CJ54: 0 | CK54: 0 | CL54: 0 | CM54: 0 | CN54: 0 | CO54: 0 | CP54: 0 | CQ54: 0 | CR54: 0 | CS54: 0 | CT54: 0 | CU54: 0
B55: =B54+1 -> 3 | C55: Low Case | I55: Mt | N55: 4576 | V55: =V53-30 -> 170 | W55: =W53-30 -> 178 | X55: 178 | Y55: 171 | Z55: 172 | AA55: 162 | AB55: 162 | AC55: 171 | AD55: 162 | AE55: =AE53-30 -> 177 | AF55: 174 | AG55: 162 | AH55: 165 | AI55: 168 | AJ55: 179 | AK55: 180 | AL55: 166 | AM55: 167 | AN55: 174 | AO55: 163 | AP55: 165 | AQ55: 168 | AR55: 162 | AS55: 166 | AT55: 176 | AU55: 170 | AV55: 168 | AW55: 0 | AX55: 0 | AY55: 0 | AZ55: 0 | BA55: 0 | BB55: 0 | BC55: 0 | BD55: 0 | BE55: 0 | BF55: 0 | BG55: 0 | BH55: 0 | BI55: 0 | BJ55: 0 | BK55: 0 | BL55: 0 | BM55: 0 | BN55: 0 | BO55: 0 | BP55: 0 | BQ55: 0 | BR55: 0 | BS55: 0 | BT55: 0 | BU55: 0 | BV55: 0 | BW55: 0 | BX55: 0 | BY55: 0 | BZ55: 0 | CA55: 0 | CB55: 0 | CC55: 0 | CD55: 0 | CE55: 0 | CF55: 0 | CG55: 0 | CH55: 0 | CI55: 0 | CJ55: 0 | CK55: 0 | CL55: 0 | CM55: 0 | CN55: 0 | CO55: 0 | CP55: 0 | CQ55: 0 | CR55: 0 | CS55: 0 | CT55: 0 | CU55: 0
C56: Appplied | I56: Mt | K56: =IF(Sens!F16=0,Input_Scen!J93,Sens!L16) -> Base Case | N56: 5386 | P56: =INDEX(P53:P55,INDEX($B$53:$B$55,MATCH($K$56,$C$53:$C$55,0))) -> 0 | Q56: 0 | R56: 0 | S56: 0 | T56: 0 | U56: =INDEX(U53:U55,INDEX($B$53:$B$55,MATCH($K$56,$C$53:$C$55,0))) -> 0 | V56: 200 | W56: 208 | X56: 208 | Y56: 201 | Z56: 202 | AA56: 192 | AB56: 192 | AC56: 201 | AD56: 192 | AE56: 207 | AF56: 204 | AG56: 192 | AH56: 195 | AI56: 198 | AJ56: 209 | AK56: 210 | AL56: 196 | AM56: 197 | AN56: 204 | AO56: 193 | AP56: 195 | AQ56: 198 | AR56: 192 | AS56: 196 | AT56: 206 | AU56: 200 | AV56: 198 | AW56: 0 | AX56: 0 | AY56: 0 | AZ56: 0 | BA56: 0 | BB56: 0 | BC56: 0 | BD56: 0 | BE56: 0 | BF56: 0 | BG56: 0 | BH56: 0 | BI56: 0 | BJ56: 0 | BK56: 0 | BL56: 0 | BM56: 0 | BN56: 0 | BO56: 0 | BP56: 0 | BQ56: 0 | BR56: 0 | BS56: 0 | BT56: 0 | BU56: 0 | BV56: 0 | BW56: 0 | BX56: 0 | BY56: 0 | BZ56: 0 | CA56: 0 | CB56: 0 | CC56: 0 | CD56: 0 | CE56: 0 | CF56: =INDEX(CF53:CF55,INDEX($B$53:$B$55,MATCH($K$56,$C$53:$C$55,0))) -> 0 | CG56: 0 | CH56: 0 | CI56: 0 | CJ56: 0 | CK56: 0 | CL56: 0 | CM56: 0 | CN56: 0 | CO56: 0 | CP56: 0 | CQ56: 0 | CR56: 0 | CS56: 0 | CT56: 0 | CU56: 0
B59: Waste Mined
B60: 1 | C60: Base Case | I60: Mt | N60: =SUMIF(P$32:DE$32,1,P60:DE60) -> 17880 | V60: 1197 | W60: 1225 | X60: 1113 | Y60: 1164 | Z60: 1272 | AA60: 1338 | AB60: 1270 | AC60: 1150 | AD60: 429 | AE60: 429 | AF60: 429 | AG60: 429 | AH60: 429 | AI60: 429 | AJ60: 429 | AK60: 429 | AL60: 429 | AM60: 429 | AN60: 429 | AO60: 429 | AP60: 429 | AQ60: 429 | AR60: 429 | AS60: 429 | AT60: 429 | AU60: 429 | AV60: 429 | AW60: 0 | AX60: 0 | AY60: 0 | AZ60: 0 | BA60: 0 | BB60: 0 | BC60: 0 | BD60: 0 | BE60: 0 | BF60: 0 | BG60: 0 | BH60: 0 | BI60: 0 | BJ60: 0 | BK60: 0 | BL60: 0 | BM60: 0 | BN60: 0 | BO60: 0 | BP60: 0 | BQ60: 0 | BR60: 0 | BS60: 0 | BT60: 0 | BU60: 0 | BV60: 0 | BW60: 0 | BX60: 0 | BY60: 0 | BZ60: 0 | CA60: 0 | CB60: 0 | CC60: 0 | CD60: 0 | CE60: 0 | CF60: 0 | CG60: 0 | CH60: 0 | CI60: 0 | CJ60: 0 | CK60: 0 | CL60: 0 | CM60: 0 | CN60: 0 | CO60: 0 | CP60: 0 | CQ60: 0 | CR60: 0 | CS60: 0 | CT60: 0 | CU60: 0
B61: =B60+1 -> 2 | C61: High Case | I61: Mt | N61: =SUMIF(P$32:DE$32,1,P61:DE61) -> 19230 | V61: =V60+50 -> 1247 | W61: =W60+50 -> 1275 | X61: 1163 | Y61: 1214 | Z61: 1322 | AA61: 1388 | AB61: 1320 | AC61: 1200 | AD61: 479 | AE61: =AE60+50 -> 479 | AF61: 479 | AG61: 479 | AH61: 479 | AI61: 479 | AJ61: 479 | AK61: 479 | AL61: 479 | AM61: 479 | AN61: 479 | AO61: 479 | AP61: 479 | AQ61: 479 | AR61: 479 | AS61: 479 | AT61: 479 | AU61: 479 | AV61: 479 | AW61: 0 | AX61: 0 | AY61: 0 | AZ61: 0 | BA61: 0 | BB61: 0 | BC61: 0 | BD61: 0 | BE61: 0 | BF61: 0 | BG61: 0 | BH61: 0 | BI61: 0 | BJ61: 0 | BK61: 0 | BL61: 0 | BM61: 0 | BN61: 0 | BO61: 0 | BP61: 0 | BQ61: 0 | BR61: 0 | BS61: 0 | BT61: 0 | BU61: 0 | BV61: 0 | BW61: 0 | BX61: 0 | BY61: 0 | BZ61: 0 | CA61: 0 | CB61: 0 | CC61: 0 | CD61: 0 | CE61: 0 | CF61: 0 | CG61: 0 | CH61: 0 | CI61: 0 | CJ61: 0 | CK61: 0 | CL61: 0 | CM61: 0 | CN61: 0 | CO61: 0 | CP61: 0 | CQ61: 0 | CR61: 0 | CS61: 0 | CT61: 0 | CU61: 0
B62: =B61+1 -> 3 | C62: Low Case | I62: Mt | N62: 16530 | V62: =V60-50 -> 1147 | W62: =W60-50 -> 1175 | X62: 1063 | Y62: 1114 | Z62: 1222 | AA62: 1288 | AB62: 1220 | AC62: 1100 | AD62: 379 | AE62: =AE60-50 -> 379 | AF62: 379 | AG62: 379 | AH62: 379 | AI62: 379 | AJ62: 379 | AK62: 379 | AL62: 379 | AM62: 379 | AN62: 379 | AO62: 379 | AP62: 379 | AQ62: 379 | AR62: 379 | AS62: 379 | AT62: 379 | AU62: 379 | AV62: 379 | AW62: 0 | AX62: 0 | AY62: 0 | AZ62: 0 | BA62: 0 | BB62: 0 | BC62: 0 | BD62: 0 | BE62: 0 | BF62: 0 | BG62: 0 | BH62: 0 | BI62: 0 | BJ62: 0 | BK62: 0 | BL62: 0 | BM62: 0 | BN62: 0 | BO62: 0 | BP62: 0 | BQ62: 0 | BR62: 0 | BS62: 0 | BT62: 0 | BU62: 0 | BV62: 0 | BW62: 0 | BX62: 0 | BY62: 0 | BZ62: 0 | CA62: 0 | CB62: 0 | CC62: 0 | CD62: 0 | CE62: 0 | CF62: 0 | CG62: 0 | CH62: 0 | CI62: 0 | CJ62: 0 | CK62: 0 | CL62: 0 | CM62: 0 | CN62: 0 | CO62: 0 | CP62: 0 | CQ62: 0 | CR62: 0 | CS62: 0 | CT62: 0 | CU62: 0
C63: Appplied | I63: Mt | K63: =K56 -> Base Case | N63: 17880 | P63: =INDEX(P60:P62,INDEX($B$53:$B$55,MATCH($K$56,$C$53:$C$55,0))) -> 0 | Q63: 0 | R63: 0 | S63: 0 | T63: =INDEX(T60:T62,INDEX($B$60:$B$62,MATCH($K$63,$C$60:$C$62,0))) -> 0 | U63: =INDEX(U60:U62,INDEX($B$60:$B$62,MATCH($K$63,$C$60:$C$62,0))) -> 0 | V63: 1197 | W63: 1225 | X63: 1113 | Y63: 1164 | Z63: 1272 | AA63: 1338 | AB63: 1270 | AC63: 1150 | AD63: 429 | AE63: 429 | AF63: 429 | AG63: 429 | AH63: 429 | AI63: 429 | AJ63: 429 | AK63: 429 | AL63: 429 | AM63: 429 | AN63: 429 | AO63: 429 | AP63: 429 | AQ63: 429 | AR63: 429 | AS63: 429 | AT63: 429 | AU63: 429 | AV63: 429 | AW63: 0 | AX63: 0 | AY63: 0 | AZ63: 0 | BA63: 0 | BB63: 0 | BC63: 0 | BD63: 0 | BE63: 0 | BF63: 0 | BG63: 0 | BH63: 0 | BI63: 0 | BJ63: 0 | BK63: 0 | BL63: 0 | BM63: 0 | BN63: 0 | BO63: 0 | BP63: 0 | BQ63: 0 | BR63: 0 | BS63: 0 | BT63: 0 | BU63: 0 | BV63: 0 | BW63: 0 | BX63: 0 | BY63: 0 | BZ63: 0 | CA63: 0 | CB63: 0 | CC63: 0 | CD63: 0 | CE63: 0 | CF63: 0 | CG63: =INDEX(CG60:CG62,INDEX($B$60:$B$62,MATCH($K$63,$C$60:$C$62,0))) -> 0 | CH63: 0 | CI63: 0 | CJ63: 0 | CK63: 0 | CL63: 0 | CM63: 0 | CN63: 0 | CO63: 0 | CP63: 0 | CQ63: 0 | CR63: 0 | CS63: 0 | CT63: 0 | CU63: 0
K66: Total
B67: Ore Remaining | I67: Mt | K67: =SUMPRODUCT(Input_Scen!$J$84:$J$85,MRE!G29:G30)+SUMPRODUCT(Input_Scen!$J$79:$J$81,MRE!G17:G19) -> 7.242 | V67: =MAX($K$67-SUM($S$56:V56),0) -> 0 | W67: =MAX($K$67-SUM($S$56:W56),0) -> 0 | X67: =MAX($K$67-SUM($S$56:X56),0) -> 0 | Y67: =MAX($K$67-SUM($S$56:Y56),0) -> 0 | Z67: =MAX($K$67-SUM($S$56:Z56),0) -> 0 | AA67: =MAX($K$67-SUM($S$56:AA56),0) -> 0 | AB67: =MAX($K$67-SUM($S$56:AB56),0) -> 0 | AC67: =MAX($K$67-SUM($S$56:AC56),0) -> 0 | AD67: =MAX($K$67-SUM($S$56:AD56),0) -> 0 | AE67: =MAX($K$67-SUM($S$56:AE56),0) -> 0 | AF67: =MAX($K$67-SUM($S$56:AF56),0) -> 0 | AG67: =MAX($K$67-SUM($S$56:AG56),0) -> 0 | AH67: =MAX($K$67-SUM($S$56:AH56),0) -> 0 | AI67: =MAX($K$67-SUM($S$56:AI56),0) -> 0 | AJ67: =MAX($K$67-SUM($S$56:AJ56),0) -> 0 | AK67: =MAX($K$67-SUM($S$56:AK56),0) -> 0 | AL67: =MAX($K$67-SUM($S$56:AL56),0) -> 0 | AM67: =MAX($K$67-SUM($S$56:AM56),0) -> 0 | AN67: =MAX($K$67-SUM($S$56:AN56),0) -> 0 | AO67: =MAX($K$67-SUM($S$56:AO56),0) -> 0 | AP67: =MAX($K$67-SUM($S$56:AP56),0) -> 0 | AQ67: =MAX($K$67-SUM($S$56:AQ56),0) -> 0 | AR67: =MAX($K$67-SUM($S$56:AR56),0) -> 0 | AS67: =MAX($K$67-SUM($S$56:AS56),0) -> 0 | AT67: =MAX($K$67-SUM($S$56:AT56),0) -> 0 | AU67: =MAX($K$67-SUM($S$56:AU56),0) -> 0 | AV67: =MAX($K$67-SUM($S$56:AV56),0) -> 0 | AW67: =MAX($K$67-SUM($S$56:AW56),0) -> 0 | AX67: =MAX($K$67-SUM($S$56:AX56),0) -> 0 | AY67: =MAX($K$67-SUM($S$56:AY56),0) -> 0 | AZ67: =MAX($K$67-SUM($S$56:AZ56),0) -> 0 | BA67: =MAX($K$67-SUM($S$56:BA56),0) -> 0 | BB67: =MAX($K$67-SUM($S$56:BB56),0) -> 0 | BC67: =MAX($K$67-SUM($S$56:BC56),0) -> 0 | BD67: =MAX($K$67-SUM($S$56:BD56),0) -> 0 | BE67: =MAX($K$67-SUM($S$56:BE56),0) -> 0 | BF67: =MAX($K$67-SUM($S$56:BF56),0) -> 0 | BG67: =MAX($K$67-SUM($S$56:BG56),0) -> 0 | BH67: =MAX($K$67-SUM($S$56:BH56),0) -> 0 | BI67: =MAX($K$67-SUM($S$56:BI56),0) -> 0 | BJ67: =MAX($K$67-SUM($S$56:BJ56),0) -> 0 | BK67: =MAX($K$67-SUM($S$56:BK56),0) -> 0 | BL67: =MAX($K$67-SUM($S$56:BL56),0) -> 0 | BM67: =MAX($K$67-SUM($S$56:BM56),0) -> 0 | BN67: =MAX($K$67-SUM($S$56:BN56),0) -> 0 | BO67: =MAX($K$67-SUM($S$56:BO56),0) -> 0 | BP67: =MAX($K$67-SUM($S$56:BP56),0) -> 0 | BQ67: =MAX($K$67-SUM($S$56:BQ56),0) -> 0 | BR67: =MAX($K$67-SUM($S$56:BR56),0) -> 0 | BS67: =MAX($K$67-SUM($S$56:BS56),0) -> 0 | BT67: =MAX($K$67-SUM($S$56:BT56),0) -> 0 | BU67: =MAX($K$67-SUM($S$56:BU56),0) -> 0 | BV67: =MAX($K$67-SUM($S$56:BV56),0) -> 0 | BW67: =MAX($K$67-SUM($S$56:BW56),0) -> 0 | BX67: =MAX($K$67-SUM($S$56:BX56),0) -> 0 | BY67: =MAX($K$67-SUM($S$56:BY56),0) -> 0 | BZ67: =MAX($K$67-SUM($S$56:BZ56),0) -> 0 | CA67: =MAX($K$67-SUM($S$56:CA56),0) -> 0 | CB67: =MAX($K$67-SUM($S$56:CB56),0) -> 0 | CC67: =MAX($K$67-SUM($S$56:CC56),0) -> 0 | CD67: =MAX($K$67-SUM($S$56:CD56),0) -> 0 | CE67: =MAX($K$67-SUM($S$56:CE56),0) -> 0 | CF67: =MAX($K$67-SUM($S$56:CF56),0) -> 0 | CG67: =MAX($K$67-SUM($S$56:CG56),0) -> 0 | CH67: =MAX($K$67-SUM($S$56:CH56),0) -> 0 | CI67: =MAX($K$67-SUM($S$56:CI56),0) -> 0 | CJ67: =MAX($K$67-SUM($S$56:CJ56),0) -> 0 | CK67: =MAX($K$67-SUM($S$56:CK56),0) -> 0 | CL67: =MAX($K$67-SUM($S$56:CL56),0) -> 0 | CM67: =MAX($K$67-SUM($S$56:CM56),0) -> 0 | CN67: =MAX($K$67-SUM($S$56:CN56),0) -> 0 | CO67: =MAX($K$67-SUM($S$56:CO56),0) -> 0 | CP67: =MAX($K$67-SUM($S$56:CP56),0) -> 0 | CQ67: =MAX($K$67-SUM($S$56:CQ56),0) -> 0 | CR67: =MAX($K$67-SUM($S$56:CR56),0) -> 0 | CS67: =MAX($K$67-SUM($S$56:CS56),0) -> 0 | CT67: =MAX($K$67-SUM($S$56:CT56),0) -> 0 | CU67: =MAX($K$67-SUM($S$56:CU56),0) -> 0
B69: Strip Ratio | I69: x | V69: 3.2 | W69: 3.2 | X69: 3.2 | Y69: 3.2 | Z69: 3.2 | AA69: 3.2 | AB69: 3.2 | AC69: 3.2 | AD69: 3.2 | AE69: 3.2 | AF69: 3.2 | AG69: 3.2 | AH69: 3.2 | AI69: 3.2 | AJ69: 3.2 | AK69: 3.2 | AL69: 3.2 | AM69: 3.2 | AN69: 3.2 | AO69: 3.2 | AP69: 3.2 | AQ69: 3.2 | AR69: 3.2 | AS69: 3.2 | AT69: 3.2 | AU69: 3.2 | AV69: 3.2 | AW69: 0 | AX69: 0 | AY69: 0 | AZ69: 0 | BA69: 0 | BB69: 0 | BC69: 0 | BD69: 0 | BE69: 0 | BF69: 0 | BG69: 0 | BH69: 0 | BI69: 0 | BJ69: 0 | BK69: 0 | BL69: 0 | BM69: 0 | BN69: 0 | BO69: 0 | BP69: 0 | BQ69: 0 | BR69: 0 | BS69: 0 | BT69: 0 | BU69: 0 | BV69: 0 | BW69: 0 | BX69: 0 | BY69: 0 | BZ69: 0 | CA69: 0 | CB69: 0 | CC69: 0 | CD69: 0 | CE69: 0 | CF69: 0 | CG69: 0 | CH69: 0 | CI69: 0 | CJ69: 0 | CK69: 0 | CL69: 0 | CM69: 0 | CN69: 0 | CO69: 0 | CP69: 0 | CQ69: 0 | CR69: 0 | CS69: 0 | CT69: 0 | CU69: 0
B72: Ore Grade | I72: % | V72: 0.189 | W72: 0.189 | X72: 0.189 | Y72: 0.189 | Z72: 0.189 | AA72: 0.189 | AB72: 0.189 | AC72: 0.189 | AD72: 0.189 | AE72: 0.189 | AF72: 0.189 | AG72: 0.189 | AH72: 0.189 | AI72: 0.189 | AJ72: 0.189 | AK72: 0.189 | AL72: 0.189 | AM72: 0.189 | AN72: 0.189 | AO72: 0.189 | AP72: 0.189 | AQ72: 0.189 | AR72: 0.189 | AS72: 0.189 | AT72: 0.189 | AU72: 0.189 | AV72: 0.189 | AW72: 0 | AX72: 0 | AY72: 0 | AZ72: 0 | BA72: 0 | BB72: 0 | BC72: 0 | BD72: 0 | BE72: 0 | BF72: 0 | BG72: 0 | BH72: 0 | BI72: 0 | BJ72: 0 | BK72: 0 | BL72: 0 | BM72: 0 | BN72: 0 | BO72: 0 | BP72: 0 | BQ72: 0 | BR72: 0 | BS72: 0 | BT72: 0 | BU72: 0 | BV72: 0 | BW72: 0 | BX72: 0 | BY72: 0 | BZ72: 0 | CA72: 0 | CB72: 0 | CC72: 0 | CD72: 0 | CE72: 0 | CF72: 0 | CG72: 0 | CH72: 0 | CI72: 0 | CJ72: 0 | CK72: 0 | CL72: 0 | CM72: 0 | CN72: 0 | CO72: 0 | CP72: 0 | CQ72: 0 | CR72: 0 | CS72: 0 | CT72: 0 | CU72: 0
A75: Pricing
C77: Price Curve
B78: 1 | C78: Base Case | H78: $/t | P78: 3177 | Q78: 3124 | R78: 3052 | S78: 3291 | T78: 3176 | U78: 3177 | V78: 2940 | W78: 2949 | X78: 3002 | Y78: 3130 | Z78: 2925 | AA78: 2855 | AB78: 2938 | AC78: 2958 | AD78: 3084 | AE78: 3152 | AF78: 2954 | AG78: 2718 | AH78: 3015 | AI78: 2838 | AJ78: 3298 | AK78: 2908 | AL78: 2786 | AM78: 3165 | AN78: 3218 | AO78: 2870 | AP78: 3296 | AQ78: 3034 | AR78: 2895 | AS78: 2984 | AT78: 2858 | AU78: 2810 | AV78: 2893 | AW78: 2751 | AX78: 3047 | AY78: 3183 | AZ78: 2946 | BA78: 2826 | BB78: 3006 | BC78: 2842 | BD78: 2795 | BE78: 3049 | BF78: 3044 | BG78: 3112 | BH78: 2757 | BI78: 2825 | BJ78: 2857 | BK78: 3231 | BL78: 2930 | BM78: 2922 | BN78: 2716 | BO78: 3082 | BP78: 3048 | BQ78: 2922 | BR78: 3273 | BS78: 2874 | BT78: 3212 | BU78: 3056 | BV78: 2743 | BW78: 3077 | BX78: 3059 | BY78: 3177 | BZ78: 2917 | CA78: 3252 | CB78: 2767 | CC78: 2772 | CD78: 2828 | CE78: 3155 | CF78: 2881 | CG78: 3055 | CH78: 3300 | CI78: 2862 | CJ78: 2702 | CK78: 3266 | CL78: 2825 | CM78: 2769 | CN78: 2794 | CO78: 3286 | CP78: 2749 | CQ78: 2836 | CR78: 2842 | CS78: 3000 | CT78: 3236 | CU78: 3212 | CV78: 3274 | CW78: 3204 | CX78: 3087 | CY78: 3226 | CZ78: 3101 | DA78: 2875 | DB78: 3152 | DC78: 3117 | DD78: 3285 | DE78: 3146 | DF78: 2839 | DG78: 2783 | DH78: 3044 | DI78: 2721 | DJ78: 2806 | DK78: 3258 | DL78: 3151 | DM78: 2758 | DN78: 3195 | DO78: 2762 | DP78: 3008 | DQ78: 2995 | DR78: 2805 | DS78: 2885 | DT78: 2807 | DU78: 3154 | DV78: 3123 | DW78: 3037 | DX78: 3139 | DY78: 2942
B79: 2 | C79: High | H79: $/t | P79: =P78*1.2 -> 3812.4 | Q79: =Q78*1.2 -> 3748.8 | R79: 3662.4 | S79: 3949.2 | T79: 3811.2 | U79: 3812.4 | V79: 3528 | W79: 3538.8 | X79: 3602.4 | Y79: 3756 | Z79: 3510 | AA79: 3426 | AB79: 3525.6 | AC79: 3549.6 | AD79: 3700.8 | AE79: 3782.4 | AF79: 3544.8 | AG79: 3261.6 | AH79: 3618 | AI79: 3405.6 | AJ79: 3957.6 | AK79: 3489.6 | AL79: 3343.2 | AM79: 3798 | AN79: 3861.6 | AO79: 3444 | AP79: 3955.2 | AQ79: 3640.8 | AR79: 3474 | AS79: 3580.8 | AT79: 3429.6 | AU79: 3372 | AV79: 3471.6 | AW79: 3301.2 | AX79: 3656.4 | AY79: 3819.6 | AZ79: 3535.2 | BA79: 3391.2 | BB79: 3607.2 | BC79: 3410.4 | BD79: 3354 | BE79: 3658.8 | BF79: 3652.8 | BG79: 3734.4 | BH79: 3308.4 | BI79: 3390 | BJ79: 3428.4 | BK79: 3877.2 | BL79: 3516 | BM79: 3506.4 | BN79: 3259.2 | BO79: 3698.4 | BP79: 3657.6 | BQ79: 3506.4 | BR79: 3927.6 | BS79: 3448.8 | BT79: 3854.4 | BU79: 3667.2 | BV79: 3291.6 | BW79: 3692.4 | BX79: 3670.8 | BY79: 3812.4 | BZ79: 3500.4 | CA79: 3902.4 | CB79: 3320.4 | CC79: =CC78*1.2 -> 3326.4 | CD79: 3393.6 | CE79: 3786 | CF79: 3457.2 | CG79: 3666 | CH79: 3960 | CI79: 3434.4 | CJ79: 3242.4 | CK79: 3919.2 | CL79: 3390 | CM79: 3322.8 | CN79: 3352.8 | CO79: 3943.2 | CP79: 3298.8 | CQ79: 3403.2 | CR79: 3410.4 | CS79: 3600 | CT79: 3883.2 | CU79: 3854.4 | CV79: 3928.8 | CW79: 3844.8 | CX79: 3704.4 | CY79: 3871.2 | CZ79: 3721.2 | DA79: 3450 | DB79: 3782.4 | DC79: 3740.4 | DD79: 3942 | DE79: 3775.2 | DF79: 3406.8 | DG79: 3339.6 | DH79: 3652.8 | DI79: 3265.2 | DJ79: 3367.2 | DK79: 3909.6 | DL79: 3781.2 | DM79: 3309.6 | DN79: 3834 | DO79: 3314.4 | DP79: 3609.6 | DQ79: 3594 | DR79: 3366 | DS79: 3462 | DT79: 3368.4 | DU79: 3784.8 | DV79: 3747.6 | DW79: 3644.4 | DX79: 3766.8 | DY79: 3530.4
B80: 3 | C80: Low | H80: $/t | P80: =P78*0.8 -> 2541.6 | Q80: =Q78*0.8 -> 2499.2 | R80: 2441.6 | S80: 2632.8 | T80: 2540.8 | U80: 2541.6 | V80: 2352 | W80: 2359.2 | X80: 2401.6 | Y80: 2504 | Z80: 2340 | AA80: 2284 | AB80: 2350.4 | AC80: 2366.4 | AD80: 2467.2 | AE80: 2521.6 | AF80: 2363.2 | AG80: 2174.4 | AH80: 2412 | AI80: 2270.4 | AJ80: 2638.4 | AK80: 2326.4 | AL80: 2228.8 | AM80: 2532 | AN80: 2574.4 | AO80: 2296 | AP80: 2636.8 | AQ80: 2427.2 | AR80: 2316 | AS80: 2387.2 | AT80: 2286.4 | AU80: 2248 | AV80: 2314.4 | AW80: 2200.8 | AX80: 2437.6 | AY80: 2546.4 | AZ80: 2356.8 | BA80: 2260.8 | BB80: 2404.8 | BC80: 2273.6 | BD80: 2236 | BE80: 2439.2 | BF80: 2435.2 | BG80: 2489.6 | BH80: 2205.6 | BI80: 2260 | BJ80: 2285.6 | BK80: 2584.8 | BL80: 2344 | BM80: 2337.6 | BN80: 2172.8 | BO80: 2465.6 | BP80: 2438.4 | BQ80: 2337.6 | BR80: 2618.4 | BS80: 2299.2 | BT80: 2569.6 | BU80: 2444.8 | BV80: 2194.4 | BW80: 2461.6 | BX80: 2447.2 | BY80: 2541.6 | BZ80: 2333.6 | CA80: 2601.6 | CB80: 2213.6 | CC80: =CC78*0.8 -> 2217.6 | CD80: 2262.4 | CE80: 2524 | CF80: 2304.8 | CG80: 2444 | CH80: 2640 | CI80: 2289.6 | CJ80: 2161.6 | CK80: 2612.8 | CL80: 2260 | CM80: 2215.2 | CN80: 2235.2 | CO80: 2628.8 | CP80: 2199.2 | CQ80: 2268.8 | CR80: 2273.6 | CS80: 2400 | CT80: 2588.8 | CU80: 2569.6 | CV80: 2619.2 | CW80: 2563.2 | CX80: 2469.6 | CY80: 2580.8 | CZ80: 2480.8 | DA80: 2300 | DB80: 2521.6 | DC80: 2493.6 | DD80: 2628 | DE80: 2516.8 | DF80: 2271.2 | DG80: 2226.4 | DH80: 2435.2 | DI80: 2176.8 | DJ80: 2244.8 | DK80: 2606.4 | DL80: 2520.8 | DM80: 2206.4 | DN80: 2556 | DO80: 2209.6 | DP80: 2406.4 | DQ80: 2396 | DR80: 2244 | DS80: 2308 | DT80: 2245.6 | DU80: 2523.2 | DV80: 2498.4 | DW80: 2429.6 | DX80: 2511.2 | DY80: 2353.6
B81: =B80+1 -> 4 | C81: [spare] | H81: $/t | P81: 0 | Q81: 0 | R81: 0 | S81: 0 | T81: 0 | U81: 0 | V81: 0 | W81: 0 | X81: 0 | Y81: 0 | Z81: 0 | AA81: 0 | AB81: 0 | AC81: 0 | AD81: 0 | AE81: 0 | AF81: 0 | AG81: 0 | AH81: 0 | AI81: 0 | AJ81: 0 | AK81: 0 | AL81: 0 | AM81: 0 | AN81: 0 | AO81: 0 | AP81: 0 | AQ81: 0 | AR81: 0 | AS81: 0 | AT81: 0 | AU81: 0 | AV81: 0 | AW81: 0 | AX81: 0 | AY81: 0 | AZ81: 0 | BA81: 0 | BB81: 0 | BC81: 0 | BD81: 0 | BE81: 0 | BF81: 0 | BG81: 0 | BH81: 0 | BI81: 0 | BJ81: 0 | BK81: 0 | BL81: 0 | BM81: 0 | BN81: 0 | BO81: 0 | BP81: 0 | BQ81: 0 | BR81: 0 | BS81: 0 | BT81: 0 | BU81: 0 | BV81: 0 | BW81: 0 | BX81: 0 | BY81: 0 | BZ81: 0 | CA81: 0 | CB81: 0 | CC81: 0 | CD81: 0 | CE81: 0 | CF81: 0 | CG81: 0 | CH81: 0 | CI81: 0 | CJ81: 0 | CK81: 0 | CL81: 0 | CM81: 0 | CN81: 0 | CO81: 0 | CP81: 0 | CQ81: 0 | CR81: 0 | CS81: 0 | CT81: 0 | CU81: 0 | CV81: 0 | CW81: 0 | CX81: 0 | CY81: 0 | CZ81: 0 | DA81: 0 | DB81: 0 | DC81: 0 | DD81: 0 | DE81: 0 | DF81: 0 | DG81: 0 | DH81: 0 | DI81: 0 | DJ81: 0 | DK81: 0 | DL81: 0 | DM81: 0 | DN81: 0 | DO81: 0 | DP81: 0 | DQ81: 0 | DR81: 0 | DS81: 0 | DT81: 0 | DU81: 0 | DV81: 0 | DW81: 0 | DX81: 0 | DY81: 0
B82: =B81+1 -> 5 | C82: [spare] | H82: $/t | P82: 0 | Q82: 0 | R82: 0 | S82: 0 | T82: 0 | U82: 0 | V82: 0 | W82: 0 | X82: 0 | Y82: 0 | Z82: 0 | AA82: 0 | AB82: 0 | AC82: 0 | AD82: 0 | AE82: 0 | AF82: 0 | AG82: 0 | AH82: 0 | AI82: 0 | AJ82: 0 | AK82: 0 | AL82: 0 | AM82: 0 | AN82: 0 | AO82: 0 | AP82: 0 | AQ82: 0 | AR82: 0 | AS82: 0 | AT82: 0 | AU82: 0 | AV82: 0 | AW82: 0 | AX82: 0 | AY82: 0 | AZ82: 0 | BA82: 0 | BB82: 0 | BC82: 0 | BD82: 0 | BE82: 0 | BF82: 0 | BG82: 0 | BH82: 0 | BI82: 0 | BJ82: 0 | BK82: 0 | BL82: 0 | BM82: 0 | BN82: 0 | BO82: 0 | BP82: 0 | BQ82: 0 | BR82: 0 | BS82: 0 | BT82: 0 | BU82: 0 | BV82: 0 | BW82: 0 | BX82: 0 | BY82: 0 | BZ82: 0 | CA82: 0 | CB82: 0 | CC82: 0 | CD82: 0 | CE82: 0 | CF82: 0 | CG82: 0 | CH82: 0 | CI82: 0 | CJ82: 0 | CK82: 0 | CL82: 0 | CM82: 0 | CN82: 0 | CO82: 0 | CP82: 0 | CQ82: 0 | CR82: 0 | CS82: 0 | CT82: 0 | CU82: 0 | CV82: 0 | CW82: 0 | CX82: 0 | CY82: 0 | CZ82: 0 | DA82: 0 | DB82: 0 | DC82: 0 | DD82: 0 | DE82: 0 | DF82: 0 | DG82: 0 | DH82: 0 | DI82: 0 | DJ82: 0 | DK82: 0 | DL82: 0 | DM82: 0 | DN82: 0 | DO82: 0 | DP82: 0 | DQ82: 0 | DR82: 0 | DS82: 0 | DT82: 0 | DU82: 0 | DV82: 0 | DW82: 0 | DX82: 0 | DY82: 0
B83: 6 | C83: [spare] | H83: $/t | P83: 0 | Q83: 0 | R83: 0 | S83: 0 | T83: 0 | U83: 0 | V83: 0 | W83: 0 | X83: 0 | Y83: 0 | Z83: 0 | AA83: 0 | AB83: 0 | AC83: 0 | AD83: 0 | AE83: 0 | AF83: 0 | AG83: 0 | AH83: 0 | AI83: 0 | AJ83: 0 | AK83: 0 | AL83: 0 | AM83: 0 | AN83: 0 | AO83: 0 | AP83: 0 | AQ83: 0 | AR83: 0 | AS83: 0 | AT83: 0 | AU83: 0 | AV83: 0 | AW83: 0 | AX83: 0 | AY83: 0 | AZ83: 0 | BA83: 0 | BB83: 0 | BC83: 0 | BD83: 0 | BE83: 0 | BF83: 0 | BG83: 0 | BH83: 0 | BI83: 0 | BJ83: 0 | BK83: 0 | BL83: 0 | BM83: 0 | BN83: 0 | BO83: 0 | BP83: 0 | BQ83: 0 | BR83: 0 | BS83: 0 | BT83: 0 | BU83: 0 | BV83: 0 | BW83: 0 | BX83: 0 | BY83: 0 | BZ83: 0 | CA83: 0 | CB83: 0 | CC83: 0 | CD83: 0 | CE83: 0 | CF83: 0 | CG83: 0 | CH83: 0 | CI83: 0 | CJ83: 0 | CK83: 0 | CL83: 0 | CM83: 0 | CN83: 0 | CO83: 0 | CP83: 0 | CQ83: 0 | CR83: 0 | CS83: 0 | CT83: 0 | CU83: 0 | CV83: 0 | CW83: 0 | CX83: 0 | CY83: 0 | CZ83: 0 | DA83: 0 | DB83: 0 | DC83: 0 | DD83: 0 | DE83: 0 | DF83: 0 | DG83: 0 | DH83: 0 | DI83: 0 | DJ83: 0 | DK83: 0 | DL83: 0 | DM83: 0 | DN83: 0 | DO83: 0 | DP83: 0 | DQ83: 0 | DR83: 0 | DS83: 0 | DT83: 0 | DU83: 0 | DV83: 0 | DW83: 0 | DX83: 0 | DY83: 0
B84: 7 | C84: [spare] | H84: $/t | P84: 0 | Q84: 0 | R84: 0 | S84: 0 | T84: 0 | U84: 0 | V84: 0 | W84: 0 | X84: 0 | Y84: 0 | Z84: 0 | AA84: 0 | AB84: 0 | AC84: 0 | AD84: 0 | AE84: 0 | AF84: 0 | AG84: 0 | AH84: 0 | AI84: 0 | AJ84: 0 | AK84: 0 | AL84: 0 | AM84: 0 | AN84: 0 | AO84: 0 | AP84: 0 | AQ84: 0 | AR84: 0 | AS84: 0 | AT84: 0 | AU84: 0 | AV84: 0 | AW84: 0 | AX84: 0 | AY84: 0 | AZ84: 0 | BA84: 0 | BB84: 0 | BC84: 0 | BD84: 0 | BE84: 0 | BF84: 0 | BG84: 0 | BH84: 0 | BI84: 0 | BJ84: 0 | BK84: 0 | BL84: 0 | BM84: 0 | BN84: 0 | BO84: 0 | BP84: 0 | BQ84: 0 | BR84: 0 | BS84: 0 | BT84: 0 | BU84: 0 | BV84: 0 | BW84: 0 | BX84: 0 | BY84: 0 | BZ84: 0 | CA84: 0 | CB84: 0 | CC84: 0 | CD84: 0 | CE84: 0 | CF84: 0 | CG84: 0 | CH84: 0 | CI84: 0 | CJ84: 0 | CK84: 0 | CL84: 0 | CM84: 0 | CN84: 0 | CO84: 0 | CP84: 0 | CQ84: 0 | CR84: 0 | CS84: 0 | CT84: 0 | CU84: 0 | CV84: 0 | CW84: 0 | CX84: 0 | CY84: 0 | CZ84: 0 | DA84: 0 | DB84: 0 | DC84: 0 | DD84: 0 | DE84: 0 | DF84: 0 | DG84: 0 | DH84: 0 | DI84: 0 | DJ84: 0 | DK84: 0 | DL84: 0 | DM84: 0 | DN84: 0 | DO84: 0 | DP84: 0 | DQ84: 0 | DR84: 0 | DS84: 0 | DT84: 0 | DU84: 0 | DV84: 0 | DW84: 0 | DX84: 0 | DY84: 0
C85: Applied | H85: $/t | K85: =Input_Scen!J131 -> Base Case | P85: =INDEX(P78:P84,INDEX($B$78:$B$84,MATCH($K$85,$C$78:$C$84,0))) -> 3177 | Q85: 3124 | R85: 3052 | S85: 3291 | T85: 3176 | U85: 3177 | V85: 2940 | W85: 2949 | X85: 3002 | Y85: 3130 | Z85: 2925 | AA85: 2855 | AB85: 2938 | AC85: 2958 | AD85: 3084 | AE85: 3152 | AF85: 2954 | AG85: 2718 | AH85: 3015 | AI85: 2838 | AJ85: 3298 | AK85: 2908 | AL85: 2786 | AM85: 3165 | AN85: 3218 | AO85: 2870 | AP85: 3296 | AQ85: 3034 | AR85: 2895 | AS85: 2984 | AT85: 2858 | AU85: 2810 | AV85: 2893 | AW85: 2751 | AX85: 3047 | AY85: 3183 | AZ85: 2946 | BA85: 2826 | BB85: 3006 | BC85: 2842 | BD85: 2795 | BE85: 3049 | BF85: 3044 | BG85: 3112 | BH85: 2757 | BI85: 2825 | BJ85: 2857 | BK85: 3231 | BL85: 2930 | BM85: 2922 | BN85: 2716 | BO85: 3082 | BP85: 3048 | BQ85: 2922 | BR85: 3273 | BS85: 2874 | BT85: 3212 | BU85: 3056 | BV85: 2743 | BW85: 3077 | BX85: 3059 | BY85: 3177 | BZ85: 2917 | CA85: 3252 | CB85: =INDEX(CB78:CB84,INDEX($B$78:$B$84,MATCH($K$85,$C$78:$C$84,0))) -> 2767 | CC85: 2772 | CD85: 2828 | CE85: 3155 | CF85: 2881 | CG85: 3055 | CH85: 3300 | CI85: 2862 | CJ85: 2702 | CK85: 3266 | CL85: 2825 | CM85: 2769 | CN85: 2794 | CO85: 3286 | CP85: 2749 | CQ85: 2836 | CR85: 2842 | CS85: 3000 | CT85: 3236 | CU85: 3212 | CV85: 3274 | CW85: 3204 | CX85: 3087 | CY85: 3226 | CZ85: 3101 | DA85: 2875 | DB85: 3152 | DC85: 3117 | DD85: 3285 | DE85: 3146 | DF85: 2839 | DG85: 2783 | DH85: 3044 | DI85: 2721 | DJ85: 2806 | DK85: 3258 | DL85: 3151 | DM85: 2758 | DN85: 3195 | DO85: 2762 | DP85: 3008 | DQ85: 2995 | DR85: 2805 | DS85: 2885 | DT85: 2807 | DU85: 3154 | DV85: 3123 | DW85: 3037 | DX85: 3139 | DY85: 2942
A89: End Sheet

Sheet Time
P6: ='[19]Mining Inputs'!J12 -> 2023 | Q6: =P6+1 -> 2024 | R6: =Q6+1 -> 2025 | S6: 2026 | T6: 2027 | U6: 2028 | V6: 2029 | W6: 2030 | X6: 2031 | Y6: 2032 | Z6: 2033 | AA6: 2034 | AB6: 2035 | AC6: 2036 | AD6: 2037 | AE6: 2038 | AF6: 2039 | AG6: 2040 | AH6: 2041 | AI6: 2042 | AJ6: 2043 | AK6: 2044 | AL6: 2045 | AM6: 2046 | AN6: 2047 | AO6: 2048 | AP6: 2049 | AQ6: 2050 | AR6: 2051 | AS6: 2052 | AT6: 2053 | AU6: 2054 | AV6: 2055 | AW6: 2056 | AX6: 2057 | AY6: 2058 | AZ6: 2059 | BA6: 2060 | BB6: 2061 | BC6: 2062 | BD6: 2063 | BE6: 2064 | BF6: 2065 | BG6: 2066 | BH6: 2067 | BI6: 2068 | BJ6: 2069 | BK6: 2070 | BL6: 2071 | BM6: 2072 | BN6: 2073 | BO6: 2074 | BP6: 2075 | BQ6: 2076 | BR6: 2077 | BS6: 2078 | BT6: 2079 | BU6: 2080 | BV6: 2081 | BW6: 2082 | BX6: 2083 | BY6: 2084 | BZ6: 2085 | CA6: 2086 | CB6: 2087 | CC6: 2088 | CD6: =CC6+1 -> 2089 | CE6: 2090 | CF6: 2091 | CG6: 2092 | CH6: 2093 | CI6: 2094 | CJ6: 2095 | CK6: 2096 | CL6: 2097 | CM6: 2098 | CN6: 2099 | CO6: 2100 | CP6: 2101 | CQ6: 2102 | CR6: 2103 | CS6: 2104 | CT6: 2105 | CU6: 2106 | CV6: 2107 | CW6: 2108 | CX6: 2109 | CY6: 2110 | CZ6: 2111 | DA6: 2112 | DB6: 2113 | DC6: 2114 | DD6: 2115 | DE6: 2116 | DF6: 2117 | DG6: 2118 | DH6: 2119 | DI6: 2120 | DJ6: 2121 | DK6: 2122 | DL6: 2123 | DM6: 2124 | DN6: 2125 | DO6: 2126 | DP6: 2127 | DQ6: 2128 | DR6: 2129 | DS6: 2130 | DT6: 2131 | DU6: 2132 | DV6: 2133 | DW6: 2134 | DX6: 2135 | DY6: 2136 | DZ6: 2137 | EA6: 2138 | EB6: 2139 | EC6: 2140 | ED6: 2141 | EE6: 2142 | EF6: 2143 | EG6: 2144 | EH6: 2145 | EI6: 2146 | EJ6: 2147 | EK6: 2148 | EL6: 2149 | EM6: 2150 | EN6: 2151 | EO6: 2152 | EP6: =EO6+1 -> 2153 | EQ6: 2154 | ER6: 2155 | ES6: 2156 | ET6: 2157 | EU6: 2158 | EV6: 2159 | EW6: 2160 | EX6: 2161 | EY6: 2162 | EZ6: 2163 | FA6: 2164 | FB6: 2165 | FC6: 2166 | FD6: 2167 | FE6: 2168 | FF6: 2169 | FG6: 2170 | FH6: 2171 | FI6: 2172 | FJ6: 2173 | FK6: 2174 | FL6: 2175 | FM6: 2176 | FN6: 2177 | FO6: 2178 | FP6: 2179 | FQ6: 2180 | FR6: 2181 | FS6: 2182 | FT6: 2183 | FU6: 2184 | FV6: 2185 | FW6: 2186 | FX6: 2187 | FY6: 2188 | FZ6: 2189 | GA6: 2190 | GB6: 2191 | GC6: 2192 | GD6: 2193 | GE6: 2194 | GF6: 2195 | GG6: 2196 | GH6: 2197 | GI6: 2198 | GJ6: 2199 | GK6: 2200 | GL6: 2201 | GM6: 2202 | GN6: 2203 | GO6: 2204 | GP6: 2205 | GQ6: 2206 | GR6: 2207 | GS6: 2208 | GT6: 2209 | GU6: 2210 | GV6: 2211 | GW6: 2212 | GX6: 2213 | GY6: 2214 | GZ6: 2215 | HA6: 2216 | HB6: =HA6+1 -> 2217 | HC6: 2218 | HD6: 2219 | HE6: 2220 | HF6: 2221 | HG6: 2222 | HH6: 2223 | HI6: 2224 | HJ6: 2225 | HK6: 2226 | HL6: 2227 | HM6: 2228 | HN6: 2229 | HO6: 2230 | HP6: 2231 | HQ6: 2232 | HR6: 2233 | HS6: 2234 | HT6: 2235 | HU6: 2236 | HV6: 2237 | HW6: 2238 | HX6: 2239 | HY6: 2240 | HZ6: 2241 | IA6: 2242 | IB6: 2243 | IC6: 2244
P7: 1 | Q7: =P7+1 -> 2 | R7: 3 | S7: 4 | T7: 5 | U7: 6 | V7: 7 | W7: 8 | X7: 9 | Y7: 10 | Z7: 11 | AA7: 12 | AB7: 13 | AC7: 14 | AD7: 15 | AE7: 16 | AF7: 17 | AG7: 18 | AH7: 19 | AI7: 20 | AJ7: 21 | AK7: 22 | AL7: 23 | AM7: 24 | AN7: 25 | AO7: 26 | AP7: 27 | AQ7: 28 | AR7: 29 | AS7: 30 | AT7: 31 | AU7: 32 | AV7: 33 | AW7: 34 | AX7: 35 | AY7: 36 | AZ7: 37 | BA7: 38 | BB7: 39 | BC7: 40 | BD7: 41 | BE7: 42 | BF7: 43 | BG7: 44 | BH7: 45 | BI7: 46 | BJ7: 47 | BK7: 48 | BL7: 49 | BM7: 50 | BN7: 51 | BO7: 52 | BP7: 53 | BQ7: 54 | BR7: 55 | BS7: 56 | BT7: 57 | BU7: 58 | BV7: 59 | BW7: 60 | BX7: 61 | BY7: 62 | BZ7: 63 | CA7: 64 | CB7: 65 | CC7: 66 | CD7: 67 | CE7: 68 | CF7: 69 | CG7: 70 | CH7: 71 | CI7: 72 | CJ7: 73 | CK7: 74 | CL7: 75 | CM7: 76 | CN7: 77 | CO7: 78 | CP7: 79 | CQ7: 80 | CR7: 81 | CS7: 82 | CT7: 83 | CU7: 84 | CV7: 85 | CW7: 86 | CX7: 87 | CY7: 88 | CZ7: 89 | DA7: 90 | DB7: 91 | DC7: 92 | DD7: 93 | DE7: 94 | DF7: 95 | DG7: 96 | DH7: 97 | DI7: 98 | DJ7: 99 | DK7: 100 | DL7: 101 | DM7: 102 | DN7: 103 | DO7: 104 | DP7: 105 | DQ7: 106 | DR7: 107 | DS7: 108 | DT7: 109 | DU7: 110 | DV7: 111 | DW7: 112 | DX7: 113 | DY7: 114 | DZ7: 115 | EA7: 116 | EB7: 117 | EC7: 118 | ED7: 119 | EE7: 120 | EF7: 121 | EG7: 122 | EH7: 123 | EI7: 124 | EJ7: 125 | EK7: 126 | EL7: 127 | EM7: 128 | EN7: 129 | EO7: 130 | EP7: 131 | EQ7: 132 | ER7: 133 | ES7: 134 | ET7: 135 | EU7: 136 | EV7: 137 | EW7: 138 | EX7: 139 | EY7: 140 | EZ7: 141 | FA7: 142 | FB7: 143 | FC7: 144 | FD7: 145 | FE7: 146 | FF7: 147 | FG7: 148 | FH7: 149 | FI7: 150 | FJ7: 151 | FK7: 152 | FL7: 153 | FM7: 154 | FN7: 155 | FO7: 156 | FP7: 157 | FQ7: 158 | FR7: 159 | FS7: 160 | FT7: 161 | FU7: 162 | FV7: 163 | FW7: 164 | FX7: 165 | FY7: 166 | FZ7: 167 | GA7: 168 | GB7: 169 | GC7: 170 | GD7: 171 | GE7: 172 | GF7: 173 | GG7: 174 | GH7: 175 | GI7: 176 | GJ7: 177 | GK7: 178 | GL7: 179 | GM7: 180 | GN7: 181 | GO7: 182 | GP7: 183 | GQ7: 184 | GR7: 185 | GS7: 186 | GT7: 187 | GU7: 188 | GV7: 189 | GW7: 190 | GX7: 191 | GY7: 192 | GZ7: 193 | HA7: 194 | HB7: 195 | HC7: 196 | HD7: 197 | HE7: 198 | HF7: 199 | HG7: 200 | HH7: 201 | HI7: 202 | HJ7: 203 | HK7: 204 | HL7: 205 | HM7: 206 | HN7: 207 | HO7: 208 | HP7: 209 | HQ7: 210 | HR7: 211 | HS7: 212 | HT7: 213 | HU7: 214 | HV7: 215 | HW7: 216 | HX7: 217 | HY7: 218 | HZ7: 219 | IA7: 220 | IB7: 221 | IC7: 222
A9: Mining
B11: Mine Active | I11: flag | N11: =SUM(P11:IC11) -> 30 | P11: =P18+P22 -> 0 | Q11: =Q18+Q22 -> 0 | R11: 0 | S11: 1 | T11: 1 | U11: 1 | V11: 1 | W11: 1 | X11: 1 | Y11: 1 | Z11: 1 | AA11: 1 | AB11: 1 | AC11: 1 | AD11: 1 | AE11: 1 | AF11: 1 | AG11: 1 | AH11: 1 | AI11: 1 | AJ11: 1 | AK11: 1 | AL11: 1 | AM11: 1 | AN11: 1 | AO11: 1 | AP11: 1 | AQ11: 1 | AR11: 1 | AS11: 1 | AT11: 1 | AU11: 1 | AV11: 1 | AW11: 0 | AX11: 0 | AY11: 0 | AZ11: 0 | BA11: 0 | BB11: 0 | BC11: 0 | BD11: 0 | BE11: 0 | BF11: 0 | BG11: 0 | BH11: 0 | BI11: 0 | BJ11: 0 | BK11: 0 | BL11: 0 | BM11: 0 | BN11: 0 | BO11: 0 | BP11: 0 | BQ11: 0 | BR11: 0 | BS11: 0 | BT11: 0 | BU11: 0 | BV11: 0 | BW11: 0 | BX11: 0 | BY11: 0 | BZ11: 0 | CA11: 0 | CB11: 0 | CC11: =CC18+CC22 -> 0 | CD11: 0 | CE11: 0 | CF11: 0 | CG11: 0 | CH11: 0 | CI11: 0 | CJ11: 0 | CK11: 0 | CL11: 0 | CM11: 0 | CN11: 0 | CO11: 0 | CP11: 0 | CQ11: 0 | CR11: 0 | CS11: 0 | CT11: 0 | CU11: 0 | CV11: 0 | CW11: 0 | CX11: 0 | CY11: 0 | CZ11: 0 | DA11: 0 | DB11: 0 | DC11: 0 | DD11: 0 | DE11: 0 | DF11: 0 | DG11: 0 | DH11: 0 | DI11: 0 | DJ11: 0 | DK11: 0 | DL11: 0 | DM11: 0 | DN11: 0 | DO11: 0 | DP11: 0 | DQ11: 0 | DR11: 0 | DS11: 0 | DT11: 0 | DU11: 0 | DV11: 0 | DW11: 0 | DX11: 0 | DY11: 0 | DZ11: 0 | EA11: 0 | EB11: 0 | EC11: 0 | ED11: 0 | EE11: 0 | EF11: 0 | EG11: 0 | EH11: 0 | EI11: 0 | EJ11: 0 | EK11: 0 | EL11: 0 | EM11: 0 | EN11: 0 | EO11: =EO18+EO22 -> 0 | EP11: 0 | EQ11: 0 | ER11: 0 | ES11: 0 | ET11: 0 | EU11: 0 | EV11: 0 | EW11: 0 | EX11: 0 | EY11: 0 | EZ11: 0 | FA11: 0 | FB11: 0 | FC11: 0 | FD11: 0 | FE11: 0 | FF11: 0 | FG11: 0 | FH11: 0 | FI11: 0 | FJ11: 0 | FK11: 0 | FL11: 0 | FM11: 0 | FN11: 0 | FO11: 0 | FP11: 0 | FQ11: 0 | FR11: 0 | FS11: 0 | FT11: 0 | FU11: 0 | FV11: 0 | FW11: 0 | FX11: 0 | FY11: 0 | FZ11: 0 | GA11: 0 | GB11: 0 | GC11: 0 | GD11: 0 | GE11: 0 | GF11: 0 | GG11: 0 | GH11: 0 | GI11: 0 | GJ11: 0 | GK11: 0 | GL11: 0 | GM11: 0 | GN11: 0 | GO11: 0 | GP11: 0 | GQ11: 0 | GR11: 0 | GS11: 0 | GT11: 0 | GU11: 0 | GV11: 0 | GW11: 0 | GX11: 0 | GY11: 0 | GZ11: 0 | HA11: =HA18+HA22 -> 0 | HB11: 0 | HC11: 0 | HD11: 0 | HE11: 0 | HF11: 0 | HG11: 0 | HH11: 0 | HI11: 0 | HJ11: 0 | HK11: 0 | HL11: 0 | HM11: 0 | HN11: 0 | HO11: 0 | HP11: 0 | HQ11: 0 | HR11: 0 | HS11: 0 | HT11: 0 | HU11: 0 | HV11: 0 | HW11: 0 | HX11: 0 | HY11: 0 | HZ11: 0 | IA11: 0 | IB11: 0 | IC11: 0
B13: Actuals Start | I13: flag | K13: =Input_Scen!J13 -> 2023 | N13: =SUM(P13:IC13) -> 1 | P13: =IF(P$6=$K13,1,0) -> 1 | Q13: =IF(Q$6=$K13,1,0) -> 0 | R13: 0 | S13: 0 | T13: 0 | U13: 0 | V13: 0 | W13: 0 | X13: 0 | Y13: 0 | Z13: 0 | AA13: 0 | AB13: 0 | AC13: 0 | AD13: 0 | AE13: 0 | AF13: 0 | AG13: 0 | AH13: 0 | AI13: 0 | AJ13: 0 | AK13: 0 | AL13: 0 | AM13: 0 | AN13: 0 | AO13: 0 | AP13: 0 | AQ13: 0 | AR13: 0 | AS13: 0 | AT13: 0 | AU13: 0 | AV13: 0 | AW13: 0 | AX13: 0 | AY13: 0 | AZ13: 0 | BA13: 0 | BB13: 0 | BC13: 0 | BD13: 0 | BE13: 0 | BF13: 0 | BG13: 0 | BH13: 0 | BI13: 0 | BJ13: 0 | BK13: 0 | BL13: 0 | BM13: 0 | BN13: 0 | BO13: 0 | BP13: 0 | BQ13: 0 | BR13: 0 | BS13: 0 | BT13: 0 | BU13: 0 | BV13: 0 | BW13: 0 | BX13: 0 | BY13: 0 | BZ13: 0 | CA13: 0 | CB13: 0 | CC13: =IF(CC$6=$K13,1,0) -> 0 | CD13: 0 | CE13: 0 | CF13: 0 | CG13: 0 | CH13: 0 | CI13: 0 | CJ13: 0 | CK13: 0 | CL13: 0 | CM13: 0 | CN13: 0 | CO13: 0 | CP13: 0 | CQ13: 0 | CR13: 0 | CS13: 0 | CT13: 0 | CU13: 0 | CV13: 0 | CW13: 0 | CX13: 0 | CY13: 0 | CZ13: 0 | DA13: 0 | DB13: 0 | DC13: 0 | DD13: 0 | DE13: 0 | DF13: 0 | DG13: 0 | DH13: 0 | DI13: 0 | DJ13: 0 | DK13: 0 | DL13: 0 | DM13: 0 | DN13: 0 | DO13: 0 | DP13: 0 | DQ13: 0 | DR13: 0 | DS13: 0 | DT13: 0 | DU13: 0 | DV13: 0 | DW13: 0 | DX13: 0 | DY13: 0 | DZ13: 0 | EA13: 0 | EB13: 0 | EC13: 0 | ED13: 0 | EE13: 0 | EF13: 0 | EG13: 0 | EH13: 0 | EI13: 0 | EJ13: 0 | EK13: 0 | EL13: 0 | EM13: 0 | EN13: 0 | EO13: =IF(EO$6=$K13,1,0) -> 0 | EP13: 0 | EQ13: 0 | ER13: 0 | ES13: 0 | ET13: 0 | EU13: 0 | EV13: 0 | EW13: 0 | EX13: 0 | EY13: 0 | EZ13: 0 | FA13: 0 | FB13: 0 | FC13: 0 | FD13: 0 | FE13: 0 | FF13: 0 | FG13: 0 | FH13: 0 | FI13: 0 | FJ13: 0 | FK13: 0 | FL13: 0 | FM13: 0 | FN13: 0 | FO13: 0 | FP13: 0 | FQ13: 0 | FR13: 0 | FS13: 0 | FT13: 0 | FU13: 0 | FV13: 0 | FW13: 0 | FX13: 0 | FY13: 0 | FZ13: 0 | GA13: 0 | GB13: 0 | GC13: 0 | GD13: 0 | GE13: 0 | GF13: 0 | GG13: 0 | GH13: 0 | GI13: 0 | GJ13: 0 | GK13: 0 | GL13: 0 | GM13: 0 | GN13: 0 | GO13: 0 | GP13: 0 | GQ13: 0 | GR13: 0 | GS13: 0 | GT13: 0 | GU13: 0 | GV13: 0 | GW13: 0 | GX13: 0 | GY13: 0 | GZ13: 0 | HA13: =IF(HA$6=$K13,1,0) -> 0 | HB13: 0 | HC13: 0 | HD13: 0 | HE13: 0 | HF13: 0 | HG13: 0 | HH13: 0 | HI13: 0 | HJ13: 0 | HK13: 0 | HL13: 0 | HM13: 0 | HN13: 0 | HO13: 0 | HP13: 0 | HQ13: 0 | HR13: 0 | HS13: 0 | HT13: 0 | HU13: 0 | HV13: 0 | HW13: 0 | HX13: 0 | HY13: 0 | HZ13: 0 | IA13: 0 | IB13: 0 | IC13: 0
B14: Actuals Period | I14: flag | N14: =SUM(P14:IC14) -> 3 | P14: =O14+P13-O15 -> 1 | Q14: =P14+Q13-P15 -> 1 | R14: =Q14+R13-Q15 -> 1 | S14: =R14+S13-R15 -> 0 | T14: =S14+T13-S15 -> 0 | U14: =T14+U13-T15 -> 0 | V14: =U14+V13-U15 -> 0 | W14: =V14+W13-V15 -> 0 | X14: =W14+X13-W15 -> 0 | Y14: =X14+Y13-X15 -> 0 | Z14: =Y14+Z13-Y15 -> 0 | AA14: =Z14+AA13-Z15 -> 0 | AB14: =AA14+AB13-AA15 -> 0 | AC14: =AB14+AC13-AB15 -> 0 | AD14: =AC14+AD13-AC15 -> 0 | AE14: =AD14+AE13-AD15 -> 0 | AF14: =AE14+AF13-AE15 -> 0 | AG14: =AF14+AG13-AF15 -> 0 | AH14: =AG14+AH13-AG15 -> 0 | AI14: =AH14+AI13-AH15 -> 0 | AJ14: =AI14+AJ13-AI15 -> 0 | AK14: =AJ14+AK13-AJ15 -> 0 | AL14: =AK14+AL13-AK15 -> 0 | AM14: =AL14+AM13-AL15 -> 0 | AN14: =AM14+AN13-AM15 -> 0 | AO14: =AN14+AO13-AN15 -> 0 | AP14: =AO14+AP13-AO15 -> 0 | AQ14: =AP14+AQ13-AP15 -> 0 | AR14: =AQ14+AR13-AQ15 -> 0 | AS14: =AR14+AS13-AR15 -> 0 | AT14: =AS14+AT13-AS15 -> 0 | AU14: =AT14+AU13-AT15 -> 0 | AV14: =AU14+AV13-AU15 -> 0 | AW14: =AV14+AW13-AV15 -> 0 | AX14: =AW14+AX13-AW15 -> 0 | AY14: =AX14+AY13-AX15 -> 0 | AZ14: =AY14+AZ13-AY15 -> 0 | BA14: =AZ14+BA13-AZ15 -> 0 | BB14: =BA14+BB13-BA15 -> 0 | BC14: =BB14+BC13-BB15 -> 0 | BD14: =BC14+BD13-BC15 -> 0 | BE14: =BD14+BE13-BD15 -> 0 | BF14: =BE14+BF13-BE15 -> 0 | BG14: =BF14+BG13-BF15 -> 0 | BH14: =BG14+BH13-BG15 -> 0 | BI14: =BH14+BI13-BH15 -> 0 | BJ14: =BI14+BJ13-BI15 -> 0 | BK14: =BJ14+BK13-BJ15 -> 0 | BL14: =BK14+BL13-BK15 -> 0 | BM14: =BL14+BM13-BL15 -> 0 | BN14: =BM14+BN13-BM15 -> 0 | BO14: =BN14+BO13-BN15 -> 0 | BP14: =BO14+BP13-BO15 -> 0 | BQ14: =BP14+BQ13-BP15 -> 0 | BR14: =BQ14+BR13-BQ15 -> 0 | BS14: =BR14+BS13-BR15 -> 0 | BT14: =BS14+BT13-BS15 -> 0 | BU14: =BT14+BU13-BT15 -> 0 | BV14: =BU14+BV13-BU15 -> 0 | BW14: =BV14+BW13-BV15 -> 0 | BX14: =BW14+BX13-BW15 -> 0 | BY14: =BX14+BY13-BX15 -> 0 | BZ14: =BY14+BZ13-BY15 -> 0 | CA14: =BZ14+CA13-BZ15 -> 0 | CB14: =CA14+CB13-CA15 -> 0 | CC14: =CB14+CC13-CB15 -> 0 | CD14: =CC14+CD13-CC15 -> 0 | CE14: =CD14+CE13-CD15 -> 0 | CF14: =CE14+CF13-CE15 -> 0 | CG14: =CF14+CG13-CF15 -> 0 | CH14: =CG14+CH13-CG15 -> 0 | CI14: =CH14+CI13-CH15 -> 0 | CJ14: =CI14+CJ13-CI15 -> 0 | CK14: =CJ14+CK13-CJ15 -> 0 | CL14: =CK14+CL13-CK15 -> 0 | CM14: =CL14+CM13-CL15 -> 0 | CN14: =CM14+CN13-CM15 -> 0 | CO14: =CN14+CO13-CN15 -> 0 | CP14: =CO14+CP13-CO15 -> 0 | CQ14: =CP14+CQ13-CP15 -> 0 | CR14: =CQ14+CR13-CQ15 -> 0 | CS14: =CR14+CS13-CR15 -> 0 | CT14: =CS14+CT13-CS15 -> 0 | CU14: =CT14+CU13-CT15 -> 0 | CV14: =CU14+CV13-CU15 -> 0 | CW14: =CV14+CW13-CV15 -> 0 | CX14: =CW14+CX13-CW15 -> 0 | CY14: =CX14+CY13-CX15 -> 0 | CZ14: =CY14+CZ13-CY15 -> 0 | DA14: =CZ14+DA13-CZ15 -> 0 | DB14: =DA14+DB13-DA15 -> 0 | DC14: =DB14+DC13-DB15 -> 0 | DD14: =DC14+DD13-DC15 -> 0 | DE14: =DD14+DE13-DD15 -> 0 | DF14: =DE14+DF13-DE15 -> 0 | DG14: =DF14+DG13-DF15 -> 0 | DH14: =DG14+DH13-DG15 -> 0 | DI14: =DH14+DI13-DH15 -> 0 | DJ14: =DI14+DJ13-DI15 -> 0 | DK14: =DJ14+DK13-DJ15 -> 0 | DL14: =DK14+DL13-DK15 -> 0 | DM14: =DL14+DM13-DL15 -> 0 | DN14: =DM14+DN13-DM15 -> 0 | DO14: =DN14+DO13-DN15 -> 0 | DP14: =DO14+DP13-DO15 -> 0 | DQ14: =DP14+DQ13-DP15 -> 0 | DR14: =DQ14+DR13-DQ15 -> 0 | DS14: =DR14+DS13-DR15 -> 0 | DT14: =DS14+DT13-DS15 -> 0 | DU14: =DT14+DU13-DT15 -> 0 | DV14: =DU14+DV13-DU15 -> 0 | DW14: =DV14+DW13-DV15 -> 0 | DX14: =DW14+DX13-DW15 -> 0 | DY14: =DX14+DY13-DX15 -> 0 | DZ14: =DY14+DZ13-DY15 -> 0 | EA14: =DZ14+EA13-DZ15 -> 0 | EB14: =EA14+EB13-EA15 -> 0 | EC14: =EB14+EC13-EB15 -> 0 | ED14: =EC14+ED13-EC15 -> 0 | EE14: =ED14+EE13-ED15 -> 0 | EF14: =EE14+EF13-EE15 -> 0 | EG14: =EF14+EG13-EF15 -> 0 | EH14: =EG14+EH13-EG15 -> 0 | EI14: =EH14+EI13-EH15 -> 0 | EJ14: =EI14+EJ13-EI15 -> 0 | EK14: =EJ14+EK13-EJ15 -> 0 | EL14: =EK14+EL13-EK15 -> 0 | EM14: =EL14+EM13-EL15 -> 0 | EN14: =EM14+EN13-EM15 -> 0 | EO14: =EN14+EO13-EN15 -> 0 | EP14: =EO14+EP13-EO15 -> 0 | EQ14: =EP14+EQ13-EP15 -> 0 | ER14: =EQ14+ER13-EQ15 -> 0 | ES14: =ER14+ES13-ER15 -> 0 | ET14: =ES14+ET13-ES15 -> 0 | EU14: =ET14+EU13-ET15 -> 0 | EV14: =EU14+EV13-EU15 -> 0 | EW14: =EV14+EW13-EV15 -> 0 | EX14: =EW14+EX13-EW15 -> 0 | EY14: =EX14+EY13-EX15 -> 0 | EZ14: =EY14+EZ13-EY15 -> 0 | FA14: =EZ14+FA13-EZ15 -> 0 | FB14: =FA14+FB13-FA15 -> 0 | FC14: =FB14+FC13-FB15 -> 0 | FD14: =FC14+FD13-FC15 -> 0 | FE14: =FD14+FE13-FD15 -> 0 | FF14: =FE14+FF13-FE15 -> 0 | FG14: =FF14+FG13-FF15 -> 0 | FH14: =FG14+FH13-FG15 -> 0 | FI14: =FH14+FI13-FH15 -> 0 | FJ14: =FI14+FJ13-FI15 -> 0 | FK14: =FJ14+FK13-FJ15 -> 0 | FL14: =FK14+FL13-FK15 -> 0 | FM14: =FL14+FM13-FL15 -> 0 | FN14: =FM14+FN13-FM15 -> 0 | FO14: =FN14+FO13-FN15 -> 0 | FP14: =FO14+FP13-FO15 -> 0 | FQ14: =FP14+FQ13-FP15 -> 0 | FR14: =FQ14+FR13-FQ15 -> 0 | FS14: =FR14+FS13-FR15 -> 0 | FT14: =FS14+FT13-FS15 -> 0 | FU14: =FT14+FU13-FT15 -> 0 | FV14: =FU14+FV13-FU15 -> 0 | FW14: =FV14+FW13-FV15 -> 0 | FX14: =FW14+FX13-FW15 -> 0 | FY14: =FX14+FY13-FX15 -> 0 | FZ14: =FY14+FZ13-FY15 -> 0 | GA14: =FZ14+GA13-FZ15 -> 0 | GB14: =GA14+GB13-GA15 -> 0 | GC14: =GB14+GC13-GB15 -> 0 | GD14: =GC14+GD13-GC15 -> 0 | GE14: =GD14+GE13-GD15 -> 0 | GF14: =GE14+GF13-GE15 -> 0 | GG14: =GF14+GG13-GF15 -> 0 | GH14: =GG14+GH13-GG15 -> 0 | GI14: =GH14+GI13-GH15 -> 0 | GJ14: =GI14+GJ13-GI15 -> 0 | GK14: =GJ14+GK13-GJ15 -> 0 | GL14: =GK14+GL13-GK15 -> 0 | GM14: =GL14+GM13-GL15 -> 0 | GN14: =GM14+GN13-GM15 -> 0 | GO14: =GN14+GO13-GN15 -> 0 | GP14: =GO14+GP13-GO15 -> 0 | GQ14: =GP14+GQ13-GP15 -> 0 | GR14: =GQ14+GR13-GQ15 -> 0 | GS14: =GR14+GS13-GR15 -> 0 | GT14: =GS14+GT13-GS15 -> 0 | GU14: =GT14+GU13-GT15 -> 0 | GV14: =GU14+GV13-GU15 -> 0 | GW14: =GV14+GW13-GV15 -> 0 | GX14: =GW14+GX13-GW15 -> 0 | GY14: =GX14+GY13-GX15 -> 0 | GZ14: =GY14+GZ13-GY15 -> 0 | HA14: =GZ14+HA13-GZ15 -> 0 | HB14: =HA14+HB13-HA15 -> 0 | HC14: =HB14+HC13-HB15 -> 0 | HD14: =HC14+HD13-HC15 -> 0 | HE14: =HD14+HE13-HD15 -> 0 | HF14: =HE14+HF13-HE15 -> 0 | HG14: =HF14+HG13-HF15 -> 0 | HH14: =HG14+HH13-HG15 -> 0 | HI14: =HH14+HI13-HH15 -> 0 | HJ14: =HI14+HJ13-HI15 -> 0 | HK14: =HJ14+HK13-HJ15 -> 0 | HL14: =HK14+HL13-HK15 -> 0 | HM14: =HL14+HM13-HL15 -> 0 | HN14: =HM14+HN13-HM15 -> 0 | HO14: =HN14+HO13-HN15 -> 0 | HP14: =HO14+HP13-HO15 -> 0 | HQ14: =HP14+HQ13-HP15 -> 0 | HR14: =HQ14+HR13-HQ15 -> 0 | HS14: =HR14+HS13-HR15 -> 0 | HT14: =HS14+HT13-HS15 -> 0 | HU14: =HT14+HU13-HT15 -> 0 | HV14: =HU14+HV13-HU15 -> 0 | HW14: =HV14+HW13-HV15 -> 0 | HX14: =HW14+HX13-HW15 -> 0 | HY14: =HX14+HY13-HX15 -> 0 | HZ14: =HY14+HZ13-HY15 -> 0 | IA14: =HZ14+IA13-HZ15 -> 0 | IB14: =IA14+IB13-IA15 -> 0 | IC14: =IB14+IC13-IB15 -> 0
B15: Actuals End | I15: flag | K15: =Input_Scen!J15 -> 2025 | N15: =SUM(P15:IC15) -> 1 | P15: =IF(P$6=$K15,1,0) -> 0 | Q15: 0 | R15: 1 | S15: 0 | T15: 0 | U15: 0 | V15: 0 | W15: 0 | X15: 0 | Y15: 0 | Z15: 0 | AA15: 0 | AB15: 0 | AC15: 0 | AD15: 0 | AE15: 0 | AF15: 0 | AG15: 0 | AH15: 0 | AI15: 0 | AJ15: 0 | AK15: 0 | AL15: 0 | AM15: 0 | AN15: 0 | AO15: 0 | AP15: 0 | AQ15: 0 | AR15: 0 | AS15: 0 | AT15: 0 | AU15: 0 | AV15: 0 | AW15: 0 | AX15: 0 | AY15: 0 | AZ15: 0 | BA15: 0 | BB15: 0 | BC15: 0 | BD15: 0 | BE15: 0 | BF15: 0 | BG15: 0 | BH15: 0 | BI15: 0 | BJ15: 0 | BK15: 0 | BL15: 0 | BM15: 0 | BN15: 0 | BO15: 0 | BP15: 0 | BQ15: 0 | BR15: 0 | BS15: 0 | BT15: 0 | BU15: 0 | BV15: 0 | BW15: 0 | BX15: 0 | BY15: 0 | BZ15: 0 | CA15: 0 | CB15: =IF(CB$6=$K15,1,0) -> 0 | CC15: 0 | CD15: 0 | CE15: 0 | CF15: 0 | CG15: 0 | CH15: 0 | CI15: 0 | CJ15: 0 | CK15: 0 | CL15: 0 | CM15: 0 | CN15: 0 | CO15: 0 | CP15: 0 | CQ15: 0 | CR15: 0 | CS15: 0 | CT15: 0 | CU15: 0 | CV15: 0 | CW15: 0 | CX15: 0 | CY15: 0 | CZ15: 0 | DA15: 0 | DB15: 0 | DC15: 0 | DD15: 0 | DE15: 0 | DF15: 0 | DG15: 0 | DH15: 0 | DI15: 0 | DJ15: 0 | DK15: 0 | DL15: 0 | DM15: 0 | DN15: 0 | DO15: 0 | DP15: 0 | DQ15: 0 | DR15: 0 | DS15: 0 | DT15: 0 | DU15: 0 | DV15: 0 | DW15: 0 | DX15: 0 | DY15: 0 | DZ15: 0 | EA15: 0 | EB15: 0 | EC15: 0 | ED15: 0 | EE15: 0 | EF15: 0 | EG15: 0 | EH15: 0 | EI15: 0 | EJ15: 0 | EK15: 0 | EL15: 0 | EM15: 0 | EN15: 0 | EO15: 0 | EP15: 0 | EQ15: 0 | ER15: 0 | ES15: 0 | ET15: 0 | EU15: 0 | EV15: 0 | EW15: 0 | EX15: 0 | EY15: 0 | EZ15: 0 | FA15: 0 | FB15: 0 | FC15: 0 | FD15: 0 | FE15: 0 | FF15: 0 | FG15: 0 | FH15: 0 | FI15: 0 | FJ15: 0 | FK15: 0 | FL15: 0 | FM15: 0 | FN15: 0 | FO15: 0 | FP15: 0 | FQ15: 0 | FR15: 0 | FS15: 0 | FT15: 0 | FU15: 0 | FV15: 0 | FW15: 0 | FX15: 0 | FY15: 0 | FZ15: 0 | GA15: 0 | GB15: 0 | GC15: 0 | GD15: 0 | GE15: 0 | GF15: 0 | GG15: 0 | GH15: 0 | GI15: 0 | GJ15: 0 | GK15: 0 | GL15: 0 | GM15: 0 | GN15: 0 | GO15: 0 | GP15: 0 | GQ15: 0 | GR15: 0 | GS15: 0 | GT15: 0 | GU15: 0 | GV15: 0 | GW15: 0 | GX15: 0 | GY15: 0 | GZ15: 0 | HA15: 0 | HB15: 0 | HC15: 0 | HD15: 0 | HE15: 0 | HF15: 0 | HG15: 0 | HH15: 0 | HI15: 0 | HJ15: 0 | HK15: 0 | HL15: 0 | HM15: 0 | HN15: 0 | HO15: 0 | HP15: 0 | HQ15: 0 | HR15: 0 | HS15: 0 | HT15: 0 | HU15: 0 | HV15: 0 | HW15: 0 | HX15: 0 | HY15: 0 | HZ15: 0 | IA15: 0 | IB15: 0 | IC15: 0
B17: Construction Start | I17: flag | K17: =Input_Scen!J17 -> 2026 | N17: =SUM(P17:IC17) -> 1 | P17: =IF(P$6=$K17,1,0) -> 0 | Q17: =IF(Q$6=$K17,1,0) -> 0 | R17: 0 | S17: 1 | T17: 0 | U17: 0 | V17: 0 | W17: 0 | X17: 0 | Y17: 0 | Z17: 0 | AA17: 0 | AB17: 0 | AC17: 0 | AD17: 0 | AE17: 0 | AF17: 0 | AG17: 0 | AH17: 0 | AI17: 0 | AJ17: 0 | AK17: 0 | AL17: 0 | AM17: 0 | AN17: 0 | AO17: 0 | AP17: 0 | AQ17: 0 | AR17: 0 | AS17: 0 | AT17: 0 | AU17: 0 | AV17: 0 | AW17: 0 | AX17: 0 | AY17: 0 | AZ17: 0 | BA17: 0 | BB17: 0 | BC17: 0 | BD17: 0 | BE17: 0 | BF17: 0 | BG17: 0 | BH17: 0 | BI17: 0 | BJ17: 0 | BK17: 0 | BL17: 0 | BM17: 0 | BN17: 0 | BO17: 0 | BP17: 0 | BQ17: 0 | BR17: 0 | BS17: 0 | BT17: 0 | BU17: 0 | BV17: 0 | BW17: 0 | BX17: 0 | BY17: 0 | BZ17: 0 | CA17: 0 | CB17: 0 | CC17: =IF(CC$6=$K17,1,0) -> 0 | CD17: 0 | CE17: 0 | CF17: 0 | CG17: 0 | CH17: 0 | CI17: 0 | CJ17: 0 | CK17: 0 | CL17: 0 | CM17: 0 | CN17: 0 | CO17: 0 | CP17: 0 | CQ17: 0 | CR17: 0 | CS17: 0 | CT17: 0 | CU17: 0 | CV17: 0 | CW17: 0 | CX17: 0 | CY17: 0 | CZ17: 0 | DA17: 0 | DB17: 0 | DC17: 0 | DD17: 0 | DE17: 0 | DF17: 0 | DG17: 0 | DH17: 0 | DI17: 0 | DJ17: 0 | DK17: 0 | DL17: 0 | DM17: 0 | DN17: 0 | DO17: 0 | DP17: 0 | DQ17: 0 | DR17: 0 | DS17: 0 | DT17: 0 | DU17: 0 | DV17: 0 | DW17: 0 | DX17: 0 | DY17: 0 | DZ17: 0 | EA17: 0 | EB17: 0 | EC17: 0 | ED17: 0 | EE17: 0 | EF17: 0 | EG17: 0 | EH17: 0 | EI17: 0 | EJ17: 0 | EK17: 0 | EL17: 0 | EM17: 0 | EN17: 0 | EO17: =IF(EO$6=$K17,1,0) -> 0 | EP17: 0 | EQ17: 0 | ER17: 0 | ES17: 0 | ET17: 0 | EU17: 0 | EV17: 0 | EW17: 0 | EX17: 0 | EY17: 0 | EZ17: 0 | FA17: 0 | FB17: 0 | FC17: 0 | FD17: 0 | FE17: 0 | FF17: 0 | FG17: 0 | FH17: 0 | FI17: 0 | FJ17: 0 | FK17: 0 | FL17: 0 | FM17: 0 | FN17: 0 | FO17: 0 | FP17: 0 | FQ17: 0 | FR17: 0 | FS17: 0 | FT17: 0 | FU17: 0 | FV17: 0 | FW17: 0 | FX17: 0 | FY17: 0 | FZ17: 0 | GA17: 0 | GB17: 0 | GC17: 0 | GD17: 0 | GE17: 0 | GF17: 0 | GG17: 0 | GH17: 0 | GI17: 0 | GJ17: 0 | GK17: 0 | GL17: 0 | GM17: 0 | GN17: 0 | GO17: 0 | GP17: 0 | GQ17: 0 | GR17: 0 | GS17: 0 | GT17: 0 | GU17: 0 | GV17: 0 | GW17: 0 | GX17: 0 | GY17: 0 | GZ17: 0 | HA17: =IF(HA$6=$K17,1,0) -> 0 | HB17: 0 | HC17: 0 | HD17: 0 | HE17: 0 | HF17: 0 | HG17: 0 | HH17: 0 | HI17: 0 | HJ17: 0 | HK17: 0 | HL17: 0 | HM17: 0 | HN17: 0 | HO17: 0 | HP17: 0 | HQ17: 0 | HR17: 0 | HS17: 0 | HT17: 0 | HU17: 0 | HV17: 0 | HW17: 0 | HX17: 0 | HY17: 0 | HZ17: 0 | IA17: 0 | IB17: 0 | IC17: 0
B18: Construction Period | I18: flag | N18: =SUM(P18:IC18) -> 3 | P18: =O18+P17-O19 -> 0 | Q18: =P18+Q17-P19 -> 0 | R18: 0 | S18: 1 | T18: 1 | U18: 1 | V18: 0 | W18: 0 | X18: 0 | Y18: 0 | Z18: 0 | AA18: 0 | AB18: 0 | AC18: 0 | AD18: 0 | AE18: 0 | AF18: 0 | AG18: 0 | AH18: 0 | AI18: 0 | AJ18: 0 | AK18: 0 | AL18: 0 | AM18: 0 | AN18: 0 | AO18: 0 | AP18: 0 | AQ18: 0 | AR18: 0 | AS18: 0 | AT18: 0 | AU18: 0 | AV18: 0 | AW18: 0 | AX18: 0 | AY18: 0 | AZ18: 0 | BA18: 0 | BB18: 0 | BC18: 0 | BD18: 0 | BE18: 0 | BF18: 0 | BG18: 0 | BH18: 0 | BI18: 0 | BJ18: 0 | BK18: 0 | BL18: 0 | BM18: 0 | BN18: 0 | BO18: 0 | BP18: 0 | BQ18: 0 | BR18: 0 | BS18: 0 | BT18: 0 | BU18: 0 | BV18: 0 | BW18: 0 | BX18: 0 | BY18: 0 | BZ18: 0 | CA18: 0 | CB18: 0 | CC18: =CB18+CC17-CB19 -> 0 | CD18: 0 | CE18: 0 | CF18: 0 | CG18: 0 | CH18: 0 | CI18: 0 | CJ18: 0 | CK18: 0 | CL18: 0 | CM18: 0 | CN18: 0 | CO18: 0 | CP18: 0 | CQ18: 0 | CR18: 0 | CS18: 0 | CT18: 0 | CU18: 0 | CV18: 0 | CW18: 0 | CX18: 0 | CY18: 0 | CZ18: 0 | DA18: 0 | DB18: 0 | DC18: 0 | DD18: 0 | DE18: 0 | DF18: 0 | DG18: 0 | DH18: 0 | DI18: 0 | DJ18: 0 | DK18: 0 | DL18: 0 | DM18: 0 | DN18: 0 | DO18: 0 | DP18: 0 | DQ18: 0 | DR18: 0 | DS18: 0 | DT18: 0 | DU18: 0 | DV18: 0 | DW18: 0 | DX18: 0 | DY18: 0 | DZ18: 0 | EA18: 0 | EB18: 0 | EC18: 0 | ED18: 0 | EE18: 0 | EF18: 0 | EG18: 0 | EH18: 0 | EI18: 0 | EJ18: 0 | EK18: 0 | EL18: 0 | EM18: 0 | EN18: 0 | EO18: =EN18+EO17-EN19 -> 0 | EP18: 0 | EQ18: 0 | ER18: 0 | ES18: 0 | ET18: 0 | EU18: 0 | EV18: 0 | EW18: 0 | EX18: 0 | EY18: 0 | EZ18: 0 | FA18: 0 | FB18: 0 | FC18: 0 | FD18: 0 | FE18: 0 | FF18: 0 | FG18: 0 | FH18: 0 | FI18: 0 | FJ18: 0 | FK18: 0 | FL18: 0 | FM18: 0 | FN18: 0 | FO18: 0 | FP18: 0 | FQ18: 0 | FR18: 0 | FS18: 0 | FT18: 0 | FU18: 0 | FV18: 0 | FW18: 0 | FX18: 0 | FY18: 0 | FZ18: 0 | GA18: 0 | GB18: 0 | GC18: 0 | GD18: 0 | GE18: 0 | GF18: 0 | GG18: 0 | GH18: 0 | GI18: 0 | GJ18: 0 | GK18: 0 | GL18: 0 | GM18: 0 | GN18: 0 | GO18: 0 | GP18: 0 | GQ18: 0 | GR18: 0 | GS18: 0 | GT18: 0 | GU18: 0 | GV18: 0 | GW18: 0 | GX18: 0 | GY18: 0 | GZ18: 0 | HA18: =GZ18+HA17-GZ19 -> 0 | HB18: 0 | HC18: 0 | HD18: 0 | HE18: 0 | HF18: 0 | HG18: 0 | HH18: 0 | HI18: 0 | HJ18: 0 | HK18: 0 | HL18: 0 | HM18: 0 | HN18: 0 | HO18: 0 | HP18: 0 | HQ18: 0 | HR18: 0 | HS18: 0 | HT18: 0 | HU18: 0 | HV18: 0 | HW18: 0 | HX18: 0 | HY18: 0 | HZ18: 0 | IA18: 0 | IB18: 0 | IC18: 0
B19: Construction End | I19: flag | K19: =Input_Scen!J19 -> 2028 | N19: =SUM(P19:IC19) -> 1 | P19: =IF(P$6=$K19,1,0) -> 0 | Q19: 0 | R19: 0 | S19: 0 | T19: 0 | U19: 1 | V19: 0 | W19: 0 | X19: 0 | Y19: 0 | Z19: 0 | AA19: 0 | AB19: 0 | AC19: 0 | AD19: 0 | AE19: 0 | AF19: 0 | AG19: 0 | AH19: 0 | AI19: 0 | AJ19: 0 | AK19: 0 | AL19: 0 | AM19: 0 | AN19: 0 | AO19: 0 | AP19: 0 | AQ19: 0 | AR19: 0 | AS19: 0 | AT19: 0 | AU19: 0 | AV19: 0 | AW19: 0 | AX19: 0 | AY19: 0 | AZ19: 0 | BA19: 0 | BB19: 0 | BC19: 0 | BD19: 0 | BE19: 0 | BF19: 0 | BG19: 0 | BH19: 0 | BI19: 0 | BJ19: 0 | BK19: 0 | BL19: 0 | BM19: 0 | BN19: 0 | BO19: 0 | BP19: 0 | BQ19: 0 | BR19: 0 | BS19: 0 | BT19: 0 | BU19: 0 | BV19: 0 | BW19: 0 | BX19: 0 | BY19: 0 | BZ19: 0 | CA19: 0 | CB19: =IF(CB$6=$K19,1,0) -> 0 | CC19: 0 | CD19: 0 | CE19: 0 | CF19: 0 | CG19: 0 | CH19: 0 | CI19: 0 | CJ19: 0 | CK19: 0 | CL19: 0 | CM19: 0 | CN19: 0 | CO19: 0 | CP19: 0 | CQ19: 0 | CR19: 0 | CS19: 0 | CT19: 0 | CU19: 0 | CV19: 0 | CW19: 0 | CX19: 0 | CY19: 0 | CZ19: 0 | DA19: 0 | DB19: 0 | DC19: 0 | DD19: 0 | DE19: 0 | DF19: 0 | DG19: 0 | DH19: 0 | DI19: 0 | DJ19: 0 | DK19: 0 | DL19: 0 | DM19: 0 | DN19: 0 | DO19: 0 | DP19: 0 | DQ19: 0 | DR19: 0 | DS19: 0 | DT19: 0 | DU19: 0 | DV19: 0 | DW19: 0 | DX19: 0 | DY19: 0 | DZ19: 0 | EA19: 0 | EB19: 0 | EC19: 0 | ED19: 0 | EE19: 0 | EF19: 0 | EG19: 0 | EH19: 0 | EI19: 0 | EJ19: 0 | EK19: 0 | EL19: 0 | EM19: 0 | EN19: 0 | EO19: 0 | EP19: 0 | EQ19: 0 | ER19: 0 | ES19: 0 | ET19: 0 | EU19: 0 | EV19: 0 | EW19: 0 | EX19: 0 | EY19: 0 | EZ19: 0 | FA19: 0 | FB19: 0 | FC19: 0 | FD19: 0 | FE19: 0 | FF19: 0 | FG19: 0 | FH19: 0 | FI19: 0 | FJ19: 0 | FK19: 0 | FL19: 0 | FM19: 0 | FN19: 0 | FO19: 0 | FP19: 0 | FQ19: 0 | FR19: 0 | FS19: 0 | FT19: 0 | FU19: 0 | FV19: 0 | FW19: 0 | FX19: 0 | FY19: 0 | FZ19: 0 | GA19: 0 | GB19: 0 | GC19: 0 | GD19: 0 | GE19: 0 | GF19: 0 | GG19: 0 | GH19: 0 | GI19: 0 | GJ19: 0 | GK19: 0 | GL19: 0 | GM19: 0 | GN19: 0 | GO19: 0 | GP19: 0 | GQ19: 0 | GR19: 0 | GS19: 0 | GT19: 0 | GU19: 0 | GV19: 0 | GW19: 0 | GX19: 0 | GY19: 0 | GZ19: 0 | HA19: 0 | HB19: 0 | HC19: 0 | HD19: 0 | HE19: 0 | HF19: 0 | HG19: 0 | HH19: 0 | HI19: 0 | HJ19: 0 | HK19: 0 | HL19: 0 | HM19: 0 | HN19: 0 | HO19: 0 | HP19: 0 | HQ19: 0 | HR19: 0 | HS19: 0 | HT19: 0 | HU19: 0 | HV19: 0 | HW19: 0 | HX19: 0 | HY19: 0 | HZ19: 0 | IA19: 0 | IB19: 0 | IC19: 0
B21: Operation Start | I21: flag | K21: =Input_Scen!J21 -> 2029 | N21: =SUM(P21:IC21) -> 1 | P21: =IF(P$6=$K21,1,0) -> 0 | Q21: =IF(Q$6=$K21,1,0) -> 0 | R21: 0 | S21: 0 | T21: 0 | U21: 0 | V21: 1 | W21: 0 | X21: 0 | Y21: 0 | Z21: 0 | AA21: 0 | AB21: 0 | AC21: 0 | AD21: 0 | AE21: 0 | AF21: 0 | AG21: 0 | AH21: 0 | AI21: 0 | AJ21: 0 | AK21: 0 | AL21: 0 | AM21: 0 | AN21: 0 | AO21: 0 | AP21: 0 | AQ21: 0 | AR21: 0 | AS21: 0 | AT21: 0 | AU21: 0 | AV21: 0 | AW21: 0 | AX21: 0 | AY21: 0 | AZ21: 0 | BA21: 0 | BB21: 0 | BC21: 0 | BD21: 0 | BE21: 0 | BF21: 0 | BG21: 0 | BH21: 0 | BI21: 0 | BJ21: 0 | BK21: 0 | BL21: 0 | BM21: 0 | BN21: 0 | BO21: 0 | BP21: 0 | BQ21: 0 | BR21: 0 | BS21: 0 | BT21: 0 | BU21: 0 | BV21: 0 | BW21: 0 | BX21: 0 | BY21: 0 | BZ21: 0 | CA21: 0 | CB21: 0 | CC21: =IF(CC$6=$K21,1,0) -> 0 | CD21: 0 | CE21: 0 | CF21: 0 | CG21: 0 | CH21: 0 | CI21: 0 | CJ21: 0 | CK21: 0 | CL21: 0 | CM21: 0 | CN21: 0 | CO21: 0 | CP21: 0 | CQ21: 0 | CR21: 0 | CS21: 0 | CT21: 0 | CU21: 0 | CV21: 0 | CW21: 0 | CX21: 0 | CY21: 0 | CZ21: 0 | DA21: 0 | DB21: 0 | DC21: 0 | DD21: 0 | DE21: 0 | DF21: 0 | DG21: 0 | DH21: 0 | DI21: 0 | DJ21: 0 | DK21: 0 | DL21: 0 | DM21: 0 | DN21: 0 | DO21: 0 | DP21: 0 | DQ21: 0 | DR21: 0 | DS21: 0 | DT21: 0 | DU21: 0 | DV21: 0 | DW21: 0 | DX21: 0 | DY21: 0 | DZ21: 0 | EA21: 0 | EB21: 0 | EC21: 0 | ED21: 0 | EE21: 0 | EF21: 0 | EG21: 0 | EH21: 0 | EI21: 0 | EJ21: 0 | EK21: 0 | EL21: 0 | EM21: 0 | EN21: 0 | EO21: =IF(EO$6=$K21,1,0) -> 0 | EP21: 0 | EQ21: 0 | ER21: 0 | ES21: 0 | ET21: 0 | EU21: 0 | EV21: 0 | EW21: 0 | EX21: 0 | EY21: 0 | EZ21: 0 | FA21: 0 | FB21: 0 | FC21: 0 | FD21: 0 | FE21: 0 | FF21: 0 | FG21: 0 | FH21: 0 | FI21: 0 | FJ21: 0 | FK21: 0 | FL21: 0 | FM21: 0 | FN21: 0 | FO21: 0 | FP21: 0 | FQ21: 0 | FR21: 0 | FS21: 0 | FT21: 0 | FU21: 0 | FV21: 0 | FW21: 0 | FX21: 0 | FY21: 0 | FZ21: 0 | GA21: 0 | GB21: 0 | GC21: 0 | GD21: 0 | GE21: 0 | GF21: 0 | GG21: 0 | GH21: 0 | GI21: 0 | GJ21: 0 | GK21: 0 | GL21: 0 | GM21: 0 | GN21: 0 | GO21: 0 | GP21: 0 | GQ21: 0 | GR21: 0 | GS21: 0 | GT21: 0 | GU21: 0 | GV21: 0 | GW21: 0 | GX21: 0 | GY21: 0 | GZ21: 0 | HA21: =IF(HA$6=$K21,1,0) -> 0 | HB21: 0 | HC21: 0 | HD21: 0 | HE21: 0 | HF21: 0 | HG21: 0 | HH21: 0 | HI21: 0 | HJ21: 0 | HK21: 0 | HL21: 0 | HM21: 0 | HN21: 0 | HO21: 0 | HP21: 0 | HQ21: 0 | HR21: 0 | HS21: 0 | HT21: 0 | HU21: 0 | HV21: 0 | HW21: 0 | HX21: 0 | HY21: 0 | HZ21: 0 | IA21: 0 | IB21: 0 | IC21: 0
B22: Operation Period | I22: flag | N22: =SUM(P22:IC22) -> 27 | P22: =O22+P21-O23 -> 0 | Q22: =P22+Q21-P23 -> 0 | R22: 0 | S22: 0 | T22: 0 | U22: 0 | V22: 1 | W22: 1 | X22: 1 | Y22: 1 | Z22: 1 | AA22: 1 | AB22: 1 | AC22: 1 | AD22: 1 | AE22: 1 | AF22: 1 | AG22: 1 | AH22: 1 | AI22: 1 | AJ22: 1 | AK22: 1 | AL22: 1 | AM22: 1 | AN22: 1 | AO22: 1 | AP22: 1 | AQ22: 1 | AR22: 1 | AS22: 1 | AT22: 1 | AU22: 1 | AV22: 1 | AW22: 0 | AX22: 0 | AY22: 0 | AZ22: 0 | BA22: 0 | BB22: 0 | BC22: 0 | BD22: 0 | BE22: 0 | BF22: 0 | BG22: 0 | BH22: 0 | BI22: 0 | BJ22: 0 | BK22: 0 | BL22: 0 | BM22: 0 | BN22: 0 | BO22: 0 | BP22: 0 | BQ22: 0 | BR22: 0 | BS22: 0 | BT22: 0 | BU22: 0 | BV22: 0 | BW22: 0 | BX22: 0 | BY22: 0 | BZ22: 0 | CA22: 0 | CB22: 0 | CC22: =CB22+CC21-CB23 -> 0 | CD22: 0 | CE22: 0 | CF22: 0 | CG22: 0 | CH22: 0 | CI22: 0 | CJ22: 0 | CK22: 0 | CL22: 0 | CM22: 0 | CN22: 0 | CO22: 0 | CP22: 0 | CQ22: 0 | CR22: 0 | CS22: 0 | CT22: 0 | CU22: 0 | CV22: 0 | CW22: 0 | CX22: 0 | CY22: 0 | CZ22: 0 | DA22: 0 | DB22: 0 | DC22: 0 | DD22: 0 | DE22: 0 | DF22: 0 | DG22: 0 | DH22: 0 | DI22: 0 | DJ22: 0 | DK22: 0 | DL22: 0 | DM22: 0 | DN22: 0 | DO22: 0 | DP22: 0 | DQ22: 0 | DR22: 0 | DS22: 0 | DT22: 0 | DU22: 0 | DV22: 0 | DW22: 0 | DX22: 0 | DY22: 0 | DZ22: 0 | EA22: 0 | EB22: 0 | EC22: 0 | ED22: 0 | EE22: 0 | EF22: 0 | EG22: 0 | EH22: 0 | EI22: 0 | EJ22: 0 | EK22: 0 | EL22: 0 | EM22: 0 | EN22: 0 | EO22: =EN22+EO21-EN23 -> 0 | EP22: 0 | EQ22: 0 | ER22: 0 | ES22: 0 | ET22: 0 | EU22: 0 | EV22: 0 | EW22: 0 | EX22: 0 | EY22: 0 | EZ22: 0 | FA22: 0 | FB22: 0 | FC22: 0 | FD22: 0 | FE22: 0 | FF22: 0 | FG22: 0 | FH22: 0 | FI22: 0 | FJ22: 0 | FK22: 0 | FL22: 0 | FM22: 0 | FN22: 0 | FO22: 0 | FP22: 0 | FQ22: 0 | FR22: 0 | FS22: 0 | FT22: 0 | FU22: 0 | FV22: 0 | FW22: 0 | FX22: 0 | FY22: 0 | FZ22: 0 | GA22: 0 | GB22: 0 | GC22: 0 | GD22: 0 | GE22: 0 | GF22: 0 | GG22: 0 | GH22: 0 | GI22: 0 | GJ22: 0 | GK22: 0 | GL22: 0 | GM22: 0 | GN22: 0 | GO22: 0 | GP22: 0 | GQ22: 0 | GR22: 0 | GS22: 0 | GT22: 0 | GU22: 0 | GV22: 0 | GW22: 0 | GX22: 0 | GY22: 0 | GZ22: 0 | HA22: =GZ22+HA21-GZ23 -> 0 | HB22: 0 | HC22: 0 | HD22: 0 | HE22: 0 | HF22: 0 | HG22: 0 | HH22: 0 | HI22: 0 | HJ22: 0 | HK22: 0 | HL22: 0 | HM22: 0 | HN22: 0 | HO22: 0 | HP22: 0 | HQ22: 0 | HR22: 0 | HS22: 0 | HT22: 0 | HU22: 0 | HV22: 0 | HW22: 0 | HX22: 0 | HY22: 0 | HZ22: 0 | IA22: 0 | IB22: 0 | IC22: 0
B23: Operation End | I23: flag | K23: =Input_Scen!J23 -> 2055 | N23: =SUM(P23:IC23) -> 1 | P23: =IF(P$6=$K23,1,0) -> 0 | Q23: 0 | R23: 0 | S23: 0 | T23: 0 | U23: 0 | V23: 0 | W23: 0 | X23: 0 | Y23: 0 | Z23: 0 | AA23: 0 | AB23: 0 | AC23: 0 | AD23: 0 | AE23: 0 | AF23: 0 | AG23: 0 | AH23: 0 | AI23: 0 | AJ23: 0 | AK23: 0 | AL23: 0 | AM23: 0 | AN23: 0 | AO23: 0 | AP23: 0 | AQ23: 0 | AR23: 0 | AS23: 0 | AT23: 0 | AU23: 0 | AV23: 1 | AW23: 0 | AX23: 0 | AY23: 0 | AZ23: 0 | BA23: 0 | BB23: 0 | BC23: 0 | BD23: 0 | BE23: 0 | BF23: 0 | BG23: 0 | BH23: 0 | BI23: 0 | BJ23: 0 | BK23: 0 | BL23: 0 | BM23: 0 | BN23: 0 | BO23: 0 | BP23: 0 | BQ23: 0 | BR23: 0 | BS23: 0 | BT23: 0 | BU23: 0 | BV23: 0 | BW23: 0 | BX23: 0 | BY23: 0 | BZ23: 0 | CA23: 0 | CB23: =IF(CB$6=$K23,1,0) -> 0 | CC23: 0 | CD23: 0 | CE23: 0 | CF23: 0 | CG23: 0 | CH23: 0 | CI23: 0 | CJ23: 0 | CK23: 0 | CL23: 0 | CM23: 0 | CN23: 0 | CO23: 0 | CP23: 0 | CQ23: 0 | CR23: 0 | CS23: 0 | CT23: 0 | CU23: 0 | CV23: 0 | CW23: 0 | CX23: 0 | CY23: 0 | CZ23: 0 | DA23: 0 | DB23: 0 | DC23: 0 | DD23: 0 | DE23: 0 | DF23: 0 | DG23: 0 | DH23: 0 | DI23: 0 | DJ23: 0 | DK23: 0 | DL23: 0 | DM23: 0 | DN23: 0 | DO23: 0 | DP23: 0 | DQ23: 0 | DR23: 0 | DS23: 0 | DT23: 0 | DU23: 0 | DV23: 0 | DW23: 0 | DX23: 0 | DY23: 0 | DZ23: 0 | EA23: 0 | EB23: 0 | EC23: 0 | ED23: 0 | EE23: 0 | EF23: 0 | EG23: 0 | EH23: 0 | EI23: 0 | EJ23: 0 | EK23: 0 | EL23: 0 | EM23: 0 | EN23: 0 | EO23: 0 | EP23: 0 | EQ23: 0 | ER23: 0 | ES23: 0 | ET23: 0 | EU23: 0 | EV23: 0 | EW23: 0 | EX23: 0 | EY23: 0 | EZ23: 0 | FA23: 0 | FB23: 0 | FC23: 0 | FD23: 0 | FE23: 0 | FF23: 0 | FG23: 0 | FH23: 0 | FI23: 0 | FJ23: 0 | FK23: 0 | FL23: 0 | FM23: 0 | FN23: 0 | FO23: 0 | FP23: 0 | FQ23: 0 | FR23: 0 | FS23: 0 | FT23: 0 | FU23: 0 | FV23: 0 | FW23: 0 | FX23: 0 | FY23: 0 | FZ23: 0 | GA23: 0 | GB23: 0 | GC23: 0 | GD23: 0 | GE23: 0 | GF23: 0 | GG23: 0 | GH23: 0 | GI23: 0 | GJ23: 0 | GK23: 0 | GL23: 0 | GM23: 0 | GN23: 0 | GO23: 0 | GP23: 0 | GQ23: 0 | GR23: 0 | GS23: 0 | GT23: 0 | GU23: 0 | GV23: 0 | GW23: 0 | GX23: 0 | GY23: 0 | GZ23: 0 | HA23: 0 | HB23: 0 | HC23: 0 | HD23: 0 | HE23: 0 | HF23: 0 | HG23: 0 | HH23: 0 | HI23: 0 | HJ23: 0 | HK23: 0 | HL23: 0 | HM23: 0 | HN23: 0 | HO23: 0 | HP23: 0 | HQ23: 0 | HR23: 0 | HS23: 0 | HT23: 0 | HU23: 0 | HV23: 0 | HW23: 0 | HX23: 0 | HY23: 0 | HZ23: 0 | IA23: 0 | IB23: 0 | IC23: 0
B25: Restoration Start | I25: flag | K25: =Input_Scen!J26 -> 2051 | N25: =SUM(P25:IC25) -> 1 | P25: =IF(P$6=$K25,1,0) -> 0 | Q25: =IF(Q$6=$K25,1,0) -> 0 | R25: 0 | S25: 0 | T25: 0 | U25: 0 | V25: 0 | W25: 0 | X25: 0 | Y25: 0 | Z25: 0 | AA25: 0 | AB25: 0 | AC25: 0 | AD25: 0 | AE25: 0 | AF25: 0 | AG25: 0 | AH25: 0 | AI25: 0 | AJ25: 0 | AK25: 0 | AL25: 0 | AM25: 0 | AN25: 0 | AO25: 0 | AP25: 0 | AQ25: 0 | AR25: 1 | AS25: 0 | AT25: 0 | AU25: 0 | AV25: 0 | AW25: 0 | AX25: 0 | AY25: 0 | AZ25: 0 | BA25: 0 | BB25: 0 | BC25: 0 | BD25: 0 | BE25: 0 | BF25: 0 | BG25: 0 | BH25: 0 | BI25: 0 | BJ25: 0 | BK25: 0 | BL25: 0 | BM25: 0 | BN25: 0 | BO25: 0 | BP25: 0 | BQ25: 0 | BR25: 0 | BS25: 0 | BT25: 0 | BU25: 0 | BV25: 0 | BW25: 0 | BX25: 0 | BY25: 0 | BZ25: 0 | CA25: 0 | CB25: 0 | CC25: 0 | CD25: 0 | CE25: 0 | CF25: 0 | CG25: 0 | CH25: 0 | CI25: 0 | CJ25: 0 | CK25: 0 | CL25: 0 | CM25: 0 | CN25: 0 | CO25: 0 | CP25: 0 | CQ25: 0 | CR25: 0 | CS25: 0 | CT25: 0 | CU25: 0 | CV25: 0 | CW25: 0 | CX25: 0 | CY25: 0 | CZ25: 0 | DA25: 0 | DB25: 0 | DC25: 0 | DD25: 0 | DE25: 0 | DF25: 0 | DG25: 0 | DH25: 0 | DI25: 0 | DJ25: 0 | DK25: 0 | DL25: 0 | DM25: 0 | DN25: 0 | DO25: 0 | DP25: 0 | DQ25: 0 | DR25: 0 | DS25: 0 | DT25: 0 | DU25: 0 | DV25: 0 | DW25: 0 | DX25: 0 | DY25: 0 | DZ25: 0 | EA25: 0 | EB25: 0 | EC25: 0 | ED25: 0 | EE25: 0 | EF25: 0 | EG25: 0 | EH25: 0 | EI25: 0 | EJ25: 0 | EK25: 0 | EL25: 0 | EM25: 0 | EN25: 0 | EO25: 0 | EP25: 0 | EQ25: 0 | ER25: 0 | ES25: 0 | ET25: 0 | EU25: 0 | EV25: 0 | EW25: 0 | EX25: 0 | EY25: 0 | EZ25: 0 | FA25: 0 | FB25: 0 | FC25: 0 | FD25: 0 | FE25: 0 | FF25: 0 | FG25: 0 | FH25: 0 | FI25: 0 | FJ25: 0 | FK25: 0 | FL25: 0 | FM25: 0 | FN25: 0 | FO25: 0 | FP25: 0 | FQ25: 0 | FR25: 0 | FS25: 0 | FT25: 0 | FU25: 0 | FV25: 0 | FW25: 0 | FX25: 0 | FY25: 0 | FZ25: 0 | GA25: 0 | GB25: 0 | GC25: 0 | GD25: 0 | GE25: 0 | GF25: 0 | GG25: 0 | GH25: 0 | GI25: 0 | GJ25: 0 | GK25: 0 | GL25: 0 | GM25: 0 | GN25: 0 | GO25: 0 | GP25: 0 | GQ25: 0 | GR25: 0 | GS25: 0 | GT25: 0 | GU25: 0 | GV25: 0 | GW25: 0 | GX25: 0 | GY25: 0 | GZ25: 0 | HA25: 0 | HB25: 0 | HC25: 0 | HD25: 0 | HE25: 0 | HF25: 0 | HG25: 0 | HH25: 0 | HI25: 0 | HJ25: 0 | HK25: 0 | HL25: 0 | HM25: 0 | HN25: 0 | HO25: 0 | HP25: 0 | HQ25: 0 | HR25: 0 | HS25: 0 | HT25: 0 | HU25: 0 | HV25: 0 | HW25: 0 | HX25: 0 | HY25: 0 | HZ25: 0 | IA25: 0 | IB25: 0 | IC25: 0
B26: Restoration Period | I26: flag | N26: =SUM(P26:IC26) -> 5 | P26: =O26+P25-O27 -> 0 | Q26: =P26+Q25-P27 -> 0 | R26: 0 | S26: 0 | T26: 0 | U26: 0 | V26: 0 | W26: 0 | X26: 0 | Y26: 0 | Z26: 0 | AA26: 0 | AB26: 0 | AC26: 0 | AD26: 0 | AE26: 0 | AF26: 0 | AG26: 0 | AH26: 0 | AI26: 0 | AJ26: 0 | AK26: 0 | AL26: 0 | AM26: 0 | AN26: 0 | AO26: 0 | AP26: 0 | AQ26: 0 | AR26: 1 | AS26: 1 | AT26: 1 | AU26: 1 | AV26: 1 | AW26: 0 | AX26: 0 | AY26: 0 | AZ26: 0 | BA26: 0 | BB26: 0 | BC26: 0 | BD26: 0 | BE26: 0 | BF26: 0 | BG26: 0 | BH26: 0 | BI26: 0 | BJ26: 0 | BK26: 0 | BL26: 0 | BM26: 0 | BN26: 0 | BO26: 0 | BP26: 0 | BQ26: 0 | BR26: 0 | BS26: 0 | BT26: 0 | BU26: 0 | BV26: 0 | BW26: 0 | BX26: 0 | BY26: 0 | BZ26: 0 | CA26: 0 | CB26: 0 | CC26: =CB26+CC25-CB27 -> 0 | CD26: 0 | CE26: 0 | CF26: 0 | CG26: 0 | CH26: 0 | CI26: 0 | CJ26: 0 | CK26: 0 | CL26: 0 | CM26: 0 | CN26: 0 | CO26: 0 | CP26: 0 | CQ26: 0 | CR26: 0 | CS26: 0 | CT26: 0 | CU26: 0 | CV26: 0 | CW26: 0 | CX26: 0 | CY26: 0 | CZ26: 0 | DA26: 0 | DB26: 0 | DC26: 0 | DD26: 0 | DE26: 0 | DF26: 0 | DG26: 0 | DH26: 0 | DI26: 0 | DJ26: 0 | DK26: 0 | DL26: 0 | DM26: 0 | DN26: 0 | DO26: 0 | DP26: 0 | DQ26: 0 | DR26: 0 | DS26: 0 | DT26: 0 | DU26: 0 | DV26: 0 | DW26: 0 | DX26: 0 | DY26: 0 | DZ26: 0 | EA26: 0 | EB26: 0 | EC26: 0 | ED26: 0 | EE26: 0 | EF26: 0 | EG26: 0 | EH26: 0 | EI26: 0 | EJ26: 0 | EK26: 0 | EL26: 0 | EM26: 0 | EN26: 0 | EO26: =EN26+EO25-EN27 -> 0 | EP26: 0 | EQ26: 0 | ER26: 0 | ES26: 0 | ET26: 0 | EU26: 0 | EV26: 0 | EW26: 0 | EX26: 0 | EY26: 0 | EZ26: 0 | FA26: 0 | FB26: 0 | FC26: 0 | FD26: 0 | FE26: 0 | FF26: 0 | FG26: 0 | FH26: 0 | FI26: 0 | FJ26: 0 | FK26: 0 | FL26: 0 | FM26: 0 | FN26: 0 | FO26: 0 | FP26: 0 | FQ26: 0 | FR26: 0 | FS26: 0 | FT26: 0 | FU26: 0 | FV26: 0 | FW26: 0 | FX26: 0 | FY26: 0 | FZ26: 0 | GA26: 0 | GB26: 0 | GC26: 0 | GD26: 0 | GE26: 0 | GF26: 0 | GG26: 0 | GH26: 0 | GI26: 0 | GJ26: 0 | GK26: 0 | GL26: 0 | GM26: 0 | GN26: 0 | GO26: 0 | GP26: 0 | GQ26: 0 | GR26: 0 | GS26: 0 | GT26: 0 | GU26: 0 | GV26: 0 | GW26: 0 | GX26: 0 | GY26: 0 | GZ26: 0 | HA26: =GZ26+HA25-GZ27 -> 0 | HB26: 0 | HC26: 0 | HD26: 0 | HE26: 0 | HF26: 0 | HG26: 0 | HH26: 0 | HI26: 0 | HJ26: 0 | HK26: 0 | HL26: 0 | HM26: 0 | HN26: 0 | HO26: 0 | HP26: 0 | HQ26: 0 | HR26: 0 | HS26: 0 | HT26: 0 | HU26: 0 | HV26: 0 | HW26: 0 | HX26: 0 | HY26: 0 | HZ26: 0 | IA26: 0 | IB26: 0 | IC26: 0
B27: Restoration End | I27: flag | K27: =Input_Scen!J27 -> 2055 | N27: =SUM(P27:IC27) -> 1 | P27: =IF(P$6=$K27,1,0) -> 0 | Q27: 0 | R27: 0 | S27: 0 | T27: 0 | U27: 0 | V27: 0 | W27: 0 | X27: 0 | Y27: 0 | Z27: 0 | AA27: 0 | AB27: 0 | AC27: 0 | AD27: 0 | AE27: 0 | AF27: 0 | AG27: 0 | AH27: 0 | AI27: 0 | AJ27: 0 | AK27: 0 | AL27: 0 | AM27: 0 | AN27: 0 | AO27: 0 | AP27: 0 | AQ27: 0 | AR27: 0 | AS27: 0 | AT27: 0 | AU27: 0 | AV27: 1 | AW27: 0 | AX27: 0 | AY27: 0 | AZ27: 0 | BA27: 0 | BB27: 0 | BC27: 0 | BD27: 0 | BE27: 0 | BF27: 0 | BG27: 0 | BH27: 0 | BI27: 0 | BJ27: 0 | BK27: 0 | BL27: 0 | BM27: 0 | BN27: 0 | BO27: 0 | BP27: 0 | BQ27: 0 | BR27: 0 | BS27: 0 | BT27: 0 | BU27: 0 | BV27: 0 | BW27: 0 | BX27: 0 | BY27: 0 | BZ27: 0 | CA27: 0 | CB27: =IF(CB$6=$K27,1,0) -> 0 | CC27: 0 | CD27: 0 | CE27: 0 | CF27: 0 | CG27: 0 | CH27: 0 | CI27: 0 | CJ27: 0 | CK27: 0 | CL27: 0 | CM27: 0 | CN27: 0 | CO27: 0 | CP27: 0 | CQ27: 0 | CR27: 0 | CS27: 0 | CT27: 0 | CU27: 0 | CV27: 0 | CW27: 0 | CX27: 0 | CY27: 0 | CZ27: 0 | DA27: 0 | DB27: 0 | DC27: 0 | DD27: 0 | DE27: 0 | DF27: 0 | DG27: 0 | DH27: 0 | DI27: 0 | DJ27: 0 | DK27: 0 | DL27: 0 | DM27: 0 | DN27: 0 | DO27: 0 | DP27: 0 | DQ27: 0 | DR27: 0 | DS27: 0 | DT27: 0 | DU27: 0 | DV27: 0 | DW27: 0 | DX27: 0 | DY27: 0 | DZ27: 0 | EA27: 0 | EB27: 0 | EC27: 0 | ED27: 0 | EE27: 0 | EF27: 0 | EG27: 0 | EH27: 0 | EI27: 0 | EJ27: 0 | EK27: 0 | EL27: 0 | EM27: 0 | EN27: =IF(EN$6=$K27,1,0) -> 0 | EO27: 0 | EP27: 0 | EQ27: 0 | ER27: 0 | ES27: 0 | ET27: 0 | EU27: 0 | EV27: 0 | EW27: 0 | EX27: 0 | EY27: 0 | EZ27: 0 | FA27: 0 | FB27: 0 | FC27: 0 | FD27: 0 | FE27: 0 | FF27: 0 | FG27: 0 | FH27: 0 | FI27: 0 | FJ27: 0 | FK27: 0 | FL27: 0 | FM27: 0 | FN27: 0 | FO27: 0 | FP27: 0 | FQ27: 0 | FR27: 0 | FS27: 0 | FT27: 0 | FU27: 0 | FV27: 0 | FW27: 0 | FX27: 0 | FY27: 0 | FZ27: 0 | GA27: 0 | GB27: 0 | GC27: 0 | GD27: 0 | GE27: 0 | GF27: 0 | GG27: 0 | GH27: 0 | GI27: 0 | GJ27: 0 | GK27: 0 | GL27: 0 | GM27: 0 | GN27: 0 | GO27: 0 | GP27: 0 | GQ27: 0 | GR27: 0 | GS27: 0 | GT27: 0 | GU27: 0 | GV27: 0 | GW27: 0 | GX27: 0 | GY27: 0 | GZ27: =IF(GZ$6=$K27,1,0) -> 0 | HA27: 0 | HB27: 0 | HC27: 0 | HD27: 0 | HE27: 0 | HF27: 0 | HG27: 0 | HH27: 0 | HI27: 0 | HJ27: 0 | HK27: 0 | HL27: 0 | HM27: 0 | HN27: 0 | HO27: 0 | HP27: 0 | HQ27: 0 | HR27: 0 | HS27: 0 | HT27: 0 | HU27: 0 | HV27: 0 | HW27: 0 | HX27: 0 | HY27: 0 | HZ27: 0 | IA27: 0 | IB27: 0 | IC27: 0
B29: Label | P29: =IF(P14=1,"Actuals",IF(P18=1,"Const",IF(P22=1,"Ops",""))) -> Actuals | Q29: =IF(Q14=1,"Actuals",IF(Q18=1,"Const",IF(Q22=1,"Ops",""))) -> Actuals | R29: Actuals | S29: Const | T29: Const | U29: Const | V29: Ops | W29: Ops | X29: Ops | Y29: Ops | Z29: Ops | AA29: Ops | AB29: Ops | AC29: Ops | AD29: Ops | AE29: Ops | AF29: Ops | AG29: Ops | AH29: Ops | AI29: Ops | AJ29: Ops | AK29: Ops | AL29: Ops | AM29: Ops | AN29: Ops | AO29: Ops | AP29: Ops | AQ29: Ops | AR29: Ops | AS29: Ops | AT29: Ops | AU29: Ops | AV29: Ops | CC29: =IF(CC14=1,"Actuals",IF(CC18=1,"Const",IF(CC22=1,"Ops",""))) ->  | EO29: =IF(EO14=1,"Actuals",IF(EO18=1,"Const",IF(EO22=1,"Ops",""))) ->  | HA29: =IF(HA14=1,"Actuals",IF(HA18=1,"Const",IF(HA22=1,"Ops",""))) -> 
B31: Last Operating Period | I31: flag | K31: =K23 -> 2055 | N31: =SUM(P31:IC31) -> 1 | P31: =IF(P$6=$K31,1,0) -> 0 | Q31: =IF(Q$6=$K31,1,0) -> 0 | R31: 0 | S31: 0 | T31: 0 | U31: 0 | V31: 0 | W31: 0 | X31: 0 | Y31: 0 | Z31: 0 | AA31: 0 | AB31: 0 | AC31: 0 | AD31: 0 | AE31: 0 | AF31: 0 | AG31: 0 | AH31: 0 | AI31: 0 | AJ31: 0 | AK31: 0 | AL31: 0 | AM31: 0 | AN31: 0 | AO31: 0 | AP31: 0 | AQ31: 0 | AR31: 0 | AS31: 0 | AT31: 0 | AU31: 0 | AV31: 1 | AW31: 0 | AX31: 0 | AY31: 0 | AZ31: 0 | BA31: 0 | BB31: 0 | BC31: 0 | BD31: 0 | BE31: 0 | BF31: 0 | BG31: 0 | BH31: 0 | BI31: 0 | BJ31: 0 | BK31: 0 | BL31: 0 | BM31: 0 | BN31: 0 | BO31: 0 | BP31: 0 | BQ31: 0 | BR31: 0 | BS31: 0 | BT31: 0 | BU31: 0 | BV31: 0 | BW31: 0 | BX31: 0 | BY31: 0 | BZ31: 0 | CA31: 0 | CB31: 0 | CC31: =IF(CC$6=$K31,1,0) -> 0 | CD31: 0 | CE31: 0 | CF31: 0 | CG31: 0 | CH31: 0 | CI31: 0 | CJ31: 0 | CK31: 0 | CL31: 0 | CM31: 0 | CN31: 0 | CO31: 0 | CP31: 0 | CQ31: 0 | CR31: 0 | CS31: 0 | CT31: 0 | CU31: 0 | CV31: 0 | CW31: 0 | CX31: 0 | CY31: 0 | CZ31: 0 | DA31: 0 | DB31: 0 | DC31: 0 | DD31: 0 | DE31: 0 | DF31: 0 | DG31: 0 | DH31: 0 | DI31: 0 | DJ31: 0 | DK31: 0 | DL31: 0 | DM31: 0 | DN31: 0 | DO31: 0 | DP31: 0 | DQ31: 0 | DR31: 0 | DS31: 0 | DT31: 0 | DU31: 0 | DV31: 0 | DW31: 0 | DX31: 0 | DY31: 0 | DZ31: 0 | EA31: 0 | EB31: 0 | EC31: 0 | ED31: 0 | EE31: 0 | EF31: 0 | EG31: 0 | EH31: 0 | EI31: 0 | EJ31: 0 | EK31: 0 | EL31: 0 | EM31: 0 | EN31: 0 | EO31: =IF(EO$6=$K31,1,0) -> 0 | EP31: 0 | EQ31: 0 | ER31: 0 | ES31: 0 | ET31: 0 | EU31: 0 | EV31: 0 | EW31: 0 | EX31: 0 | EY31: 0 | EZ31: 0 | FA31: 0 | FB31: 0 | FC31: 0 | FD31: 0 | FE31: 0 | FF31: 0 | FG31: 0 | FH31: 0 | FI31: 0 | FJ31: 0 | FK31: 0 | FL31: 0 | FM31: 0 | FN31: 0 | FO31: 0 | FP31: 0 | FQ31: 0 | FR31: 0 | FS31: 0 | FT31: 0 | FU31: 0 | FV31: 0 | FW31: 0 | FX31: 0 | FY31: 0 | FZ31: 0 | GA31: 0 | GB31: 0 | GC31: 0 | GD31: 0 | GE31: 0 | GF31: 0 | GG31: 0 | GH31: 0 | GI31: 0 | GJ31: 0 | GK31: 0 | GL31: 0 | GM31: 0 | GN31: 0 | GO31: 0 | GP31: 0 | GQ31: 0 | GR31: 0 | GS31: 0 | GT31: 0 | GU31: 0 | GV31: 0 | GW31: 0 | GX31: 0 | GY31: 0 | GZ31: 0 | HA31: =IF(HA$6=$K31,1,0) -> 0 | HB31: 0 | HC31: 0 | HD31: 0 | HE31: 0 | HF31: 0 | HG31: 0 | HH31: 0 | HI31: 0 | HJ31: 0 | HK31: 0 | HL31: 0 | HM31: 0 | HN31: 0 | HO31: 0 | HP31: 0 | HQ31: 0 | HR31: 0 | HS31: 0 | HT31: 0 | HU31: 0 | HV31: 0 | HW31: 0 | HX31: 0 | HY31: 0 | HZ31: 0 | IA31: 0 | IB31: 0 | IC31: 0
B33: Operation Period Counter | I33: # | P33: =(P22+O33)*P22 -> 0 | Q33: =(Q22+P33)*Q22 -> 0 | R33: 0 | S33: 0 | T33: 0 | U33: 0 | V33: 1 | W33: 2 | X33: 3 | Y33: 4 | Z33: 5 | AA33: 6 | AB33: 7 | AC33: 8 | AD33: 9 | AE33: 10 | AF33: 11 | AG33: 12 | AH33: 13 | AI33: 14 | AJ33: 15 | AK33: 16 | AL33: 17 | AM33: 18 | AN33: 19 | AO33: 20 | AP33: 21 | AQ33: 22 | AR33: 23 | AS33: 24 | AT33: 25 | AU33: 26 | AV33: 27 | AW33: 0 | AX33: 0 | AY33: 0 | AZ33: 0 | BA33: 0 | BB33: 0 | BC33: 0 | BD33: 0 | BE33: 0 | BF33: 0 | BG33: 0 | BH33: 0 | BI33: 0 | BJ33: 0 | BK33: 0 | BL33: 0 | BM33: 0 | BN33: 0 | BO33: 0 | BP33: 0 | BQ33: 0 | BR33: 0 | BS33: 0 | BT33: 0 | BU33: 0 | BV33: 0 | BW33: 0 | BX33: 0 | BY33: 0 | BZ33: 0 | CA33: 0 | CB33: 0 | CC33: =(CC22+CB33)*CC22 -> 0 | CD33: 0 | CE33: 0 | CF33: 0 | CG33: 0 | CH33: 0 | CI33: 0 | CJ33: 0 | CK33: 0 | CL33: 0 | CM33: 0 | CN33: 0 | CO33: 0 | CP33: 0 | CQ33: 0 | CR33: 0 | CS33: 0 | CT33: 0 | CU33: 0 | CV33: 0 | CW33: 0 | CX33: 0 | CY33: 0 | CZ33: 0 | DA33: 0 | DB33: 0 | DC33: 0 | DD33: 0 | DE33: 0 | DF33: 0 | DG33: 0 | DH33: 0 | DI33: 0 | DJ33: 0 | DK33: 0 | DL33: 0 | DM33: 0 | DN33: 0 | DO33: 0 | DP33: 0 | DQ33: 0 | DR33: 0 | DS33: 0 | DT33: 0 | DU33: 0 | DV33: 0 | DW33: 0 | DX33: 0 | DY33: 0 | DZ33: 0 | EA33: 0 | EB33: 0 | EC33: 0 | ED33: 0 | EE33: 0 | EF33: 0 | EG33: 0 | EH33: 0 | EI33: 0 | EJ33: 0 | EK33: 0 | EL33: 0 | EM33: 0 | EN33: 0 | EO33: =(EO22+EN33)*EO22 -> 0 | EP33: 0 | EQ33: 0 | ER33: 0 | ES33: 0 | ET33: 0 | EU33: 0 | EV33: 0 | EW33: 0 | EX33: 0 | EY33: 0 | EZ33: 0 | FA33: 0 | FB33: 0 | FC33: 0 | FD33: 0 | FE33: 0 | FF33: 0 | FG33: 0 | FH33: 0 | FI33: 0 | FJ33: 0 | FK33: 0 | FL33: 0 | FM33: 0 | FN33: 0 | FO33: 0 | FP33: 0 | FQ33: 0 | FR33: 0 | FS33: 0 | FT33: 0 | FU33: 0 | FV33: 0 | FW33: 0 | FX33: 0 | FY33: 0 | FZ33: 0 | GA33: 0 | GB33: 0 | GC33: 0 | GD33: 0 | GE33: 0 | GF33: 0 | GG33: 0 | GH33: 0 | GI33: 0 | GJ33: 0 | GK33: 0 | GL33: 0 | GM33: 0 | GN33: 0 | GO33: 0 | GP33: 0 | GQ33: 0 | GR33: 0 | GS33: 0 | GT33: 0 | GU33: 0 | GV33: 0 | GW33: 0 | GX33: 0 | GY33: 0 | GZ33: 0 | HA33: =(HA22+GZ33)*HA22 -> 0 | HB33: 0 | HC33: 0 | HD33: 0 | HE33: 0 | HF33: 0 | HG33: 0 | HH33: 0 | HI33: 0 | HJ33: 0 | HK33: 0 | HL33: 0 | HM33: 0 | HN33: 0 | HO33: 0 | HP33: 0 | HQ33: 0 | HR33: 0 | HS33: 0 | HT33: 0 | HU33: 0 | HV33: 0 | HW33: 0 | HX33: 0 | HY33: 0 | HZ33: 0 | IA33: 0 | IB33: 0 | IC33: 0
A37: Financing
B39: Senior Debt
B41: Repayment Start | I41: flag | K41: =Input_Scen!J180 -> 2029 | N41: =SUM(P41:IC41) -> 1 | P41: =IF(P$6=$K41,1,0) -> 0 | Q41: =IF(Q$6=$K41,1,0) -> 0 | R41: 0 | S41: 0 | T41: 0 | U41: 0 | V41: 1 | W41: 0 | X41: 0 | Y41: 0 | Z41: 0 | AA41: 0 | AB41: 0 | AC41: 0 | AD41: 0 | AE41: 0 | AF41: 0 | AG41: 0 | AH41: 0 | AI41: 0 | AJ41: 0 | AK41: 0 | AL41: 0 | AM41: 0 | AN41: 0 | AO41: 0 | AP41: 0 | AQ41: 0 | AR41: 0 | AS41: 0 | AT41: 0 | AU41: 0 | AV41: 0 | AW41: 0 | AX41: 0 | AY41: 0 | AZ41: 0 | BA41: 0 | BB41: 0 | BC41: 0 | BD41: 0 | BE41: 0 | BF41: 0 | BG41: 0 | BH41: 0 | BI41: 0 | BJ41: 0 | BK41: 0 | BL41: 0 | BM41: 0 | BN41: 0 | BO41: 0 | BP41: 0 | BQ41: 0 | BR41: 0 | BS41: 0 | BT41: 0 | BU41: 0 | BV41: 0 | BW41: 0 | BX41: 0 | BY41: 0 | BZ41: 0 | CA41: 0 | CB41: 0 | CC41: =IF(CC$6=$K41,1,0) -> 0 | CD41: 0 | CE41: 0 | CF41: 0 | CG41: 0 | CH41: 0 | CI41: 0 | CJ41: 0 | CK41: 0 | CL41: 0 | CM41: 0 | CN41: 0 | CO41: 0 | CP41: 0 | CQ41: 0 | CR41: 0 | CS41: 0 | CT41: 0 | CU41: 0 | CV41: 0 | CW41: 0 | CX41: 0 | CY41: 0 | CZ41: 0 | DA41: 0 | DB41: 0 | DC41: 0 | DD41: 0 | DE41: 0 | DF41: 0 | DG41: 0 | DH41: 0 | DI41: 0 | DJ41: 0 | DK41: 0 | DL41: 0 | DM41: 0 | DN41: 0 | DO41: 0 | DP41: 0 | DQ41: 0 | DR41: 0 | DS41: 0 | DT41: 0 | DU41: 0 | DV41: 0 | DW41: 0 | DX41: 0 | DY41: 0 | DZ41: 0 | EA41: 0 | EB41: 0 | EC41: 0 | ED41: 0 | EE41: 0 | EF41: 0 | EG41: 0 | EH41: 0 | EI41: 0 | EJ41: 0 | EK41: 0 | EL41: 0 | EM41: 0 | EN41: 0 | EO41: =IF(EO$6=$K41,1,0) -> 0 | EP41: 0 | EQ41: 0 | ER41: 0 | ES41: 0 | ET41: 0 | EU41: 0 | EV41: 0 | EW41: 0 | EX41: 0 | EY41: 0 | EZ41: 0 | FA41: 0 | FB41: 0 | FC41: 0 | FD41: 0 | FE41: 0 | FF41: 0 | FG41: 0 | FH41: 0 | FI41: 0 | FJ41: 0 | FK41: 0 | FL41: 0 | FM41: 0 | FN41: 0 | FO41: 0 | FP41: 0 | FQ41: 0 | FR41: 0 | FS41: 0 | FT41: 0 | FU41: 0 | FV41: 0 | FW41: 0 | FX41: 0 | FY41: 0 | FZ41: 0 | GA41: 0 | GB41: 0 | GC41: 0 | GD41: 0 | GE41: 0 | GF41: 0 | GG41: 0 | GH41: 0 | GI41: 0 | GJ41: 0 | GK41: 0 | GL41: 0 | GM41: 0 | GN41: 0 | GO41: 0 | GP41: 0 | GQ41: 0 | GR41: 0 | GS41: 0 | GT41: 0 | GU41: 0 | GV41: 0 | GW41: 0 | GX41: 0 | GY41: 0 | GZ41: 0 | HA41: =IF(HA$6=$K41,1,0) -> 0 | HB41: 0 | HC41: 0 | HD41: 0 | HE41: 0 | HF41: 0 | HG41: 0 | HH41: 0 | HI41: 0 | HJ41: 0 | HK41: 0 | HL41: 0 | HM41: 0 | HN41: 0 | HO41: 0 | HP41: 0 | HQ41: 0 | HR41: 0 | HS41: 0 | HT41: 0 | HU41: 0 | HV41: 0 | HW41: 0 | HX41: 0 | HY41: 0 | HZ41: 0 | IA41: 0 | IB41: 0 | IC41: 0
B42: Repayment Period | I42: flag | N42: =SUM(P42:IC42) -> 17 | P42: =O42+P41-O43 -> 0 | Q42: =P42+Q41-P43 -> 0 | R42: 0 | S42: 0 | T42: 0 | U42: 0 | V42: 1 | W42: 1 | X42: 1 | Y42: 1 | Z42: 1 | AA42: 1 | AB42: 1 | AC42: 1 | AD42: 1 | AE42: 1 | AF42: 1 | AG42: 1 | AH42: 1 | AI42: 1 | AJ42: 1 | AK42: 1 | AL42: 1 | AM42: 0 | AN42: 0 | AO42: 0 | AP42: 0 | AQ42: 0 | AR42: 0 | AS42: 0 | AT42: 0 | AU42: 0 | AV42: 0 | AW42: 0 | AX42: 0 | AY42: 0 | AZ42: 0 | BA42: 0 | BB42: 0 | BC42: 0 | BD42: 0 | BE42: 0 | BF42: 0 | BG42: 0 | BH42: 0 | BI42: 0 | BJ42: 0 | BK42: 0 | BL42: 0 | BM42: 0 | BN42: 0 | BO42: 0 | BP42: 0 | BQ42: 0 | BR42: 0 | BS42: 0 | BT42: 0 | BU42: 0 | BV42: 0 | BW42: 0 | BX42: 0 | BY42: 0 | BZ42: 0 | CA42: 0 | CB42: 0 | CC42: =CB42+CC41-CB43 -> 0 | CD42: 0 | CE42: 0 | CF42: 0 | CG42: 0 | CH42: 0 | CI42: 0 | CJ42: 0 | CK42: 0 | CL42: 0 | CM42: 0 | CN42: 0 | CO42: 0 | CP42: 0 | CQ42: 0 | CR42: 0 | CS42: 0 | CT42: 0 | CU42: 0 | CV42: 0 | CW42: 0 | CX42: 0 | CY42: 0 | CZ42: 0 | DA42: 0 | DB42: 0 | DC42: 0 | DD42: 0 | DE42: 0 | DF42: 0 | DG42: 0 | DH42: 0 | DI42: 0 | DJ42: 0 | DK42: 0 | DL42: 0 | DM42: 0 | DN42: 0 | DO42: 0 | DP42: 0 | DQ42: 0 | DR42: 0 | DS42: 0 | DT42: 0 | DU42: 0 | DV42: 0 | DW42: 0 | DX42: 0 | DY42: 0 | DZ42: 0 | EA42: 0 | EB42: 0 | EC42: 0 | ED42: 0 | EE42: 0 | EF42: 0 | EG42: 0 | EH42: 0 | EI42: 0 | EJ42: 0 | EK42: 0 | EL42: 0 | EM42: 0 | EN42: 0 | EO42: =EN42+EO41-EN43 -> 0 | EP42: 0 | EQ42: 0 | ER42: 0 | ES42: 0 | ET42: 0 | EU42: 0 | EV42: 0 | EW42: 0 | EX42: 0 | EY42: 0 | EZ42: 0 | FA42: 0 | FB42: 0 | FC42: 0 | FD42: 0 | FE42: 0 | FF42: 0 | FG42: 0 | FH42: 0 | FI42: 0 | FJ42: 0 | FK42: 0 | FL42: 0 | FM42: 0 | FN42: 0 | FO42: 0 | FP42: 0 | FQ42: 0 | FR42: 0 | FS42: 0 | FT42: 0 | FU42: 0 | FV42: 0 | FW42: 0 | FX42: 0 | FY42: 0 | FZ42: 0 | GA42: 0 | GB42: 0 | GC42: 0 | GD42: 0 | GE42: 0 | GF42: 0 | GG42: 0 | GH42: 0 | GI42: 0 | GJ42: 0 | GK42: 0 | GL42: 0 | GM42: 0 | GN42: 0 | GO42: 0 | GP42: 0 | GQ42: 0 | GR42: 0 | GS42: 0 | GT42: 0 | GU42: 0 | GV42: 0 | GW42: 0 | GX42: 0 | GY42: 0 | GZ42: 0 | HA42: =GZ42+HA41-GZ43 -> 0 | HB42: 0 | HC42: 0 | HD42: 0 | HE42: 0 | HF42: 0 | HG42: 0 | HH42: 0 | HI42: 0 | HJ42: 0 | HK42: 0 | HL42: 0 | HM42: 0 | HN42: 0 | HO42: 0 | HP42: 0 | HQ42: 0 | HR42: 0 | HS42: 0 | HT42: 0 | HU42: 0 | HV42: 0 | HW42: 0 | HX42: 0 | HY42: 0 | HZ42: 0 | IA42: 0 | IB42: 0 | IC42: 0
B43: Repayment End | I43: flag | K43: =Input_Scen!J182 -> 2045 | N43: =SUM(P43:IC43) -> 1 | P43: =IF(P$6=$K43,1,0) -> 0 | Q43: 0 | R43: 0 | S43: 0 | T43: 0 | U43: 0 | V43: 0 | W43: 0 | X43: 0 | Y43: 0 | Z43: 0 | AA43: 0 | AB43: 0 | AC43: 0 | AD43: 0 | AE43: 0 | AF43: 0 | AG43: 0 | AH43: 0 | AI43: 0 | AJ43: 0 | AK43: 0 | AL43: 1 | AM43: 0 | AN43: 0 | AO43: 0 | AP43: 0 | AQ43: 0 | AR43: 0 | AS43: 0 | AT43: 0 | AU43: 0 | AV43: 0 | AW43: 0 | AX43: 0 | AY43: 0 | AZ43: 0 | BA43: 0 | BB43: 0 | BC43: 0 | BD43: 0 | BE43: 0 | BF43: 0 | BG43: 0 | BH43: 0 | BI43: 0 | BJ43: 0 | BK43: 0 | BL43: 0 | BM43: 0 | BN43: 0 | BO43: 0 | BP43: 0 | BQ43: 0 | BR43: 0 | BS43: 0 | BT43: 0 | BU43: 0 | BV43: 0 | BW43: 0 | BX43: 0 | BY43: 0 | BZ43: 0 | CA43: 0 | CB43: =IF(CB$6=$K43,1,0) -> 0 | CC43: 0 | CD43: 0 | CE43: 0 | CF43: 0 | CG43: 0 | CH43: 0 | CI43: 0 | CJ43: 0 | CK43: 0 | CL43: 0 | CM43: 0 | CN43: 0 | CO43: 0 | CP43: 0 | CQ43: 0 | CR43: 0 | CS43: 0 | CT43: 0 | CU43: 0 | CV43: 0 | CW43: 0 | CX43: 0 | CY43: 0 | CZ43: 0 | DA43: 0 | DB43: 0 | DC43: 0 | DD43: 0 | DE43: 0 | DF43: 0 | DG43: 0 | DH43: 0 | DI43: 0 | DJ43: 0 | DK43: 0 | DL43: 0 | DM43: 0 | DN43: 0 | DO43: 0 | DP43: 0 | DQ43: 0 | DR43: 0 | DS43: 0 | DT43: 0 | DU43: 0 | DV43: 0 | DW43: 0 | DX43: 0 | DY43: 0 | DZ43: 0 | EA43: 0 | EB43: 0 | EC43: 0 | ED43: 0 | EE43: 0 | EF43: 0 | EG43: 0 | EH43: 0 | EI43: 0 | EJ43: 0 | EK43: 0 | EL43: 0 | EM43: 0 | EN43: 0 | EO43: 0 | EP43: 0 | EQ43: 0 | ER43: 0 | ES43: 0 | ET43: 0 | EU43: 0 | EV43: 0 | EW43: 0 | EX43: 0 | EY43: 0 | EZ43: 0 | FA43: 0 | FB43: 0 | FC43: 0 | FD43: 0 | FE43: 0 | FF43: 0 | FG43: 0 | FH43: 0 | FI43: 0 | FJ43: 0 | FK43: 0 | FL43: 0 | FM43: 0 | FN43: 0 | FO43: 0 | FP43: 0 | FQ43: 0 | FR43: 0 | FS43: 0 | FT43: 0 | FU43: 0 | FV43: 0 | FW43: 0 | FX43: 0 | FY43: 0 | FZ43: 0 | GA43: 0 | GB43: 0 | GC43: 0 | GD43: 0 | GE43: 0 | GF43: 0 | GG43: 0 | GH43: 0 | GI43: 0 | GJ43: 0 | GK43: 0 | GL43: 0 | GM43: 0 | GN43: 0 | GO43: 0 | GP43: 0 | GQ43: 0 | GR43: 0 | GS43: 0 | GT43: 0 | GU43: 0 | GV43: 0 | GW43: 0 | GX43: 0 | GY43: 0 | GZ43: 0 | HA43: 0 | HB43: 0 | HC43: 0 | HD43: 0 | HE43: 0 | HF43: 0 | HG43: 0 | HH43: 0 | HI43: 0 | HJ43: 0 | HK43: 0 | HL43: 0 | HM43: 0 | HN43: 0 | HO43: 0 | HP43: 0 | HQ43: 0 | HR43: 0 | HS43: 0 | HT43: 0 | HU43: 0 | HV43: 0 | HW43: 0 | HX43: 0 | HY43: 0 | HZ43: 0 | IA43: 0 | IB43: 0 | IC43: 0
B45: Repayment Counter | I45: # | P45: =(P42+O45)*P42 -> 0 | Q45: 0 | R45: 0 | S45: 0 | T45: 0 | U45: 0 | V45: 1 | W45: 2 | X45: 3 | Y45: 4 | Z45: 5 | AA45: 6 | AB45: 7 | AC45: 8 | AD45: 9 | AE45: 10 | AF45: 11 | AG45: 12 | AH45: 13 | AI45: 14 | AJ45: 15 | AK45: 16 | AL45: 17 | AM45: 0 | AN45: 0 | AO45: 0 | AP45: 0 | AQ45: 0 | AR45: 0 | AS45: 0 | AT45: 0 | AU45: 0 | AV45: 0 | AW45: 0 | AX45: 0 | AY45: 0 | AZ45: 0 | BA45: 0 | BB45: 0 | BC45: 0 | BD45: 0 | BE45: 0 | BF45: 0 | BG45: 0 | BH45: 0 | BI45: 0 | BJ45: 0 | BK45: 0 | BL45: 0 | BM45: 0 | BN45: 0 | BO45: 0 | BP45: 0 | BQ45: 0 | BR45: 0 | BS45: 0 | BT45: 0 | BU45: 0 | BV45: 0 | BW45: 0 | BX45: 0 | BY45: 0 | BZ45: 0 | CA45: 0 | CB45: =(CB42+CA45)*CB42 -> 0 | CC45: 0 | CD45: 0 | CE45: 0 | CF45: 0 | CG45: 0 | CH45: 0 | CI45: 0 | CJ45: 0 | CK45: 0 | CL45: 0 | CM45: 0 | CN45: 0 | CO45: 0 | CP45: 0 | CQ45: 0 | CR45: 0 | CS45: 0 | CT45: 0 | CU45: 0 | CV45: 0 | CW45: 0 | CX45: 0 | CY45: 0 | CZ45: 0 | DA45: 0 | DB45: 0 | DC45: 0 | DD45: 0 | DE45: 0 | DF45: 0 | DG45: 0 | DH45: 0 | DI45: 0 | DJ45: 0 | DK45: 0 | DL45: 0 | DM45: 0 | DN45: 0 | DO45: 0 | DP45: 0 | DQ45: 0 | DR45: 0 | DS45: 0 | DT45: 0 | DU45: 0 | DV45: 0 | DW45: 0 | DX45: 0 | DY45: 0 | DZ45: 0 | EA45: 0 | EB45: 0 | EC45: 0 | ED45: 0 | EE45: 0 | EF45: 0 | EG45: 0 | EH45: 0 | EI45: 0 | EJ45: 0 | EK45: 0 | EL45: 0 | EM45: 0 | EN45: =(EN42+EM45)*EN42 -> 0 | EO45: 0 | EP45: 0 | EQ45: 0 | ER45: 0 | ES45: 0 | ET45: 0 | EU45: 0 | EV45: 0 | EW45: 0 | EX45: 0 | EY45: 0 | EZ45: 0 | FA45: 0 | FB45: 0 | FC45: 0 | FD45: 0 | FE45: 0 | FF45: 0 | FG45: 0 | FH45: 0 | FI45: 0 | FJ45: 0 | FK45: 0 | FL45: 0 | FM45: 0 | FN45: 0 | FO45: 0 | FP45: 0 | FQ45: 0 | FR45: 0 | FS45: 0 | FT45: 0 | FU45: 0 | FV45: 0 | FW45: 0 | FX45: 0 | FY45: 0 | FZ45: 0 | GA45: 0 | GB45: 0 | GC45: 0 | GD45: 0 | GE45: 0 | GF45: 0 | GG45: 0 | GH45: 0 | GI45: 0 | GJ45: 0 | GK45: 0 | GL45: 0 | GM45: 0 | GN45: 0 | GO45: 0 | GP45: 0 | GQ45: 0 | GR45: 0 | GS45: 0 | GT45: 0 | GU45: 0 | GV45: 0 | GW45: 0 | GX45: 0 | GY45: 0 | GZ45: =(GZ42+GY45)*GZ42 -> 0 | HA45: 0 | HB45: 0 | HC45: 0 | HD45: 0 | HE45: 0 | HF45: 0 | HG45: 0 | HH45: 0 | HI45: 0 | HJ45: 0 | HK45: 0 | HL45: 0 | HM45: 0 | HN45: 0 | HO45: 0 | HP45: 0 | HQ45: 0 | HR45: 0 | HS45: 0 | HT45: 0 | HU45: 0 | HV45: 0 | HW45: 0 | HX45: 0 | HY45: 0 | HZ45: 0 | IA45: 0 | IB45: 0 | IC45: 0
B47: Cash Sweep
B48: Start | I48: flag | K48: =Input_Scen!J192 -> 2032 | N48: =SUM(P48:IC48) -> 1 | P48: =IF(P$6=$K48,1,0) -> 0 | Q48: =IF(Q$6=$K48,1,0) -> 0 | R48: 0 | S48: 0 | T48: 0 | U48: 0 | V48: 0 | W48: 0 | X48: 0 | Y48: 1 | Z48: 0 | AA48: 0 | AB48: 0 | AC48: 0 | AD48: 0 | AE48: 0 | AF48: 0 | AG48: 0 | AH48: 0 | AI48: 0 | AJ48: 0 | AK48: 0 | AL48: 0 | AM48: 0 | AN48: 0 | AO48: 0 | AP48: 0 | AQ48: 0 | AR48: 0 | AS48: 0 | AT48: 0 | AU48: 0 | AV48: 0 | AW48: 0 | AX48: 0 | AY48: 0 | AZ48: 0 | BA48: 0 | BB48: 0 | BC48: 0 | BD48: 0 | BE48: 0 | BF48: 0 | BG48: 0 | BH48: 0 | BI48: 0 | BJ48: 0 | BK48: 0 | BL48: 0 | BM48: 0 | BN48: 0 | BO48: 0 | BP48: 0 | BQ48: 0 | BR48: 0 | BS48: 0 | BT48: 0 | BU48: 0 | BV48: 0 | BW48: 0 | BX48: 0 | BY48: 0 | BZ48: 0 | CA48: 0 | CB48: 0 | CC48: =IF(CC$6=$K48,1,0) -> 0 | CD48: 0 | CE48: 0 | CF48: 0 | CG48: 0 | CH48: 0 | CI48: 0 | CJ48: 0 | CK48: 0 | CL48: 0 | CM48: 0 | CN48: 0 | CO48: 0 | CP48: 0 | CQ48: 0 | CR48: 0 | CS48: 0 | CT48: 0 | CU48: 0 | CV48: 0 | CW48: 0 | CX48: 0 | CY48: 0 | CZ48: 0 | DA48: 0 | DB48: 0 | DC48: 0 | DD48: 0 | DE48: 0 | DF48: 0 | DG48: 0 | DH48: 0 | DI48: 0 | DJ48: 0 | DK48: 0 | DL48: 0 | DM48: 0 | DN48: 0 | DO48: 0 | DP48: 0 | DQ48: 0 | DR48: 0 | DS48: 0 | DT48: 0 | DU48: 0 | DV48: 0 | DW48: 0 | DX48: 0 | DY48: 0 | DZ48: 0 | EA48: 0 | EB48: 0 | EC48: 0 | ED48: 0 | EE48: 0 | EF48: 0 | EG48: 0 | EH48: 0 | EI48: 0 | EJ48: 0 | EK48: 0 | EL48: 0 | EM48: 0 | EN48: 0 | EO48: =IF(EO$6=$K48,1,0) -> 0 | EP48: 0 | EQ48: 0 | ER48: 0 | ES48: 0 | ET48: 0 | EU48: 0 | EV48: 0 | EW48: 0 | EX48: 0 | EY48: 0 | EZ48: 0 | FA48: 0 | FB48: 0 | FC48: 0 | FD48: 0 | FE48: 0 | FF48: 0 | FG48: 0 | FH48: 0 | FI48: 0 | FJ48: 0 | FK48: 0 | FL48: 0 | FM48: 0 | FN48: 0 | FO48: 0 | FP48: 0 | FQ48: 0 | FR48: 0 | FS48: 0 | FT48: 0 | FU48: 0 | FV48: 0 | FW48: 0 | FX48: 0 | FY48: 0 | FZ48: 0 | GA48: 0 | GB48: 0 | GC48: 0 | GD48: 0 | GE48: 0 | GF48: 0 | GG48: 0 | GH48: 0 | GI48: 0 | GJ48: 0 | GK48: 0 | GL48: 0 | GM48: 0 | GN48: 0 | GO48: 0 | GP48: 0 | GQ48: 0 | GR48: 0 | GS48: 0 | GT48: 0 | GU48: 0 | GV48: 0 | GW48: 0 | GX48: 0 | GY48: 0 | GZ48: 0 | HA48: =IF(HA$6=$K48,1,0) -> 0 | HB48: 0 | HC48: 0 | HD48: 0 | HE48: 0 | HF48: 0 | HG48: 0 | HH48: 0 | HI48: 0 | HJ48: 0 | HK48: 0 | HL48: 0 | HM48: 0 | HN48: 0 | HO48: 0 | HP48: 0 | HQ48: 0 | HR48: 0 | HS48: 0 | HT48: 0 | HU48: 0 | HV48: 0 | HW48: 0 | HX48: 0 | HY48: 0 | HZ48: 0 | IA48: 0 | IB48: 0 | IC48: 0
B49: Cash Sweep Period | I49: flag | N49: =SUM(P49:IC49) -> 13 | P49: =O49+P48-O50 -> 0 | Q49: =P49+Q48-P50 -> 0 | R49: 0 | S49: 0 | T49: 0 | U49: 0 | V49: 0 | W49: 0 | X49: 0 | Y49: 1 | Z49: 1 | AA49: 1 | AB49: 1 | AC49: 1 | AD49: 1 | AE49: 1 | AF49: 1 | AG49: 1 | AH49: 1 | AI49: 1 | AJ49: 1 | AK49: 1 | AL49: 0 | AM49: 0 | AN49: 0 | AO49: 0 | AP49: 0 | AQ49: 0 | AR49: 0 | AS49: 0 | AT49: 0 | AU49: 0 | AV49: 0 | AW49: 0 | AX49: 0 | AY49: 0 | AZ49: 0 | BA49: 0 | BB49: 0 | BC49: 0 | BD49: 0 | BE49: 0 | BF49: 0 | BG49: 0 | BH49: 0 | BI49: 0 | BJ49: 0 | BK49: 0 | BL49: 0 | BM49: 0 | BN49: 0 | BO49: 0 | BP49: 0 | BQ49: 0 | BR49: 0 | BS49: 0 | BT49: 0 | BU49: 0 | BV49: 0 | BW49: 0 | BX49: 0 | BY49: 0 | BZ49: 0 | CA49: 0 | CB49: 0 | CC49: =CB49+CC48-CB50 -> 0 | CD49: 0 | CE49: 0 | CF49: 0 | CG49: 0 | CH49: 0 | CI49: 0 | CJ49: 0 | CK49: 0 | CL49: 0 | CM49: 0 | CN49: 0 | CO49: 0 | CP49: 0 | CQ49: 0 | CR49: 0 | CS49: 0 | CT49: 0 | CU49: 0 | CV49: 0 | CW49: 0 | CX49: 0 | CY49: 0 | CZ49: 0 | DA49: 0 | DB49: 0 | DC49: 0 | DD49: 0 | DE49: 0 | DF49: 0 | DG49: 0 | DH49: 0 | DI49: 0 | DJ49: 0 | DK49: 0 | DL49: 0 | DM49: 0 | DN49: 0 | DO49: 0 | DP49: 0 | DQ49: 0 | DR49: 0 | DS49: 0 | DT49: 0 | DU49: 0 | DV49: 0 | DW49: 0 | DX49: 0 | DY49: 0 | DZ49: 0 | EA49: 0 | EB49: 0 | EC49: 0 | ED49: 0 | EE49: 0 | EF49: 0 | EG49: 0 | EH49: 0 | EI49: 0 | EJ49: 0 | EK49: 0 | EL49: 0 | EM49: 0 | EN49: 0 | EO49: =EN49+EO48-EN50 -> 0 | EP49: 0 | EQ49: 0 | ER49: 0 | ES49: 0 | ET49: 0 | EU49: 0 | EV49: 0 | EW49: 0 | EX49: 0 | EY49: 0 | EZ49: 0 | FA49: 0 | FB49: 0 | FC49: 0 | FD49: 0 | FE49: 0 | FF49: 0 | FG49: 0 | FH49: 0 | FI49: 0 | FJ49: 0 | FK49: 0 | FL49: 0 | FM49: 0 | FN49: 0 | FO49: 0 | FP49: 0 | FQ49: 0 | FR49: 0 | FS49: 0 | FT49: 0 | FU49: 0 | FV49: 0 | FW49: 0 | FX49: 0 | FY49: 0 | FZ49: 0 | GA49: 0 | GB49: 0 | GC49: 0 | GD49: 0 | GE49: 0 | GF49: 0 | GG49: 0 | GH49: 0 | GI49: 0 | GJ49: 0 | GK49: 0 | GL49: 0 | GM49: 0 | GN49: 0 | GO49: 0 | GP49: 0 | GQ49: 0 | GR49: 0 | GS49: 0 | GT49: 0 | GU49: 0 | GV49: 0 | GW49: 0 | GX49: 0 | GY49: 0 | GZ49: 0 | HA49: =GZ49+HA48-GZ50 -> 0 | HB49: 0 | HC49: 0 | HD49: 0 | HE49: 0 | HF49: 0 | HG49: 0 | HH49: 0 | HI49: 0 | HJ49: 0 | HK49: 0 | HL49: 0 | HM49: 0 | HN49: 0 | HO49: 0 | HP49: 0 | HQ49: 0 | HR49: 0 | HS49: 0 | HT49: 0 | HU49: 0 | HV49: 0 | HW49: 0 | HX49: 0 | HY49: 0 | HZ49: 0 | IA49: 0 | IB49: 0 | IC49: 0
B50: End | I50: flag | K50: =Input_Scen!J194 -> 2044 | N50: =SUM(P50:IC50) -> 1 | P50: =IF(P$6=$K50,1,0) -> 0 | Q50: 0 | R50: 0 | S50: 0 | T50: 0 | U50: 0 | V50: 0 | W50: 0 | X50: 0 | Y50: 0 | Z50: 0 | AA50: 0 | AB50: 0 | AC50: 0 | AD50: 0 | AE50: 0 | AF50: 0 | AG50: 0 | AH50: 0 | AI50: 0 | AJ50: 0 | AK50: 1 | AL50: 0 | AM50: 0 | AN50: 0 | AO50: 0 | AP50: 0 | AQ50: 0 | AR50: 0 | AS50: 0 | AT50: 0 | AU50: 0 | AV50: 0 | AW50: 0 | AX50: 0 | AY50: 0 | AZ50: 0 | BA50: 0 | BB50: 0 | BC50: 0 | BD50: 0 | BE50: 0 | BF50: 0 | BG50: 0 | BH50: 0 | BI50: 0 | BJ50: 0 | BK50: 0 | BL50: 0 | BM50: 0 | BN50: 0 | BO50: 0 | BP50: 0 | BQ50: 0 | BR50: 0 | BS50: 0 | BT50: 0 | BU50: 0 | BV50: 0 | BW50: 0 | BX50: 0 | BY50: 0 | BZ50: 0 | CA50: 0 | CB50: =IF(CB$6=$K50,1,0) -> 0 | CC50: 0 | CD50: 0 | CE50: 0 | CF50: 0 | CG50: 0 | CH50: 0 | CI50: 0 | CJ50: 0 | CK50: 0 | CL50: 0 | CM50: 0 | CN50: 0 | CO50: 0 | CP50: 0 | CQ50: 0 | CR50: 0 | CS50: 0 | CT50: 0 | CU50: 0 | CV50: 0 | CW50: 0 | CX50: 0 | CY50: 0 | CZ50: 0 | DA50: 0 | DB50: 0 | DC50: 0 | DD50: 0 | DE50: 0 | DF50: 0 | DG50: 0 | DH50: 0 | DI50: 0 | DJ50: 0 | DK50: 0 | DL50: 0 | DM50: 0 | DN50: 0 | DO50: 0 | DP50: 0 | DQ50: 0 | DR50: 0 | DS50: 0 | DT50: 0 | DU50: 0 | DV50: 0 | DW50: 0 | DX50: 0 | DY50: 0 | DZ50: 0 | EA50: 0 | EB50: 0 | EC50: 0 | ED50: 0 | EE50: 0 | EF50: 0 | EG50: 0 | EH50: 0 | EI50: 0 | EJ50: 0 | EK50: 0 | EL50: 0 | EM50: 0 | EN50: 0 | EO50: 0 | EP50: 0 | EQ50: 0 | ER50: 0 | ES50: 0 | ET50: 0 | EU50: 0 | EV50: 0 | EW50: 0 | EX50: 0 | EY50: 0 | EZ50: 0 | FA50: 0 | FB50: 0 | FC50: 0 | FD50: 0 | FE50: 0 | FF50: 0 | FG50: 0 | FH50: 0 | FI50: 0 | FJ50: 0 | FK50: 0 | FL50: 0 | FM50: 0 | FN50: 0 | FO50: 0 | FP50: 0 | FQ50: 0 | FR50: 0 | FS50: 0 | FT50: 0 | FU50: 0 | FV50: 0 | FW50: 0 | FX50: 0 | FY50: 0 | FZ50: 0 | GA50: 0 | GB50: 0 | GC50: 0 | GD50: 0 | GE50: 0 | GF50: 0 | GG50: 0 | GH50: 0 | GI50: 0 | GJ50: 0 | GK50: 0 | GL50: 0 | GM50: 0 | GN50: 0 | GO50: 0 | GP50: 0 | GQ50: 0 | GR50: 0 | GS50: 0 | GT50: 0 | GU50: 0 | GV50: 0 | GW50: 0 | GX50: 0 | GY50: 0 | GZ50: 0 | HA50: 0 | HB50: 0 | HC50: 0 | HD50: 0 | HE50: 0 | HF50: 0 | HG50: 0 | HH50: 0 | HI50: 0 | HJ50: 0 | HK50: 0 | HL50: 0 | HM50: 0 | HN50: 0 | HO50: 0 | HP50: 0 | HQ50: 0 | HR50: 0 | HS50: 0 | HT50: 0 | HU50: 0 | HV50: 0 | HW50: 0 | HX50: 0 | HY50: 0 | HZ50: 0 | IA50: 0 | IB50: 0 | IC50: 0
B52: Counter | I52: # | P52: =(P49+O52)*P49 -> 0 | Q52: 0 | R52: 0 | S52: 0 | T52: 0 | U52: 0 | V52: 0 | W52: 0 | X52: 0 | Y52: 1 | Z52: 2 | AA52: 3 | AB52: 4 | AC52: 5 | AD52: 6 | AE52: 7 | AF52: 8 | AG52: 9 | AH52: 10 | AI52: 11 | AJ52: 12 | AK52: 13 | AL52: 0 | AM52: 0 | AN52: 0 | AO52: 0 | AP52: 0 | AQ52: 0 | AR52: 0 | AS52: 0 | AT52: 0 | AU52: 0 | AV52: 0 | AW52: 0 | AX52: 0 | AY52: 0 | AZ52: 0 | BA52: 0 | BB52: 0 | BC52: 0 | BD52: 0 | BE52: 0 | BF52: 0 | BG52: 0 | BH52: 0 | BI52: 0 | BJ52: 0 | BK52: 0 | BL52: 0 | BM52: 0 | BN52: 0 | BO52: 0 | BP52: 0 | BQ52: 0 | BR52: 0 | BS52: 0 | BT52: 0 | BU52: 0 | BV52: 0 | BW52: 0 | BX52: 0 | BY52: 0 | BZ52: 0 | CA52: 0 | CB52: =(CB49+CA52)*CB49 -> 0 | CC52: 0 | CD52: 0 | CE52: 0 | CF52: 0 | CG52: 0 | CH52: 0 | CI52: 0 | CJ52: 0 | CK52: 0 | CL52: 0 | CM52: 0 | CN52: 0 | CO52: 0 | CP52: 0 | CQ52: 0 | CR52: 0 | CS52: 0 | CT52: 0 | CU52: 0 | CV52: 0 | CW52: 0 | CX52: 0 | CY52: 0 | CZ52: 0 | DA52: 0 | DB52: 0 | DC52: 0 | DD52: 0 | DE52: 0 | DF52: 0 | DG52: 0 | DH52: 0 | DI52: 0 | DJ52: 0 | DK52: 0 | DL52: 0 | DM52: 0 | DN52: 0 | DO52: 0 | DP52: 0 | DQ52: 0 | DR52: 0 | DS52: 0 | DT52: 0 | DU52: 0 | DV52: 0 | DW52: 0 | DX52: 0 | DY52: 0 | DZ52: 0 | EA52: 0 | EB52: 0 | EC52: 0 | ED52: 0 | EE52: 0 | EF52: 0 | EG52: 0 | EH52: 0 | EI52: 0 | EJ52: 0 | EK52: 0 | EL52: 0 | EM52: 0 | EN52: =(EN49+EM52)*EN49 -> 0 | EO52: 0 | EP52: 0 | EQ52: 0 | ER52: 0 | ES52: 0 | ET52: 0 | EU52: 0 | EV52: 0 | EW52: 0 | EX52: 0 | EY52: 0 | EZ52: 0 | FA52: 0 | FB52: 0 | FC52: 0 | FD52: 0 | FE52: 0 | FF52: 0 | FG52: 0 | FH52: 0 | FI52: 0 | FJ52: 0 | FK52: 0 | FL52: 0 | FM52: 0 | FN52: 0 | FO52: 0 | FP52: 0 | FQ52: 0 | FR52: 0 | FS52: 0 | FT52: 0 | FU52: 0 | FV52: 0 | FW52: 0 | FX52: 0 | FY52: 0 | FZ52: 0 | GA52: 0 | GB52: 0 | GC52: 0 | GD52: 0 | GE52: 0 | GF52: 0 | GG52: 0 | GH52: 0 | GI52: 0 | GJ52: 0 | GK52: 0 | GL52: 0 | GM52: 0 | GN52: 0 | GO52: 0 | GP52: 0 | GQ52: 0 | GR52: 0 | GS52: 0 | GT52: 0 | GU52: 0 | GV52: 0 | GW52: 0 | GX52: 0 | GY52: 0 | GZ52: =(GZ49+GY52)*GZ49 -> 0 | HA52: 0 | HB52: 0 | HC52: 0 | HD52: 0 | HE52: 0 | HF52: 0 | HG52: 0 | HH52: 0 | HI52: 0 | HJ52: 0 | HK52: 0 | HL52: 0 | HM52: 0 | HN52: 0 | HO52: 0 | HP52: 0 | HQ52: 0 | HR52: 0 | HS52: 0 | HT52: 0 | HU52: 0 | HV52: 0 | HW52: 0 | HX52: 0 | HY52: 0 | HZ52: 0 | IA52: 0 | IB52: 0 | IC52: 0
B54: Shareholder Loan
B56: Repayment Start | I56: flag | K56: =Input_Scen!J173 -> 2029 | N56: =SUM(P56:IC56) -> 1 | P56: =IF(P$6=$K56,1,0) -> 0 | Q56: =IF(Q$6=$K56,1,0) -> 0 | R56: 0 | S56: 0 | T56: 0 | U56: 0 | V56: 1 | W56: 0 | X56: 0 | Y56: 0 | Z56: 0 | AA56: 0 | AB56: 0 | AC56: 0 | AD56: 0 | AE56: 0 | AF56: 0 | AG56: 0 | AH56: 0 | AI56: 0 | AJ56: 0 | AK56: 0 | AL56: 0 | AM56: 0 | AN56: 0 | AO56: 0 | AP56: 0 | AQ56: 0 | AR56: 0 | AS56: 0 | AT56: 0 | AU56: 0 | AV56: 0 | AW56: 0 | AX56: 0 | AY56: 0 | AZ56: 0 | BA56: 0 | BB56: 0 | BC56: 0 | BD56: 0 | BE56: 0 | BF56: 0 | BG56: 0 | BH56: 0 | BI56: 0 | BJ56: 0 | BK56: 0 | BL56: 0 | BM56: 0 | BN56: 0 | BO56: 0 | BP56: 0 | BQ56: 0 | BR56: 0 | BS56: 0 | BT56: 0 | BU56: 0 | BV56: 0 | BW56: 0 | BX56: 0 | BY56: 0 | BZ56: 0 | CA56: 0 | CB56: 0 | CC56: =IF(CC$6=$K56,1,0) -> 0 | CD56: 0 | CE56: 0 | CF56: 0 | CG56: 0 | CH56: 0 | CI56: 0 | CJ56: 0 | CK56: 0 | CL56: 0 | CM56: 0 | CN56: 0 | CO56: 0 | CP56: 0 | CQ56: 0 | CR56: 0 | CS56: 0 | CT56: 0 | CU56: 0 | CV56: 0 | CW56: 0 | CX56: 0 | CY56: 0 | CZ56: 0 | DA56: 0 | DB56: 0 | DC56: 0 | DD56: 0 | DE56: 0 | DF56: 0 | DG56: 0 | DH56: 0 | DI56: 0 | DJ56: 0 | DK56: 0 | DL56: 0 | DM56: 0 | DN56: 0 | DO56: 0 | DP56: 0 | DQ56: 0 | DR56: 0 | DS56: 0 | DT56: 0 | DU56: 0 | DV56: 0 | DW56: 0 | DX56: 0 | DY56: 0 | DZ56: 0 | EA56: 0 | EB56: 0 | EC56: 0 | ED56: 0 | EE56: 0 | EF56: 0 | EG56: 0 | EH56: 0 | EI56: 0 | EJ56: 0 | EK56: 0 | EL56: 0 | EM56: 0 | EN56: 0 | EO56: =IF(EO$6=$K56,1,0) -> 0 | EP56: 0 | EQ56: 0 | ER56: 0 | ES56: 0 | ET56: 0 | EU56: 0 | EV56: 0 | EW56: 0 | EX56: 0 | EY56: 0 | EZ56: 0 | FA56: 0 | FB56: 0 | FC56: 0 | FD56: 0 | FE56: 0 | FF56: 0 | FG56: 0 | FH56: 0 | FI56: 0 | FJ56: 0 | FK56: 0 | FL56: 0 | FM56: 0 | FN56: 0 | FO56: 0 | FP56: 0 | FQ56: 0 | FR56: 0 | FS56: 0 | FT56: 0 | FU56: 0 | FV56: 0 | FW56: 0 | FX56: 0 | FY56: 0 | FZ56: 0 | GA56: 0 | GB56: 0 | GC56: 0 | GD56: 0 | GE56: 0 | GF56: 0 | GG56: 0 | GH56: 0 | GI56: 0 | GJ56: 0 | GK56: 0 | GL56: 0 | GM56: 0 | GN56: 0 | GO56: 0 | GP56: 0 | GQ56: 0 | GR56: 0 | GS56: 0 | GT56: 0 | GU56: 0 | GV56: 0 | GW56: 0 | GX56: 0 | GY56: 0 | GZ56: 0 | HA56: =IF(HA$6=$K56,1,0) -> 0 | HB56: 0 | HC56: 0 | HD56: 0 | HE56: 0 | HF56: 0 | HG56: 0 | HH56: 0 | HI56: 0 | HJ56: 0 | HK56: 0 | HL56: 0 | HM56: 0 | HN56: 0 | HO56: 0 | HP56: 0 | HQ56: 0 | HR56: 0 | HS56: 0 | HT56: 0 | HU56: 0 | HV56: 0 | HW56: 0 | HX56: 0 | HY56: 0 | HZ56: 0 | IA56: 0 | IB56: 0 | IC56: 0
B57: Repayment Period | I57: flag | N57: =SUM(P57:IC57) -> 216 | P57: =O57+P56 -> 0 | Q57: =P57+Q56 -> 0 | R57: 0 | S57: 0 | T57: 0 | U57: 0 | V57: 1 | W57: 1 | X57: 1 | Y57: 1 | Z57: 1 | AA57: 1 | AB57: 1 | AC57: 1 | AD57: 1 | AE57: 1 | AF57: 1 | AG57: 1 | AH57: 1 | AI57: 1 | AJ57: 1 | AK57: 1 | AL57: 1 | AM57: 1 | AN57: 1 | AO57: 1 | AP57: 1 | AQ57: 1 | AR57: 1 | AS57: 1 | AT57: 1 | AU57: 1 | AV57: 1 | AW57: 1 | AX57: 1 | AY57: 1 | AZ57: 1 | BA57: 1 | BB57: 1 | BC57: 1 | BD57: 1 | BE57: 1 | BF57: 1 | BG57: 1 | BH57: 1 | BI57: 1 | BJ57: 1 | BK57: 1 | BL57: 1 | BM57: 1 | BN57: 1 | BO57: 1 | BP57: 1 | BQ57: 1 | BR57: 1 | BS57: 1 | BT57: 1 | BU57: 1 | BV57: 1 | BW57: 1 | BX57: 1 | BY57: 1 | BZ57: 1 | CA57: 1 | CB57: 1 | CC57: =CB57+CC56 -> 1 | CD57: 1 | CE57: 1 | CF57: 1 | CG57: 1 | CH57: 1 | CI57: 1 | CJ57: 1 | CK57: 1 | CL57: 1 | CM57: 1 | CN57: 1 | CO57: 1 | CP57: 1 | CQ57: 1 | CR57: 1 | CS57: 1 | CT57: 1 | CU57: 1 | CV57: 1 | CW57: 1 | CX57: 1 | CY57: 1 | CZ57: 1 | DA57: 1 | DB57: 1 | DC57: 1 | DD57: 1 | DE57: 1 | DF57: 1 | DG57: 1 | DH57: 1 | DI57: 1 | DJ57: 1 | DK57: 1 | DL57: 1 | DM57: 1 | DN57: 1 | DO57: 1 | DP57: 1 | DQ57: 1 | DR57: 1 | DS57: 1 | DT57: 1 | DU57: 1 | DV57: 1 | DW57: 1 | DX57: 1 | DY57: 1 | DZ57: 1 | EA57: 1 | EB57: 1 | EC57: 1 | ED57: 1 | EE57: 1 | EF57: 1 | EG57: 1 | EH57: 1 | EI57: 1 | EJ57: 1 | EK57: 1 | EL57: 1 | EM57: 1 | EN57: 1 | EO57: =EN57+EO56 -> 1 | EP57: 1 | EQ57: 1 | ER57: 1 | ES57: 1 | ET57: 1 | EU57: 1 | EV57: 1 | EW57: 1 | EX57: 1 | EY57: 1 | EZ57: 1 | FA57: 1 | FB57: 1 | FC57: 1 | FD57: 1 | FE57: 1 | FF57: 1 | FG57: 1 | FH57: 1 | FI57: 1 | FJ57: 1 | FK57: 1 | FL57: 1 | FM57: 1 | FN57: 1 | FO57: 1 | FP57: 1 | FQ57: 1 | FR57: 1 | FS57: 1 | FT57: 1 | FU57: 1 | FV57: 1 | FW57: 1 | FX57: 1 | FY57: 1 | FZ57: 1 | GA57: 1 | GB57: 1 | GC57: 1 | GD57: 1 | GE57: 1 | GF57: 1 | GG57: 1 | GH57: 1 | GI57: 1 | GJ57: 1 | GK57: 1 | GL57: 1 | GM57: 1 | GN57: 1 | GO57: 1 | GP57: 1 | GQ57: 1 | GR57: 1 | GS57: 1 | GT57: 1 | GU57: 1 | GV57: 1 | GW57: 1 | GX57: 1 | GY57: 1 | GZ57: 1 | HA57: =GZ57+HA56 -> 1 | HB57: 1 | HC57: 1 | HD57: 1 | HE57: 1 | HF57: 1 | HG57: 1 | HH57: 1 | HI57: 1 | HJ57: 1 | HK57: 1 | HL57: 1 | HM57: 1 | HN57: 1 | HO57: 1 | HP57: 1 | HQ57: 1 | HR57: 1 | HS57: 1 | HT57: 1 | HU57: 1 | HV57: 1 | HW57: 1 | HX57: 1 | HY57: 1 | HZ57: 1 | IA57: 1 | IB57: 1 | IC57: 1
B59: Maintenance Reserve Account
